Workbook

Sheet Récapitulatif
A1: Mois de référence pour chgt saison | B1: 8 | I1: 5 QUILLES
A2: Saison 1 | B2: 2021-2022
A3: Saison 2 | B3: 2022-2023 | I3: Statistiques N1 Ligue des Hauts de France
A4: Nb Match mini sur 2 saisons | B4: 10
B5: Critères pour descente | C5: Critères pour montée
A6: %age plancher matchs gagnés | B6: 0.33 | C6: 1 | D6: %age plafond matchs gagnés | I6: =SaisonDeb & " / " & SaisonFin -> 2021-2022 / 2022-2023
A7: %age plancher sets gagnés | B7: 0.33 | C7: 1 | D7: %age plafond sets gagnés
A8: Moyenne générale plancher | B8: 0 | C8: 5 | D8: Moyenne générale plafond
B10: =SaisonDeb -> 2021-2022 | I10: =SaisonFin -> 2022-2023 | P10: Total 2 saisons
B11: Matchs | E11: Sets | H11: Moy. | I11: Matchs | L11: Sets | O11: Moy. | P11: Matchs | S11: Sets | V11: Moy.
A12: Joueur | B12: G | C12: P | D12: %age G | E12: G | F12: P | G12: %age G | H12: Gén. | I12: G | J12: P | K12: %age G | L12: G | M12: P | N12: %age G | O12: Gén. | P12: G | Q12: P | R12: %age G | S12: G | T12: P | U12: %age G | V12: Gén.
A13: ALAZARD Philippe | B13: 6 | C13: 9 | D13: 0.4 | E13: 6 | F13: 9 | G13: 0.4 | H13: 0.9140518417 | I13: 0 | J13: 0 | L13: 0 | M13: 0 | P13: 6 | Q13: 9 | R13: 0.4 | S13: 6 | T13: 9 | U13: 0.4 | V13: 0.9140518417
A14: ANSEL Philippe | B14: 4 | C14: 3 | D14: 0.5714285714 | E14: 4 | F14: 3 | G14: 0.5714285714 | H14: 1.208722741 | I14: 0 | J14: 0 | L14: 0 | M14: 0 | P14: 4 | Q14: 3 | R14: 0.5714285714 | S14: 4 | T14: 3 | U14: 0.5714285714 | V14: 1.208722741
A15: BARBE Philippe | B15: 4 | C15: 17 | D15: 0.1904761905 | E15: 4 | F15: 17 | G15: 0.1904761905 | H15: 0.7878653676 | I15: 0 | J15: 8 | K15: 0 | L15: 0 | M15: 8 | N15: 0 | O15: 0.6958333333 | P15: 4 | Q15: 25 | R15: 0.1379310345 | S15: 4 | T15: 25 | U15: 0.1379310345 | V15: 0.7604101927
A16: BASTENIER Jean | B16: 2 | C16: 5 | D16: 0.2857142857 | E16: 2 | F16: 4 | G16: 0.3333333333 | H16: 0.7959527825 | I16: 0 | J16: 0 | L16: 0 | M16: 0 | P16: 2 | Q16: 5 | R16: 0.2857142857 | S16: 2 | T16: 4 | U16: 0.3333333333 | V16: 0.7959527825
A17: BATTEUX Daniel | B17: 0 | C17: 0 | E17: 0 | F17: 0 | I17: 1 | J17: 3 | K17: 0.25 | L17: 2 | M17: 7 | N17: 0.2222222222 | O17: 0.6867924528 | P17: 1 | Q17: 3 | R17: 0.25 | S17: 2 | T17: 7 | U17: 0.2222222222 | V17: 0.6867924528
A18: BEGHIN Benjamin | B18: 0 | C18: 3 | D18: 0 | E18: 1 | F18: 9 | G18: 0.1 | H18: 0.5273972603 | I18: 10 | J18: 9 | K18: 0.5263157895 | L18: 13 | M18: 14 | N18: 0.4814814815 | O18: 0.9348428835 | P18: 10 | Q18: 12 | R18: 0.4545454545 | S18: 14 | T18: 23 | U18: 0.3783783784 | V18: 0.8482532751
A19: BEGHIN Nicolas | B19: 0 | C19: 0 | E19: 0 | F19: 0 | I19: 7 | J19: 9 | K19: 0.4375 | L19: 7 | M19: 9 | N19: 0.4375 | O19: 0.9357739242 | P19: 7 | Q19: 9 | R19: 0.4375 | S19: 7 | T19: 9 | U19: 0.4375 | V19: 0.9357739242
A20: BELLENS Antoine | B20: 1 | C20: 4 | D20: 0.2 | E20: 1 | F20: 4 | G20: 0.2 | H20: 0.7910447761 | I20: 8 | J20: 16 | K20: 0.3333333333 | L20: 9 | M20: 18 | N20: 0.3333333333 | O20: 0.9048760991 | P20: 9 | Q20: 20 | R20: 0.3103448276 | S20: 10 | T20: 22 | U20: 0.3125 | V20: 0.8869067654
A21: BOZON ROBERT | B21: 3 | C21: 3 | D21: 0.5 | E21: 3 | F21: 3 | G21: 0.5 | H21: 0.8683651805 | I21: 4 | J21: 7 | K21: 0.3636363636 | L21: 4 | M21: 7 | N21: 0.3636363636 | O21: 0.7707160097 | P21: 7 | Q21: 10 | R21: 0.4117647059 | S21: 7 | T21: 10 | U21: 0.4117647059 | V21: 0.7975495916
A22: BUTTI Bertrand | B22: 0 | C22: 4 | D22: 0 | E22: 1 | F22: 12 | G22: 0.07692307692 | H22: 0.7036553525 | I22: 4 | J22: 12 | K22: 0.25 | L22: 14 | M22: 26 | N22: 0.35 | O22: 0.7884206045 | P22: 4 | Q22: 16 | R22: 0.2 | S22: 15 | T22: 38 | U22: 0.2830188679 | V22: 0.767576244
A23: BUTTI Emilie | B23: 0 | C23: 0 | E23: 0 | F23: 0 | I23: 0 | J23: 10 | K23: 0 | L23: 0 | M23: 10 | N23: 0 | O23: 0.5724489796 | P23: 0 | Q23: 10 | R23: 0 | S23: 0 | T23: 10 | U23: 0 | V23: 0.5724489796
A24: CAPLIEZ Bernard | B24: 2 | C24: 5 | D24: 0.2857142857 | E24: 4 | F24: 11 | G24: 0.2666666667 | H24: 0.7789725209 | I24: 2 | J24: 5 | K24: 0.2857142857 | L24: 5 | M24: 12 | N24: 0.2941176471 | O24: 0.8447488584 | P24: 4 | Q24: 10 | R24: 0.2857142857 | S24: 9 | T24: 23 | U24: 0.28125 | V24: 0.8126094571
A25: CARTIERE André | B25: 0 | C25: 8 | D25: 0 | E25: 1 | F25: 16 | G25: 0.05882352941 | H25: 0.6743027888 | I25: 3 | J25: 4 | K25: 0.4285714286 | L25: 7 | M25: 10 | N25: 0.4117647059 | O25: 0.8667439166 | P25: 3 | Q25: 12 | R25: 0.2 | S25: 8 | T25: 26 | U25: 0.2352941176 | V25: 0.7632565613
A26: CHARLES Dominique | B26: 4 | C26: 18 | D26: 0.1818181818 | E26: 4 | F26: 18 | G26: 0.1818181818 | H26: 0.8835289005 | I26: 9 | J26: 23 | K26: 0.28125 | L26: 11 | M26: 27 | N26: 0.2894736842 | O26: 0.8416714042 | P26: 13 | Q26: 41 | R26: 0.2407407407 | S26: 15 | T26: 45 | U26: 0.25 | V26: 0.8582230624
A27: CLYNCKE Jean-Jacques | B27: 4 | C27: 10 | D27: 0.2857142857 | E27: 4 | F27: 12 | G27: 0.25 | H27: 0.8794326241 | I27: 5 | J27: 9 | K27: 0.3571428571 | L27: 5 | M27: 9 | N27: 0.3571428571 | O27: 0.8973977695 | P27: 9 | Q27: 19 | R27: 0.3214285714 | S27: 9 | T27: 21 | U27: 0.3 | V27: 0.8882032668
A28: COURCOL François | B28: 2 | C28: 2 | D28: 0.5 | E28: 2 | F28: 2 | G28: 0.5 | H28: 1.078590786 | I28: 0 | J28: 0 | L28: 0 | M28: 0 | P28: 2 | Q28: 2 | R28: 0.5 | S28: 2 | T28: 2 | U28: 0.5 | V28: 1.078590786
A29: CUVILLIER François | B29: 0 | C29: 2 | D29: 0 | E29: 0 | F29: 2 | G29: 0 | H29: 0.67 | I29: 0 | J29: 2 | K29: 0 | L29: 0 | M29: 4 | N29: 0 | O29: 0.65 | P29: 0 | Q29: 4 | R29: 0 | S29: 0 | T29: 6 | U29: 0 | V29: 0.6590909091
A30: DELATTRE Hervé | B30: 6 | C30: 4 | D30: 0.6 | E30: 6 | F30: 4 | G30: 0.6 | H30: 1.18710493 | I30: 0 | J30: 9 | K30: 0 | L30: 16 | M30: 12 | N30: 0.5714285714 | O30: 1.041666667 | P30: 6 | Q30: 13 | R30: 0.3157894737 | S30: 22 | T30: 16 | U30: 0.5789473684 | V30: 1.094365552
A31: DELRUE André | B31: 7 | C31: 11 | D31: 0.3888888889 | E31: 6 | F31: 10 | G31: 0.375 | H31: 0.9012109624 | I31: 1 | J31: 1 | K31: 0.5 | L31: 1 | M31: 1 | N31: 0.5 | O31: 0.7608695652 | P31: 8 | Q31: 12 | R31: 0.4 | S31: 7 | T31: 11 | U31: 0.3888888889 | V31: 0.8832684825
A32: DELSOL Philippe | B32: 9 | C32: 5 | D32: 0.6428571429 | E32: 19 | F32: 11 | G32: 0.6333333333 | H32: 1.251579552 | I32: 17 | J32: 5 | K32: 0.7727272727 | L32: 23 | M32: 7 | N32: 0.7666666667 | O32: 1.318181818 | P32: 26 | Q32: 10 | R32: 0.7222222222 | S32: 42 | T32: 18 | U32: 0.7 | V32: 1.287562715
A33: DEPLECHIN Robert | B33: 1 | C33: 1 | D33: 0.5 | E33: 3 | F33: 3 | G33: 0.5 | H33: 0.9510703364 | I33: 0 | J33: 0 | L33: 0 | M33: 0 | P33: 1 | Q33: 1 | R33: 0.5 | S33: 3 | T33: 3 | U33: 0.5 | V33: 0.9510703364
A34: DEPLECHIN Roland | B34: 7 | C34: 5 | D34: 0.5833333333 | E34: 17 | F34: 12 | G34: 0.5862068966 | H34: 0.9805555556 | I34: 2 | J34: 4 | K34: 0.3333333333 | L34: 5 | M34: 9 | N34: 0.3571428571 | O34: 0.8888888889 | P34: 9 | Q34: 9 | R34: 0.5 | S34: 22 | T34: 21 | U34: 0.511627907 | V34: 0.9497464269
A35: DEREUDDRE Dominique | B35: 6 | C35: 10 | D35: 0.375 | E35: 6 | F35: 10 | G35: 0.375 | H35: 0.8685678859 | I35: 6 | J35: 11 | K35: 0.3529411765 | L35: 6 | M35: 11 | N35: 0.3529411765 | O35: 0.8680597015 | P35: 12 | Q35: 21 | R35: 0.3636363636 | S35: 12 | T35: 21 | U35: 0.3636363636 | V35: 0.8683090024
A36: DEROLEZ Jean-Pierre | B36: 1 | C36: 14 | D36: 0.06666666667 | E36: 1 | F36: 12 | G36: 0.07692307692 | H36: 0.7326869806 | I36: 0 | J36: 7 | K36: 0 | L36: 2 | M36: 5 | N36: 0.2857142857 | O36: 0.6350777935 | P36: 1 | Q36: 21 | R36: 0.04545454545 | S36: 3 | T36: 17 | U36: 0.15 | V36: 0.7006043701
A37: DESMETTRE Bruno | B37: 8 | C37: 4 | D37: 0.6666666667 | E37: 8 | F37: 4 | G37: 0.6666666667 | H37: 1.040453074 | I37: 0 | J37: 0 | L37: 0 | M37: 0 | P37: 8 | Q37: 4 | R37: 0.6666666667 | S37: 8 | T37: 4 | U37: 0.6666666667 | V37: 1.040453074
A38: DEVOS Jackie | B38: 1 | C38: 6 | D38: 0.1428571429 | E38: 1 | F38: 6 | G38: 0.1428571429 | H38: 0.7716129032 | I38: 4 | J38: 2 | K38: 0.6666666667 | L38: 4 | M38: 2 | N38: 0.6666666667 | O38: 1.204506066 | P38: 5 | Q38: 8 | R38: 0.3846153846 | S38: 5 | T38: 8 | U38: 0.3846153846 | V38: 0.9563609467
A39: DUCROCQ Joël | B39: 2 | C39: 6 | D39: 0.25 | E39: 7 | F39: 13 | G39: 0.35 | H39: 0.9014869888 | I39: 2 | J39: 1 | K39: 0.6666666667 | L39: 5 | M39: 4 | N39: 0.5555555556 | O39: 1.029850746 | P39: 4 | Q39: 7 | R39: 0.3636363636 | S39: 12 | T39: 17 | U39: 0.4137931034 | V39: 0.9404530744
A40: DUHAMEL Eddy | B40: 2 | C40: 2 | D40: 0.5 | E40: 2 | F40: 2 | G40: 0.5 | H40: 0.893442623 | I40: 2 | J40: 7 | K40: 0.2222222222 | L40: 4 | M40: 12 | N40: 0.25 | O40: 0.7751004016 | P40: 4 | Q40: 9 | R40: 0.3076923077 | S40: 6 | T40: 14 | U40: 0.3 | V40: 0.8069016153
A41: DUMEIGE Stéphane | B41: 7 | C41: 4 | D41: 0.6363636364 | E41: 17 | F41: 14 | G41: 0.5483870968 | H41: 1.088235294 | I41: 9 | J41: 4 | K41: 0.69 | L41: 25 | M41: 18 | N41: 0.58 | O41: 1.116 | P41: 16 | Q41: 8 | R41: =16/24 -> 0.6666666667 | S41: 42 | T41: 32 | U41: =42/74 -> 0.5675675676 | V41: 1.042
A42: DURAND Jérémy | B42: 0 | C42: 0 | E42: 0 | F42: 0 | I42: 5 | J42: 8 | K42: 0.3846153846 | L42: 15 | M42: 18 | N42: 0.4545454545 | O42: 0.9282460137 | P42: 5 | Q42: 8 | R42: 0.3846153846 | S42: 15 | T42: 18 | U42: 0.4545454545 | V42: 0.9282460137
A43: DUROYON Didier | B43: 3 | C43: 4 | D43: 0.4285714286 | E43: 6 | F43: 8 | G43: 0.4285714286 | H43: 0.9457900807 | I43: 4 | J43: 2 | K43: 0.6666666667 | L43: 9 | M43: 7 | N43: 0.5625 | O43: 1.046060606 | P43: 7 | Q43: 6 | R43: 0.5384615385 | S43: 15 | T43: 15 | U43: 0.5 | V43: 0.9946808511
A44: FAURE Stéphane | B44: 13 | C44: 9 | D44: 0.5909090909 | E44: 14 | F44: 12 | G44: 0.5384615385 | H44: 0.9945627549 | I44: 11 | J44: 6 | K44: 0.6470588235 | L44: 15 | M44: 12 | N44: 0.5555555556 | O44: 0.9748457523 | P44: 24 | Q44: 15 | R44: 0.6153846154 | S44: 29 | T44: 24 | U44: 0.5471698113 | V44: 0.984932777
A45: FELLINE Riccardo | B45: 36 | C45: 16 | D45: 0.6923076923 | E45: 63 | F45: 31 | G45: 0.670212766 | H45: 1.229418027 | I45: 41 | J45: 17 | K45: 0.7068965517 | L45: 55 | M45: 31 | N45: 0.6395348837 | O45: 1.17660937 | P45: 77 | Q45: 33 | R45: 0.7 | S45: 118 | T45: 62 | U45: 0.6555555556 | V45: 1.202333621
A46: FERMAUT Jean-Marie | B46: 12 | C46: 5 | D46: 0.7058823529 | E46: 28 | F46: 14 | G46: 0.6666666667 | H46: 1.27813041 | I46: 0 | J46: 15 | K46: 0 | L46: 22 | M46: 16 | N46: 0.5789473684 | O46: 1.094808126 | P46: 12 | Q46: 20 | R46: 0.375 | S46: 50 | T46: 30 | U46: 0.625 | V46: 1.185449358
A47: FONTAINE Christian | B47: 19 | C47: 3 | D47: 0.8636363636 | E47: 46 | F47: 14 | G47: 0.7666666667 | H47: 1.329159935 | I47: 15 | J47: 3 | K47: 0.8333333333 | L47: 40 | M47: 15 | N47: 0.7272727273 | O47: 1.298231181 | P47: 34 | Q47: 6 | R47: 0.85 | S47: 86 | T47: 29 | U47: 0.747826087 | V47: 1.313837375
A48: FRANCOIS Bernard | B48: 0 | C48: 0 | E48: 0 | F48: 0 | I48: 1 | J48: 4 | K48: 0.2 | L48: 1 | M48: 4 | N48: 0.2 | O48: 0.788671024 | P48: 1 | Q48: 4 | R48: 0.2 | S48: 1 | T48: 4 | U48: 0.2 | V48: 0.788671024
A49: GAMBIER Francis | B49: 0 | C49: 2 | D49: 0 | E49: 1 | F49: 4 | G49: 0.2 | H49: 0.8214285714 | I49: 0 | J49: 0 | L49: 0 | M49: 0 | P49: 0 | Q49: 2 | R49: 0 | S49: 1 | T49: 4 | U49: 0.2 | V49: 0.8214285714
A50: GEETS Patrice | B50: 22 | C50: 7 | D50: 0.7586206897 | E50: 32 | F50: 17 | G50: 0.6530612245 | H50: 1.2228482 | I50: 24 | J50: 13 | K50: 0.6486486486 | L50: 33 | M50: 20 | N50: 0.6226415094 | O50: 1.126196018 | P50: 46 | Q50: 20 | R50: 0.696969697 | S50: 65 | T50: 37 | U50: 0.637254902 | V50: 1.169923534
A51: GODARD Alain | B51: 21 | C51: 19 | D51: 0.525 | E51: 34 | F51: 35 | G51: 0.4927536232 | H51: 0.9632635626 | I51: 24 | J51: 21 | K51: 0.5333333333 | L51: 39 | M51: 36 | N51: 0.52 | O51: 1.046521036 | P51: 45 | Q51: 40 | R51: 0.5294117647 | S51: 73 | T51: 71 | U51: 0.5069444444 | V51: 1.006025348
A52: GOSSART Jean-Yves | B52: 5 | C52: 5 | D52: 0.5 | E52: 5 | F52: 5 | G52: 0.5 | H52: 1.018108652 | I52: 15 | J52: 9 | K52: 0.63 | L52: 15 | M52: 9 | N52: 0.625 | O52: 1.106839517 | P52: 20 | Q52: 14 | R52: 0.59 | S52: 20 | T52: 14 | U52: 0.5882352941 | V52: 1.079541937
A53: GREMAIN Gino | B53: 10 | C53: 6 | D53: 0.625 | E53: 14 | F53: 10 | G53: 0.5833333333 | H53: 1.129397734 | I53: 0 | J53: 0 | L53: 0 | M53: 0 | P53: 10 | Q53: 6 | R53: 0.625 | S53: 14 | T53: 10 | U53: 0.5833333333 | V53: 1.129397734
A54: GUERIN Régis | B54: 24 | C54: 15 | D54: 0.6153846154 | E54: 33 | F54: 21 | G54: 0.6111111111 | H54: 1.11190781 | I54: 0 | J54: 0 | L54: 0 | M54: 0 | P54: 24 | Q54: 15 | R54: 0.6153846154 | S54: 33 | T54: 21 | U54: 0.6111111111 | V54: 1.11190781
A55: GUILLEMANT David | B55: 20 | C55: 11 | D55: 0.6451612903 | E55: 33 | F55: 24 | G55: 0.5789473684 | H55: 1.042650419 | I55: 13 | J55: 9 | K55: 0.5909090909 | L55: 17 | M55: 12 | N55: 0.5862068966 | O55: 0.9936733887 | P55: 33 | Q55: 20 | R55: 0.6226415094 | S55: 50 | T55: 36 | U55: 0.5813953488 | V55: 1.023500309
A56: HENRY Tony | B56: 1 | C56: 2 | D56: 0.3333333333 | E56: 1 | F56: 2 | G56: 0.3333333333 | H56: 0.5986394558 | I56: 0 | J56: 0 | L56: 0 | M56: 0 | P56: 1 | Q56: 2 | R56: 0.3333333333 | S56: 1 | T56: 2 | U56: 0.3333333333 | V56: 0.5986394558
A57: HERREBRECHT Emerick | B57: 17 | C57: 18 | D57: 0.4857142857 | E57: 31 | F57: 28 | G57: 0.5254237288 | H57: 1.00436233 | I57: 25 | J57: 15 | K57: 0.625 | L57: 29 | M57: 20 | N57: 0.5918367347 | O57: 1.052104208 | P57: 42 | Q57: 33 | R57: 0.56 | S57: 60 | T57: 48 | U57: 0.5555555556 | V57: 1.028520725
A58: HERREBRECHT Erian | B58: 0 | C58: 0 | E58: 0 | F58: 0 | I58: 14 | J58: 10 | K58: 0.5833333333 | L58: 18 | M58: 14 | N58: 0.5625 | O58: 1.122422115 | P58: 14 | Q58: 10 | R58: 0.5833333333 | S58: 18 | T58: 14 | U58: 0.5625 | V58: 1.122422115
A59: HERREBRECHT Thierry | B59: 0 | C59: 3 | D59: 0 | E59: 0 | F59: 9 | G59: 0 | H59: 0.7407407407 | I59: 16 | J59: 9 | K59: 0.64 | L59: 19 | M59: 13 | N59: 0.59375 | O59: 1.064143426 | P59: 16 | Q59: 12 | R59: 0.5714285714 | S59: 19 | T59: 22 | U59: 0.4634146341 | V59: 1.006885246
A60: HOLLEVILLE Bernard | B60: 2 | C60: 3 | D60: 0.4 | E60: 2 | F60: 3 | G60: 0.4 | H60: 0.8109756098 | I60: 0 | J60: 0 | L60: 0 | M60: 0 | P60: 2 | Q60: 3 | R60: 0.4 | S60: 2 | T60: 3 | U60: 0.4 | V60: 0.8109756098
A61: JOLY Kenan | B61: 0 | C61: 0 | E61: 0 | F61: 0 | I61: 0 | J61: 2 | K61: 0 | L61: 0 | M61: 4 | N61: 0 | O61: 0.7125 | P61: 0 | Q61: 2 | R61: 0 | S61: 0 | T61: 4 | U61: 0 | V61: 0.7125
A62: JUBLOT Maxime | B62: 16 | C62: 9 | D62: 0.64 | E62: 45 | F62: 17 | G62: 0.7258064516 | H62: 1.326649418 | I62: 0 | J62: 19 | K62: 0 | L62: 22 | M62: 7 | N62: 0.7586206897 | O62: 1.358695652 | P62: 16 | Q62: 28 | R62: 0.3636363636 | S62: 67 | T62: 24 | U62: 0.7362637363 | V62: 1.338605028
A63: KERKHOF Hervé | B63: 1 | C63: 4 | D63: 0.2 | E63: 1 | F63: 4 | G63: 0.2 | H63: 0.9331797235 | I63: 0 | J63: 0 | L63: 0 | M63: 0 | P63: 1 | Q63: 4 | R63: 0.2 | S63: 1 | T63: 4 | U63: 0.2 | V63: 0.9331797235
A64: LALOT Gérard | B64: 0 | C64: 6 | D64: 0 | E64: 0 | F64: 6 | G64: 0 | H64: 0.7847222222 | I64: 4 | J64: 8 | K64: 0.3333333333 | L64: 4 | M64: 8 | N64: 0.3333333333 | O64: 0.954509178 | P64: 4 | Q64: 14 | R64: 0.2222222222 | S64: 4 | T64: 14 | U64: 0.2222222222 | V64: 0.8925494171
A65: LEBECQ Jean-Pierre | B65: 4 | C65: 1 | D65: 0.8 | E65: 8 | F65: 4 | G65: 0.6666666667 | H65: 1.126159555 | I65: 2 | J65: 3 | K65: 0.4 | L65: 5 | M65: 6 | N65: 0.4545454545 | O65: 0.9767054908 | P65: 6 | Q65: 4 | R65: 0.6 | S65: 13 | T65: 10 | U65: 0.5652173913 | V65: 1.047368421
A66: LEBLANC Jean-Noël | B66: 11 | C66: 8 | D66: 0.5789473684 | E66: 32 | F66: 26 | G66: 0.5517241379 | H66: 1.01369382 | I66: 7 | J66: 5 | K66: 0.5833333333 | L66: 19 | M66: 15 | N66: 0.5588235294 | O66: 1.101116625 | P66: 18 | Q66: 13 | R66: 0.5789473684 | S66: 51 | T66: 41 | U66: 0.5517241379 | V66: 1.045
A67: LECLERCQ ALAIN | B67: 0 | C67: 3 | D67: 0 | E67: 0 | F67: 3 | G67: 0 | H67: 0.4566666667 | I67: 0 | J67: 0 | L67: 0 | M67: 0 | P67: 0 | Q67: 3 | R67: 0 | S67: 0 | T67: 3 | U67: 0 | V67: 0.4566666667
A68: LECROART Serge | B68: 0 | C68: 0 | E68: 0 | F68: 0 | I68: 0 | J68: 4 | K68: 0 | L68: 0 | M68: 4 | N68: 0 | O68: 0.7236842105 | P68: 0 | Q68: 4 | R68: 0 | S68: 0 | T68: 4 | U68: 0 | V68: 0.7236842105
A69: LEFEVRE Alexandre | B69: 0 | C69: 0 | E69: 0 | F69: 0 | I69: 0 | J69: 4 | K69: 0 | L69: 0 | M69: 4 | N69: 0 | O69: 0.6684210526 | P69: 0 | Q69: 4 | R69: 0 | S69: 0 | T69: 4 | U69: 0 | V69: 0.6684210526
A70: LEMATRE Alexis | B70: 12 | C70: 8 | D70: 0.6 | E70: 28 | F70: 19 | G70: 0.5957446809 | H70: 1.136693394 | I70: 21 | J70: 7 | K70: 0.75 | L70: 22 | M70: 9 | N70: 0.7096774194 | O70: 1.243390358 | P70: 33 | Q70: 15 | R70: 0.6875 | S70: 50 | T70: 28 | U70: 0.641025641 | V70: 1.189558852
A71: LIMOSINO Jacques | B71: 0 | C71: 4 | D71: 0 | E71: 0 | F71: 8 | G71: 0 | H71: 0.6166666667 | I71: 1 | J71: 1 | K71: 0.5 | L71: 3 | M71: 3 | N71: 0.5 | O71: 0.7558139535 | P71: 1 | Q71: 5 | R71: 0.1666666667 | S71: 3 | T71: 11 | U71: 0.2142857143 | V71: 0.6747572816
A72: LORGE Thierry | B72: 0 | C72: 0 | E72: 0 | F72: 0 | I72: 5 | J72: 7 | K72: 0.4166666667 | L72: 5 | M72: 7 | N72: 0.4166666667 | O72: 0.9451219512 | P72: 5 | Q72: 7 | R72: 0.4166666667 | S72: 5 | T72: 7 | U72: 0.4166666667 | V72: 0.9451219512
A73: LORTHIOIR Jean-Luc | B73: 0 | C73: 0 | E73: 0 | F73: 0 | I73: 6 | J73: 9 | K73: 0.4 | L73: 6 | M73: 9 | N73: 0.4 | O73: 0.8182432432 | P73: 6 | Q73: 9 | R73: 0.4 | S73: 6 | T73: 9 | U73: 0.4 | V73: 0.8182432432
A74: MAILLE Bernard | B74: 29 | C74: 24 | D74: 0.5471698113 | E74: 46 | F74: 41 | G74: 0.5287356322 | H74: 1.05136 | I74: 28 | J74: 26 | K74: 0.5185185185 | L74: 42 | M74: 41 | N74: 0.5060240964 | O74: 0.968 | P74: 57 | Q74: 50 | R74: 0.5327102804 | S74: 88 | T74: 82 | U74: 0.5176470588 | V74: 1.01010101
A75: MANTEN Paul | B75: 1 | C75: 2 | D75: 0.3333333333 | E75: 1 | F75: 2 | G75: 0.3333333333 | H75: 0.7905405405 | I75: 0 | J75: 0 | L75: 0 | M75: 0 | P75: 1 | Q75: 2 | R75: 0.3333333333 | S75: 1 | T75: 2 | U75: 0.3333333333 | V75: 0.7905405405
A76: MARTIN Denis | B76: 4 | C76: 13 | D76: 0.2352941176 | E76: 4 | F76: 13 | G76: 0.2352941176 | H76: 0.778093076 | I76: 5 | J76: 9 | K76: 0.3571428571 | L76: 5 | M76: 9 | N76: 0.3571428571 | O76: 0.8209348255 | P76: 9 | Q76: 22 | R76: 0.2903225806 | S76: 9 | T76: 22 | U76: 0.2903225806 | V76: 0.7979274611
A77: MICHEL Bernard | B77: 0 | C77: 4 | D77: 0 | E77: 0 | F77: 4 | G77: 0 | H77: 0.5729166667 | I77: 0 | J77: 5 | K77: 0 | L77: 2 | M77: 3 | N77: 0.4 | O77: 0.8298245614 | P77: 0 | Q77: 9 | R77: 0 | S77: 2 | T77: 7 | U77: 0.2222222222 | V77: 0.7123809524
A78: MISSIAEN Jean-Luc | B78: 0 | C78: 0 | E78: 0 | F78: 0 | I78: 2 | J78: 2 | K78: 0.5 | L78: 2 | M78: 2 | N78: 0.5 | O78: 0.9399038462 | P78: 2 | Q78: 2 | R78: 0.5 | S78: 2 | T78: 2 | U78: 0.5 | V78: 0.9399038462
A79: MONFLIER Francis | B79: 1 | C79: 2 | D79: 0.3333333333 | E79: 1 | F79: 2 | G79: 0.3333333333 | H79: 0.8781362007 | I79: 1 | J79: 3 | K79: 0.25 | L79: 1 | M79: 3 | N79: 0.25 | O79: 0.6313559322 | P79: 2 | Q79: 5 | R79: 0.2857142857 | S79: 2 | T79: 5 | U79: 0.2857142857 | V79: 0.7230359521
A80: MONTADOR Christophe | B80: 8 | C80: 6 | D80: 0.5714285714 | E80: 20 | F80: 20 | G80: 0.5 | H80: 1.004497751 | I80: 1 | J80: 2 | K80: 0.3333333333 | L80: 3 | M80: 4 | N80: 0.4285714286 | O80: 1.132352941 | P80: 9 | Q80: 8 | R80: 0.5294117647 | S80: 23 | T80: 24 | U80: 0.4893617021 | V80: 1.023067065
A81: MONTADOR Ludovic | B81: 6 | C81: 4 | D81: 0.6 | E81: 13 | F81: 8 | G81: 0.619047619 | H81: 1.062564103 | I81: 2 | J81: 2 | K81: 0.5 | L81: 5 | M81: 6 | N81: 0.4545454545 | O81: 0.9466437177 | P81: 8 | Q81: 6 | R81: 0.5714285714 | S81: 18 | T81: 14 | U81: 0.5625 | V81: 1.019280206
A82: MURIOT Jean-François | B82: 0 | C82: 0 | E82: 0 | F82: 0 | I82: 0 | J82: 3 | K82: 0 | L82: 0 | M82: 3 | N82: 0 | O82: 0.6366666667 | P82: 0 | Q82: 3 | R82: 0 | S82: 0 | T82: 3 | U82: 0 | V82: 0.6366666667
A83: MURIOT Jean-Pierre | B83: 0 | C83: 0 | E83: 0 | F83: 0 | I83: 0 | J83: 3 | K83: 0 | L83: 0 | M83: 3 | N83: 0 | O83: 0.5266666667 | P83: 0 | Q83: 3 | R83: 0 | S83: 0 | T83: 3 | U83: 0 | V83: 0.5266666667
A84: NAHIRNYJ Alexi | B84: 3 | C84: 8 | D84: 0.2727272727 | E84: 6 | F84: 13 | G84: 0.3157894737 | H84: 0.7825396825 | I84: 5 | J84: 13 | K84: 0.2777777778 | L84: 7 | M84: 15 | N84: 0.3181818182 | O84: 0.8381104034 | P84: 8 | Q84: 21 | R84: 0.275862069 | S84: 13 | T84: 28 | U84: 0.3170731707 | V84: 0.8158396947
A85: NAHIRNYJ Nicolas | B85: 16 | C85: 14 | D85: 0.5333333333 | E85: 20 | F85: 17 | G85: 0.5405405405 | H85: 1.086201022 | I85: 18 | J85: 19 | K85: 0.4864864865 | L85: 22 | M85: 23 | N85: 0.4888888889 | O85: 0.9601885804 | P85: 34 | Q85: 33 | R85: 0.5074626866 | S85: 42 | T85: 40 | U85: 0.512195122 | V85: 1.014956316
A86: NOEL Henri | B86: 1 | C86: 2 | D86: 0.3333333333 | E86: 1 | F86: 2 | G86: 0.3333333333 | H86: 0.6133828996 | I86: 0 | J86: 6 | K86: 0 | L86: 3 | M86: 12 | N86: 0.2 | O86: 0.7872340426 | P86: 1 | Q86: 8 | R86: 0.1111111111 | S86: 4 | T86: 14 | U86: 0.2222222222 | V86: 0.7452914798
A87: OLIVEIRA José | B87: 5 | C87: 7 | D87: 0.4166666667 | E87: 6 | F87: 9 | G87: 0.4 | H87: 0.9030390738 | I87: 5 | J87: 4 | K87: 0.5555555556 | L87: 5 | M87: 4 | N87: 0.5555555556 | O87: 1.264556962 | P87: 10 | Q87: 11 | R87: 0.4761904762 | S87: 11 | T87: 13 | U87: 0.4583333333 | V87: 1.034530387
A88: PAILLARD Bertrand | B88: 0 | C88: 3 | D88: 0 | E88: 0 | F88: 3 | G88: 0 | H88: 0.5566666667 | I88: 0 | J88: 0 | L88: 0 | M88: 0 | P88: 0 | Q88: 3 | R88: 0 | S88: 0 | T88: 3 | U88: 0 | V88: 0.5566666667
A89: POULEYN André | B89: 15 | C89: 24 | D89: 0.3846153846 | E89: 20 | F89: 26 | G89: 0.4347826087 | H89: 0.8999755441 | I89: 0 | J89: 41 | K89: 0 | L89: 13 | M89: 28 | N89: 0.3170731707 | O89: 0.8542809444 | P89: 15 | Q89: 65 | R89: 0.1875 | S89: 33 | T89: 54 | U89: 0.3793103448 | V89: 0.8768413427
A90: PROUT Vincent | B90: 2 | C90: 3 | D90: 0.4 | E90: 2 | F90: 3 | G90: 0.4 | H90: 0.8350694444 | I90: 0 | J90: 0 | L90: 0 | M90: 0 | P90: 2 | Q90: 3 | R90: 0.4 | S90: 2 | T90: 3 | U90: 0.4 | V90: 0.8350694444
A91: RACARY Thibault | B91: 16 | C91: 1 | D91: 0.9411764706 | E91: 32 | F91: 9 | G91: 0.7804878049 | H91: 1.458926616 | I91: 27 | J91: 2 | K91: 0.9310344828 | L91: 29 | M91: 5 | N91: 0.8529411765 | O91: 1.496299521 | P91: 43 | Q91: 3 | R91: 0.9347826087 | S91: 61 | T91: 14 | U91: 0.8133333333 | V91: 1.479747756
A92: RAMET Jacques | B92: 0 | C92: 2 | D92: 0 | E92: 1 | F92: 4 | G92: 0.2 | H92: 0.7722419929 | I92: 0 | J92: 2 | K92: 0 | L92: 2 | M92: 4 | N92: 0.3333333333 | O92: 0.9542682927 | P92: 0 | Q92: 4 | R92: 0 | S92: 3 | T92: 8 | U92: 0.2727272727 | V92: 0.8702791461
A93: REYNAERT Pierre | B93: 3 | C93: 1 | D93: 0.75 | E93: 3 | F93: 1 | G93: 0.75 | H93: 1.094629156 | I93: 8 | J93: 13 | K93: 0.380952381 | L93: 8 | M93: 13 | N93: 0.380952381 | O93: 0.918212078 | P93: 11 | Q93: 14 | R93: 0.44 | S93: 11 | T93: 14 | U93: 0.44 | V93: 0.9458700882
A94: RITACCO Antonio | B94: 0 | C94: 0 | E94: 0 | F94: 0 | I94: 0 | J94: 2 | K94: 0 | L94: 0 | M94: 2 | N94: 0 | O94: 0.5458333333 | P94: 0 | Q94: 2 | R94: 0 | S94: 0 | T94: 2 | U94: 0 | V94: 0.5458333333
A95: SAINT-GEORGES Claude | B95: 14 | C95: 17 | D95: 0.4516129032 | E95: 22 | F95: 33 | G95: 0.4 | H95: 0.9198986058 | I95: 0 | J95: 41 | K95: 0 | L95: 31 | M95: 22 | N95: 0.5849056604 | O95: 1.083416583 | P95: 14 | Q95: 58 | R95: 0.1944444444 | S95: 53 | T95: 55 | U95: 0.4907407407 | V95: 1.002264436
A96: SAUVAGE Dominique | B96: 25 | C96: 24 | D96: 0.5102040816 | E96: 34 | F96: 35 | G96: 0.4927536232 | H96: 1.053912028 | I96: 21 | J96: 18 | K96: 0.5384615385 | L96: 21 | M96: 20 | N96: 0.512195122 | O96: 1.03361793 | P96: 46 | Q96: 42 | R96: 0.5227272727 | S96: 55 | T96: 55 | U96: 0.5 | V96: 1.045352239
A97: SAUVE Olivier | B97: 4 | C97: 7 | D97: 0.3636363636 | E97: 4 | F97: 7 | G97: 0.3636363636 | H97: 0.8538338658 | I97: 0 | J97: 0 | L97: 0 | M97: 0 | P97: 4 | Q97: 7 | R97: 0.3636363636 | S97: 4 | T97: 7 | U97: 0.3636363636 | V97: 0.8538338658
A98: SIMON Philippe | B98: 0 | C98: 0 | E98: 0 | F98: 0 | I98: 2 | J98: 8 | K98: 0.2 | L98: 8 | M98: 23 | N98: 0.2580645161 | O98: 0.7393063584 | P98: 2 | Q98: 8 | R98: 0.2 | S98: 8 | T98: 23 | U98: 0.2580645161 | V98: 0.7393063584
A99: SOYEZ Reynald | B99: 0 | C99: 0 | E99: 0 | F99: 0 | I99: 15 | J99: 2 | K99: 0.8823529412 | L99: 30 | M99: 9 | N99: 0.7692307692 | O99: 1.396891192 | P99: 15 | Q99: 2 | R99: 0.8823529412 | S99: 30 | T99: 9 | U99: 0.7692307692 | V99: 1.396891192
A100: TILLIETTE Michel | B100: 1 | C100: 6 | D100: 0.1428571429 | E100: 2 | F100: 13 | G100: 0.1333333333 | H100: 0.7136258661 | I100: 4 | J100: 6 | K100: 0.4 | L100: 13 | M100: 17 | N100: 0.4333333333 | O100: 0.8005034613 | P100: 5 | Q100: 12 | R100: 0.2941176471 | S100: 15 | T100: 30 | U100: 0.3333333333 | V100: 0.7698574338
A101: TIZON Alain | B101: 0 | C101: 0 | E101: 0 | F101: 0 | I101: 2 | J101: 5 | K101: 0.2857142857 | L101: 5 | M101: 12 | N101: 0.2941176471 | O101: 0.8384615385 | P101: 2 | Q101: 5 | R101: 0.2857142857 | S101: 5 | T101: 12 | U101: 0.2941176471 | V101: 0.8384615385
A102: TRIPLET Eddie | B102: 3 | C102: 7 | D102: 0.3 | E102: 6 | F102: 15 | G102: 0.2857142857 | H102: 0.8 | I102: 0 | J102: 6 | K102: 0 | L102: 3 | M102: 12 | N102: 0.2 | O102: 0.6640271493 | P102: 3 | Q102: 13 | R102: 0.1875 | S102: 9 | T102: 27 | U102: 0.25 | V102: 0.7420443587
A103: TRIPLET Freddy | B103: 1 | C103: 4 | D103: 0.2 | E103: 4 | F103: 9 | G103: 0.3076923077 | H103: 0.820855615 | I103: 4 | J103: 1 | K103: 0.8 | L103: 9 | M103: 4 | N103: 0.6923076923 | O103: 1.082191781 | P103: 5 | Q103: 5 | R103: 0.5 | S103: 13 | T103: 13 | U103: 0.5 | V103: 0.9430604982
A104: TRIPLET Gilbert | B104: 3 | C104: 7 | D104: 0.3 | E104: 9 | F104: 16 | G104: 0.36 | H104: 0.8612368024 | I104: 9 | J104: 5 | K104: 0.6428571429 | L104: 21 | M104: 15 | N104: 0.5833333333 | O104: 1.127185051 | P104: 12 | Q104: 12 | R104: 0.5 | S104: 30 | T104: 31 | U104: 0.4918032787 | V104: 1.009045226
A105: VANDEPUTTE Laurent | B105: 7 | C105: 9 | D105: 0.4375 | E105: 8 | F105: 12 | G105: 0.4 | H105: 0.8828293737 | I105: 1 | J105: 3 | K105: 0.25 | L105: 1 | M105: 3 | N105: 0.25 | O105: 0.7782608696 | P105: 8 | Q105: 12 | R105: 0.4 | S105: 9 | T105: 15 | U105: 0.375 | V105: 0.8620242215
A106: VAROQUEAUX Julien | B106: 9 | C106: 10 | D106: 0.4736842105 | E106: 9 | F106: 12 | G106: 0.4285714286 | H106: 1.052246604 | I106: 13 | J106: 15 | K106: 0.4642857143 | L106: 21 | M106: 22 | N106: 0.488372093 | O106: 1.025119617 | P106: 22 | Q106: 25 | R106: 0.4680851064 | S106: 30 | T106: 34 | U106: 0.46875 | V106: 1.034994294
A107: VASSEUR Cédric | B107: 3 | C107: 3 | D107: 0.5 | E107: 14 | F107: 13 | G107: 0.5185185185 | H107: 1.140047207 | I107: 6 | J107: 0 | K107: 1 | L107: 18 | M107: 4 | N107: 0.8181818182 | O107: 1.56840796 | P107: 9 | Q107: 3 | R107: 0.75 | S107: 32 | T107: 17 | U107: 0.6530612245 | V107: 1.306024096
A108: VASSEUR Gaëtan | B108: 3 | C108: 11 | D108: 0.2142857143 | E108: 3 | F108: 11 | G108: 0.2142857143 | H108: 0.8049311095 | I108: 0 | J108: 17 | K108: 0 | L108: 20 | M108: 15 | N108: 0.5714285714 | O108: 1.018668012 | P108: 3 | Q108: 28 | R108: 0.09677419355 | S108: 23 | T108: 26 | U108: 0.4693877551 | V108: 0.9309729247
A109: VASSEUR Gérald | B109: 4 | C109: 0 | D109: 1 | E109: 12 | F109: 2 | G109: 0.8571428571 | H109: 1.320723684 | I109: 5 | J109: 5 | K109: 0.5 | L109: 20 | M109: 20 | N109: 0.5 | O109: 1.022 | P109: 9 | Q109: 5 | R109: =9/14 -> 0.6428571429 | S109: 32 | T109: 22 | U109: =32/54 -> 0.5925925926 | V109: 1.093
A110: VEREECQUE Esteban | B110: 3 | C110: 20 | D110: 0.1304347826 | E110: 6 | F110: 23 | G110: 0.2068965517 | H110: 0.6408681409 | I110: 1 | J110: 15 | K110: 0.0625 | L110: 3 | M110: 17 | N110: 0.15 | O110: 0.6313657407 | P110: 4 | Q110: 35 | R110: 0.1025641026 | S110: 9 | T110: 40 | U110: 0.1836734694 | V110: 0.6369304556
A111: VEREECQUE Ludovic | B111: 27 | C111: 24 | D111: 0.5294117647 | E111: 38 | F111: 37 | G111: 0.5066666667 | H111: 1.052356021 | I111: 13 | J111: 17 | K111: 0.4333333333 | L111: 14 | M111: 19 | N111: 0.4242424242 | O111: 0.9873070326 | P111: 40 | Q111: 41 | R111: 0.4938271605 | S111: 52 | T111: 56 | U111: 0.4814814815 | V111: 1.029926662
A112: VEREECQUE Ryan | B112: 0 | C112: 4 | D112: 0 | E112: 1 | F112: 8 | G112: 0.1111111111 | H112: 0.5695488722 | I112: 1 | J112: 14 | K112: 0.06666666667 | L112: 1 | M112: 17 | N112: 0.05555555556 | O112: 0.5965123271 | P112: 1 | Q112: 18 | R112: 0.05263157895 | S112: 2 | T112: 25 | U112: 0.07407407407 | V112: 0.589977221
A113: VERHAGHE Dominique | B113: 20 | C113: 16 | D113: 0.5555555556 | E113: 27 | F113: 26 | G113: 0.5094339623 | H113: 1.026240582 | I113: 5 | J113: 6 | K113: 0.4545454545 | L113: 5 | M113: 6 | N113: 0.4545454545 | O113: 1.040816327 | P113: 25 | Q113: 22 | R113: 0.5319148936 | S113: 32 | T113: 32 | U113: 0.5 | V113: 1.029429673
A114: WALLART Jean-Charles | B114: 29 | C114: 17 | D114: 0.6304347826 | E114: 38 | F114: 28 | G114: 0.5757575758 | H114: 1.059169279 | I114: 19 | J114: 15 | K114: 0.5588235294 | L114: 23 | M114: 19 | N114: 0.5476190476 | O114: 1.033596261 | P114: 48 | Q114: 32 | R114: 0.6 | S114: 61 | T114: 47 | U114: 0.5648148148 | V114: 1.048903483
A115: WARIN Yannick | B115: 0 | C115: 4 | D115: 0 | E115: 0 | F115: 4 | G115: 0 | H115: 0.665 | I115: 4 | J115: 2 | K115: 0.6666666667 | L115: 8 | M115: 6 | N115: 0.5714285714 | O115: 0.9536423841 | P115: 4 | Q115: 6 | R115: 0.4 | S115: 8 | T115: 10 | U115: 0.4444444444 | V115: 0.8536796537

Sheet ALAZARD Philippe
A1: ALAZARD Philippe | P1: =SaisonDeb -> 2021-2022 | R1: =SaisonFin -> 2022-2023 | T1: Toutes saisons
P2: Nombre | Q2: %age | R2: Nombre | S2: %age | T2: Nombre | U2: %age
N3: Matchs | O3: Gagnés | P3: =SUM(P$15:P$127) -> 6 | Q3: =IF(P$3+P$4>0,P3/(P$3+P$4),"") -> 0.4 | R3: =SUM(R$15:R$127) -> 0 | S3: =IF(R$3+R$4>0,R3/(R$3+R$4),"") ->  | T3: =COUNTIF($C$15:$C$127,"G") -> 6 | U3: =IF(T$3+T$4>0,T3/(T$3+T$4),"") -> 0.4
O4: Perdus | P4: =COUNTIF($K$15:$M$127,SaisonDeb)-P3 -> 9 | Q4: =IF(P$3+P$4>0,P4/(P$3+P$4),"") -> 0.6 | R4: =COUNTIF($K$15:$K$127,SaisonFin)-R3 -> 0 | S4: =IF(R$3+R$4>0,R4/(R$3+R$4),"") ->  | T4: =COUNTIF($C$15:$C$127,"P") -> 9 | U4: =IF(T$3+T$4>0,T4/(T$3+T$4),"") -> 0.6
O5: Total / Moy. | P5: =SUM(P3:P4) -> 15 | Q5: =IF(SUMIF($K$15:$K$127,SaisonDeb,$G$15:$G$127)>0,SUMIF($K$15:$K$127,SaisonDeb,$F$15:$F$127)/SUMIF($K$15:$K$127,SaisonDeb,$G$15:$G$127),"") -> 0.9140518417 | R5: =SUM(R3:R4) -> 0 | S5: =IF(SUMIF($K$15:$K$127,SaisonFin,$G$15:$G$127)>0,SUMIF($K$15:$K$127,SaisonFin,$F$15:$F$127)/SUMIF($K$15:$K$127,SaisonFin,$G$15:$G$127),"") ->  | T5: =SUM(T3:T4) -> 15 | U5: =IF(SUM($G$15:$G$127)>0,SUM($F$15:$F$127)/SUM($G$15:$G$127),"") -> 0.9140518417 | V5: =IF(SUMIF($K$15:$K$31,SaisonDeb,$G$15:$G$31)+SUMIF($K$15:$K$31,SaisonFin,$G$15:$G$31)>0,(SUMIF($K$15:$K$31,SaisonDeb,$F$15:$F$31)+SUMIF($K$15:$K$31,SaisonFin,$F$15:$F$31))/(SUMIF($K$15:$K$31,SaisonDeb,$G$15:$G$31)+SUMIF($K$15:$K$31,SaisonFin,$G$15:$G$31)),"") -> 0.9140518417
N6: Sets | O6: Gagnés | P6: =SUMIF($K$15:$K$127,SaisonDeb,$D$15:$D$127) -> 6 | Q6: =IF(P$6+P$7>0,P6/(P$6+P$7),"") -> 0.4 | R6: =SUMIF($K$15:$K$127,SaisonFin,$D$15:$D$127) -> 0 | S6: =IF(R$6+R$7>0,R6/(R$6+R$7),"") ->  | T6: =SUM($D$15:$D$127) -> 6 | U6: =IF(T$6+T$7>0,T6/(T$6+T$7),"") -> 0.4
O7: Perdus | P7: =SUMIF($K$15:$K$127,SaisonDeb,$E$15:$E$127) -> 9 | Q7: =IF(P$6+P$7>0,P7/(P$6+P$7),"") -> 0.6 | R7: =SUMIF($K$15:$K$127,SaisonFin,$E$15:$E$127) -> 0 | S7: =IF(R$6+R$7>0,R7/(R$6+R$7),"") ->  | T7: =SUM($E$15:$E$127) -> 9 | U7: =IF(T$6+T$7>0,T7/(T$6+T$7),"") -> 0.6
A8: Récapitulatif joueurs | O8: Total | P8: =SUM(P6:P7) -> 15 | R8: =SUM(R6:R7) -> 0 | T8: =SUM(T6:T7) -> 15
A15: Joueur | B15: Adversaire | C15: G/P | D15: Sets gagnés | E15: Sets perdus | F15: pts marqués | G15: pts subis | H15: Date | I15: Compétition | J15: Phase | K15: Saison
A16: ALAZARD Philippe | B16: FELLINE Riccardo | C16: P | D16: 0 | E16: 1 | F16: 60 | G16: 120 | H16: 2021-10-02 | I16: T 1 OISE - Qualifications N 1 - Tour Principal - MERU | J16: 1/2 Finale | K16: =IF(H16<>"",IF(MONTH(H16)>MoisRef,YEAR(H16)&"-"&YEAR(H16)+1,YEAR(H16)-1&"-"&YEAR(H16)),"") -> 2021-2022 | P16: =IF($K16=P$1,COUNTIF($C16,"G"),0) -> 0 | R16: =IF($K16=R$1,COUNTIF($C16,"G"),0) -> 0
A17: ALAZARD Philippe | B17: LALOT Gérard | C17: G | D17: 1 | E17: 0 | F17: 120 | G17: 106 | H17: 2021-10-02 | I17: T 1 OISE - Qualifications N 1 - Tour Principal - MERU | J17: Qualifications | K17: 2021-2022 | P17: 1 | R17: 0
A18: ALAZARD Philippe | B18: NAHIRNYJ Nicolas | C18: P | D18: 0 | E18: 1 | F18: 80 | G18: 120 | H18: 2021-10-02 | I18: T 1 OISE - Qualifications N 1 - Tour Principal - MERU | J18: Qualifications | K18: 2021-2022 | P18: 0 | R18: 0
A19: ALAZARD PHILIPPE | B19: FAURE STEPHANE | C19: P | D19: 0 | E19: 1 | F19: 77 | G19: 100 | H19: 2021-10-08 | I19: TN1 ST MAUR DES FOSSES | J19: Préqualifications | K19: 2021-2022 | P19: 0 | R19: 0
A20: ALAZARD PHILIPPE | B20: LORIN JIMMY | C20: P | D20: 0 | E20: 1 | F20: 46 | G20: 100 | H20: 2021-10-08 | I20: TN1 ST MAUR DES FOSSES | J20: Préqualifications | K20: 2021-2022 | P20: 0 | R20: 0
A21: ALAZARD PHILIPPE | B21: LANUSSE CHRISTOPHE | C21: G | D21: 1 | E21: 0 | F21: 100 | G21: 53 | H21: 2021-10-08 | I21: TN1 ST MAUR DES FOSSES | J21: Préqualifications | K21: 2021-2022 | P21: 1 | R21: 0
A22: ALAZARD PHILIPPE | B22: CHARLES DOMINIQUE | C22: G | D22: 1 | E22: 0 | F22: 100 | G22: 76 | H22: 2021-10-09 | I22: TN1 ST MAUR DES FOSSES | J22: 1/8è Tournoi de classement | K22: 2021-2022 | P22: 1 | R22: 0
A23: ALAZARD PHILIPPE | B23: LEPAGE PATRICK | C23: G | D23: 1 | E23: 0 | F23: 100 | G23: 66 | H23: 2021-10-09 | I23: TN1 ST MAUR DES FOSSES | J23: 1/4 F Tournoi de classement | K23: 2021-2022 | P23: 1 | R23: 0
A24: ALAZARD PHILIPPE | B24: RUBLINE PASCAL | C24: P | D24: 0 | E24: 1 | F24: 62 | G24: 100 | H24: 2021-10-10 | I24: TN1 ST MAUR DES FOSSES | J24: 1/2 F Tournoi de classement | K24: 2021-2022 | P24: 0 | R24: 0
A25: ALAZARD PHILIPPE | B25: VERHAGHE DOMINIQUE | C25: P | D25: 0 | E25: 1 | F25: 67 | G25: 100 | H25: 2022-02-25 | I25: TN4 LAXOU | J25: Préqualifications | K25: 2021-2022 | P25: 0 | R25: 0
A26: ALAZARD PHILIPPE | B26: GOUTALOY SYLVAIN | C26: P | D26: 0 | E26: 1 | F26: 87 | G26: 100 | H26: 2022-02-25 | I26: TN4 LAXOU | J26: Préqualifications | K26: 2021-2022 | P26: 0 | R26: 0
A27: ALAZARD PHILIPPE | B27: LEPAGE PATRICK | C27: G | D27: 1 | E27: 0 | F27: 100 | G27: 76 | H27: 2022-02-25 | I27: TN4 LAXOU | J27: Préqualifications | K27: 2021-2022 | P27: 1 | R27: 0
A28: ALAZARD PHILIPPE | B28: BONNEAU BENOIT | C28: P | D28: 0 | E28: 1 | F28: 114 | G28: 120 | H28: 2022-02-24 | I28: TN4 LAXOU | J28: Qualifications National | K28: 2021-2022 | P28: 0 | R28: 0
A29: ALAZARD PHILIPPE | B29: BARBE PHILIPPE | C29: G | D29: 1 | E29: 0 | F29: 120 | G29: 109 | H29: 2022-02-24 | I29: TN4 LAXOU | J29: Qualifications National | K29: 2021-2022 | P29: 1 | R29: 0
A30: ALAZARD PHILIPPE | B30: HERVELIN GABRIEL | C30: P | D30: 0 | E30: 1 | F30: 107 | G30: 120 | H30: 2022-02-24 | I30: TN4 LAXOU | J30: Qualifications National | K30: 2021-2022 | P30: 0 | R30: 0
A31: Fin des données | P31: =IF($K31=P$1,COUNTIF($C31,"G"),0) -> 0 | R31: =IF($K31=R$1,COUNTIF($C31,"G"),0) -> 0

Sheet ALDEGUER Lionel
A1: ALDEGUER Lionel | P1: =SaisonDeb -> 2021-2022 | R1: =SaisonFin -> 2022-2023 | T1: Toutes saisons
P2: Nombre | Q2: %age | R2: Nombre | S2: %age | T2: Nombre | U2: %age
N3: Matchs | O3: Gagnés | P3: =SUM(P$15:P$203) -> 0 | Q3: =IF(P$3+P$4>0,P3/(P$3+P$4),"") ->  | R3: =SUM(R$15:R$203) -> 0 | S3: =IF(R$3+R$4>0,R3/(R$3+R$4),"") ->  | T3: =COUNTIF($C$15:$C$203,"G") -> 29 | U3: =IF(T$3+T$4>0,T3/(T$3+T$4),"") -> 0.3186813187
O4: Perdus | P4: =COUNTIF($K$15:$M$203,SaisonDeb)-P3 -> 0 | Q4: =IF(P$3+P$4>0,P4/(P$3+P$4),"") ->  | R4: =COUNTIF($K$15:$K$203,SaisonFin)-R3 -> 0 | S4: =IF(R$3+R$4>0,R4/(R$3+R$4),"") ->  | T4: =COUNTIF($C$15:$C$203,"P") -> 62 | U4: =IF(T$3+T$4>0,T4/(T$3+T$4),"") -> 0.6813186813
O5: Total / Moy. | P5: =SUM(P3:P4) -> 0 | Q5: =IF(SUMIF($K$15:$K$203,SaisonDeb,$G$15:$G$203)>0,SUMIF($K$15:$K$203,SaisonDeb,$F$15:$F$203)/SUMIF($K$15:$K$203,SaisonDeb,$G$15:$G$203),"") ->  | R5: =SUM(R3:R4) -> 0 | S5: =IF(SUMIF($K$15:$K$203,SaisonFin,$G$15:$G$203)>0,SUMIF($K$15:$K$203,SaisonFin,$F$15:$F$203)/SUMIF($K$15:$K$203,SaisonFin,$G$15:$G$203),"") ->  | T5: =SUM(T3:T4) -> 91 | U5: =IF(SUM($G$15:$G$203)>0,SUM($F$15:$F$203)/SUM($G$15:$G$203),"") -> 0.8613284646 | V5: =IF(SUMIF($K$15:$K$107,SaisonDeb,$G$15:$G$107)+SUMIF($K$15:$K$107,SaisonFin,$G$15:$G$107)>0,(SUMIF($K$15:$K$107,SaisonDeb,$F$15:$F$107)+SUMIF($K$15:$K$107,SaisonFin,$F$15:$F$107))/(SUMIF($K$15:$K$107,SaisonDeb,$G$15:$G$107)+SUMIF($K$15:$K$107,SaisonFin,$G$15:$G$107)),"") -> 
N6: Sets | O6: Gagnés | P6: =SUMIF($K$15:$K$203,SaisonDeb,$D$15:$D$203) -> 0 | Q6: =IF(P$6+P$7>0,P6/(P$6+P$7),"") ->  | R6: =SUMIF($K$15:$K$203,SaisonFin,$D$15:$D$203) -> 0 | S6: =IF(R$6+R$7>0,R6/(R$6+R$7),"") ->  | T6: =SUM($D$15:$D$203) -> 72 | U6: =IF(T$6+T$7>0,T6/(T$6+T$7),"") -> 0.354679803
O7: Perdus | P7: =SUMIF($K$15:$K$203,SaisonDeb,$E$15:$E$203) -> 0 | Q7: =IF(P$6+P$7>0,P7/(P$6+P$7),"") ->  | R7: =SUMIF($K$15:$K$203,SaisonFin,$E$15:$E$203) -> 0 | S7: =IF(R$6+R$7>0,R7/(R$6+R$7),"") ->  | T7: =SUM($E$15:$E$203) -> 131 | U7: =IF(T$6+T$7>0,T7/(T$6+T$7),"") -> 0.645320197
A8: Récapitulatif joueurs | O8: Total | P8: =SUM(P6:P7) -> 0 | R8: =SUM(R6:R7) -> 0 | T8: =SUM(T6:T7) -> 203
A15: Joueur | B15: Adversaire | C15: G/P | D15: Sets gagnés | E15: Sets perdus | F15: pts marqués | G15: pts subis | H15: Date | I15: Compétition | J15: Phase | K15: Saison
A16: ALDEGUER Lionel | B16: DEVOS Jackie | C16: P | D16: 0 | E16: 2 | F16: 70 | G16: 120 | H16: 2014-04-05 | I16: N1 Ligue T3 GRAVELINES | J16: Poules | K16: =IF(H16<>"",IF(MONTH(H16)>MoisRef,YEAR(H16)&"-"&YEAR(H16)+1,YEAR(H16)-1&"-"&YEAR(H16)),"") -> 2013-2014 | P16: =IF($K16=P$1,COUNTIF($C16,"G"),0) -> 0 | R16: =IF($K16=R$1,COUNTIF($C16,"G"),0) -> 0
A17: ALDEGUER Lionel | B17: SAINT-GEORGES Claude | C17: P | D17: 0 | E17: 2 | F17: 61 | G17: 120 | H17: 2014-04-05 | I17: N1 Ligue T3 GRAVELINES | J17: Poules | K17: 2013-2014 | P17: 0 | R17: 0
A18: ALDEGUER Lionel | B18: PARISIS Francis | C18: G | D18: 1 | E18: 0 | F18: 100 | G18: 48 | H18: 2014-04-05 | I18: N1 Ligue T3 GRAVELINES | J18: Poules Consolante | K18: 2013-2014 | P18: 0 | R18: 0
A19: ALDEGUER Lionel | B19: VEREECQUE Bernard | C19: G | D19: 1 | E19: 0 | F19: 100 | G19: 65 | H19: 2014-04-05 | I19: N1 Ligue T3 GRAVELINES | J19: Poules Consolante | K19: 2013-2014 | P19: 0 | R19: 0
A20: ALDEGUER Lionel | B20: DEROLEZ Jean-Pierre | C20: P | D20: 0 | E20: 1 | F20: 49 | G20: 100 | H20: 2014-04-05 | I20: N1 Ligue T3 GRAVELINES | J20: 1/2 Finale Consolante | K20: 2013-2014 | P20: 0 | R20: 0
A21: ALDEGUER Lionel | B21: POULEYN andré | C21: P | D21: 0 | E21: 1 | F21: 96 | G21: 100 | H21: 2015-01-17 | I21: N1 Ligue T1 DUNKERQUE | J21: Poules Consolante | K21: 2014-2015 | P21: 0 | R21: 0
A22: ALDEGUER Lionel | B22: WALLART Jean-charles | C22: P | D22: 0 | E22: 1 | F22: 59 | G22: 100 | H22: 2015-01-17 | I22: N1 Ligue T1 DUNKERQUE | J22: Poules Consolante | K22: 2014-2015 | P22: 0 | R22: 0
A23: ALDEGUER Lionel | B23: DEVOS Jackie | C23: P | D23: 0 | E23: 2 | F23: 81 | G23: 120 | H23: 2015-01-17 | I23: N1 Ligue T1 DUNKERQUE | J23: Poules | K23: 2014-2015 | P23: 0 | R23: 0
A24: ALDEGUER Lionel | B24: SEINGIER Jean-Claude | C24: P | D24: 0 | E24: 2 | F24: 88 | G24: 120 | H24: 2015-01-17 | I24: N1 Ligue T1 DUNKERQUE | J24: Poules | K24: 2014-2015 | P24: 0 | R24: 0
A25: ALDEGUER Lionel | B25: POULEYN andré | C25: G | D25: 1 | E25: 0 | F25: 100 | G25: 33 | H25: 2015-02-07 | I25: N1 Ligue T2 CALAIS | J25: Poules Consolante | K25: 2014-2015 | P25: 0 | R25: 0
A26: ALDEGUER Lionel | B26: LUBREZ Pierre | C26: G | D26: 1 | E26: 0 | F26: 100 | G26: 91 | H26: 2015-02-07 | I26: N1 Ligue T2 CALAIS | J26: Poules Consolante | K26: 2014-2015 | P26: 0 | R26: 0
A27: ALDEGUER Lionel | B27: POULEYN andré | C27: P | D27: 0 | E27: 1 | F27: 85 | G27: 100 | H27: 2015-02-07 | I27: N1 Ligue T2 CALAIS | J27: 1/2 finale Consolante | K27: 2014-2015 | P27: 0 | R27: 0
A28: ALDEGUER Lionel | B28: DEROLEZ Jean-pierre | C28: P | D28: 0 | E28: 2 | F28: 80 | G28: 120 | H28: 2015-02-07 | I28: N1 Ligue T2 CALAIS | J28: Poules | K28: 2014-2015 | P28: 0 | R28: 0
A29: ALDEGUER Lionel | B29: CLYNCKE Jean-Jacques | C29: G | D29: 2 | E29: 1 | F29: 147 | G29: 158 | H29: 2015-02-07 | I29: N1 Ligue T2 CALAIS | J29: Poules | K29: 2014-2015 | P29: 0 | R29: 0
A30: ALDEGUER Lionel | B30: LEMÂTRE Alexis | C30: P | D30: 0 | E30: 2 | F30: 65 | G30: 120 | H30: 2015-02-07 | I30: N1 Ligue T2 CALAIS | J30: 1/8 Finale | K30: 2014-2015 | P30: 0 | R30: 0
A31: ALDEGUER Lionel | B31: TRIPLET Gilbert | C31: G | D31: 2 | E31: 0 | F31: 120 | G31: 90 | H31: 2015-03-14 | I31: N1 Ligue T3 ANNOEULLIN | J31: Poules | K31: 2014-2015 | P31: 0 | R31: 0
A32: ALDEGUER Lionel | B32: LEMÂTRE Jérémy | C32: P | D32: 0 | E32: 2 | F32: 102 | G32: 120 | H32: 2015-03-14 | I32: N1 Ligue T3 ANNOEULLIN | J32: Poules | K32: 2014-2015 | P32: 0 | R32: 0
A33: ALDEGUER Lionel | B33: LEMÂTRE Alexis | C33: P | D33: 0 | E33: 2 | F33: 64 | G33: 120 | H33: 2015-03-14 | I33: N1 Ligue T3 ANNOEULLIN | J33: 1/4 Finale | K33: 2014-2015 | P33: 0 | R33: 0
A34: ALDEGUER Lionel | B34: RACARY Thibault | C34: P | D34: 0 | E34: 2 | F34: 52 | G34: 120 | H34: 2016-03-04 | I34: National T5 GRAVELINES | J34: Préqualifs | K34: 2015-2016 | P34: 0 | R34: 0
A35: ALDEGUER Lionel | B35: BILLIARD Alain | C35: G | D35: 2 | E35: 1 | F35: 135 | G35: 153 | H35: 2016-03-04 | I35: National T5 GRAVELINES | J35: Préqualifs | K35: 2015-2016 | P35: 0 | R35: 0
A36: ALDEGUER Lionel | B36: LHERMITTE Sylvain | C36: P | D36: 0 | E36: 2 | F36: 78 | G36: 120 | H36: 2016-03-04 | I36: National T5 GRAVELINES | J36: Préqualifs | K36: 2015-2016 | P36: 0 | R36: 0
A37: ALDEGUER Lionel | B37: ZACCAGNINI Antoine | C37: P | D37: 0 | E37: 3 | F37: 93 | G37: 180 | H37: 2016-03-05 | I37: National T5 GRAVELINES | J37: Qualifs promotion | K37: 2015-2016 | P37: 0 | R37: 0
A38: ALDEGUER Lionel | B38: WEBER Thierry | C38: P | D38: 1 | E38: 3 | F38: 178 | G38: 205 | H38: 2016-03-05 | I38: National T5 GRAVELINES | J38: Qualifs promotion | K38: 2015-2016 | P38: 0 | R38: 0
A39: ALDEGUER Lionel | B39: LORTHIOIR Jean-Luc | C39: G | D39: 1 | E39: 0 | F39: 100 | G39: 64 | H39: 2015-12-05 | I39: CONSOLANTE T1 LIGUE 5 QUILLES N1 - FACHES-THUMESNIL | J39: Poules | K39: 2015-2016 | P39: 0 | R39: 0
A40: ALDEGUER Lionel | B40: CLYNCKE Jean-Jacques | C40: P | D40: 0 | E40: 1 | F40: 29 | G40: 100 | H40: 2015-12-05 | I40: CONSOLANTE T1 LIGUE 5 QUILLES N1 - FACHES-THUMESNIL | J40: Poules | K40: 2015-2016 | P40: 0 | R40: 0
A41: ALDEGUER Lionel | B41: LECROART Serge | C41: G | D41: 2 | E41: 1 | F41: 176 | G41: 139 | H41: 2015-12-04 | I41: T1 LIGUE 5 QUILLES N1 - FACHES-THUMESNIL | J41: Poules | K41: 2015-2016 | P41: 0 | R41: 0
A42: ALDEGUER Lionel | B42: MAILLE Bernard | C42: P | D42: 0 | E42: 2 | F42: 83 | G42: 120 | H42: 2015-12-04 | I42: T1 LIGUE 5 QUILLES N1 - FACHES-THUMESNIL | J42: Poules | K42: 2015-2016 | P42: 0 | R42: 0
A43: ALDEGUER Lionel | B43: LEMÂTRE Alexis | C43: P | D43: 0 | E43: 1 | F43: 57 | G43: 100 | H43: 2016-01-09 | I43: CONSOLANTE T2 LIGUE 5 QUILLES N1 - GRAVELINES | J43: Qualifications | K43: 2015-2016 | P43: 0 | R43: 0
A44: ALDEGUER Lionel | B44: GHEVART Jean | C44: P | D44: 0 | E44: 1 | F44: 98 | G44: 100 | H44: 2016-01-09 | I44: CONSOLANTE T2 LIGUE 5 QUILLES N1 - GRAVELINES | J44: Qualifications | K44: 2015-2016 | P44: 0 | R44: 0
A45: ALDEGUER Lionel | B45: TRIPLET Gilbert | C45: P | D45: 1 | E45: 2 | F45: 140 | G45: 138 | H45: 2016-01-09 | I45: T2 LIGUE 5 QUILLES N1 - GRAVELINES | J45: Qualifications | K45: 2015-2016 | P45: 0 | R45: 0
A46: ALDEGUER Lionel | B46: SAINT-GEORGES Claude | C46: P | D46: 1 | E46: 2 | F46: 117 | G46: 156 | H46: 2016-01-09 | I46: T2 LIGUE 5 QUILLES N1 - GRAVELINES | J46: Qualifications | K46: 2015-2016 | P46: 0 | R46: 0
A47: ALDEGUER Lionel | B47: GHEVART Jean | C47: G | D47: 2 | E47: 1 | F47: 144 | G47: 134 | H47: 2016-01-23 | I47: T3 Ligue 5 Quilles N1 - ANNOEULLIN | J47: Qualifications | K47: 2015-2016 | P47: 0 | R47: 0
A48: ALDEGUER Lionel | B48: MAILLE Bernard | C48: P | D48: 1 | E48: 2 | F48: 122 | G48: 162 | H48: 2016-01-23 | I48: T3 Ligue 5 Quilles N1 - ANNOEULLIN | J48: Qualifications | K48: 2015-2016 | P48: 0 | R48: 0
A49: ALDEGUER Lionel | B49: WALLART Jean-Charles | C49: P | D49: 0 | E49: 2 | F49: 56 | G49: 120 | H49: 2016-01-23 | I49: T3 Ligue 5 Quilles N1 - ANNOEULLIN | J49: 1/4 Finale | K49: 2015-2016 | P49: 0 | R49: 0
A50: ALDEGUER Lionel | B50: LANUSSE Christophe | C50: P | D50: 1 | E50: 2 | F50: 115 | G50: 176 | H50: 2016-11-04 | I50: National T2 GRAVELINES | J50: Préqualifs | K50: 2016-2017 | P50: 0 | R50: 0
A51: ALDEGUER Lionel | B51: BAYON Pascal | C51: P | D51: 1 | E51: 2 | F51: 165 | G51: 172 | H51: 2016-11-04 | I51: National T2 GRAVELINES | J51: Préqualifs | K51: 2016-2017 | P51: 0 | R51: 0
A52: ALDEGUER Lionel | B52: SACRE Jean-Yves | C52: P | D52: 1 | E52: 2 | F52: 155 | G52: 178 | H52: 2016-11-04 | I52: National T2 GRAVELINES | J52: Préqualifs | K52: 2016-2017 | P52: 0 | R52: 0
A53: ALDEGUER Lionel | B53: CLYNCKE Jean-Jacques | C53: G | D53: 2 | E53: 1 | F53: 163 | G53: 118 | H53: 2017-01-14 | I53: T1 Qualifications Ligue N1 - Zone 59-62 - ANNOEULLIN | J53: Qualifications | K53: 2016-2017 | P53: 0 | R53: 0
A54: ALDEGUER Lionel | B54: LEMÂTRE Jérémy | C54: P | D54: 0 | E54: 2 | F54: 72 | G54: 120 | H54: 2017-01-14 | I54: T1 Qualifications Ligue N1 - Zone 59-62 - ANNOEULLIN | J54: 1/4 Finale | K54: 2016-2017 | P54: 0 | R54: 0
A55: ALDEGUER Lionel | B55: MAILLE Bernard | C55: G | D55: 2 | E55: 0 | F55: 120 | G55: 59 | H55: 2017-01-14 | I55: T1 Qualifications Ligue N1 - Zone 59-62 - ANNOEULLIN | J55: Qualifications | K55: 2016-2017 | P55: 0 | R55: 0
A56: ALDEGUER Lionel | B56: GEETS Patrice | C56: G | D56: 2 | E56: 0 | F56: 120 | G56: 94 | H56: 2017-02-25 | I56: T2 Qualifications Ligue N1 5 quilles - Zone 59-62 - GRAVELINES | J56: Qualifications | K56: 2016-2017 | P56: 0 | R56: 0
A57: ALDEGUER Lionel | B57: GEETS Patrice | C57: P | D57: 1 | E57: 2 | F57: 122 | G57: 173 | H57: 2017-02-25 | I57: T2 Qualifications Ligue N1 5 quilles - Zone 59-62 - GRAVELINES | J57: 1/4 Finale | K57: 2016-2017 | P57: 0 | R57: 0
A58: ALDEGUER Lionel | B58: SAINT-GEORGES Claude | C58: G | D58: 2 | E58: 0 | F58: 120 | G58: 86 | H58: 2017-02-25 | I58: T2 Qualifications Ligue N1 5 quilles - Zone 59-62 - GRAVELINES | J58: Qualifications | K58: 2016-2017 | P58: 0 | R58: 0
A59: ALDEGUER Lionel | B59: GEETS Patrice | C59: P | D59: 0 | E59: 2 | F59: 87 | G59: 120 | H59: 2017-03-11 | I59: T3 Qualifications Ligue N1 5 quilles - Zone 59-62 - RONCHIN | J59: 1/4 Finale | K59: 2016-2017 | P59: 0 | R59: 0
A60: ALDEGUER Lionel | B60: LORTHIOIR Jean-Luc | C60: G | D60: 2 | E60: 1 | F60: 167 | G60: 125 | H60: 2017-03-11 | I60: T3 Qualifications Ligue N1 5 quilles - Zone 59-62 - RONCHIN | J60: Qualifications | K60: 2016-2017 | P60: 0 | R60: 0
A61: ALDEGUER Lionel | B61: WALLART Jean-Charles | C61: P | D61: 0 | E61: 2 | F61: 66 | G61: 120 | H61: 2017-03-11 | I61: T3 Qualifications Ligue N1 5 quilles - Zone 59-62 - RONCHIN | J61: Qualifications | K61: 2016-2017 | P61: 0 | R61: 0
A62: ALDEGUER Lionel | B62: MAILLE Bernard | C62: P | D62: 0 | E62: 2 | F62: 87 | G62: 120 | H62: 2017-09-22 | I62: National T1 ANNOEULLIN | J62: Préqualifs | K62: 2017-2018 | P62: 0 | R62: 0
A63: ALDEGUER Lionel | B63: GUINGAND Florian | C63: P | D63: 0 | E63: 2 | F63: 94 | G63: 120 | H63: 2017-09-22 | I63: National T1 ANNOEULLIN | J63: Préqualifs | K63: 2017-2018 | P63: 0 | R63: 0
A64: ALDEGUER Lionel | B64: LHERMITTE Sylvain | C64: P | D64: 1 | E64: 2 | F64: 107 | G64: 150 | H64: 2017-09-22 | I64: National T1 ANNOEULLIN | J64: Préqualifs | K64: 2017-2018 | P64: 0 | R64: 0
A65: ALDEGUER Lionel | B65: LORTHIOIR Jean-Luc | C65: G | D65: 2 | E65: 1 | F65: 165 | G65: 140 | H65: 2017-12-08 | I65: National T2 GRAVELINES | J65: Préqualifs | K65: 2017-2018 | P65: 0 | R65: 0
A66: ALDEGUER Lionel | B66: MANTEN Paul | C66: G | D66: 2 | E66: 0 | F66: 120 | G66: 68 | H66: 2017-12-08 | I66: National T2 GRAVELINES | J66: Préqualifs | K66: 2017-2018 | P66: 0 | R66: 0
A67: ALDEGUER Lionel | B67: DAVOINE Bruno | C67: P | D67: 1 | E67: 2 | F67: 147 | G67: 159 | H67: 2017-12-08 | I67: National T2 GRAVELINES | J67: Préqualifs | K67: 2017-2018 | P67: 0 | R67: 0
A68: ALDEGUER Lionel | B68: JACQ Laurent | C68: P | D68: 2 | E68: 3 | F68: 239 | G68: 259 | H68: 2017-12-09 | I68: National T2 GRAVELINES | J68: Qualifs N1 | K68: 2017-2018 | P68: 0 | R68: 0
A69: ALDEGUER Lionel | B69: LANUSSE Christophe | C69: G | D69: 3 | E69: 2 | F69: 239 | G69: 258 | H69: 2017-12-09 | I69: National T2 GRAVELINES | J69: Qualifs N1 | K69: 2017-2018 | P69: 0 | R69: 0
A70: ALDEGUER Lionel | B70: ZACCAGNINI Antoine | C70: P | D70: 1 | E70: 3 | F70: 154 | G70: 235 | H70: 2017-12-09 | I70: National T2 GRAVELINES | J70: Qualifs N1 | K70: 2017-2018 | P70: 0 | R70: 0
A71: ALDEGUER Lionel | B71: DELSOL Philippe | C71: P | D71: 0 | E71: 2 | F71: 46 | G71: 120 | H71: 2017-09-30 | I71: T1 qualifications CD59 N1 - RONCHIN | J71: 1/2 Finale | K71: 2017-2018 | P71: 0 | R71: 0
A72: ALDEGUER Lionel | B72: GEETS Patrice | C72: P | D72: 0 | E72: 2 | F72: 89 | G72: 120 | H72: 2017-09-30 | I72: T1 qualifications CD59 N1 - RONCHIN | J72: Qualifications | K72: 2017-2018 | P72: 0 | R72: 0
A73: ALDEGUER Lionel | B73: LORTHIOIR Jean-Luc | C73: G | D73: 2 | E73: 0 | F73: 120 | G73: 60 | H73: 2017-09-30 | I73: T1 qualifications CD59 N1 - RONCHIN | J73: Qualifications | K73: 2017-2018 | P73: 0 | R73: 0
A74: ALDEGUER Lionel | B74: WALLART Jean-Charles | C74: G | D74: 2 | E74: 0 | F74: 120 | G74: 98 | H74: 2017-09-30 | I74: T1 qualifications CD59 N1 - RONCHIN | J74: 1/4 Finale | K74: 2017-2018 | P74: 0 | R74: 0
A75: ALDEGUER Lionel | B75: KERKHOF Hervé | C75: G | D75: 2 | E75: 1 | F75: 164 | G75: 145 | H75: 2018-01-20 | I75: T2 qualifications CD59 N1 - GRAVELINES | J75: Qualifications | K75: 2017-2018 | P75: 0 | R75: 0
A76: ALDEGUER Lionel | B76: LEMATRE Alexis | C76: P | D76: 0 | E76: 2 | F76: 76 | G76: 120 | H76: 2018-01-20 | I76: T2 qualifications CD59 N1 - GRAVELINES | J76: 1/4 Finale | K76: 2017-2018 | P76: 0 | R76: 0
A77: ALDEGUER Lionel | B77: LORTHIOIR Jean-Luc | C77: G | D77: 2 | E77: 0 | F77: 120 | G77: 69 | H77: 2018-01-20 | I77: T2 qualifications CD59 N1 - GRAVELINES | J77: Qualifications | K77: 2017-2018 | P77: 0 | R77: 0
A78: ALDEGUER Lionel | B78: DEROLEZ Jean-Pierre | C78: G | D78: 1 | E78: 0 | F78: 100 | G78: 99 | H78: 2018-02-04 | I78: T3 qualifications CD59 N1 - GRAVELINES - CONSOLANTE | J78: Qualifications | K78: 2017-2018 | P78: 0 | R78: 0
A79: ALDEGUER Lionel | B79: GHEVART Jean | C79: G | D79: 1 | E79: 0 | F79: 100 | G79: 41 | H79: 2018-02-04 | I79: T3 qualifications CD59 N1 - GRAVELINES - CONSOLANTE | J79: Qualifications | K79: 2017-2018 | P79: 0 | R79: 0
A80: ALDEGUER Lionel | B80: HERREBRECHT Erian | C80: P | D80: 0 | E80: 1 | F80: 66 | G80: 100 | H80: 2018-02-04 | I80: T3 qualifications CD59 N1 - GRAVELINES - CONSOLANTE | J80: 1/2 Finale | K80: 2017-2018 | P80: =IF($K80=P$1,COUNTIF($C80,"G"),0) -> 0 | R80: =IF($K80=R$1,COUNTIF($C80,"G"),0) -> 0
A81: ALDEGUER Lionel | B81: HERREBRECHT Emerick | C81: P | D81: 0 | E81: 2 | F81: 34 | G81: 120 | H81: 2018-02-04 | I81: T3 qualifications CD59 N1 - GRAVELINES | J81: Qualifications | K81: 2017-2018 | P81: 0 | R81: 0
A82: ALDEGUER Lionel | B82: VERHAGUE Dominique | C82: P | D82: 0 | E82: 2 | F82: 68 | G82: 120 | H82: 2018-02-04 | I82: T3 qualifications CD59 N1 - GRAVELINES | J82: Qualifications | K82: 2017-2018 | P82: 0 | R82: 0
A83: ALDEGUER Lionel | B83: CLYNCKE Jean-Jacques | C83: P | D83: 0 | E83: 1 | F83: 77 | G83: 100 | H83: 2018-03-10 | I83: T4 qualifications CD59 N1 - ANNOEULLIN - CONSOLANTE | J83: Qualifications | K83: 2017-2018 | P83: 0 | R83: 0
A84: ALDEGUER Lionel | B84: WALLART Jean-Charles | C84: P | D84: 0 | E84: 1 | F84: 60 | G84: 100 | H84: 2018-03-10 | I84: T4 qualifications CD59 N1 - ANNOEULLIN - CONSOLANTE | J84: Qualifications | K84: 2017-2018 | P84: 0 | R84: 0
A85: ALDEGUER Lionel | B85: GEETS Patrice | C85: P | D85: 0 | E85: 2 | F85: 86 | G85: 120 | H85: 2018-03-10 | I85: T4 qualifications CD59 N1 - ANNOEULLIN | J85: Qualifications | K85: 2017-2018 | P85: 0 | R85: 0
A86: ALDEGUER Lionel | B86: HERREBRECHT Erian | C86: P | D86: 0 | E86: 2 | F86: 72 | G86: 120 | H86: 2018-03-10 | I86: T4 qualifications CD59 N1 - ANNOEULLIN | J86: Qualifications | K86: 2017-2018 | P86: 0 | R86: 0
A87: ALDEGUER Lionel | B87: LEMATRE Jérémy | C87: P | D87: 1 | E87: 3 | F87: 181 | G87: 234 | H87: 2018-04-15 | I87: Finale CD59 N1 - VILLENEUVE D'ASCQ | J87: Qualifications | K87: 2017-2018 | P87: 0 | R87: 0
A88: ALDEGUER Lionel | B88: SAUVAGE Dominique | C88: P | D88: 1 | E88: 3 | F88: 173 | G88: 215 | H88: 2018-04-15 | I88: Finale CD59 N1 - VILLENEUVE D'ASCQ | J88: Qualifications | K88: 2017-2018 | P88: 0 | R88: 0
A89: ALDEGUER Lionel | B89: VEREECQUE Ludovic | C89: G | D89: 2 | E89: 0 | F89: 120 | G89: 106 | H89: 2018-10-20 | I89: T1 5Q N1 CD59 - ANNOEULLIN | J89: Qualifications | K89: 2018-2019 | P89: 0 | R89: 0
A90: ALDEGUER Lionel | B90: WALLART Jean-Charles | C90: P | D90: 1 | E90: 2 | F90: 132 | G90: 178 | H90: 2018-10-20 | I90: T1 5Q N1 CD59 - ANNOEULLIN | J90: Qualifications | K90: 2018-2019 | P90: 0 | R90: 0
A91: ALDEGUER Lionel | B91: DELRUE André | C91: P | D91: 0 | E91: 1 | F91: 50 | G91: 100 | H91: 2018-10-20 | I91: T1 5Q N1 CD59 - CONSOLANTE - ANNOEULLIN | J91: Qualifications | K91: 2018-2019 | P91: 0 | R91: 0
A92: ALDEGUER Lionel | B92: DESMETTRE Bruno | C92: P | D92: 0 | E92: 1 | F92: 95 | G92: 100 | H92: 2018-10-20 | I92: T1 5Q N1 CD59 - CONSOLANTE - ANNOEULLIN | J92: Qualifications | K92: 2018-2019 | P92: 0 | R92: 0
A93: ALDEGUER Lionel | B93: GHEVART Jean | C93: G | D93: 1 | E93: 0 | F93: 100 | G93: 66 | H93: 2018-10-20 | I93: T1 5Q N1 CD59 - CONSOLANTE - ANNOEULLIN | J93: Qualifications | K93: 2018-2019 | P93: 0 | R93: 0
A94: ALDEGUER Lionel | B94: VEREECQUE Ludovic | C94: P | D94: 0 | E94: 1 | F94: 78 | G94: 100 | H94: 2018-10-20 | I94: T1 5Q N1 CD59 - CONSOLANTE - ANNOEULLIN | J94: Qualifications | K94: 2018-2019 | P94: 0 | R94: 0
A95: ALDEGUER Lionel | B95: SAUVAGE Dominique | C95: P | D95: 0 | E95: 2 | F95: 66 | G95: 120 | H95: 2018-11-24 | I95: T2 5Q N1 CD59 - GRAVELINES | J95: Qualifications | K95: 2018-2019 | P95: 0 | R95: 0
A96: ALDEGUER Lionel | B96: VEREECQUE Ludovic | C96: P | D96: 1 | E96: 2 | F96: 175 | G96: 160 | H96: 2018-11-24 | I96: T2 5Q N1 CD59 - GRAVELINES | J96: Qualifications | K96: 2018-2019 | P96: 0 | R96: 0
A97: ALDEGUER Lionel | B97: DELSOL Philippe | C97: P | D97: 0 | E97: 2 | F97: 49 | G97: 120 | H97: 2018-12-16 | I97: T3 5Q N1 CD59 - RONCHIN | J97: 1/4 Finale | K97: 2018-2019 | P97: 0 | R97: 0
A98: ALDEGUER Lionel | B98: GEETS Patrice | C98: P | D98: 1 | E98: 2 | F98: 127 | G98: 131 | H98: 2018-12-16 | I98: T3 5Q N1 CD59 - RONCHIN | J98: Qualifications | K98: 2018-2019 | P98: 0 | R98: 0
A99: ALDEGUER Lionel | B99: LEMATRE Jérémy | C99: G | D99: 2 | E99: 1 | F99: 165 | G99: 162 | H99: 2018-12-16 | I99: T3 5Q N1 CD59 - RONCHIN | J99: Qualifications | K99: 2018-2019 | P99: 0 | R99: 0
A100: ALDEGUER Lionel | B100: FONTAINE Dany | C100: P | D100: 0 | E100: 2 | F100: 114 | G100: 120 | H100: 2019-01-19 | I100: T4 5Q N1 CD59 - ANNOEULLIN | J100: Qualifications | K100: 2018-2019 | P100: 0 | R100: 0
A101: ALDEGUER Lionel | B101: GEETS Patrice | C101: P | D101: 1 | E101: 2 | F101: 134 | G101: 162 | H101: 2019-01-19 | I101: T4 5Q N1 CD59 - ANNOEULLIN | J101: Qualifications | K101: 2018-2019 | P101: 0 | R101: 0
A102: ALDEGUER Lionel | B102: FOURRE Cedric | C102: P | D102: 0 | E102: 2 | F102: 65 | G102: 120 | H102: 43534 | I102: TN5 - GRAVELINES - PRE QUALIFICATIONS | J102: Qualifications | K102: 2018-2019 | P102: 0 | R102: 0
A103: ALDEGUER Lionel | B103: GUERIN Régis | C103: G | D103: 2 | E103: 1 | F103: 165 | G103: 110 | H103: 43534 | I103: TN5 - GRAVELINES - PRE QUALIFICATIONS | J103: Qualifications | K103: 2018-2019 | P103: 0 | R103: 0
A104: ALDEGUER Lionel | B104: POULEYN Andre | C104: G | D104: 2 | E104: 0 | F104: 120 | G104: 100 | H104: 43534 | I104: TN5 - GRAVELINES - PRE QUALIFICATIONS | J104: Qualifications | K104: 2018-2019 | P104: 0 | R104: 0
A105: ALDEGUER Lionel | B105: BAYON Pascal | C105: P | D105: 1 | E105: 3 | F105: 163 | G105: 205 | H105: 43535 | I105: TN5 N1 - GRAVELINES | J105: Qualifications | K105: 2018-2019 | P105: 0 | R105: 0
A106: ALDEGUER Lionel | B106: GUERIN Régis | C106: P | D106: 1 | E106: 3 | F106: 188 | G106: 235 | H106: 43535 | I106: TN5 N1 - GRAVELINES | J106: Qualifications | K106: 2018-2019 | P106: 0 | R106: 0
A107: Fin des données | P107: =IF($K107=P$1,COUNTIF($C107,"G"),0) -> 0 | R107: =IF($K107=R$1,COUNTIF($C107,"G"),0) -> 0

Sheet ANSEL Philippe
A1: ANSEL Philippe | P1: =SaisonDeb -> 2021-2022 | R1: =SaisonFin -> 2022-2023 | T1: Toutes saisons
P2: Nombre | Q2: %age | R2: Nombre | S2: %age | T2: Nombre | U2: %age
N3: Matchs | O3: Gagnés | P3: =SUM(P$15:P$119) -> 4 | Q3: =IF(P$3+P$4>0,P3/(P$3+P$4),"") -> 0.5714285714 | R3: =SUM(R$15:R$119) -> 0 | S3: =IF(R$3+R$4>0,R3/(R$3+R$4),"") ->  | T3: =COUNTIF($C$15:$C$119,"G") -> 4 | U3: =IF(T$3+T$4>0,T3/(T$3+T$4),"") -> 0.5714285714
O4: Perdus | P4: =COUNTIF($K$15:$M$119,SaisonDeb)-P3 -> 3 | Q4: =IF(P$3+P$4>0,P4/(P$3+P$4),"") -> 0.4285714286 | R4: =COUNTIF($K$15:$K$119,SaisonFin)-R3 -> 0 | S4: =IF(R$3+R$4>0,R4/(R$3+R$4),"") ->  | T4: =COUNTIF($C$15:$C$119,"P") -> 3 | U4: =IF(T$3+T$4>0,T4/(T$3+T$4),"") -> 0.4285714286
O5: Total / Moy. | P5: =SUM(P3:P4) -> 7 | Q5: =IF(SUMIF($K$15:$K$119,SaisonDeb,$G$15:$G$119)>0,SUMIF($K$15:$K$119,SaisonDeb,$F$15:$F$119)/SUMIF($K$15:$K$119,SaisonDeb,$G$15:$G$119),"") -> 1.208722741 | R5: =SUM(R3:R4) -> 0 | S5: =IF(SUMIF($K$15:$K$119,SaisonFin,$G$15:$G$119)>0,SUMIF($K$15:$K$119,SaisonFin,$F$15:$F$119)/SUMIF($K$15:$K$119,SaisonFin,$G$15:$G$119),"") ->  | T5: =SUM(T3:T4) -> 7 | U5: =IF(SUM($G$15:$G$119)>0,SUM($F$15:$F$119)/SUM($G$15:$G$119),"") -> 1.208722741 | V5: =IF(SUMIF($K$15:$K$23,SaisonDeb,$G$15:$G$23)+SUMIF($K$15:$K$23,SaisonFin,$G$15:$G$23)>0,(SUMIF($K$15:$K$23,SaisonDeb,$F$15:$F$23)+SUMIF($K$15:$K$23,SaisonFin,$F$15:$F$23))/(SUMIF($K$15:$K$23,SaisonDeb,$G$15:$G$23)+SUMIF($K$15:$K$23,SaisonFin,$G$15:$G$23)),"") -> 1.208722741
N6: Sets | O6: Gagnés | P6: =SUMIF($K$15:$K$119,SaisonDeb,$D$15:$D$119) -> 4 | Q6: =IF(P$6+P$7>0,P6/(P$6+P$7),"") -> 0.5714285714 | R6: =SUMIF($K$15:$K$119,SaisonFin,$D$15:$D$119) -> 0 | S6: =IF(R$6+R$7>0,R6/(R$6+R$7),"") ->  | T6: =SUM($D$15:$D$119) -> 4 | U6: =IF(T$6+T$7>0,T6/(T$6+T$7),"") -> 0.5714285714
O7: Perdus | P7: =SUMIF($K$15:$K$119,SaisonDeb,$E$15:$E$119) -> 3 | Q7: =IF(P$6+P$7>0,P7/(P$6+P$7),"") -> 0.4285714286 | R7: =SUMIF($K$15:$K$119,SaisonFin,$E$15:$E$119) -> 0 | S7: =IF(R$6+R$7>0,R7/(R$6+R$7),"") ->  | T7: =SUM($E$15:$E$119) -> 3 | U7: =IF(T$6+T$7>0,T7/(T$6+T$7),"") -> 0.4285714286
A8: Récapitulatif joueurs | O8: Total | P8: =SUM(P6:P7) -> 7 | R8: =SUM(R6:R7) -> 0 | T8: =SUM(T6:T7) -> 7
A15: Joueur | B15: Adversaire | C15: G/P | D15: Sets gagnés | E15: Sets perdus | F15: pts marqués | G15: pts subis | H15: Date | I15: Compétition | J15: Phase | K15: Saison
A16: ANSEL Philippe | B16: DELRUE André | C16: G | D16: 1 | E16: 0 | F16: 120 | G16: 78 | H16: 2021-12-18 | I16: T2 5Q N1 - GRAVELINES - CONVOCATION 8h30 | J16: Qualifications | K16: =IF(H16<>"",IF(MONTH(H16)>MoisRef,YEAR(H16)&"-"&YEAR(H16)+1,YEAR(H16)-1&"-"&YEAR(H16)),"") -> 2021-2022 | P16: =IF($K16=P$1,COUNTIF($C16,"G"),0) -> 1 | R16: =IF($K16=R$1,COUNTIF($C16,"G"),0) -> 0
A17: ANSEL Philippe | B17: HERREBRECHT Emerick | C17: G | D17: 1 | E17: 0 | F17: 120 | G17: 61 | H17: 2021-12-18 | I17: T2 5Q N1 - GRAVELINES - CONVOCATION 8h30 | J17: 1/4 Finale | K17: 2021-2022 | P17: 1 | R17: 0
A18: ANSEL Philippe | B18: SAUVAGE Dominique | C18: G | D18: 1 | E18: 0 | F18: 120 | G18: 81 | H18: 2021-12-18 | I18: T2 5Q N1 - GRAVELINES - CONVOCATION 8h30 | J18: Qualifications | K18: 2021-2022 | P18: 1 | R18: 0
A19: ANSEL Philippe | B19: WALLART Jean-Charles | C19: P | D19: 0 | E19: 1 | F19: 115 | G19: 120 | H19: 2021-12-18 | I19: T2 5Q N1 - GRAVELINES - CONVOCATION 8h30 | J19: 1/2 Finale | K19: 2021-2022 | P19: 0 | R19: 0
A20: ANSEL Philippe | B20: GEETS Patrice | C20: P | D20: 0 | E20: 1 | F20: 72 | G20: 120 | H20: 2022-02-13 | I20: T3 5Q N1 - GRAVELINES - CONVOCATION 8h30 | J20: 1/4 Finale | K20: 2021-2022 | P20: 0 | R20: 0
A21: ANSEL Philippe | B21: MAILLE Bernard | C21: P | D21: 0 | E21: 1 | F21: 109 | G21: 120 | H21: 2022-02-13 | I21: T3 5Q N1 - GRAVELINES - CONVOCATION 8h30 | J21: Qualifications | K21: 2021-2022 | P21: 0 | R21: 0
A22: ANSEL Philippe | B22: VEREECQUE Esteban | C22: G | D22: 1 | E22: 0 | F22: 120 | G22: 62 | H22: 2022-02-13 | I22: T3 5Q N1 - GRAVELINES - CONVOCATION 8h30 | J22: Qualifications | K22: 2021-2022 | P22: 1 | R22: 0
A23: Fin des données | P23: =IF($K23=P$1,COUNTIF($C23,"G"),0) -> 0 | R23: =IF($K23=R$1,COUNTIF($C23,"G"),0) -> 0

Sheet BARBE Philippe
A1: BARBE Philippe | P1: =SaisonDeb -> 2021-2022 | R1: =SaisonFin -> 2022-2023 | T1: Toutes saisons
P2: Nombre | Q2: %age | R2: Nombre | S2: %age | T2: Nombre | U2: %age
N3: Matchs | O3: Gagnés | P3: =SUM(P$15:P$289) -> 4 | Q3: =IF(P$3+P$4>0,P3/(P$3+P$4),"") -> 0.1904761905 | R3: =SUM(R$15:R$289) -> 0 | S3: =IF(R$3+R$4>0,R3/(R$3+R$4),"") -> 0 | T3: =COUNTIF($C$15:$C$289,"G") -> 51 | U3: =IF(T$3+T$4>0,T3/(T$3+T$4),"") -> 0.2881355932
O4: Perdus | P4: =COUNTIF($K$15:$M$289,SaisonDeb)-P3 -> 17 | Q4: =IF(P$3+P$4>0,P4/(P$3+P$4),"") -> 0.8095238095 | R4: =COUNTIF($K$15:$K$289,SaisonFin)-R3 -> 8 | S4: =IF(R$3+R$4>0,R4/(R$3+R$4),"") -> 1 | T4: =COUNTIF($C$15:$C$289,"P") -> 126 | U4: =IF(T$3+T$4>0,T4/(T$3+T$4),"") -> 0.7118644068
O5: Total / Moy. | P5: =SUM(P3:P4) -> 21 | Q5: =IF(SUMIF($K$15:$K$289,SaisonDeb,$G$15:$G$289)>0,SUMIF($K$15:$K$289,SaisonDeb,$F$15:$F$289)/SUMIF($K$15:$K$289,SaisonDeb,$G$15:$G$289),"") -> 0.7878653676 | R5: =SUM(R3:R4) -> 8 | S5: =IF(SUMIF($K$15:$K$289,SaisonFin,$G$15:$G$289)>0,SUMIF($K$15:$K$289,SaisonFin,$F$15:$F$289)/SUMIF($K$15:$K$289,SaisonFin,$G$15:$G$289),"") -> 0.6958333333 | T5: =SUM(T3:T4) -> 177 | U5: =IF(SUM($G$15:$G$289)>0,SUM($F$15:$F$289)/SUM($G$15:$G$289),"") -> 0.8139774486 | V5: =IF(SUMIF($K$15:$K$193,SaisonDeb,$G$15:$G$193)+SUMIF($K$15:$K$193,SaisonFin,$G$15:$G$193)>0,(SUMIF($K$15:$K$193,SaisonDeb,$F$15:$F$193)+SUMIF($K$15:$K$193,SaisonFin,$F$15:$F$193))/(SUMIF($K$15:$K$193,SaisonDeb,$G$15:$G$193)+SUMIF($K$15:$K$193,SaisonFin,$G$15:$G$193)),"") -> 0.7604101927
N6: Sets | O6: Gagnés | P6: =SUMIF($K$15:$K$289,SaisonDeb,$D$15:$D$289) -> 4 | Q6: =IF(P$6+P$7>0,P6/(P$6+P$7),"") -> 0.1904761905 | R6: =SUMIF($K$15:$K$289,SaisonFin,$D$15:$D$289) -> 0 | S6: =IF(R$6+R$7>0,R6/(R$6+R$7),"") -> 0 | T6: =SUM($D$15:$D$289) -> 121 | U6: =IF(T$6+T$7>0,T6/(T$6+T$7),"") -> 0.3361111111
O7: Perdus | P7: =SUMIF($K$15:$K$289,SaisonDeb,$E$15:$E$289) -> 17 | Q7: =IF(P$6+P$7>0,P7/(P$6+P$7),"") -> 0.8095238095 | R7: =SUMIF($K$15:$K$289,SaisonFin,$E$15:$E$289) -> 8 | S7: =IF(R$6+R$7>0,R7/(R$6+R$7),"") -> 1 | T7: =SUM($E$15:$E$289) -> 239 | U7: =IF(T$6+T$7>0,T7/(T$6+T$7),"") -> 0.6638888889
A8: Récapitulatif joueurs | O8: Total | P8: =SUM(P6:P7) -> 21 | R8: =SUM(R6:R7) -> 8 | T8: =SUM(T6:T7) -> 360
A15: Joueur | B15: Adversaire | C15: G/P | D15: Sets gagnés | E15: Sets perdus | F15: pts marqués | G15: pts subis | H15: Date | I15: Compétition | J15: Phase | K15: Saison
A16: BARBE Philippe | B16: CLYNCKE Jean-Jacques | C16: P | D16: 0 | E16: 2 | F16: 63 | G16: 120 | H16: 2015-10-09 | I16: National T1 ROUEN | J16: Préqualifs | K16: =IF(H16<>"",IF(MONTH(H16)>MoisRef,YEAR(H16)&"-"&YEAR(H16)+1,YEAR(H16)-1&"-"&YEAR(H16)),"") -> 2015-2016 | P16: =IF($K16=P$1,COUNTIF($C16,"G"),0) -> 0 | R16: =IF($K16=R$1,COUNTIF($C16,"G"),0) -> 0
A17: BARBE Philippe | B17: FACQUET Vincent | C17: P | D17: 0 | E17: 2 | F17: 41 | G17: 120 | H17: 2015-10-09 | I17: National T1 ROUEN | J17: Préqualifs | K17: 2015-2016 | P17: 0 | R17: 0
A18: BARBE Philippe | B18: VICARI Marc | C18: P | D18: 0 | E18: 2 | F18: 64 | G18: 120 | H18: 2015-10-09 | I18: National T1 ROUEN | J18: Préqualifs | K18: 2015-2016 | P18: 0 | R18: 0
A19: BARBE Philippe | B19: SACRE Jean-Yves | C19: P | D19: 0 | E19: 2 | F19: 91 | G19: 120 | H19: 2015-11-13 | I19: National T2 DOUARNENEZ | J19: Préqualifs | K19: 2015-2016 | P19: 0 | R19: 0
A20: BARBE Philippe | B20: GHEVART Jean | C20: P | D20: 0 | E20: 2 | F20: 75 | G20: 120 | H20: 2015-11-13 | I20: National T2 DOUARNENEZ | J20: Préqualifs | K20: 2015-2016 | P20: 0 | R20: 0
A21: BARBE Philippe | B21: TREAL David | C21: P | D21: 1 | E21: 2 | F21: 138 | G21: 164 | H21: 2015-11-13 | I21: National T2 DOUARNENEZ | J21: Préqualifs | K21: 2015-2016 | P21: 0 | R21: 0
A22: BARBE Philippe | B22: GEETS Patrice | C22: P | D22: 0 | E22: 2 | F22: 88 | G22: 120 | H22: 2015-12-11 | I22: National T3 FACHES THUMESNIL - RONCHIN | J22: Préqualifs | K22: 2015-2016 | P22: 0 | R22: 0
A23: BARBE Philippe | B23: BONGIOVANNI Giovanni | C23: P | D23: 0 | E23: 2 | F23: 44 | G23: 120 | H23: 2015-12-11 | I23: National T3 FACHES THUMESNIL - RONCHIN | J23: Préqualifs | K23: 2015-2016 | P23: 0 | R23: 0
A24: BARBE Philippe | B24: ZACCAGNINI Antoine | C24: P | D24: 0 | E24: 2 | F24: 69 | G24: 120 | H24: 2015-12-11 | I24: National T3 FACHES THUMESNIL - RONCHIN | J24: Préqualifs | K24: 2015-2016 | P24: 0 | R24: 0
A25: BARBE Philippe | B25: GOUTHIER Alain | C25: G | D25: 2 | E25: 0 | F25: 120 | G25: 85 | H25: 2015-12-12 | I25: National T3 FACHES THUMESNIL - RONCHIN | J25: Consolante - Qualifications | K25: 2015-2016 | P25: 0 | R25: 0
A26: BARBE Philippe | B26: KERCRET Geneviève | C26: G | D26: 2 | E26: 0 | F26: 120 | G26: 88 | H26: 2015-12-12 | I26: National T3 FACHES THUMESNIL - RONCHIN | J26: Consolante - Qualifications | K26: 2015-2016 | P26: 0 | R26: 0
A27: BARBE Philippe | B27: DOMINGOS TORCATO Costa Freitas | C27: G | D27: 3 | E27: 2 | F27: 220 | G27: 244 | H27: 2015-12-12 | I27: National T3 FACHES THUMESNIL - RONCHIN | J27: Consolante - 1/2 finale | K27: 2015-2016 | P27: 0 | R27: 0
A28: BARBE Philippe | B28: LEBOEUF Sylvain | C28: G | D28: 3 | E28: 0 | F28: 180 | G28: 153 | H28: 2015-12-12 | I28: National T3 FACHES THUMESNIL - RONCHIN | J28: Consolante - Finale | K28: 2015-2016 | P28: 0 | R28: 0
A29: BARBE Philippe | B29: GEETS Patrice | C29: P | D29: 1 | E29: 2 | F29: 151 | G29: 175 | H29: 2016-02-05 | I29: National T4 SCHILTIGHEIM | J29: Préqualifs | K29: 2015-2016 | P29: 0 | R29: 0
A30: BARBE Philippe | B30: LEPAGE Patrick | C30: P | D30: 0 | E30: 2 | F30: 87 | G30: 120 | H30: 2016-02-05 | I30: National T4 SCHILTIGHEIM | J30: Préqualifs | K30: 2015-2016 | P30: 0 | R30: 0
A31: BARBE Philippe | B31: LANUSSE Christophe | C31: P | D31: 0 | E31: 2 | F31: 80 | G31: 120 | H31: 2016-02-05 | I31: National T4 SCHILTIGHEIM | J31: Préqualifs | K31: 2015-2016 | P31: 0 | R31: 0
A32: BARBE Philippe | B32: VIERA MAIA Arlindo | C32: P | D32: 0 | E32: 3 | F32: 117 | G32: 180 | H32: 2016-02-06 | I32: National T4 SCHILTIGHEIM | J32: Qualifs promotion | K32: 2015-2016 | P32: 0 | R32: 0
A33: BARBE Philippe | B33: JOANNES Thomas | C33: P | D33: 1 | E33: 3 | F33: 174 | G33: 233 | H33: 2016-02-06 | I33: National T4 SCHILTIGHEIM | J33: Qualifs promotion | K33: 2015-2016 | P33: 0 | R33: 0
A34: BARBE Philippe | B34: LHEUREUX François | C34: P | D34: 0 | E34: 2 | F34: 89 | G34: 120 | H34: 2016-03-04 | I34: National T5 GRAVELINES | J34: Préqualifs | K34: 2015-2016 | P34: 0 | R34: 0
A35: BARBE Philippe | B35: LACROIX Sabine | C35: P | D35: 1 | E35: 2 | F35: 127 | G35: 164 | H35: 2016-03-04 | I35: National T5 GRAVELINES | J35: Préqualifs | K35: 2015-2016 | P35: 0 | R35: 0
A36: BARBE Philippe | B36: MAILLE Bernard | C36: P | D36: 0 | E36: 2 | F36: 76 | G36: 120 | H36: 2016-03-04 | I36: National T5 GRAVELINES | J36: Préqualifs | K36: 2015-2016 | P36: 0 | R36: 0
A37: BARBE Philippe | B37: CLYNCKE Jean-Jacques | C37: P | D37: 0 | E37: 2 | F37: 63 | G37: 120 | H37: 2016-09-30 | I37: National T1 SAINT RAPHAEL | J37: Préqualifs | K37: 2016-2017 | P37: 0 | R37: 0
A38: BARBE Philippe | B38: DUCHATEAU Jean-Pierre | C38: G | D38: 2 | E38: 0 | F38: 120 | G38: 101 | H38: 2016-09-30 | I38: National T1 SAINT RAPHAEL | J38: Préqualifs | K38: 2016-2017 | P38: 0 | R38: 0
A39: BARBE Philippe | B39: REBELO Joaquim | C39: P | D39: 1 | E39: 2 | F39: 140 | G39: 175 | H39: 2016-09-30 | I39: National T1 SAINT RAPHAEL | J39: Préqualifs | K39: 2016-2017 | P39: 0 | R39: 0
A40: BARBE Philippe | B40: GANGLOFF Jean-Luc | C40: G | D40: 3 | E40: 0 | F40: 180 | G40: 155 | H40: 2016-10-01 | I40: National T1 SAINT RAPHAEL | J40: Qualifs N1 | K40: 2016-2017 | P40: 0 | R40: 0
A41: BARBE Philippe | B41: BONGIOVANNI Giovanni | C41: P | D41: 2 | E41: 3 | F41: 239 | G41: 277 | H41: 2016-10-01 | I41: National T1 SAINT RAPHAEL | J41: Qualifs N1 | K41: 2016-2017 | P41: 0 | R41: 0
A42: BARBE Philippe | B42: HERREBRECHT Emerick | C42: P | D42: 1 | E42: 3 | F42: 167 | G42: 236 | H42: 2016-10-01 | I42: National T1 SAINT RAPHAEL | J42: Qualifs N1 | K42: 2016-2017 | P42: 0 | R42: 0
A43: BARBE Philippe | B43: LACROIX Sabine | C43: G | D43: 2 | E43: 0 | F43: 120 | G43: 86 | H43: 2016-11-04 | I43: National T2 GRAVELINES | J43: Préqualifs | K43: 2016-2017 | P43: 0 | R43: 0
A44: BARBE Philippe | B44: TREAL David | C44: G | D44: 2 | E44: 1 | F44: 139 | G44: 150 | H44: 2016-11-04 | I44: National T2 GRAVELINES | J44: Préqualifs | K44: 2016-2017 | P44: 0 | R44: 0
A45: BARBE Philippe | B45: CIRRI Alessandro | C45: P | D45: 1 | E45: 2 | F45: 121 | G45: 177 | H45: 2016-11-04 | I45: National T2 GRAVELINES | J45: Préqualifs | K45: 2016-2017 | P45: 0 | R45: 0
A46: BARBE Philippe | B46: TREAL Jean | C46: P | D46: 2 | E46: 3 | F46: 219 | G46: 245 | H46: 2016-11-05 | I46: National T2 GRAVELINES | J46: Qualifs N1 | K46: 2016-2017 | P46: 0 | R46: 0
A47: BARBE Philippe | B47: BAYON Pascal | C47: P | D47: 0 | E47: 3 | F47: 136 | G47: 180 | H47: 2016-11-05 | I47: National T2 GRAVELINES | J47: Qualifs N1 | K47: 2016-2017 | P47: 0 | R47: 0
A48: BARBE Philippe | B48: CHARLES Dominique | C48: P | D48: 1 | E48: 2 | F48: 120 | G48: 160 | H48: 2016-12-09 | I48: National T3 CHATILLON | J48: Préqualifs | K48: =IF(H48<>"",IF(MONTH(H48)>MoisRef,YEAR(H48)&"-"&YEAR(H48)+1,YEAR(H48)-1&"-"&YEAR(H48)),"") -> 2016-2017 | P48: 0 | R48: 0
A49: BARBE Philippe | B49: LEGRAND Guy | C49: P | D49: 0 | E49: 2 | F49: 42 | G49: 120 | H49: 2016-12-09 | I49: National T3 CHATILLON | J49: Préqualifs | K49: 2016-2017 | P49: 0 | R49: 0
A50: BARBE Philippe | B50: FELLAH Bachir | C50: P | D50: 0 | E50: 2 | F50: 76 | G50: 120 | H50: 2016-12-09 | I50: National T3 CHATILLON | J50: Préqualifs | K50: 2016-2017 | P50: 0 | R50: 0
A51: BARBE Philippe | B51: LEBOEUF Sylvain | C51: P | D51: 0 | E51: 2 | F51: 74 | G51: 120 | H51: 2017-02-03 | I51: National T4 SCHILTIGHEIM | J51: Préqualifs | K51: 2016-2017 | P51: 0 | R51: 0
A52: BARBE Philippe | B52: ZILLIG Pierre | C52: P | D52: 1 | E52: 2 | F52: 132 | G52: 133 | H52: 2017-02-03 | I52: National T4 SCHILTIGHEIM | J52: Préqualifs | K52: 2016-2017 | P52: 0 | R52: 0
A53: BARBE Philippe | B53: TREAL David | C53: P | D53: 1 | E53: 2 | F53: 121 | G53: 178 | H53: 2017-02-03 | I53: National T4 SCHILTIGHEIM | J53: Préqualifs | K53: 2016-2017 | P53: 0 | R53: 0
A54: BARBE Philippe | B54: WALLART Jean-Charles | C54: G | D54: 3 | E54: 1 | F54: 222 | G54: 219 | H54: 2017-02-04 | I54: National T4 SCHILTIGHEIM | J54: Qualifs N1 | K54: 2016-2017 | P54: 0 | R54: 0
A55: BARBE Philippe | B55: KERCRET Geneviève | C55: P | D55: 2 | E55: 3 | F55: 250 | G55: 287 | H55: 2017-02-04 | I55: National T4 SCHILTIGHEIM | J55: Qualifs N1 | K55: 2016-2017 | P55: 0 | R55: 0
A56: BARBE Philippe | B56: DAVOINE Bruno | C56: P | D56: 1 | E56: 3 | F56: 174 | G56: 232 | H56: 2017-02-04 | I56: National T4 SCHILTIGHEIM | J56: Qualifs N1 | K56: 2016-2017 | P56: 0 | R56: 0
A57: BARBE Philippe | B57: GHEVART Jean | C57: G | D57: 2 | E57: 1 | F57: 179 | G57: 151 | H57: 2017-03-03 | I57: National T5 CAUDAN | J57: Préqualifs | K57: 2016-2017 | P57: 0 | R57: 0
A58: BARBE Philippe | B58: MICHELOTTI Francesco | C58: P | D58: 0 | E58: 2 | F58: 68 | G58: 120 | H58: 2017-03-03 | I58: National T5 CAUDAN | J58: Préqualifs | K58: 2016-2017 | P58: 0 | R58: 0
A59: BARBE Philippe | B59: MALLARD Pierrick | C59: P | D59: 0 | E59: 2 | F59: 94 | G59: 120 | H59: 2017-03-03 | I59: National T5 CAUDAN | J59: Préqualifs | K59: 2016-2017 | P59: 0 | R59: 0
A60: BARBE Philippe | B60: LANUSSE Christophe | C60: P | D60: 0 | E60: 3 | F60: 103 | G60: 180 | H60: 2017-03-04 | I60: National T5 CAUDAN | J60: Qualifs N1 | K60: 2016-2017 | P60: 0 | R60: 0
A61: BARBE Philippe | B61: BOUVIER Philippe | C61: P | D61: 0 | E61: 3 | F61: 143 | G61: 180 | H61: 2017-03-04 | I61: National T5 CAUDAN | J61: Qualifs N1 | K61: 2016-2017 | P61: 0 | R61: 0
A62: BARBE Philippe | B62: DUCHATEAU Jean-Pierre | C62: P | D62: 0 | E62: 1 | F62: 96 | G62: 100 | H62: 2016-10-22 | I62: 5Q CD60 N1 - T 1 -CREPY | J62: Tour 1 | K62: 2016-2017 | P62: 0 | R62: 0
A63: BARBE Philippe | B63: MURIOT Jean-Pierre | C63: G | D63: 1 | E63: 0 | F63: 100 | G63: 72 | H63: 2016-10-22 | I63: 5Q CD60 N1 - T 1 -CREPY | J63: Tour 2 | K63: 2016-2017 | P63: 0 | R63: 0
A64: BARBE Philippe | B64: BOURGOGNE Claude | C64: G | D64: 1 | E64: 0 | F64: 100 | G64: 93 | H64: 2016-10-22 | I64: 5Q CD60 N1 - T 1 -CREPY | J64: Tour 3 | K64: 2016-2017 | P64: 0 | R64: 0
A65: BARBE Philippe | B65: CHARLES Dominique | C65: G | D65: 1 | E65: 0 | F65: 100 | G65: 87 | H65: 2016-10-22 | I65: 5Q CD60 N1 - T 1 -CREPY | J65: Tour 4 | K65: 2016-2017 | P65: 0 | R65: 0
A66: BARBE Philippe | B66: LUIGGI Paul | C66: G | D66: 1 | E66: 0 | F66: 100 | G66: 79 | H66: 2016-11-26 | I66: 5Q CD60 N1 - T 2 - SENLIS | J66: Tour 1 | K66: 2016-2017 | P66: 0 | R66: 0
A67: BARBE Philippe | B67: DUCHATEAU Jean-Pierre | C67: G | D67: 1 | E67: 0 | F67: 100 | G67: 92 | H67: 2016-11-26 | I67: 5Q CD60 N1 - T 2 - SENLIS | J67: Tour 2 | K67: 2016-2017 | P67: 0 | R67: 0
A68: BARBE Philippe | B68: PRUDHOMME Laurent | C68: P | D68: 0 | E68: 1 | F68: 77 | G68: 100 | H68: 2016-11-26 | I68: 5Q CD60 N1 - T 2 - SENLIS | J68: Tour 3 | K68: 2016-2017 | P68: 0 | R68: 0
A69: BARBE Philippe | B69: SAUVE Olivier | C69: P | D69: 0 | E69: 1 | F69: 67 | G69: 100 | H69: 2016-11-26 | I69: 5Q CD60 N1 - T 2 - SENLIS | J69: Tour 4 | K69: 2016-2017 | P69: 0 | R69: 0
A70: BARBE Philippe | B70: CHARLES Dominique | C70: P | D70: 0 | E70: 1 | F70: 92 | G70: 100 | H70: 2017-02-25 | I70: 5Q CD60 N1 - T 2 - SENLIS | J70: Tour 1 | K70: 2016-2017 | P70: 0 | R70: 0
A71: BARBE Philippe | B71: SAUVE Olivier | C71: G | D71: 1 | E71: 0 | F71: 100 | G71: 57 | H71: 2017-02-25 | I71: 5Q CD60 N1 - T 2 - SENLIS | J71: Tour 2 | K71: 2016-2017 | P71: 0 | R71: 0
A72: BARBE Philippe | B72: DESCLAIR Guy | C72: G | D72: 1 | E72: 0 | F72: 100 | G72: 68 | H72: 2017-02-25 | I72: 5Q CD60 N1 - T 2 - SENLIS | J72: Tour 3 | K72: 2016-2017 | P72: 0 | R72: 0
A73: BARBE Philippe | B73: NAHIRNYJ Nicolas | C73: G | D73: 1 | E73: 0 | F73: 100 | G73: 78 | H73: 2017-02-25 | I73: 5Q CD60 N1 - T 2 - SENLIS | J73: Tour 4 | K73: 2016-2017 | P73: 0 | R73: 0
A74: BARBE Philippe | B74: CHENAL Gérard | C74: G | D74: 1 | E74: 0 | F74: 100 | G74: 80 | H74: 2017-01-21 | I74: 5Q CD60 N1 - T 3 - MERU | J74: Tour 1 | K74: 2016-2017 | P74: 0 | R74: 0
A75: BARBE Philippe | B75: LORGE Thierry | C75: P | D75: 0 | E75: 1 | F75: 69 | G75: 100 | H75: 2017-01-21 | I75: 5Q CD60 N1 - T 3 - MERU | J75: Tour 2 | K75: 2016-2017 | P75: 0 | R75: 0
A76: BARBE Philippe | B76: BOURGOGNE Claude | C76: G | D76: 1 | E76: 0 | F76: 100 | G76: =F75 -> 69 | H76: 2017-01-21 | I76: 5Q CD60 N1 - T 3 - MERU | J76: Tour 3 | K76: 2016-2017 | P76: 0 | R76: 0
A77: BARBE Philippe | B77: CHARLES Dominique | C77: P | D77: 0 | E77: 1 | F77: 68 | G77: 100 | H77: 2017-01-21 | I77: 5Q CD60 N1 - T 3 - MERU | J77: Tour 4 | K77: 2016-2017 | P77: 0 | R77: 0
A78: BARBE Philippe | B78: CHARLES Dominique | C78: G | D78: 2 | E78: 0 | F78: 120 | G78: 111 | H78: 2017-09-22 | I78: National T1 ANNOEULLIN | J78: Préqualifs | K78: 2017-2018 | P78: 0 | R78: 0
A79: BARBE Philippe | B79: DAVOINE Bruno | C79: P | D79: 1 | E79: 2 | F79: 107 | G79: 172 | H79: 2017-09-22 | I79: National T1 ANNOEULLIN | J79: Préqualifs | K79: 2017-2018 | P79: 0 | R79: 0
A80: BARBE Philippe | B80: ADRIANI Emmanuel | C80: G | D80: 2 | E80: 1 | F80: 159 | G80: 135 | H80: 2017-09-22 | I80: National T1 ANNOEULLIN | J80: Préqualifs | K80: 2017-2018 | P80: =IF($K80=P$1,COUNTIF($C80,"G"),0) -> 0 | R80: =IF($K80=R$1,COUNTIF($C80,"G"),0) -> 0
A81: BARBE Philippe | B81: GANGLOFF Jean-Luc | C81: P | D81: 1 | E81: 3 | F81: 142 | G81: 226 | H81: 2017-09-23 | I81: National T1 ANNOEULLIN | J81: Qualifs N1 | K81: 2017-2018 | P81: 0 | R81: 0
A82: BARBE Philippe | B82: VASSEUR Cédric | C82: P | D82: 1 | E82: 3 | F82: 149 | G82: 209 | H82: 2017-09-23 | I82: National T1 ANNOEULLIN | J82: Qualifs N1 | K82: 2017-2018 | P82: 0 | R82: 0
A83: BARBE Philippe | B83: LECROART Serge | C83: G | D83: 2 | E83: 1 | F83: 160 | G83: 152 | H83: 2017-12-08 | I83: National T2 GRAVELINES | J83: Préqualifs | K83: 2017-2018 | P83: 0 | R83: 0
A84: BARBE Philippe | B84: GUILLEMANT David | C84: P | D84: 0 | E84: 2 | F84: 43 | G84: 120 | H84: 2017-12-08 | I84: National T2 GRAVELINES | J84: Préqualifs | K84: 2017-2018 | P84: 0 | R84: 0
A85: BARBE Philippe | B85: 0 | C85: G | D85: 2 | E85: 0 | F85: 120 | G85: 106 | H85: 2017-12-08 | I85: National T2 GRAVELINES | J85: Préqualifs | K85: 2017-2018 | P85: 0 | R85: 0
A86: BARBE Philippe | B86: CASALE Alberto | C86: P | D86: 0 | E86: 3 | F86: 113 | G86: 180 | H86: 2017-12-09 | I86: National T2 GRAVELINES | J86: Qualifs N1 | K86: 2017-2018 | P86: 0 | R86: 0
A87: BARBE Philippe | B87: VASSEUR Gérald | C87: P | D87: 1 | E87: 3 | F87: 176 | G87: 231 | H87: 2017-12-09 | I87: National T2 GRAVELINES | J87: Qualifs N1 | K87: 2017-2018 | P87: 0 | R87: 0
A88: BARBE Philippe | B88: BONNEAU Benoît | C88: P | D88: 2 | E88: 3 | F88: 252 | G88: 262 | H88: 2018-01-27 | I88: National T3 ROUEN | J88: Qualifs N1 | K88: 2017-2018 | P88: 0 | R88: 0
A89: BARBE Philippe | B89: CASALE Alberto | C89: G | D89: 2 | E89: 1 | F89: 164 | G89: 150 | H89: 2018-01-26 | I89: National T3 ROUEN | J89: Préqualifs | K89: 2017-2018 | P89: 0 | R89: 0
A90: BARBE Philippe | B90: GOUSSETIS Georges | C90: G | D90: 2 | E90: 0 | F90: 120 | G90: 65 | H90: 2018-01-26 | I90: National T3 ROUEN | J90: Préqualifs | K90: 2017-2018 | P90: 0 | R90: 0
A91: BARBE Philippe | B91: ROUBY Guillaume | C91: P | D91: 0 | E91: 2 | F91: 43 | G91: 120 | H91: 2018-01-26 | I91: National T3 ROUEN | J91: Préqualifs | K91: 2017-2018 | P91: 0 | R91: 0
A92: BARBE Philippe | B92: SACRE Jean-Yves | C92: P | D92: 0 | E92: 3 | F92: 139 | G92: 180 | H92: 2018-01-27 | I92: National T3 ROUEN | J92: Qualifs N1 | K92: 2017-2018 | P92: 0 | R92: 0
A93: BARBE Philippe | B93: BOURGOGNE Claude | C93: G | D93: 1 | E93: 0 | F93: 100 | G93: 19 | H93: 2017-09-30 | I93: T 1 OISE - Consolante - CREPY | J93: Qualifications | K93: 2017-2018 | P93: 0 | R93: 0
A94: BARBE Philippe | B94: MAUGER Jean-Paul | C94: G | D94: 1 | E94: 0 | F94: 100 | G94: 96 | H94: 2017-09-30 | I94: T 1 OISE - Consolante - CREPY | J94: Qualifications | K94: 2017-2018 | P94: 0 | R94: 0
A95: BARBE Philippe | B95: CHARLES Dominique | C95: P | D95: 0 | E95: 2 | F95: 53 | G95: 120 | H95: 2017-09-30 | I95: T 1 OISE - CREPY | J95: Qualifications | K95: 2017-2018 | P95: 0 | R95: 0
A96: BARBE Philippe | B96: STEINMANN Sébastien | C96: P | D96: 1 | E96: 2 | F96: 123 | G96: 152 | H96: 2017-09-30 | I96: T 1 OISE - CREPY | J96: Qualifications | K96: 2017-2018 | P96: 0 | R96: 0
A97: BARBE Philippe | B97: ALEXANDRE Michel | C97: P | D97: 0 | E97: 2 | F97: 96 | G97: 120 | H97: 2017-10-21 | I97: T 2 OISE - SENLIS | J97: Qualifications | K97: 2017-2018 | P97: 0 | R97: 0
A98: BARBE Philippe | B98: MAUGER Jean-Paul | C98: G | D98: 2 | E98: 0 | F98: 120 | G98: 93 | H98: 2017-10-21 | I98: T 2 OISE - SENLIS | J98: Qualifications | K98: 2017-2018 | P98: 0 | R98: 0
A99: BARBE Philippe | B99: STEINMANN Sébastien | C99: P | D99: 1 | E99: 2 | F99: 135 | G99: 166 | H99: 2017-10-21 | I99: T 2 OISE - SENLIS | J99: Qualifications | K99: 2017-2018 | P99: 0 | R99: 0
A100: BARBE Philippe | B100: STEINMANN Sébastien | C100: G | D100: 1 | E100: 0 | F100: 100 | G100: 70 | H100: 2017-10-21 | I100: T 2 OISE Consolante - SENLIS | J100: Qualifications | K100: 2017-2018 | P100: 0 | R100: 0
A101: BARBE Philippe | B101: BONNEAU Benoît | C101: G | D101: 2 | E101: 1 | F101: 174 | G101: 151 | H101: 2017-11-25 | I101: T 3 OISE - MERU | J101: Qualifications | K101: 2017-2018 | P101: 0 | R101: 0
A102: BARBE Philippe | B102: LORGE Thierry | C102: P | D102: 1 | E102: 2 | F102: 154 | G102: 153 | H102: 2017-11-25 | I102: T 3 OISE - MERU | J102: 1/4 Finale | K102: 2017-2018 | P102: 0 | R102: 0
A103: BARBE Philippe | B103: MAUGER Jean-Paul | C103: G | D103: 2 | E103: 0 | F103: 120 | G103: 59 | H103: 2017-11-25 | I103: T 3 OISE - MERU | J103: Qualifications | K103: 2017-2018 | P103: 0 | R103: 0
A104: BARBE Philippe | B104: NAHIRNYJ Nicolas | C104: P | D104: 0 | E104: 1 | F104: 95 | G104: 100 | H104: 2018-01-06 | I104: T 4 OISE - CONSOLANTE - VILLERS | J104: Qualifications | K104: 2017-2018 | P104: 0 | R104: 0
A105: BARBE Philippe | B105: STEINMANN Sébastien | C105: G | D105: 1 | E105: 0 | F105: 100 | G105: 59 | H105: 2018-01-06 | I105: T 4 OISE - CONSOLANTE - VILLERS | J105: Qualifications | K105: 2017-2018 | P105: 0 | R105: 0
A106: BARBE Philippe | B106: BONNEAU Benoît | C106: P | D106: 0 | E106: 2 | F106: 78 | G106: 120 | H106: 2018-01-06 | I106: T 4 OISE - VILLERS | J106: Qualifications | K106: 2017-2018 | P106: 0 | R106: 0
A107: BARBE Philippe | B107: CHARLES Dominique | C107: P | D107: 0 | E107: 2 | F107: 33.1 | G107: 120 | H107: 2018-01-06 | I107: T 4 OISE - VILLERS | J107: Qualifications | K107: 2017-2018 | P107: 0 | R107: 0
A108: BARBE Philippe | B108: NAHIRNYJ Nicolas | C108: G | D108: 2 | E108: 0 | F108: 120 | G108: 99 | H108: 2018-01-06 | I108: T 4 OISE - VILLERS | J108: Qualifications | K108: 2017-2018 | P108: 0 | R108: 0
A109: BARBE Philippe | B109: DI LEO Francois | C109: P | D109: 1 | E109: 2 | F109: 95 | G109: 173 | H109: 2018-03-02 | I109: National T4 LAXOU | J109: Préqualifs | K109: 2017-2018 | P109: 0 | R109: 0
A110: BARBE Philippe | B110: GUERIN Xavier | C110: P | D110: 0 | E110: 2 | F110: 54 | G110: 120 | H110: 2018-03-02 | I110: National T4 LAXOU | J110: Préqualifs | K110: 2017-2018 | P110: 0 | R110: 0
A111: BARBE Philippe | B111: 0 | C111: G | D111: 2 | E111: 0 | F111: 120 | G111: 114 | H111: 2018-03-02 | I111: National T4 LAXOU | J111: Préqualifs | K111: 2017-2018 | P111: 0 | R111: 0
A112: BARBE Philippe | B112: BONNEAU Benoît | C112: P | D112: 0 | E112: 3 | F112: 87 | G112: 180 | H112: 2018-03-03 | I112: National T4 LAXOU | J112: Qualifs N1 | K112: 2017-2018 | P112: 0 | R112: 0
A113: BARBE Philippe | B113: LORGE Thierry | C113: P | D113: 2 | E113: 3 | F113: 204 | G113: 277 | H113: 2018-03-03 | I113: National T4 LAXOU | J113: Qualifs N1 | K113: 2017-2018 | P113: 0 | R113: 0
A114: BARBE Philippe | B114: VAROQUEAUX Julien | C114: P | D114: 1 | E114: 2 | F114: 126 | G114: 160 | H114: 2018-09-29 | I114: 5 Q - T 1 OISE - 2018-2019 - N 1 - TOURNOI PRINCIPAL - CREPY | J114: Qualifications | K114: 2018-2019 | P114: 0 | R114: 0
A115: BARBE Philippe | B115: VAROQUEAUX Julien | C115: P | D115: 0 | E115: 2 | F115: 35 | G115: 120 | H115: 2018-09-29 | I115: 5 Q - T 1 OISE - 2018-2019 - N 1 - TOURNOI PRINCIPAL - CREPY | J115: Qualifications | K115: 2018-2019 | P115: 0 | R115: 0
A116: BARBE Philippe | B116: BONNEAU Benoit | C116: G | D116: 2 | E116: 0 | F116: 120 | G116: 98 | H116: 2018-10-27 | I116: 5 Q - T 2 OISE - 2018-2019 - N 1 - TOURNOI PRINCIPAL - VILLERS | J116: Qualifications | K116: 2018-2019 | P116: 0 | R116: 0
A117: BARBE Philippe | B117: FAURE Stéphane | C117: P | D117: 0 | E117: 2 | F117: 109 | G117: 120 | H117: 2018-10-27 | I117: 5 Q - T 2 OISE - 2018-2019 - N 1 - TOURNOI PRINCIPAL - VILLERS | J117: 1/2 Finale | K117: 2018-2019 | P117: 0 | R117: 0
A118: BARBE Philippe | B118: MAUGER Jean-Paul | C118: G | D118: 2 | E118: 0 | F118: 120 | G118: 69 | H118: 2018-10-27 | I118: 5 Q - T 2 OISE - 2018-2019 - N 1 - TOURNOI PRINCIPAL - VILLERS | J118: Qualifications | K118: 2018-2019 | P118: 0 | R118: 0
A119: BARBE Philippe | B119: CHARLES Dominique | C119: P | D119: 1 | E119: 2 | F119: 134 | G119: 171 | H119: 2018-11-24 | I119: 5 Q - T 3 OISE - 2018-2019 - N 1 - TOURNOI PRINCIPAL - MERU | J119: Qualifications | K119: 2018-2019 | P119: 0 | R119: 0
A120: BARBE Philippe | B120: FAURE Stéphane | C120: G | D120: 2 | E120: 1 | F120: 161 | G120: 128 | H120: 2018-11-24 | I120: 5 Q - T 3 OISE - 2018-2019 - N 1 - TOURNOI PRINCIPAL - MERU | J120: Qualifications | K120: 2018-2019 | P120: 0 | R120: 0
A121: BARBE Philippe | B121: BONNEAU Benoit | C121: P | D121: 1 | E121: 2 | F121: 128 | G121: 141 | H121: 2019-01-19 | I121: 5 Q - T 4 OISE - 2018-2019 - N 1 - TOURNOI PRINCIPAL - CREVECOEUR | J121: Qualifications | K121: 2018-2019 | P121: 0 | R121: 0
A122: BARBE Philippe | B122: BONNEAU Benoit | C122: P | D122: 0 | E122: 2 | F122: 95 | G122: 120 | H122: 2019-01-19 | I122: 5 Q - T 4 OISE - 2018-2019 - N 1 - TOURNOI PRINCIPAL - CREVECOEUR | J122: Qualifications | K122: 2018-2019 | P122: 0 | R122: 0
A123: BARBE Philippe | B123: AUDNEL Jean-Paul | C123: G | D123: 2 | E123: 0 | F123: 120 | G123: 58 | H123: 43378 | I123: TN1 - PRE QUALIFICATIONS - ST RAPHAEL | J123: Qualifications | K123: 2018-2019 | P123: 0 | R123: 0
A124: BARBE Philippe | B124: FOURRE Cedric | C124: P | D124: 0 | E124: 2 | F124: 35 | G124: 120 | H124: 43378 | I124: TN1 - PRE QUALIFICATIONS - ST RAPHAEL | J124: Qualifications | K124: 2018-2019 | P124: 0 | R124: 0
A125: BARBE Philippe | B125: LORGE Thierry | C125: P | D125: 1 | E125: 2 | F125: 132 | G125: 158 | H125: 43378 | I125: TN1 - PRE QUALIFICATIONS - ST RAPHAEL | J125: Qualifications | K125: 2018-2019 | P125: 0 | R125: 0
A126: BARBE Philippe | B126: DOMINGO Xavier | C126: P | D126: 1 | E126: 3 | F126: 151 | G126: 221 | H126: 43379 | I126: TN1 - N1 - ST RAPHAEL | J126: Qualifications | K126: 2018-2019 | P126: 0 | R126: 0
A127: BARBE Philippe | B127: SACRE Jean-Yves | C127: P | D127: 0 | E127: 3 | F127: 107 | G127: 180 | H127: 43379 | I127: TN1 - N1 - ST RAPHAEL | J127: Qualifications | K127: 2018-2019 | P127: 0 | R127: 0
A128: BARBE Philippe | B128: BONGIOVANNI Giovanni | C128: P | D128: 0 | E128: 2 | F128: 50 | G128: 120 | H128: 43406 | I128: TN2 - ST MAUR - PRE QUALIFICATIONS | J128: Qualifications | K128: 2018-2019 | P128: 0 | R128: 0
A129: BARBE Philippe | B129: EDELIN Louis | C129: P | D129: 0 | E129: 2 | F129: 61 | G129: 120 | H129: 43406 | I129: TN2 - ST MAUR - PRE QUALIFICATIONS | J129: Qualifications | K129: 2018-2019 | P129: 0 | R129: 0
A130: BARBE Philippe | B130: PAPIN Jean Christophe | C130: P | D130: 0 | E130: 2 | F130: 92 | G130: 120 | H130: 43406 | I130: TN2 - ST MAUR - PRE QUALIFICATIONS | J130: Qualifications | K130: 2018-2019 | P130: 0 | R130: 0
A131: BARBE Philippe | B131: ADRIANI Emmanuel | C131: P | D131: 0 | E131: 2 | F131: 63 | G131: 120 | H131: 43434 | I131: TN3 - Qualifications - ROMANS SUR SISERE | J131: Qualifications | K131: 2018-2019 | P131: 0 | R131: 0
A132: BARBE Philippe | B132: GOUTALOY Sylvain | C132: P | D132: 1 | E132: 2 | F132: 127 | G132: 152 | H132: 43434 | I132: TN3 - Qualifications - ROMANS SUR SISERE | J132: Qualifications | K132: 2018-2019 | P132: 0 | R132: 0
A133: BARBE Philippe | B133: ROUBY Guillaume | C133: P | D133: 0 | E133: 2 | F133: 42 | G133: 120 | H133: 43434 | I133: TN3 - Qualifications - ROMANS SUR SISERE | J133: Qualifications | K133: 2018-2019 | P133: 0 | R133: 0
A134: BARBE Philippe | B134: SAUVAGE DOMINIQUE | C134: P | D134: 0 | E134: 2 | F134: 81 | G134: 120 | H134: 43497 | I134: National T4 ST QUENTIN | J134: Préqualifs | K134: 2018-2019 | P134: 0 | R134: 0
A135: BARBE Philippe | B135: LEPAGE PATRICK | C135: G | D135: 2 | E135: 1 | F135: 157 | G135: 140 | H135: 43497 | I135: National T4 ST QUENTIN | J135: Préqualifs | K135: 2018-2019 | P135: 0 | R135: 0
A136: BARBE Philippe | B136: SAINT GEORGES CLAUDE | C136: P | D136: 1 | E136: 2 | F136: 132 | G136: 168 | H136: 43497 | I136: National T4 ST QUENTIN | J136: Préqualifs | K136: 2018-2019 | P136: 0 | R136: 0
A137: BARBE Philippe | B137: AZARA Salvatore | C137: P | D137: 0 | E137: 2 | F137: 61 | G137: 120 | H137: 43534 | I137: TN5 - GRAVELINES - PRE QUALIFICATIONS | J137: Qualifications | K137: 2018-2019 | P137: 0 | R137: 0
A138: BARBE Philippe | B138: POTHIER Christophe | C138: P | D138: 0 | E138: 2 | F138: 43 | G138: 120 | H138: 43534 | I138: TN5 - GRAVELINES - PRE QUALIFICATIONS | J138: Qualifications | K138: 2018-2019 | P138: 0 | R138: 0
A139: BARBE Philippe | B139: VERHAGHE Dominique | C139: P | D139: 0 | E139: 2 | F139: 45 | G139: 120 | H139: 43534 | I139: TN5 - GRAVELINES - PRE QUALIFICATIONS | J139: Qualifications | K139: 2018-2019 | P139: 0 | R139: 0
A140: BARBE Philippe | B140: BONNEAU Benoît | C140: P | D140: 1 | E140: 2 | F140: 134 | G140: 153 | H140: 2019-10-19 | I140: CD60 N1 - T1 - Tour Principal - BEAUVAIS | J140: Qualifications | K140: 2019-2020 | P140: 0 | R140: 0
A141: BARBE Philippe | B141: CHARLES Dominique | C141: G | D141: 2 | E141: 0 | F141: 120 | G141: 78 | H141: 2019-10-19 | I141: CD60 N1 - T1 - Tour Principal - BEAUVAIS | J141: Qualifications | K141: 2019-2020 | P141: 0 | R141: 0
A142: BARBE Philippe | B142: FAURE Stéphane | C142: P | D142: 0 | E142: 2 | F142: 46 | G142: 120 | H142: 2019-10-19 | I142: CD60 N1 - T1 - Tour Principal - BEAUVAIS | J142: Finale | K142: 2019-2020 | P142: 0 | R142: 0
A143: BARBE Philippe | B143: NAHIRNYJ Nicolas | C143: G | D143: 2 | E143: 1 | F143: 145 | G143: 167 | H143: 2019-10-19 | I143: CD60 N1 - T1 - Tour Principal - BEAUVAIS | J143: 1/2 Finale | K143: 2019-2020 | P143: 0 | R143: 0
A144: BARBE Philippe | B144: CHARLES Dominique | C144: P | D144: 0 | E144: 1 | F144: 67 | G144: 100 | H144: 2020-01-11 | I144: CD60 N1 - T3 - Tour Principal - CREPY | J144: Qualifications | K144: 2019-2020 | P144: 0 | R144: 0
A145: BARBE Philippe | B145: FAURE Stéphane | C145: P | D145: 0 | E145: 1 | F145: 76 | G145: 100 | H145: 2020-01-11 | I145: CD60 N1 - T3 - Tour Principal - CREPY | J145: Qualifications | K145: 2019-2020 | P145: 0 | R145: 0
A146: BARBE Philippe | B146: VAROQUEAUX Julien | C146: P | D146: 0 | E146: 1 | F146: 34 | G146: 100 | H146: 2020-02-15 | I146: CD60 N1 - T 4 - Tour Principal - SENLIS | J146: Qualifications | K146: 2019-2020 | P146: 0 | R146: 0
A147: BARBE Philippe | B147: VAROQUEAUX Julien | C147: P | D147: 0 | E147: 1 | F147: 32 | G147: 100 | H147: 2020-02-15 | I147: CD60 N1 - T 4 - Tour Principal - SENLIS | J147: Qualifications | K147: 2019-2020 | P147: 0 | R147: 0
A148: BARBE Philippe | B148: WALLART JEAN CHARLES | C148: G | D148: 1 | E148: 0 | F148: 100 | G148: 95 | H148: 2020-01-31 | I148: TN3 SCHILTIGHEIM | J148: Préqualifications | K148: 2019-2020 | P148: 0 | R148: 0
A149: BARBE Philippe | B149: SAILLANT PHILIPPE | C149: P | D149: 0 | E149: 1 | F149: 71 | G149: 100 | H149: 2020-01-31 | I149: TN3 SCHILTIGHEIM | J149: Préqualifications | K149: 2019-2020 | P149: 0 | R149: 0
A150: BARBE Philippe | B150: ADRIANI EMMANUEL | C150: P | D150: 0 | E150: 1 | F150: 65 | G150: 100 | H150: 2020-01-31 | I150: TN3 SCHILTIGHEIM | J150: Préqualifications | K150: 2019-2020 | P150: 0 | R150: 0
A151: BARBE Philippe | B151: CHARLES DOMINIQUE | C151: G | D151: 1 | E151: 0 | F151: 100 | G151: 62 | H151: 2020-02-01 | I151: TN3 SCHILTIGHEIM | J151: 1/4 F Tournoi de classement | K151: 2019-2020 | P151: 0 | R151: 0
A152: BARBE Philippe | B152: HUGEL FERNAND | C152: G | D152: 1 | E152: 0 | F152: 100 | G152: 49 | H152: 2020-02-02 | I152: TN3 SCHILTIGHEIM | J152: 1/2 F Tournoi de classement | K152: 2019-2020 | P152: 0 | R152: 0
A153: BARBE Philippe | B153: BOUZEMANE KAMEL | C153: P | D153: 0 | E153: 1 | F153: 59 | G153: 100 | H153: 2020-02-02 | I153: TN3 SCHILTIGHEIM | J153: Finale Tournoi de classement | K153: 2019-2020 | P153: 0 | R153: 0
A154: BARBE Philippe | B154: ZACCAGNINI ANTOINE | C154: P | D154: 0 | E154: 1 | F154: 56 | G154: 100 | H154: 2019-11-30 | I154: TN2 ROUEN | J154: Préqualifications | K154: 2019-2020 | P154: 0 | R154: 0
A155: BARBE Philippe | B155: SACRE JEAN YVES | C155: P | D155: 0 | E155: 1 | F155: 56 | G155: 100 | H155: 2019-11-30 | I155: TN2 ROUEN | J155: Préqualifications | K155: 2019-2020 | P155: 0 | R155: 0
A156: BARBE Philippe | B156: VIERA MAIA ARLINDO | C156: G | D156: 1 | E156: 0 | F156: 100 | G156: 93 | H156: 2019-11-30 | I156: TN2 ROUEN | J156: Préqualifications | K156: 2019-2020 | P156: 0 | R156: 0
A157: BARBE Philippe | B157: RUBLINE SAMUEL | C157: P | D157: 0 | E157: 1 | F157: 80 | G157: 100 | H157: 2019-12-01 | I157: TN2 ROUEN | J157: 1/8è Tournoi de classement | K157: 2019-2020 | P157: 0 | R157: 0
A158: BARBE Philippe | B158: MAILLE BERNARD | C158: P | D158: 0 | E158: 1 | F158: 91 | G158: 100 | H158: 2019-10-04 | I158: TN1 ANNOEULLIN | J158: Préqualifications | K158: 2019-2020 | P158: 0 | R158: 0
A159: BARBE Philippe | B159: STORNAIUOLO FRANCESCO | C159: P | D159: 0 | E159: 1 | F159: 68 | G159: 100 | H159: 2019-10-04 | I159: TN1 ANNOEULLIN | J159: Préqualifications | K159: 2019-2020 | P159: 0 | R159: 0
A160: BARBE Philippe | B160: TRIFAULT AMAND | C160: P | D160: 0 | E160: 1 | F160: 68 | G160: 100 | H160: 2019-10-04 | I160: TN1 ANNOEULLIN | J160: Préqualifications | K160: 2019-2020 | P160: 0 | R160: 0
A161: BARBE Philippe | B161: LANUSSE CHRISTOPHE | C161: P | D161: 0 | E161: 1 | F161: 95 | G161: 100 | H161: 2019-10-05 | I161: TN1 ANNOEULLIN | J161: 1/16è Tournoi de classement | K161: 2019-2020 | P161: 0 | R161: 0
A162: BARBE Philippe | B162: PROUT Vincent | C162: P | D162: 0 | E162: 2 | F162: 101 | G162: 120 | H162: 2019-11-23 | I162: CD60 N1 - T2 - Tour Principal - MERU | J162: Qualifications | K162: 2019-2020 | P162: 0 | R162: 0
A163: BARBE Philippe | B163: VAROQUEAUX Julien | C163: G | D163: 2 | E163: 1 | F163: 177 | G163: 153 | H163: 2019-11-23 | I163: CD60 N1 - T2 - Tour Principal - MERU | J163: Qualifications | K163: 2019-2020 | P163: 0 | R163: 0
A164: BARBE Philippe | B164: FELLINE Riccardo | C164: P | D164: 0 | E164: 1 | F164: 97 | G164: 120 | H164: 2021-12-18 | I164: T 2 OISE - Qualifications N 1 - Tour Principal - CREPY | J164: Qualifications | K164: 2021-2022 | P164: 0 | R164: 0
A165: BARBE Philippe | B165: OLIVEIRA José | C165: G | D165: 1 | E165: 0 | F165: 120 | G165: 115 | H165: 2021-12-18 | I165: T 2 OISE - Qualifications N 1 - Tour Principal - CREPY | J165: Qualifications | K165: 2021-2022 | P165: 1 | R165: 0
A166: BARBE Philippe | B166: VAROQUEAUX Julien | C166: P | D166: 0 | E166: 1 | F166: 90 | G166: 120 | H166: 2021-12-18 | I166: T 2 OISE - Qualifications N 1 - Tour Principal - CREPY | J166: 1/4 Finale | K166: 2021-2022 | P166: 0 | R166: 0
A167: BARBE Philippe | B167: OLIVEIRA José | C167: P | D167: 0 | E167: 1 | F167: 91 | G167: 120 | H167: 2021-12-29 | I167: T 3 OISE - Qualifications N 1 - Tour Principal - SENLIS | J167: Qualifications | K167: 2021-2022 | P167: 0 | R167: 0
A168: BARBE Philippe | B168: VAROQUEAUX Julien | C168: P | D168: 0 | E168: 1 | F168: 40 | G168: 120 | H168: 2021-12-29 | I168: T 3 OISE - Qualifications N 1 - Tour Principal - SENLIS | J168: Qualifications | K168: 2021-2022 | P168: 0 | R168: 0
A169: BARBE PHILIPPE | B169: COSTE PHILIPPE | C169: P | D169: 0 | E169: 1 | F169: 70 | G169: 100 | H169: 2021-10-08 | I169: TN1 ST MAUR DES FOSSES | J169: Préqualifications | K169: 2021-2022 | P169: 0 | R169: 0
A170: BARBE PHILIPPE | B170: BOZON ROBERT | C170: P | D170: 0 | E170: 1 | F170: 53 | G170: 100 | H170: 2021-10-08 | I170: TN1 ST MAUR DES FOSSES | J170: Préqualifications | K170: 2021-2022 | P170: 0 | R170: 0
A171: BARBE PHILIPPE | B171: WALLART JEAN CHARLES | C171: G | D171: 1 | E171: 0 | F171: 100 | G171: 76 | H171: 2021-10-08 | I171: TN1 ST MAUR DES FOSSES | J171: Préqualifications | K171: 2021-2022 | P171: 1 | R171: 0
A172: BARBE PHILIPPE | B172: BONNEAU BENOIT | C172: P | D172: 0 | E172: 1 | F172: 38 | G172: 100 | H172: 2021-10-09 | I172: TN1 ST MAUR DES FOSSES | J172: 1/8è Tournoi de classement | K172: 2021-2022 | P172: 0 | R172: 0
A173: BARBE PHILIPPE | B173: GANGLOFF JEAN LUC | C173: P | D173: 0 | E173: 1 | F173: 65 | G173: 100 | H173: 2022-02-25 | I173: TN4 LAXOU | J173: Préqualifications | K173: 2021-2022 | P173: 0 | R173: 0
A174: BARBE PHILIPPE | B174: RUBLINE MAXANCE | C174: P | D174: 0 | E174: 1 | F174: 98 | G174: 100 | H174: 2022-02-25 | I174: TN4 LAXOU | J174: Préqualifications | K174: 2021-2022 | P174: 0 | R174: 0
A175: BARBE PHILIPPE | B175: SAUVAGE DOMINIQUE | C175: P | D175: 0 | E175: 1 | F175: 73 | G175: 100 | H175: 2022-02-25 | I175: TN4 LAXOU | J175: Préqualifications | K175: 2021-2022 | P175: 0 | R175: 0
A176: BARBE PHILIPPE | B176: HERVELIN GABRIEL | C176: P | D176: 0 | E176: 1 | F176: 93 | G176: 120 | H176: 2022-02-24 | I176: TN4 LAXOU | J176: Qualifications National | K176: 2021-2022 | P176: 0 | R176: 0
A177: BARBE PHILIPPE | B177: BONNEAU BENOIT | C177: P | D177: 0 | E177: 1 | F177: 53 | G177: 120 | H177: 2022-02-24 | I177: TN4 LAXOU | J177: Qualifications National | K177: 2021-2022 | P177: 0 | R177: 0
A178: BARBE PHILIPPE | B178: ALAZARD PHILIPPE | C178: P | D178: 0 | E178: 1 | F178: 109 | G178: 120 | H178: 2022-02-24 | I178: TN4 LAXOU | J178: Qualifications National | K178: 2021-2022 | P178: 0 | R178: 0
A179: BARBE PHILIPPE | B179: BAYON PASCAL | C179: P | D179: 0 | E179: 1 | F179: 90 | G179: 100 | H179: 2022-04-01 | I179: TN5 ROUEN | J179: Préqualifications | K179: 2021-2022 | P179: 0 | R179: 0
A180: BARBE PHILIPPE | B180: DUGAY CLEMENT | C180: P | D180: 0 | E180: 1 | F180: 93 | G180: 100 | H180: 2022-04-01 | I180: TN5 ROUEN | J180: Préqualifications | K180: 2021-2022 | P180: 0 | R180: 0
A181: BARBE PHILIPPE | B181: LEBOEUF SYLVAIN | C181: G | D181: 1 | E181: 0 | F181: 100 | G181: 85 | H181: 2022-04-01 | I181: TN5 ROUEN | J181: Préqualifications | K181: 2021-2022 | P181: 1 | R181: 0
A182: BARBE PHILIPPE | B182: BAYON PASCAL | C182: P | D182: 0 | E182: 1 | F182: 82 | G182: 120 | H182: 2022-03-31 | I182: TN5 ROUEN | J182: Qualifications National | K182: 2021-2022 | P182: 0 | R182: 0
A183: BARBE PHILIPPE | B183: MARTIN DENIS | C183: G | D183: 1 | E183: 0 | F183: 120 | G183: 102 | H183: 2022-03-31 | I183: TN5 ROUEN | J183: Qualifications National | K183: 2021-2022 | P183: 1 | R183: 0
A184: BARBE PHILIPPE | B184: DUGAY CLEMENT | C184: P | D184: 0 | E184: 1 | F184: 104 | G184: 120 | H184: 2022-03-31 | I184: TN5 ROUEN | J184: Qualifications National | K184: 2021-2022 | P184: 0 | R184: 0
A185: BARBE Philippe | B185: FELLINE Riccardo | C185: P | D185: 0 | E185: 1 | F185: 91 | G185: 120 | H185: 2022-10-29 | I185: T 1 OISE - Qualifications N 1 - Tour Principal - MERU | J185: Qualifications | K185: 2022-2023 | P185: 0 | R185: 0
A186: BARBE Philippe | B186: SOYEZ Reynald | C186: P | D186: 0 | E186: 1 | F186: 117 | G186: 120 | H186: 2022-10-29 | I186: T 1 OISE - Qualifications N 1 - Tour Principal - MERU | J186: Qualifications | K186: 2022-2023 | P186: 0 | R186: 0
A187: BARBE Philippe | B187: FELLINE Riccardo | C187: P | D187: 0 | E187: 1 | F187: 79 | G187: 120 | H187: 2022-12-03 | I187: T 2 OISE - Qualifications N 1 - Tour Principal - SENLIS | J187: Qualifications | K187: 2022-2023 | P187: 0 | R187: 0
A188: BARBE Philippe | B188: LORGE Thierry | C188: P | D188: 0 | E188: 1 | F188: 105 | G188: 120 | H188: 2022-12-03 | I188: T 2 OISE - Qualifications N 1 - Tour Principal - SENLIS | J188: Qualifications | K188: 2022-2023 | P188: 0 | R188: 0
A189: BARBE Philippe | B189: MARTIN Denis | C189: P | D189: 0 | E189: 1 | F189: 88 | G189: 120 | H189: 2023-02-18 | I189: T 3 OISE - Qualifications N 1 - Tour Principal - BEAUVAIS | J189: Qualifications | K189: 2022-2023 | P189: 0 | R189: 0
A190: BARBE Philippe | B190: SOYEZ Reynald | C190: P | D190: 0 | E190: 1 | F190: 69 | G190: 120 | H190: 2023-02-18 | I190: T 3 OISE - Qualifications N 1 - Tour Principal - BEAUVAIS | J190: Qualifications | K190: 2022-2023 | P190: 0 | R190: 0
A191: BARBE Philippe | B191: FELLINE Riccardo | C191: P | D191: 0 | E191: 1 | F191: 56 | G191: 120 | H191: 2023-03-18 | I191: T 4 OISE - Qualifications N 1 - Tour Principal - CREPY | J191: Qualifications | K191: 2022-2023 | P191: 0 | R191: 0
A192: BARBE Philippe | B192: VAROQUEAUX Julien | C192: P | D192: 0 | E192: 1 | F192: 63 | G192: 120 | H192: 2023-03-18 | I192: T 4 OISE - Qualifications N 1 - Tour Principal - CREPY | J192: Qualifications | K192: 2022-2023 | P192: 0 | R192: 0
A193: Fin des données | P193: 0 | R193: 0

Sheet BASTENIER Jean
A1: BASTENIER Jean | P1: =SaisonDeb -> 2021-2022 | R1: =SaisonFin -> 2022-2023 | T1: Toutes saisons
A2: FACHES-THUMESNIL | P2: Nombre | Q2: %age | R2: Nombre | S2: %age | T2: Nombre | U2: %age
A3: 017360-S | N3: Matchs | O3: Gagnés | P3: =SUM(P$15:P$119) -> 2 | Q3: =IF(P$3+P$4>0,P3/(P$3+P$4),"") -> 0.2857142857 | R3: =SUM(R$15:R$119) -> 0 | S3: =IF(R$3+R$4>0,R3/(R$3+R$4),"") ->  | T3: =COUNTIF($C$15:$C$119,"G") -> 2 | U3: =IF(T$3+T$4>0,T3/(T$3+T$4),"") -> 0.2857142857
O4: Perdus | P4: =COUNTIF($K$15:$M$119,SaisonDeb)-P3 -> 5 | Q4: =IF(P$3+P$4>0,P4/(P$3+P$4),"") -> 0.7142857143 | R4: =COUNTIF($K$15:$K$119,SaisonFin)-R3 -> 0 | S4: =IF(R$3+R$4>0,R4/(R$3+R$4),"") ->  | T4: =COUNTIF($C$15:$C$119,"P") -> 5 | U4: =IF(T$3+T$4>0,T4/(T$3+T$4),"") -> 0.7142857143
A5: jeanbastenier@hotmail.fr | O5: Total / Moy. | P5: =SUM(P3:P4) -> 7 | Q5: =IF(SUMIF($K$15:$K$119,SaisonDeb,$G$15:$G$119)>0,SUMIF($K$15:$K$119,SaisonDeb,$F$15:$F$119)/SUMIF($K$15:$K$119,SaisonDeb,$G$15:$G$119),"") -> 0.7959527825 | R5: =SUM(R3:R4) -> 0 | S5: =IF(SUMIF($K$15:$K$119,SaisonFin,$G$15:$G$119)>0,SUMIF($K$15:$K$119,SaisonFin,$F$15:$F$119)/SUMIF($K$15:$K$119,SaisonFin,$G$15:$G$119),"") ->  | T5: =SUM(T3:T4) -> 7 | U5: =IF(SUM($G$15:$G$119)>0,SUM($F$15:$F$119)/SUM($G$15:$G$119),"") -> 0.7959527825 | V5: =IF(SUMIF($K$15:$K$23,SaisonDeb,$G$15:$G$23)+SUMIF($K$15:$K$23,SaisonFin,$G$15:$G$23)>0,(SUMIF($K$15:$K$23,SaisonDeb,$F$15:$F$23)+SUMIF($K$15:$K$23,SaisonFin,$F$15:$F$23))/(SUMIF($K$15:$K$23,SaisonDeb,$G$15:$G$23)+SUMIF($K$15:$K$23,SaisonFin,$G$15:$G$23)),"") -> 0.7959527825
N6: Sets | O6: Gagnés | P6: =SUMIF($K$15:$K$119,SaisonDeb,$D$15:$D$119) -> 2 | Q6: =IF(P$6+P$7>0,P6/(P$6+P$7),"") -> 0.3333333333 | R6: =SUMIF($K$15:$K$119,SaisonFin,$D$15:$D$119) -> 0 | S6: =IF(R$6+R$7>0,R6/(R$6+R$7),"") ->  | T6: =SUM($D$15:$D$119) -> 2 | U6: =IF(T$6+T$7>0,T6/(T$6+T$7),"") -> 0.3333333333
O7: Perdus | P7: =SUMIF($K$15:$K$119,SaisonDeb,$E$15:$E$119) -> 4 | Q7: =IF(P$6+P$7>0,P7/(P$6+P$7),"") -> 0.6666666667 | R7: =SUMIF($K$15:$K$119,SaisonFin,$E$15:$E$119) -> 0 | S7: =IF(R$6+R$7>0,R7/(R$6+R$7),"") ->  | T7: =SUM($E$15:$E$119) -> 4 | U7: =IF(T$6+T$7>0,T7/(T$6+T$7),"") -> 0.6666666667
A8: Récapitulatif joueurs | O8: Total | P8: =SUM(P6:P7) -> 6 | R8: =SUM(R6:R7) -> 0 | T8: =SUM(T6:T7) -> 6
A15: Joueur | B15: Adversaire | C15: G/P | D15: Sets gagnés | E15: Sets perdus | F15: pts marqués | G15: pts subis | H15: Date | I15: Compétition | J15: Phase | K15: Saison
A16: BASTENIER Jean | B16: DELRUE André | C16: P | D16: 0 | E16: 1 | F16: 63 | G16: 100 | H16: 2021-10-16 | I16: T1 5Q N1 - ANNOEULLIN - CONSOLANTE | J16: Qualifications | K16: =IF(H16<>"",IF(MONTH(H16)>MoisRef,YEAR(H16)&"-"&YEAR(H16)+1,YEAR(H16)-1&"-"&YEAR(H16)),"") -> 2021-2022 | P16: =IF($K16=P$1,COUNTIF($C16,"G"),0) -> 0 | R16: =IF($K16=R$1,COUNTIF($C16,"G"),0) -> 0
A17: BASTENIER Jean | B17: DEREUDDRE Dominique | C17: G | D17: 1 | E17: 0 | F17: 100 | G17: 78 | H17: 2021-10-16 | I17: T1 5Q N1 - ANNOEULLIN - CONSOLANTE | J17: Qualifications | K17: 2021-2022 | P17: 1 | R17: 0
A18: BASTENIER Jean | B18: DEREUDDRE Dominique | C18: P | D18: 0 | E18: 0 | F18: 0 | G18: 0 | H18: 2021-10-16 | I18: T1 5Q N1 - ANNOEULLIN - CONSOLANTE | J18: 1/2 Finale | K18: 2021-2022 | P18: 0 | R18: 0
A19: BASTENIER Jean | B19: HERREBRECHT Emerick | C19: P | D19: 0 | E19: 1 | F19: 80 | G19: 100 | H19: 2021-10-16 | I19: T1 5Q N1 - ANNOEULLIN - CONSOLANTE | J19: Qualifications | K19: 2021-2022 | P19: 0 | R19: 0
A20: BASTENIER Jean | B20: VEREECQUE Esteban | C20: P | D20: 0 | E20: 1 | F20: 57 | G20: 100 | H20: 2021-10-16 | I20: T1 5Q N1 - ANNOEULLIN - CONSOLANTE | J20: Qualifications | K20: 2021-2022 | P20: 0 | R20: 0
A21: BASTENIER Jean | B21: DEREUDDRE Dominique | C21: G | D21: 1 | E21: 0 | F21: 120 | G21: 95 | H21: 2021-10-16 | I21: T1 5Q N1 - ANNOEULLIN - CONVOCATION 8h30 | J21: Qualifications | K21: 2021-2022 | P21: 1 | R21: 0
A22: BASTENIER Jean | B22: WALLART Jean-Charles | C22: P | D22: 0 | E22: 1 | F22: 52 | G22: 120 | H22: 2021-10-16 | I22: T1 5Q N1 - ANNOEULLIN - CONVOCATION 8h30 | J22: Qualifications | K22: 2021-2022 | P22: 0 | R22: 0
A23: Fin des données | P23: =IF($K23=P$1,COUNTIF($C23,"G"),0) -> 0 | R23: =IF($K23=R$1,COUNTIF($C23,"G"),0) -> 0

Sheet BATTEUX Daniel
A1: BATTEUX Daniel | P1: =SaisonDeb -> 2021-2022 | R1: =SaisonFin -> 2022-2023 | T1: Toutes saisons
P2: Nombre | Q2: %age | R2: Nombre | S2: %age | T2: Nombre | U2: %age
N3: Matchs | O3: Gagnés | P3: =SUM(P$15:P$144) -> 0 | Q3: =IF(P$3+P$4>0,P3/(P$3+P$4),"") ->  | R3: =SUM(R$15:R$144) -> 1 | S3: =IF(R$3+R$4>0,R3/(R$3+R$4),"") -> 0.25 | T3: =COUNTIF($C$15:$C$144,"G") -> 12 | U3: =IF(T$3+T$4>0,T3/(T$3+T$4),"") -> 0.375
O4: Perdus | P4: =COUNTIF($K$15:$M$144,SaisonDeb)-P3 -> 0 | Q4: =IF(P$3+P$4>0,P4/(P$3+P$4),"") ->  | R4: =COUNTIF($K$15:$K$144,SaisonFin)-R3 -> 3 | S4: =IF(R$3+R$4>0,R4/(R$3+R$4),"") -> 0.75 | T4: =COUNTIF($C$15:$C$144,"P") -> 20 | U4: =IF(T$3+T$4>0,T4/(T$3+T$4),"") -> 0.625
O5: Total / Moy. | P5: =SUM(P3:P4) -> 0 | Q5: =IF(SUMIF($K$15:$K$144,SaisonDeb,$G$15:$G$144)>0,SUMIF($K$15:$K$144,SaisonDeb,$F$15:$F$144)/SUMIF($K$15:$K$144,SaisonDeb,$G$15:$G$144),"") ->  | R5: =SUM(R3:R4) -> 4 | S5: =IF(SUMIF($K$15:$K$144,SaisonFin,$G$15:$G$144)>0,SUMIF($K$15:$K$144,SaisonFin,$F$15:$F$144)/SUMIF($K$15:$K$144,SaisonFin,$G$15:$G$144),"") -> 0.6867924528 | T5: =SUM(T3:T4) -> 32 | U5: =IF(SUM($G$15:$G$144)>0,SUM($F$15:$F$144)/SUM($G$15:$G$144),"") -> 0.85788988 | V5: =IF(SUMIF($K$15:$K$48,SaisonDeb,$G$15:$G$48)+SUMIF($K$15:$K$48,SaisonFin,$G$15:$G$48)>0,(SUMIF($K$15:$K$48,SaisonDeb,$F$15:$F$48)+SUMIF($K$15:$K$48,SaisonFin,$F$15:$F$48))/(SUMIF($K$15:$K$48,SaisonDeb,$G$15:$G$48)+SUMIF($K$15:$K$48,SaisonFin,$G$15:$G$48)),"") -> 0.6867924528
N6: Sets | O6: Gagnés | P6: =SUMIF($K$15:$K$144,SaisonDeb,$D$15:$D$144) -> 0 | Q6: =IF(P$6+P$7>0,P6/(P$6+P$7),"") ->  | R6: =SUMIF($K$15:$K$144,SaisonFin,$D$15:$D$144) -> 2 | S6: =IF(R$6+R$7>0,R6/(R$6+R$7),"") -> 0.2222222222 | T6: =SUM($D$15:$D$144) -> 16 | U6: =IF(T$6+T$7>0,T6/(T$6+T$7),"") -> 0.3137254902
O7: Perdus | P7: =SUMIF($K$15:$K$144,SaisonDeb,$E$15:$E$144) -> 0 | Q7: =IF(P$6+P$7>0,P7/(P$6+P$7),"") ->  | R7: =SUMIF($K$15:$K$144,SaisonFin,$E$15:$E$144) -> 7 | S7: =IF(R$6+R$7>0,R7/(R$6+R$7),"") -> 0.7777777778 | T7: =SUM($E$15:$E$144) -> 35 | U7: =IF(T$6+T$7>0,T7/(T$6+T$7),"") -> 0.6862745098
A8: Récapitulatif joueurs | O8: Total | P8: =SUM(P6:P7) -> 0 | R8: =SUM(R6:R7) -> 9 | T8: =SUM(T6:T7) -> 51
A15: Joueur | B15: Adversaire | C15: G/P | D15: Sets gagnés | E15: Sets perdus | F15: pts marqués | G15: pts subis | H15: Date | I15: Compétition | J15: Phase | K15: Saison
A16: BATTEUX Daniel | B16: GODARD Alain | C16: G | D16: 1 | E16: 0 | F16: 100 | G16: 73 | H16: 2016-11-26 | I16: 5Q N1 CD80 - T1 | J16: Qualifications | K16: =IF(H16<>"",IF(MONTH(H16)>MoisRef,YEAR(H16)&"-"&YEAR(H16)+1,YEAR(H16)-1&"-"&YEAR(H16)),"") -> 2016-2017 | P16: =IF($K16=P$1,COUNTIF($C16,"G"),0) -> 0 | R16: =IF($K16=R$1,COUNTIF($C16,"G"),0) -> 0
A17: BATTEUX Daniel | B17: DUFRESNOY Michel | C17: G | D17: 1 | E17: 0 | F17: 100 | G17: 77 | H17: 2016-11-26 | I17: 5Q N1 CD80 - T1 | J17: Qualifications | K17: 2016-2017 | P17: 0 | R17: 0
A18: BATTEUX Daniel | B18: DUROYON Didier | C18: G | D18: 1 | E18: 0 | F18: 100 | G18: 90 | H18: 2016-11-26 | I18: 5Q N1 CD80 - T1 | J18: Qualifications | K18: 2016-2017 | P18: 0 | R18: 0
A19: BATTEUX Daniel | B19: DUPONT Fabrice | C19: G | D19: 1 | E19: 0 | F19: 100 | G19: 60 | H19: 2016-11-26 | I19: 5Q N1 CD80 - T1 | J19: Qualifications | K19: 2016-2017 | P19: 0 | R19: 0
A20: BATTEUX Daniel | B20: SOYEZ Reynald | C20: P | D20: 0 | E20: 1 | F20: 77 | G20: 100 | H20: 2017-01-21 | I20: 5Q N1 CD80 - T2 - ABBEVILLE | J20: Qualifications | K20: 2016-2017 | P20: 0 | R20: 0
A21: BATTEUX Daniel | B21: LHOEST Patrick | C21: P | D21: 0 | E21: 1 | F21: 66 | G21: 100 | H21: 2017-01-21 | I21: 5Q N1 CD80 - T2 - ABBEVILLE | J21: Qualifications | K21: 2016-2017 | P21: 0 | R21: 0
A22: BATTEUX Daniel | B22: GODARD Alain | C22: P | D22: 0 | E22: 1 | F22: 64 | G22: 100 | H22: 2017-01-21 | I22: 5Q N1 CD80 - T2 - ABBEVILLE | J22: Qualifications | K22: 2016-2017 | P22: 0 | R22: 0
A23: BATTEUX Daniel | B23: DUHAMEL Marcellin | C23: P | D23: 0 | E23: 1 | F23: 75 | G23: 100 | H23: 2017-01-21 | I23: 5Q N1 CD80 - T2 - ABBEVILLE | J23: Qualifications | K23: 2016-2017 | P23: 0 | R23: 0
A24: BATTEUX Daniel | B24: GUERIN Régis | C24: P | D24: 0 | E24: 2 | F24: 97 | G24: 120 | H24: 2017-11-25 | I24: T1 5Quilles N1 CD80 - ABBEVILLE | J24: Qualifications | K24: 2017-2018 | P24: 0 | R24: 0
A25: BATTEUX Daniel | B25: SOYEZ Reynald | C25: P | D25: 0 | E25: 2 | F25: 44 | G25: 120 | H25: 2017-11-25 | I25: T1 5Quilles N1 CD80 - ABBEVILLE | J25: Qualifications | K25: 2017-2018 | P25: 0 | R25: 0
A26: BATTEUX Daniel | B26: CABUZEL Denis | C26: G | D26: 1 | E26: 0 | F26: 100 | G26: 63 | H26: 2017-11-25 | I26: CONSOLANTE T1 5Quilles N1 CD80 - ABBEVILLE | J26: Qualifications | K26: 2017-2018 | P26: 0 | R26: 0
A27: BATTEUX Daniel | B27: DELATTRE Hervé | C27: P | D27: 0 | E27: 1 | F27: 56 | G27: 100 | H27: 2017-11-25 | I27: CONSOLANTE T1 5Quilles N1 CD80 - ABBEVILLE | J27: Qualifications | K27: 2017-2018 | P27: 0 | R27: 0
A28: BATTEUX Daniel | B28: LHOEST Patrick | C28: G | D28: 1 | E28: 0 | F28: 100 | G28: 77 | H28: 2017-11-25 | I28: CONSOLANTE T1 5Quilles N1 CD80 - ABBEVILLE | J28: Qualifications | K28: 2017-2018 | P28: 0 | R28: 0
A29: BATTEUX Daniel | B29: GODARD Alain | C29: P | D29: 0 | E29: 1 | F29: 41 | G29: 60 | H29: 2018-01-06 | I29: T2 5Quilles N1 CD80 - CONSOLANTE - MOREUIL | J29: Qualifications | K29: 2017-2018 | P29: 0 | R29: 0
A30: BATTEUX Daniel | B30: GODARD Alain | C30: P | D30: 0 | E30: 1 | F30: 41 | G30: 60 | H30: 2018-01-06 | I30: T2 5Quilles N1 CD80 - CONSOLANTE - MOREUIL | J30: Qualifications | K30: 2017-2018 | P30: 0 | R30: 0
A31: BATTEUX Daniel | B31: CABUZEL Denis | C31: P | D31: 0 | E31: 2 | F31: 107 | G31: 120 | H31: 2018-01-06 | I31: T2 5Quilles N1 CD80 - MOREUIL | J31: Qualifications | K31: 2017-2018 | P31: 0 | R31: 0
A32: BATTEUX Daniel | B32: DUROYON Didier | C32: P | D32: 0 | E32: 2 | F32: 86 | G32: 120 | H32: 2018-01-06 | I32: T2 5Quilles N1 CD80 - MOREUIL | J32: Qualifications | K32: 2017-2018 | P32: 0 | R32: 0
A33: BATTEUX Daniel | B33: LHOEST Patrick | C33: G | D33: 2 | E33: 0 | F33: 120 | G33: 101 | H33: 2018-02-17 | I33: T3 5Quilles N1 CD80 - MOREUIL | J33: Qualifications | K33: 2017-2018 | P33: 0 | R33: 0
A34: BATTEUX Daniel | B34: SOYEZ Reynald | C34: P | D34: 0 | E34: 2 | F34: 36 | G34: 120 | H34: 2018-02-17 | I34: T3 5Quilles N1 CD80 - MOREUIL | J34: Qualifications | K34: 2017-2018 | P34: 0 | R34: 0
A35: BATTEUX Daniel | B35: SOYEZ Reynald | C35: P | D35: 0 | E35: 2 | F35: 84 | G35: 120 | H35: 2018-02-17 | I35: T3 5Quilles N1 CD80 - MOREUIL | J35: 1/2 Finale | K35: 2017-2018 | P35: 0 | R35: 0
A36: BATTEUX Daniel | B36: GODARD Alain | C36: P | D36: 0 | E36: 2 | F36: 74 | G36: 120 | H36: 2018-10-20 | I36: T1 5Q N1 CD80 - MOREUIL | J36: Qualifications | K36: 2018-2019 | P36: 0 | R36: 0
A37: BATTEUX Daniel | B37: GODARD Alain | C37: G | D37: 2 | E37: 1 | F37: 162 | G37: 162 | H37: 2018-10-20 | I37: T1 5Q N1 CD80 - MOREUIL | J37: Qualifications | K37: 2018-2019 | P37: 0 | R37: 0
A38: BATTEUX Daniel | B38: DUROYON Didier | C38: G | D38: 1 | E38: 0 | F38: 100 | G38: 64 | H38: 2018-10-20 | I38: T1 5Q N1 CD80 - MOREUIL - CONSOLANTE | J38: Qualifications | K38: 2018-2019 | P38: 0 | R38: 0
A39: BATTEUX Daniel | B39: DUROYON Didier | C39: G | D39: 1 | E39: 0 | F39: 100 | G39: 54 | H39: 2018-10-20 | I39: T1 5Q N1 CD80 - MOREUIL - CONSOLANTE | J39: Qualifications | K39: 2018-2019 | P39: 0 | R39: 0
A40: BATTEUX Daniel | B40: GUERIN Régis | C40: P | D40: 0 | E40: 2 | F40: 70 | G40: 200 | H40: 2018-10-20 | I40: T1 5Q N1 CD80 - MOREUIL - CONSOLANTE | J40: Finale | K40: 2018-2019 | P40: 0 | R40: 0
A41: BATTEUX Daniel | B41: WARIN Yannick | C41: G | D41: 2 | E41: 0 | F41: 200 | G41: 0 | H41: 2018-10-20 | I41: T1 5Q N1 CD80 - MOREUIL - CONSOLANTE | J41: 1/2 Finale | K41: 2018-2019 | P41: 0 | R41: 0
A42: BATTEUX Daniel | B42: DUPONT Fabrice | C42: P | D42: 0 | E42: 2 | F42: 80 | G42: 120 | H42: 2018-11-24 | I42: T2 5Q N1 CD80 - | J42: Qualifications | K42: 2018-2019 | P42: 0 | R42: 0
A43: BATTEUX Daniel | B43: DUPONT Fabrice | C43: P | D43: 0 | E43: 2 | F43: 45 | G43: 120 | H43: 2018-11-24 | I43: T2 5Q N1 CD80 - | J43: Qualifications | K43: 2018-2019 | P43: 0 | R43: 0
A44: BATTEUX Daniel | B44: NOEL Henri | C44: G | D44: 2 | E44: 1 | F44: 143 | G44: 170 | H44: 2022-11-01 | I44: 5 Quilles - ABBEVILLE | J44: Qualifications | K44: 2022-2023 | P44: 0 | R44: 1
A45: BATTEUX Daniel | B45: WARIN Yannick | C45: P | D45: 0 | E45: 2 | F45: 94 | G45: 120 | H45: 2022-11-01 | I45: 5 Quilles - ABBEVILLE | J45: Qualifications | K45: 2022-2023 | P45: 0 | R45: 0
A46: BATTEUX Daniel | B46: DELATTRE Hervé | C46: P | D46: 0 | E46: 2 | F46: 48 | G46: 120 | H46: 2022-12-04 | I46: 5 Quilles - MOREUIL | J46: Qualifications | K46: 2022-2023 | P46: 0 | R46: 0
A47: BATTEUX Daniel | B47: GODARD Alain | C47: P | D47: 0 | E47: 2 | F47: 79 | G47: 120 | H47: 2022-12-04 | I47: 5 Quilles - MOREUIL | J47: Qualifications | K47: 2022-2023 | P47: 0 | R47: 0
A48: Fin des données | P48: =IF($K48=P$1,COUNTIF($C48,"G"),0) -> 0 | R48: =IF($K48=R$1,COUNTIF($C48,"G"),0) -> 0

Sheet BEGHIN Benjamin
A1: BEGHIN Benjamin | P1: =SaisonDeb -> 2021-2022 | R1: =SaisonFin -> 2022-2023 | T1: Toutes saisons
P2: Nombre | Q2: %age | R2: Nombre | S2: %age | T2: Nombre | U2: %age
N3: Matchs | O3: Gagnés | P3: =SUM(P$15:P$134) -> 0 | Q3: =IF(P$3+P$4>0,P3/(P$3+P$4),"") -> 0 | R3: =SUM(R$15:R$134) -> 10 | S3: =IF(R$3+R$4>0,R3/(R$3+R$4),"") -> 0.5263157895 | T3: =COUNTIF($C$15:$C$134,"G") -> 10 | U3: =IF(T$3+T$4>0,T3/(T$3+T$4),"") -> 0.4545454545
O4: Perdus | P4: =COUNTIF($K$15:$M$134,SaisonDeb)-P3 -> 3 | Q4: =IF(P$3+P$4>0,P4/(P$3+P$4),"") -> 1 | R4: =COUNTIF($K$15:$K$134,SaisonFin)-R3 -> 9 | S4: =IF(R$3+R$4>0,R4/(R$3+R$4),"") -> 0.4736842105 | T4: =COUNTIF($C$15:$C$134,"P") -> 12 | U4: =IF(T$3+T$4>0,T4/(T$3+T$4),"") -> 0.5454545455
O5: Total / Moy. | P5: =SUM(P3:P4) -> 3 | Q5: =IF(SUMIF($K$15:$K$134,SaisonDeb,$G$15:$G$134)>0,SUMIF($K$15:$K$134,SaisonDeb,$F$15:$F$134)/SUMIF($K$15:$K$134,SaisonDeb,$G$15:$G$134),"") -> 0.5273972603 | R5: =SUM(R3:R4) -> 19 | S5: =IF(SUMIF($K$15:$K$134,SaisonFin,$G$15:$G$134)>0,SUMIF($K$15:$K$134,SaisonFin,$F$15:$F$134)/SUMIF($K$15:$K$134,SaisonFin,$G$15:$G$134),"") -> 0.9348428835 | T5: =SUM(T3:T4) -> 22 | U5: =IF(SUM($G$15:$G$134)>0,SUM($F$15:$F$134)/SUM($G$15:$G$134),"") -> 0.8482532751 | V5: =IF(SUMIF($K$15:$K$38,SaisonDeb,$G$15:$G$38)+SUMIF($K$15:$K$38,SaisonFin,$G$15:$G$38)>0,(SUMIF($K$15:$K$38,SaisonDeb,$F$15:$F$38)+SUMIF($K$15:$K$38,SaisonFin,$F$15:$F$38))/(SUMIF($K$15:$K$38,SaisonDeb,$G$15:$G$38)+SUMIF($K$15:$K$38,SaisonFin,$G$15:$G$38)),"") -> 0.8482532751
N6: Sets | O6: Gagnés | P6: =SUMIF($K$15:$K$134,SaisonDeb,$D$15:$D$134) -> 1 | Q6: =IF(P$6+P$7>0,P6/(P$6+P$7),"") -> 0.1 | R6: =SUMIF($K$15:$K$134,SaisonFin,$D$15:$D$134) -> 13 | S6: =IF(R$6+R$7>0,R6/(R$6+R$7),"") -> 0.4814814815 | T6: =SUM($D$15:$D$134) -> 14 | U6: =IF(T$6+T$7>0,T6/(T$6+T$7),"") -> 0.3783783784
O7: Perdus | P7: =SUMIF($K$15:$K$134,SaisonDeb,$E$15:$E$134) -> 9 | Q7: =IF(P$6+P$7>0,P7/(P$6+P$7),"") -> 0.9 | R7: =SUMIF($K$15:$K$134,SaisonFin,$E$15:$E$134) -> 14 | S7: =IF(R$6+R$7>0,R7/(R$6+R$7),"") -> 0.5185185185 | T7: =SUM($E$15:$E$134) -> 23 | U7: =IF(T$6+T$7>0,T7/(T$6+T$7),"") -> 0.6216216216
A8: Récapitulatif joueurs | O8: Total | P8: =SUM(P6:P7) -> 10 | R8: =SUM(R6:R7) -> 27 | T8: =SUM(T6:T7) -> 37
A15: Joueur | B15: Adversaire | C15: G/P | D15: Sets gagnés | E15: Sets perdus | F15: pts marqués | G15: pts subis | H15: Date | I15: Compétition | J15: Phase | K15: Saison
A16: BEGHIN Benjamin | B16: BORNEQUE FABRICE | C16: P | D16: 0 | E16: 3 | F16: 77 | G16: 180 | H16: 2022-06-11 | I16: CF N1 - Annoeullin | J16: Qualifications | K16: =IF(H16<>"",IF(MONTH(H16)>MoisRef,YEAR(H16)&"-"&YEAR(H16)+1,YEAR(H16)-1&"-"&YEAR(H16)),"") -> 2021-2022 | P16: =IF($K16=P$1,COUNTIF($C16,"G"),0) -> 0 | R16: =IF($K16=R$1,COUNTIF($C16,"G"),0) -> 0
A17: BEGHIN Benjamin | B17: GODARD ALAIN | C17: P | D17: 1 | E17: 3 | F17: 171 | G17: 224 | H17: 2022-06-11 | I17: CF N1 - Annoeullin | J17: Qualifications | K17: 2021-2022 | P17: 0 | R17: 0
A18: BEGHIN Benjamin | B18: PICOT COURNEE SYLVAIN | C18: P | D18: 0 | E18: 3 | F18: 60 | G18: 180 | H18: 2022-06-11 | I18: CF N1 - Annoeullin | J18: Qualifications | K18: 2021-2022 | P18: 0 | R18: 0
A19: BEGHIN Benjamin | B19: DEREUDDRE Dominique | C19: G | D19: 1 | E19: 0 | F19: 120 | G19: 109 | H19: 2022-09-24 | I19: T1 5Q N1 - ANNOEULLIN | J19: Qualifications | K19: 2022-2023 | P19: 0 | R19: 1
A20: BEGHIN Benjamin | B20: HERREBRECHT Emerick | C20: P | D20: 0 | E20: 1 | F20: 67 | G20: 120 | H20: 2022-09-24 | I20: T1 5Q N1 - ANNOEULLIN | J20: Qualifications | K20: 2022-2023 | P20: 0 | R20: 0
A21: BEGHIN Benjamin | B21: POULEYN André | C21: G | D21: 1 | E21: 0 | F21: 100 | G21: 83 | H21: 2022-09-24 | I21: T1 5Q N1 CONSOLANTE - ANNOEULLIN | J21: Qualifications | K21: 2022-2023 | P21: 0 | R21: 1
A22: BEGHIN Benjamin | B22: VEREECQUE Esteban | C22: G | D22: 1 | E22: 0 | F22: 100 | G22: 61 | H22: 2022-09-24 | I22: T1 5Q N1 CONSOLANTE - ANNOEULLIN | J22: Qualifications | K22: 2022-2023 | P22: 0 | R22: 1
A23: BEGHIN Benjamin | B23: GEETS Patrice | C23: P | D23: 0 | E23: 1 | F23: 67 | G23: 120 | H23: 2022-10-30 | I23: T2 5Q N1 - GRAVELINES - Convocation 8h30 | J23: 1/4 Finale | K23: 2022-2023 | P23: 0 | R23: 0
A24: BEGHIN Benjamin | B24: LORTHIOIR Jean-Luc | C24: G | D24: 1 | E24: 0 | F24: 120 | G24: 45 | H24: 2022-10-30 | I24: T2 5Q N1 - GRAVELINES - Convocation 8h30 | J24: Qualifications | K24: 2022-2023 | P24: 0 | R24: 1
A25: BEGHIN Benjamin | B25: RACARY Thibault | C25: P | D25: 0 | E25: 1 | F25: 84 | G25: 120 | H25: 2022-10-30 | I25: T2 5Q N1 - GRAVELINES - Convocation 8h30 | J25: Qualifications | K25: 2022-2023 | P25: 0 | R25: 0
A26: BEGHIN Benjamin | B26: HERREBRECHT Emerick | C26: G | D26: 1 | E26: 0 | F26: 120 | G26: 78 | H26: 2023-02-04 | I26: T3 5Q N1 - GRAVELINES | J26: Qualifications | K26: 2022-2023 | P26: 0 | R26: 1
A27: BEGHIN Benjamin | B27: LORTHIOIR Jean-Luc | C27: P | D27: 0 | E27: 1 | F27: 109 | G27: 120 | H27: 2023-02-04 | I27: T3 5Q N1 - GRAVELINES | J27: Qualifications | K27: 2022-2023 | P27: 0 | R27: 0
A28: BEGHIN Benjamin | B28: MAILLE Bernard | C28: G | D28: 1 | E28: 0 | F28: 120 | G28: 88 | H28: 2023-02-04 | I28: T3 5Q N1 - GRAVELINES | J28: 1/4 Finale | K28: 2022-2023 | P28: 0 | R28: 1
A29: BEGHIN Benjamin | B29: RACARY Thibault | C29: P | D29: 0 | E29: 1 | F29: 26 | G29: 120 | H29: 2023-02-04 | I29: T3 5Q N1 - GRAVELINES | J29: Finale | K29: 2022-2023 | P29: 0 | R29: 0
A30: BEGHIN Benjamin | B30: VEREECQUE Ludovic | C30: G | D30: 1 | E30: 0 | F30: 120 | G30: 87 | H30: 2023-02-04 | I30: T3 5Q N1 - GRAVELINES | J30: 1/2 Finale | K30: 2022-2023 | P30: 0 | R30: 1
A31: BEGHIN Benjamin | B31: BEGHIN Nicolas | C31: P | D31: 0 | E31: 1 | F31: 83 | G31: 120 | H31: 2023-03-04 | I31: T4 5Q N1 - RONCHIN | J31: Qualifications | K31: 2022-2023 | P31: 0 | R31: 0
A32: BEGHIN Benjamin | B32: MAILLE Bernard | C32: P | D32: 0 | E32: 1 | F32: 103 | G32: 120 | H32: 2023-03-04 | I32: T4 5Q N1 - RONCHIN | J32: 1/4 Finale | K32: 2022-2023 | P32: 0 | R32: 0
A33: BEGHIN Benjamin | B33: VEREECQUE Ryan | C33: G | D33: 1 | E33: 0 | F33: 120 | G33: 103 | H33: 2023-03-04 | I33: T4 5Q N1 - RONCHIN | J33: Qualifications | K33: 2022-2023 | P33: 0 | R33: 1
A34: BEGHIN Benjamin | B34: DELSOL Philippe | C34: G | D34: 2 | E34: 1 | F34: 146 | G34: 159 | H34: 2023-04-16 | I34: Finale CD59 5Q N1 - GRAVELINES | J34: Qualifications | K34: 2022-2023 | P34: 0 | R34: 1
A35: BEGHIN Benjamin | B35: HERREBRECHT Emerick | C35: P | D35: 0 | E35: 3 | F35: 118 | G35: 180 | H35: 2023-04-16 | I35: Finale CD59 5Q N1 - GRAVELINES | J35: 3ème 4ème place | K35: 2022-2023 | P35: 0 | R35: 0
A36: BEGHIN Benjamin | B36: MAILLE Bernard | C36: P | D36: 1 | E36: 3 | F36: 180 | G36: 222 | H36: 2023-04-16 | I36: Finale CD59 5Q N1 - GRAVELINES | J36: 1/2 Finale | K36: 2022-2023 | P36: 0 | R36: 0
A37: BEGHIN Benjamin | B37: VEREECQUE Ludovic | C37: G | D37: 2 | E37: 0 | F37: 120 | G37: 109 | H37: 2023-04-16 | I37: Finale CD59 5Q N1 - GRAVELINES | J37: Qualifications | K37: 2022-2023 | P37: 0 | R37: 1
A38: Fin des données | P38: =IF($K38=P$1,COUNTIF($C38,"G"),0) -> 0 | R38: =IF($K38=R$1,COUNTIF($C38,"G"),0) -> 0

Sheet BEGHIN Nicolas
A1: BEGHIN Nicolas | P1: =SaisonDeb -> 2021-2022 | R1: =SaisonFin -> 2022-2023 | T1: Toutes saisons
P2: Nombre | Q2: %age | R2: Nombre | S2: %age | T2: Nombre | U2: %age
N3: Matchs | O3: Gagnés | P3: =SUM(P$15:P$128) -> 0 | Q3: =IF(P$3+P$4>0,P3/(P$3+P$4),"") ->  | R3: =SUM(R$15:R$128) -> 7 | S3: =IF(R$3+R$4>0,R3/(R$3+R$4),"") -> 0.4375 | T3: =COUNTIF($C$15:$C$128,"G") -> 7 | U3: =IF(T$3+T$4>0,T3/(T$3+T$4),"") -> 0.4375
O4: Perdus | P4: =COUNTIF($K$15:$M$128,SaisonDeb)-P3 -> 0 | Q4: =IF(P$3+P$4>0,P4/(P$3+P$4),"") ->  | R4: =COUNTIF($K$15:$K$128,SaisonFin)-R3 -> 9 | S4: =IF(R$3+R$4>0,R4/(R$3+R$4),"") -> 0.5625 | T4: =COUNTIF($C$15:$C$128,"P") -> 9 | U4: =IF(T$3+T$4>0,T4/(T$3+T$4),"") -> 0.5625
O5: Total / Moy. | P5: =SUM(P3:P4) -> 0 | Q5: =IF(SUMIF($K$15:$K$128,SaisonDeb,$G$15:$G$128)>0,SUMIF($K$15:$K$128,SaisonDeb,$F$15:$F$128)/SUMIF($K$15:$K$128,SaisonDeb,$G$15:$G$128),"") ->  | R5: =SUM(R3:R4) -> 16 | S5: =IF(SUMIF($K$15:$K$128,SaisonFin,$G$15:$G$128)>0,SUMIF($K$15:$K$128,SaisonFin,$F$15:$F$128)/SUMIF($K$15:$K$128,SaisonFin,$G$15:$G$128),"") -> 0.9357739242 | T5: =SUM(T3:T4) -> 16 | U5: =IF(SUM($G$15:$G$128)>0,SUM($F$15:$F$128)/SUM($G$15:$G$128),"") -> 0.9357739242 | V5: =IF(SUMIF($K$15:$K$32,SaisonDeb,$G$15:$G$32)+SUMIF($K$15:$K$32,SaisonFin,$G$15:$G$32)>0,(SUMIF($K$15:$K$32,SaisonDeb,$F$15:$F$32)+SUMIF($K$15:$K$32,SaisonFin,$F$15:$F$32))/(SUMIF($K$15:$K$32,SaisonDeb,$G$15:$G$32)+SUMIF($K$15:$K$32,SaisonFin,$G$15:$G$32)),"") -> 0.9357739242
N6: Sets | O6: Gagnés | P6: =SUMIF($K$15:$K$128,SaisonDeb,$D$15:$D$128) -> 0 | Q6: =IF(P$6+P$7>0,P6/(P$6+P$7),"") ->  | R6: =SUMIF($K$15:$K$128,SaisonFin,$D$15:$D$128) -> 7 | S6: =IF(R$6+R$7>0,R6/(R$6+R$7),"") -> 0.4375 | T6: =SUM($D$15:$D$128) -> 7 | U6: =IF(T$6+T$7>0,T6/(T$6+T$7),"") -> 0.4375
O7: Perdus | P7: =SUMIF($K$15:$K$128,SaisonDeb,$E$15:$E$128) -> 0 | Q7: =IF(P$6+P$7>0,P7/(P$6+P$7),"") ->  | R7: =SUMIF($K$15:$K$128,SaisonFin,$E$15:$E$128) -> 9 | S7: =IF(R$6+R$7>0,R7/(R$6+R$7),"") -> 0.5625 | T7: =SUM($E$15:$E$128) -> 9 | U7: =IF(T$6+T$7>0,T7/(T$6+T$7),"") -> 0.5625
A8: Récapitulatif joueurs | O8: Total | P8: =SUM(P6:P7) -> 0 | R8: =SUM(R6:R7) -> 16 | T8: =SUM(T6:T7) -> 16
A15: Joueur | B15: Adversaire | C15: G/P | D15: Sets gagnés | E15: Sets perdus | F15: pts marqués | G15: pts subis | H15: Date | I15: Compétition | J15: Phase | K15: Saison
A16: BEGHIN Nicolas | B16: GEETS Patrice | C16: P | D16: 0 | E16: 1 | F16: 104 | G16: 120 | H16: 2022-09-24 | I16: T1 5Q N1 - ANNOEULLIN | J16: Qualifications | K16: =IF(H16<>"",IF(MONTH(H16)>MoisRef,YEAR(H16)&"-"&YEAR(H16)+1,YEAR(H16)-1&"-"&YEAR(H16)),"") -> 2022-2023 | P16: =IF($K16=P$1,COUNTIF($C16,"G"),0) -> 0 | R16: =IF($K16=R$1,COUNTIF($C16,"G"),0) -> 0
A17: BEGHIN Nicolas | B17: POULEYN André | C17: P | D17: 0 | E17: 1 | F17: 74 | G17: 120 | H17: 2022-09-24 | I17: T1 5Q N1 - ANNOEULLIN | J17: Qualifications | K17: 2022-2023 | P17: 0 | R17: 0
A18: BEGHIN Nicolas | B18: DEREUDDRE Dominique | C18: G | D18: 1 | E18: 0 | F18: 100 | G18: 71 | H18: 2022-09-24 | I18: T1 5Q N1 CONSOLANTE - ANNOEULLIN | J18: Qualifications | K18: 2022-2023 | P18: 0 | R18: 1
A19: BEGHIN Nicolas | B19: DEROLEZ Jean-Pierre | C19: G | D19: 1 | E19: 0 | F19: 100 | G19: 42 | H19: 2022-09-24 | I19: T1 5Q N1 CONSOLANTE - ANNOEULLIN | J19: Qualifications | K19: 2022-2023 | P19: 0 | R19: 1
A20: BEGHIN Nicolas | B20: DEVOS Jackie | C20: P | D20: 0 | E20: 1 | F20: 47 | G20: 120 | H20: 2022-10-30 | I20: T2 5Q N1 - GRAVELINES - Convocation 8h30 | J20: Qualifications | K20: 2022-2023 | P20: 0 | R20: 0
A21: BEGHIN Nicolas | B21: MAILLE Bernard | C21: P | D21: 0 | E21: 1 | F21: 92 | G21: 120 | H21: 2022-10-30 | I21: T2 5Q N1 - GRAVELINES - Convocation 8h30 | J21: Qualifications | K21: 2022-2023 | P21: 0 | R21: 0
A22: BEGHIN Nicolas | B22: DEREUDDRE Dominique | C22: G | D22: 1 | E22: 0 | F22: 100 | G22: 80 | H22: 2022-10-30 | I22: T2 5Q N1 - GRAVELINES - CONSOLANTE | J22: Qualifications | K22: 2022-2023 | P22: 0 | R22: 1
A23: BEGHIN Nicolas | B23: VEREECQUE Ryan | C23: G | D23: 1 | E23: 0 | F23: 100 | G23: 76 | H23: 2022-10-30 | I23: T2 5Q N1 - GRAVELINES - CONSOLANTE | J23: Qualifications | K23: 2022-2023 | P23: 0 | R23: 1
A24: BEGHIN Nicolas | B24: DEREUDDRE Dominique | C24: P | D24: 0 | E24: 1 | F24: 90 | G24: 100 | H24: 2023-02-04 | I24: T3 5Q N1 - GRAVELINES - CONSOLANTE | J24: Qualifications | K24: 2022-2023 | P24: 0 | R24: 0
A25: BEGHIN Nicolas | B25: LORTHIOIR Jean-Luc | C25: P | D25: 0 | E25: 1 | F25: 43 | G25: 100 | H25: 2023-02-04 | I25: T3 5Q N1 - GRAVELINES - CONSOLANTE | J25: Qualifications | K25: 2022-2023 | P25: 0 | R25: 0
A26: BEGHIN Nicolas | B26: VEREECQUE Esteban | C26: G | D26: 1 | E26: 0 | F26: 100 | G26: 93 | H26: 2023-02-04 | I26: T3 5Q N1 - GRAVELINES - CONSOLANTE | J26: Qualifications | K26: 2022-2023 | P26: 0 | R26: 1
A27: BEGHIN Nicolas | B27: MONFLIER Francis | C27: P | D27: 0 | E27: 1 | F27: 112 | G27: 120 | H27: 2023-02-04 | I27: T3 5Q N1 - GRAVELINES | J27: Qualifications | K27: 2022-2023 | P27: 0 | R27: 0
A28: BEGHIN Nicolas | B28: VEREECQUE Ludovic | C28: P | D28: 0 | E28: 1 | F28: 82 | G28: 120 | H28: 2023-02-04 | I28: T3 5Q N1 - GRAVELINES | J28: Qualifications | K28: 2022-2023 | P28: 0 | R28: 0
A29: BEGHIN Nicolas | B29: BEGHIN Benjamin | C29: G | D29: 1 | E29: 0 | F29: 120 | G29: 83 | H29: 2023-03-04 | I29: T4 5Q N1 - RONCHIN | J29: Qualifications | K29: 2022-2023 | P29: 0 | R29: 1
A30: BEGHIN Nicolas | B30: HERREBRECHT Emerick | C30: P | D30: 0 | E30: 1 | F30: 73 | G30: 120 | H30: 2023-03-04 | I30: T4 5Q N1 - RONCHIN | J30: 1/4 Finale | K30: 2022-2023 | P30: 0 | R30: 0
A31: BEGHIN Nicolas | B31: VEREECQUE Ryan | C31: G | D31: 1 | E31: 0 | F31: 120 | G31: 72 | H31: 2023-03-04 | I31: T4 5Q N1 - RONCHIN | J31: Qualifications | K31: 2022-2023 | P31: 0 | R31: 1
A32: Fin des données | P32: =IF($K32=P$1,COUNTIF($C32,"G"),0) -> 0 | R32: =IF($K32=R$1,COUNTIF($C32,"G"),0) -> 0

Sheet BELLENS Antoine
A1: BELLENS ANTOINE | P1: =SaisonDeb -> 2021-2022 | R1: =SaisonFin -> 2022-2023 | T1: Toutes saisons
P2: Nombre | Q2: %age | R2: Nombre | S2: %age | T2: Nombre | U2: %age
N3: Matchs | O3: Gagnés | P3: =SUM(P$15:P$141) -> 1 | Q3: =IF(P$3+P$4>0,P3/(P$3+P$4),"") -> 0.2 | R3: =SUM(R$15:R$141) -> 8 | S3: =IF(R$3+R$4>0,R3/(R$3+R$4),"") -> 0.3333333333 | T3: =COUNTIF($C$15:$C$141,"G") -> 9 | U3: =IF(T$3+T$4>0,T3/(T$3+T$4),"") -> 0.3103448276
O4: Perdus | P4: =COUNTIF($K$15:$M$141,SaisonDeb)-P3 -> 4 | Q4: =IF(P$3+P$4>0,P4/(P$3+P$4),"") -> 0.8 | R4: =COUNTIF($K$15:$K$141,SaisonFin)-R3 -> 16 | S4: =IF(R$3+R$4>0,R4/(R$3+R$4),"") -> 0.6666666667 | T4: =COUNTIF($C$15:$C$141,"P") -> 20 | U4: =IF(T$3+T$4>0,T4/(T$3+T$4),"") -> 0.6896551724
O5: Total / Moy. | P5: =SUM(P3:P4) -> 5 | Q5: =IF(SUMIF($K$15:$K$141,SaisonDeb,$G$15:$G$141)>0,SUMIF($K$15:$K$141,SaisonDeb,$F$15:$F$141)/SUMIF($K$15:$K$141,SaisonDeb,$G$15:$G$141),"") -> 0.7910447761 | R5: =SUM(R3:R4) -> 24 | S5: =IF(SUMIF($K$15:$K$141,SaisonFin,$G$15:$G$141)>0,SUMIF($K$15:$K$141,SaisonFin,$F$15:$F$141)/SUMIF($K$15:$K$141,SaisonFin,$G$15:$G$141),"") -> 0.9048760991 | T5: =SUM(T3:T4) -> 29 | U5: =IF(SUM($G$15:$G$141)>0,SUM($F$15:$F$141)/SUM($G$15:$G$141),"") -> 0.8869067654 | V5: =IF(SUMIF($K$15:$K$45,SaisonDeb,$G$15:$G$45)+SUMIF($K$15:$K$45,SaisonFin,$G$15:$G$45)>0,(SUMIF($K$15:$K$45,SaisonDeb,$F$15:$F$45)+SUMIF($K$15:$K$45,SaisonFin,$F$15:$F$45))/(SUMIF($K$15:$K$45,SaisonDeb,$G$15:$G$45)+SUMIF($K$15:$K$45,SaisonFin,$G$15:$G$45)),"") -> 0.8869067654
N6: Sets | O6: Gagnés | P6: =SUMIF($K$15:$K$141,SaisonDeb,$D$15:$D$141) -> 1 | Q6: =IF(P$6+P$7>0,P6/(P$6+P$7),"") -> 0.2 | R6: =SUMIF($K$15:$K$141,SaisonFin,$D$15:$D$141) -> 9 | S6: =IF(R$6+R$7>0,R6/(R$6+R$7),"") -> 0.3333333333 | T6: =SUM($D$15:$D$141) -> 10 | U6: =IF(T$6+T$7>0,T6/(T$6+T$7),"") -> 0.3125
O7: Perdus | P7: =SUMIF($K$15:$K$141,SaisonDeb,$E$15:$E$141) -> 4 | Q7: =IF(P$6+P$7>0,P7/(P$6+P$7),"") -> 0.8 | R7: =SUMIF($K$15:$K$141,SaisonFin,$E$15:$E$141) -> 18 | S7: =IF(R$6+R$7>0,R7/(R$6+R$7),"") -> 0.6666666667 | T7: =SUM($E$15:$E$141) -> 22 | U7: =IF(T$6+T$7>0,T7/(T$6+T$7),"") -> 0.6875
A8: Récapitulatif joueurs | O8: Total | P8: =SUM(P6:P7) -> 5 | R8: =SUM(R6:R7) -> 27 | T8: =SUM(T6:T7) -> 32
A15: Joueur | B15: Adversaire | C15: G/P | D15: Sets gagnés | E15: Sets perdus | F15: pts marqués | G15: pts subis | H15: Date | I15: Compétition | J15: Phase | K15: Saison
A16: BELLENS ANTOINE | B16: RACARY THIBAULT | C16: P | D16: 0 | E16: 1 | F16: 36 | G16: 100 | H16: 2021-11-05 | I16: TN2 GRAVELINES | J16: Préqualifications | K16: =IF(H16<>"",IF(MONTH(H16)>MoisRef,YEAR(H16)&"-"&YEAR(H16)+1,YEAR(H16)-1&"-"&YEAR(H16)),"") -> 2021-2022 | P16: =IF($K16=P$1,COUNTIF($C16,"G"),0) -> 0 | R16: =IF($K16=R$1,COUNTIF($C16,"G"),0) -> 0
A17: BELLENS ANTOINE | B17: DI LEO FRANCOIS | C17: P | D17: 0 | E17: 1 | F17: 79 | G17: 100 | H17: 2021-11-05 | I17: TN2 GRAVELINES | J17: Préqualifications | K17: 2021-2022 | P17: 0 | R17: 0
A18: BELLENS ANTOINE | B18: LEPAGE PATRICK | C18: P | D18: 0 | E18: 1 | F18: 97 | G18: 100 | H18: 2021-11-05 | I18: TN2 GRAVELINES | J18: Préqualifications | K18: 2021-2022 | P18: 0 | R18: 0
A19: BELLENS ANTOINE | B19: KERCRET GENEVIEVE | C19: G | D19: 1 | E19: 0 | F19: 100 | G19: 69 | H19: 2021-11-06 | I19: TN2 GRAVELINES | J19: BARRAGES Tournoi de classement | K19: 2021-2022 | P19: 1 | R19: 0
A20: BELLENS ANTOINE | B20: BAUDRY ALAIN | C20: P | D20: 0 | E20: 1 | F20: 59 | G20: 100 | H20: 2021-11-06 | I20: TN2 GRAVELINES | J20: 1/8è Tournoi de classement | K20: 2021-2022 | P20: 0 | R20: 0
A21: BELLENS Antoine | B21: CLYNCKE Jean-Jacques | C21: P | D21: 0 | E21: 1 | F21: 86 | G21: 120 | H21: 2022-09-24 | I21: T1 5Q N1 - ANNOEULLIN | J21: Qualifications | K21: 2022-2023 | P21: 0 | R21: 0
A22: BELLENS Antoine | B22: RACARY Thibault | C22: P | D22: 0 | E22: 1 | F22: 91 | G22: 120 | H22: 2022-09-24 | I22: T1 5Q N1 - ANNOEULLIN | J22: Qualifications | K22: 2022-2023 | P22: 0 | R22: 0
A23: BELLENS Antoine | B23: CLYNCKE Jean-Jacques | C23: P | D23: 0 | E23: 1 | F23: 86 | G23: 100 | H23: 2022-09-24 | I23: T1 5Q N1 CONSOLANTE - ANNOEULLIN | J23: Qualifications | K23: 2022-2023 | P23: 0 | R23: 0
A24: BELLENS Antoine | B24: MISSIAEN Jean-Luc | C24: P | D24: 0 | E24: 1 | F24: 93 | G24: 100 | H24: 2022-09-24 | I24: T1 5Q N1 CONSOLANTE - ANNOEULLIN | J24: Qualifications | K24: 2022-2023 | P24: 0 | R24: 0
A25: BELLENS Antoine | B25: DELSOL Philippe | C25: P | D25: 0 | E25: 1 | F25: 86 | G25: 120 | H25: 2022-10-30 | I25: T2 5Q N1 - GRAVELINES - Convocation 8h30 | J25: Qualifications | K25: 2022-2023 | P25: 0 | R25: 0
A26: BELLENS Antoine | B26: DEREUDDRE Dominique | C26: G | D26: 1 | E26: 0 | F26: 120 | G26: 65 | H26: 2022-10-30 | I26: T2 5Q N1 - GRAVELINES - Convocation 8h30 | J26: Qualifications | K26: 2022-2023 | P26: 0 | R26: 1
A27: BELLENS Antoine | B27: LORTHIOIR Jean-Luc | C27: P | D27: 0 | E27: 1 | F27: 91 | G27: 100 | H27: 2022-10-30 | I27: T2 5Q N1 - GRAVELINES - CONSOLANTE | J27: Qualifications | K27: 2022-2023 | P27: 0 | R27: 0
A28: BELLENS Antoine | B28: MAILLE Bernard | C28: P | D28: 0 | E28: 1 | F28: 33 | G28: 100 | H28: 2022-10-30 | I28: T2 5Q N1 - GRAVELINES - CONSOLANTE | J28: Qualifications | K28: 2022-2023 | P28: 0 | R28: 0
A29: BELLENS Antoine | B29: FOURRE CEDRIC | C29: P | D29: 0 | E29: 1 | F29: 58 | G29: 100 | H29: 2022-11-18 | I29: TN2 ANNOEULLIN | J29: Préqualifications | K29: 2022-2023 | P29: 0 | R29: 0
A30: BELLENS Antoine | B30: SACRE JEAN YVES | C30: G | D30: 1 | E30: 0 | F30: 100 | G30: 94 | H30: 2022-11-18 | I30: TN2 ANNOEULLIN | J30: Préqualifications | K30: 2022-2023 | P30: 0 | R30: 1
A31: BELLENS Antoine | B31: JUBLOT DENIS | C31: G | D31: 1 | E31: 0 | F31: 100 | G31: 64 | H31: 2022-11-18 | I31: TN2 ANNOEULLIN | J31: Préqualifications | K31: 2022-2023 | P31: 0 | R31: 1
A32: BELLENS Antoine | B32: GEETS PATRICE | C32: P | D32: 0 | E32: 1 | F32: 94 | G32: 120 | H32: 2022-11-19 | I32: TN2 ANNOEULLIN | J32: Qualifications National | K32: 2022-2023 | P32: 0 | R32: 0
A33: BELLENS Antoine | B33: GOUTALOY SYLVAIN | C33: P | D33: 0 | E33: 1 | F33: 92 | G33: 120 | H33: 2022-11-19 | I33: TN2 ANNOEULLIN | J33: Qualifications National | K33: 2022-2023 | P33: 0 | R33: 0
A34: BELLENS Antoine | B34: LEGRAND GUY | C34: P | D34: 0 | E34: 1 | F34: 49 | G34: 120 | H34: 2022-11-19 | I34: TN2 ANNOEULLIN | J34: Qualifications National | K34: 2022-2023 | P34: 0 | R34: 0
A35: BELLENS Antoine | B35: CLYNCKE Jean-Jacques | C35: G | D35: 1 | E35: 0 | F35: 120 | G35: 82 | H35: 2023-02-04 | I35: T3 5Q N1 - GRAVELINES | J35: Qualifications | K35: 2022-2023 | P35: 0 | R35: 1
A36: BELLENS Antoine | B36: DELSOL Philippe | C36: G | D36: 1 | E36: 0 | F36: 120 | G36: 115 | H36: 2023-02-04 | I36: T3 5Q N1 - GRAVELINES | J36: Qualifications | K36: 2022-2023 | P36: 0 | R36: 1
A37: BELLENS Antoine | B37: POULEYN André | C37: G | D37: 1 | E37: 0 | F37: 120 | G37: 47 | H37: 2023-02-04 | I37: T3 5Q N1 - GRAVELINES | J37: 1/4 Finale | K37: 2022-2023 | P37: 0 | R37: 1
A38: BELLENS Antoine | B38: RACARY Thibault | C38: P | D38: 0 | E38: 1 | F38: 40 | G38: 120 | H38: 2023-02-04 | I38: T3 5Q N1 - GRAVELINES | J38: 1/2 Finale | K38: 2022-2023 | P38: 0 | R38: 0
A39: BELLENS Antoine | B39: GOSSART Jean-Yves | C39: G | D39: 1 | E39: 0 | F39: 120 | G39: 100 | H39: 2023-03-04 | I39: T4 5Q N1 - RONCHIN | J39: 1/4 Finale | K39: 2022-2023 | P39: 0 | R39: 1
A40: BELLENS Antoine | B40: HERREBRECHT Emerick | C40: P | D40: 0 | E40: 1 | F40: 116 | G40: 120 | H40: 2023-03-04 | I40: T4 5Q N1 - RONCHIN | J40: Qualifications | K40: 2022-2023 | P40: 0 | R40: 0
A41: BELLENS Antoine | B41: HERREBRECHT Emerick | C41: G | D41: 1 | E41: 0 | F41: 120 | G41: 83 | H41: 2023-03-04 | I41: T4 5Q N1 - RONCHIN | J41: Qualifications | K41: 2022-2023 | P41: 0 | R41: 1
A42: BELLENS Antoine | B42: HERREBRECHT Emerick | C42: P | D42: 0 | E42: 1 | F42: 106 | G42: 120 | H42: 2023-03-04 | I42: T4 5Q N1 - RONCHIN | J42: 1/2 Finale | K42: 2022-2023 | P42: 0 | R42: 0
A43: BELLENS Antoine | B43: HERREBRECHT Emerick | C43: P | D43: 0 | E43: 2 | F43: 78 | G43: 120 | H43: 2023-04-16 | I43: Finale CD59 5Q N1 - GRAVELINES | J43: Qualifications | K43: 2022-2023 | P43: 0 | R43: 0
A44: BELLENS Antoine | B44: MAILLE Bernard | C44: P | D44: 1 | E44: 2 | F44: 145 | G44: 152 | H44: 2023-04-16 | I44: Finale CD59 5Q N1 - GRAVELINES | J44: Qualifications | K44: 2022-2023 | P44: 0 | R44: 0
A45: Fin des données | P45: 0 | R45: 0

Sheet BLONDEEL Firmin
A1: BLONDEEL Firmin | P1: =SaisonDeb -> 2021-2022 | R1: =SaisonFin -> 2022-2023 | T1: Toutes saisons
P2: Nombre | Q2: %age | R2: Nombre | S2: %age | T2: Nombre | U2: %age
N3: Matchs | O3: Gagnés | P3: =SUM(P$15:P$157) -> 0 | Q3: =IF(P$3+P$4>0,P3/(P$3+P$4),"") ->  | R3: =SUM(R$15:R$157) -> 0 | S3: =IF(R$3+R$4>0,R3/(R$3+R$4),"") ->  | T3: =COUNTIF($C$15:$C$157,"G") -> 29 | U3: =IF(T$3+T$4>0,T3/(T$3+T$4),"") -> 0.6444444444
O4: Perdus | P4: =COUNTIF($K$15:$M$157,SaisonDeb)-P3 -> 0 | Q4: =IF(P$3+P$4>0,P4/(P$3+P$4),"") ->  | R4: =COUNTIF($K$15:$K$157,SaisonFin)-R3 -> 0 | S4: =IF(R$3+R$4>0,R4/(R$3+R$4),"") ->  | T4: =COUNTIF($C$15:$C$157,"P") -> 16 | U4: =IF(T$3+T$4>0,T4/(T$3+T$4),"") -> 0.3555555556
O5: Total / Moy. | P5: =SUM(P3:P4) -> 0 | Q5: =IF(SUMIF($K$15:$K$157,SaisonDeb,$G$15:$G$157)>0,SUMIF($K$15:$K$157,SaisonDeb,$F$15:$F$157)/SUMIF($K$15:$K$157,SaisonDeb,$G$15:$G$157),"") ->  | R5: =SUM(R3:R4) -> 0 | S5: =IF(SUMIF($K$15:$K$157,SaisonFin,$G$15:$G$157)>0,SUMIF($K$15:$K$157,SaisonFin,$F$15:$F$157)/SUMIF($K$15:$K$157,SaisonFin,$G$15:$G$157),"") ->  | T5: =SUM(T3:T4) -> 45 | U5: =IF(SUM($G$15:$G$157)>0,SUM($F$15:$F$157)/SUM($G$15:$G$157),"") -> 1.149335695 | V5: =IF(SUMIF($K$15:$K$61,SaisonDeb,$G$15:$G$61)+SUMIF($K$15:$K$61,SaisonFin,$G$15:$G$61)>0,(SUMIF($K$15:$K$61,SaisonDeb,$F$15:$F$61)+SUMIF($K$15:$K$61,SaisonFin,$F$15:$F$61))/(SUMIF($K$15:$K$61,SaisonDeb,$G$15:$G$61)+SUMIF($K$15:$K$61,SaisonFin,$G$15:$G$61)),"") -> 
N6: Sets | O6: Gagnés | P6: =SUMIF($K$15:$K$157,SaisonDeb,$D$15:$D$157) -> 0 | Q6: =IF(P$6+P$7>0,P6/(P$6+P$7),"") ->  | R6: =SUMIF($K$15:$K$157,SaisonFin,$D$15:$D$157) -> 0 | S6: =IF(R$6+R$7>0,R6/(R$6+R$7),"") ->  | T6: =SUM($D$15:$D$157) -> 74 | U6: =IF(T$6+T$7>0,T6/(T$6+T$7),"") -> 0.6016260163
O7: Perdus | P7: =SUMIF($K$15:$K$157,SaisonDeb,$E$15:$E$157) -> 0 | Q7: =IF(P$6+P$7>0,P7/(P$6+P$7),"") ->  | R7: =SUMIF($K$15:$K$157,SaisonFin,$E$15:$E$157) -> 0 | S7: =IF(R$6+R$7>0,R7/(R$6+R$7),"") ->  | T7: =SUM($E$15:$E$157) -> 49 | U7: =IF(T$6+T$7>0,T7/(T$6+T$7),"") -> 0.3983739837
A8: Récapitulatif joueurs | O8: Total | P8: =SUM(P6:P7) -> 0 | R8: =SUM(R6:R7) -> 0 | T8: =SUM(T6:T7) -> 123
AD13: =Q13+P13 -> 0 | AE13: =INDEX([1]Classification!$AG$1:$AG$65536,MATCH(A13,[1]Classification!$E$1:$E$65536,0),1) -> 
AD14: =Q14+P14 -> 0 | AE14: =INDEX([1]Classification!$AG$1:$AG$65536,MATCH(A14,[1]Classification!$E$1:$E$65536,0),1) -> 
A15: Joueur | B15: Adversaire | C15: G/P | D15: Sets gagnés | E15: Sets perdus | F15: pts marqués | G15: pts subis | H15: Date | I15: Compétition | J15: Phase | K15: Saison | AD15: 0 | AE15: =INDEX([1]Classification!$AG$1:$AG$65536,MATCH(A15,[1]Classification!$E$1:$E$65536,0),1) -> 
A16: BLONDEEL Firmin | B16: LEFEBVRE Julien | C16: G | D16: 3 | E16: 0 | F16: 180 | G16: 87 | H16: 42000 | I16: CF Juniors | J16: Poules | K16: =IF(H16<>"",IF(MONTH(H16)>MoisRef,YEAR(H16)&"-"&YEAR(H16)+1,YEAR(H16)-1&"-"&YEAR(H16)),"") -> 2014-2015 | P16: =IF($K16=P$1,COUNTIF($C16,"G"),0) -> 0 | R16: =IF($K16=R$1,COUNTIF($C16,"G"),0) -> 0 | AD16: 0 | AE16: =INDEX([1]Classification!$AG$1:$AG$65536,MATCH(A16,[1]Classification!$E$1:$E$65536,0),1) -> N1 np
A17: BLONDEEL Firmin | B17: TRIVELLIN Stéphane | C17: G | D17: 3 | E17: 1 | F17: 212 | G17: 171 | H17: 42000 | I17: CF Juniors | J17: Poules | K17: 2014-2015 | P17: 0 | R17: 0 | AD17: 0 | AE17: =INDEX([1]Classification!$AG$1:$AG$65536,MATCH(A17,[1]Classification!$E$1:$E$65536,0),1) -> N1 np
A18: BLONDEEL Firmin | B18: Joueur Blanc | C18: G | D18: 3 | E18: 0 | F18: 180 | G18: 105 | H18: 42000 | I18: CF Juniors | J18: Poules | K18: 2014-2015 | P18: 0 | R18: 0 | AD18: 0 | AE18: =INDEX([1]Classification!$AG$1:$AG$65536,MATCH(A18,[1]Classification!$E$1:$E$65536,0),1) -> N1 np
A19: BLONDEEL Firmin | B19: TRIVELLIN Stéphane | C19: G | D19: 3 | E19: 1 | F19: 228 | G19: 190 | H19: 42000 | I19: CF Juniors | J19: 1/4 finale | K19: 2014-2015 | P19: 0 | R19: 0 | AD19: 0 | AE19: =INDEX([1]Classification!$AG$1:$AG$65536,MATCH(A19,[1]Classification!$E$1:$E$65536,0),1) -> N1 np
A20: BLONDEEL Firmin | B20: AUBERT Jordan | C20: G | D20: 3 | E20: 2 | F20: 247 | G20: 240 | H20: 42000 | I20: CF Juniors | J20: 1/2 finale | K20: 2014-2015 | P20: 0 | R20: 0 | AD20: 0 | AE20: =INDEX([1]Classification!$AG$1:$AG$65536,MATCH(A20,[1]Classification!$E$1:$E$65536,0),1) -> N1 np
A21: BLONDEEL Firmin | B21: ROUBY Guillaume | C21: P | D21: 0 | E21: 3 | F21: 89 | G21: 180 | H21: 42000 | I21: CF Juniors | J21: Finale | K21: 2014-2015 | P21: 0 | R21: 0 | AD21: 0 | AE21: =INDEX([1]Classification!$AG$1:$AG$65536,MATCH(A21,[1]Classification!$E$1:$E$65536,0),1) -> N1 np
A22: BLONDEEL Firmin | B22: REBELO Joaquim | C22: P | D22: 0 | E22: 2 | F22: 75 | G22: 120 | H22: 42349 | I22: National T3 FACHES THUMESNIL - RONCHIN | J22: Préqualifs | K22: 2015-2016 | P22: 0 | R22: 0 | AD22: 0 | AE22: =INDEX([1]Classification!$AG$1:$AG$65536,MATCH(A22,[1]Classification!$E$1:$E$65536,0),1) -> N1 np
A23: BLONDEEL Firmin | B23: GOUTHIER Alain | C23: P | D23: 1 | E23: 2 | F23: 165 | G23: 165 | H23: 42349 | I23: National T3 FACHES THUMESNIL - RONCHIN | J23: Préqualifs | K23: 2015-2016 | P23: 0 | R23: 0 | AD23: 0 | AE23: =INDEX([1]Classification!$AG$1:$AG$65536,MATCH(A23,[1]Classification!$E$1:$E$65536,0),1) -> N1 np
A24: BLONDEEL Firmin | B24: LEGRAND Guy | C24: P | D24: 0 | E24: 2 | F24: 98 | G24: 120 | H24: 42349 | I24: National T3 FACHES THUMESNIL - RONCHIN | J24: Préqualifs | K24: 2015-2016 | P24: 0 | R24: 0 | AD24: 0 | AE24: =INDEX([1]Classification!$AG$1:$AG$65536,MATCH(A24,[1]Classification!$E$1:$E$65536,0),1) -> N1 np
A25: BLONDEEL Firmin | B25: BOUVIER Philippe | C25: P | D25: 0 | E25: 2 | F25: 96 | G25: 120 | H25: 42433 | I25: National T5 GRAVELINES | J25: Préqualifs | K25: 2015-2016 | P25: 0 | R25: 0 | AD25: 0 | AE25: =INDEX([1]Classification!$AG$1:$AG$65536,MATCH(A25,[1]Classification!$E$1:$E$65536,0),1) -> N1 np
A26: BLONDEEL Firmin | B26: BONNEAU Benoît | C26: P | D26: 0 | E26: 2 | F26: 79 | G26: 120 | H26: 42433 | I26: National T5 GRAVELINES | J26: Préqualifs | K26: 2015-2016 | P26: 0 | R26: 0 | AD26: 0 | AE26: =INDEX([1]Classification!$AG$1:$AG$65536,MATCH(A26,[1]Classification!$E$1:$E$65536,0),1) -> N1 np
A27: BLONDEEL Firmin | B27: SAINT-GEORGES Claude | C27: P | D27: 0 | E27: 2 | F27: 64 | G27: 120 | H27: 42433 | I27: National T5 GRAVELINES | J27: Préqualifs | K27: 2015-2016 | P27: 0 | R27: 0 | AD27: 0 | AE27: =INDEX([1]Classification!$AG$1:$AG$65536,MATCH(A27,[1]Classification!$E$1:$E$65536,0),1) -> N1 np
A28: BLONDEEL Firmin | B28: CARTIERE André | C28: G | D28: 2 | E28: 0 | F28: 120 | G28: 29 | H28: 43408 | I28: T1 5 QUILLES N1 CD62 - CUCQ | J28: Qualifications | K28: 2018-2019 | P28: 0 | R28: 0 | AD28: 0 | AE28: =INDEX([1]Classification!$AG$1:$AG$65536,MATCH(A28,[1]Classification!$E$1:$E$65536,0),1) -> N1 np
A29: BLONDEEL Firmin | B29: LAKBAL Johnny | C29: P | D29: 1 | E29: 2 | F29: 161 | G29: 156 | H29: 43408 | I29: T1 5 QUILLES N1 CD62 - CUCQ | J29: 1/2 Finale | K29: 2018-2019 | P29: 0 | R29: 0 | AD29: 0 | AE29: =INDEX([1]Classification!$AG$1:$AG$65536,MATCH(A29,[1]Classification!$E$1:$E$65536,0),1) -> N1 np
A30: BLONDEEL Firmin | B30: RAMET Jacques | C30: G | D30: 2 | E30: 0 | F30: 120 | G30: 31 | H30: 43408 | I30: T1 5 QUILLES N1 CD62 - CUCQ | J30: Qualifications | K30: 2018-2019 | P30: 0 | R30: 0 | AD30: 0 | AE30: =INDEX([1]Classification!$AG$1:$AG$65536,MATCH(A30,[1]Classification!$E$1:$E$65536,0),1) -> N1 np
A31: BLONDEEL Firmin | B31: DEPLECHIN Robert | C31: G | D31: 2 | E31: 0 | F31: 120 | G31: 65 | H31: 43428 | I31: T2 5 QUILLES N1 CD62 - DIVION | J31: Finale | K31: 2018-2019 | P31: 0 | R31: 0 | AD31: 0 | AE31: =INDEX([1]Classification!$AG$1:$AG$65536,MATCH(A31,[1]Classification!$E$1:$E$65536,0),1) -> N1 np
A32: BLONDEEL Firmin | B32: LAKBAL Johnny | C32: G | D32: 2 | E32: 0 | F32: 120 | G32: 53 | H32: 43428 | I32: T2 5 QUILLES N1 CD62 - DIVION | J32: 1/2 Finale | K32: 2018-2019 | P32: 0 | R32: 0 | AD32: 0 | AE32: =INDEX([1]Classification!$AG$1:$AG$65536,MATCH(A32,[1]Classification!$E$1:$E$65536,0),1) -> N1 np
A33: BLONDEEL Firmin | B33: MARTEL Bruno | C33: G | D33: 2 | E33: 0 | F33: 120 | G33: 60 | H33: 43428 | I33: T2 5 QUILLES N1 CD62 - DIVION | J33: Qualifications | K33: 2018-2019 | P33: 0 | R33: 0 | AD33: 0 | AE33: =INDEX([1]Classification!$AG$1:$AG$65536,MATCH(A33,[1]Classification!$E$1:$E$65536,0),1) -> N1 np
A34: BLONDEEL Firmin | B34: TRIPLET Freddy | C34: G | D34: 2 | E34: 0 | F34: 120 | G34: 83 | H34: 43428 | I34: T2 5 QUILLES N1 CD62 - DIVION | J34: Qualifications | K34: 2018-2019 | P34: 0 | R34: 0 | AD34: 0 | AE34: =INDEX([1]Classification!$AG$1:$AG$65536,MATCH(A34,[1]Classification!$E$1:$E$65536,0),1) -> N1 np
A35: BLONDEEL Firmin | B35: DEPLECHIN Robert | C35: P | D35: 0 | E35: 2 | F35: 89 | G35: 120 | H35: 43443 | I35: T3 5Q Qualif N1 Wimille CD62 - Wimille | J35: Finale | K35: 2018-2019 | P35: 0 | R35: 0 | AD35: 0 | AE35: =INDEX([1]Classification!$AG$1:$AG$65536,MATCH(A35,[1]Classification!$E$1:$E$65536,0),1) -> N1 np
A36: BLONDEEL Firmin | B36: DEPLECHIN Roland | C36: G | D36: 2 | E36: 0 | F36: 120 | G36: 66 | H36: 43443 | I36: T3 5Q Qualif N1 Wimille CD62 - Wimille | J36: Qualifications | K36: 2018-2019 | P36: 0 | R36: 0 | AD36: 0 | AE36: =INDEX([1]Classification!$AG$1:$AG$65536,MATCH(A36,[1]Classification!$E$1:$E$65536,0),1) -> N1 np
A37: BLONDEEL Firmin | B37: DEPLECHIN Roland | C37: G | D37: 2 | E37: 0 | F37: 120 | G37: 88 | H37: 43443 | I37: T3 5Q Qualif N1 Wimille CD62 - Wimille | J37: Qualifications | K37: 2018-2019 | P37: 0 | R37: 0 | AD37: 0 | AE37: =INDEX([1]Classification!$AG$1:$AG$65536,MATCH(A37,[1]Classification!$E$1:$E$65536,0),1) -> N1 np
A38: BLONDEEL Firmin | B38: MARTEL Bruno | C38: G | D38: 2 | E38: 0 | F38: 120 | G38: 96 | H38: 43443 | I38: T3 5Q Qualif N1 Wimille CD62 - Wimille | J38: 1/2 Finale | K38: 2018-2019 | P38: 0 | R38: 0 | AD38: 0 | AE38: =INDEX([1]Classification!$AG$1:$AG$65536,MATCH(A38,[1]Classification!$E$1:$E$65536,0),1) -> N1 np
A39: BLONDEEL Firmin | B39: CARTIERE André | C39: G | D39: 2 | E39: 1 | F39: 143 | G39: 115 | H39: 43470 | I39: T4 5Q Qualif N1 Cucq CD62 - Cucq | J39: 1/2 Finale | K39: 2018-2019 | P39: 0 | R39: 0 | AD39: 0 | AE39: =INDEX([1]Classification!$AG$1:$AG$65536,MATCH(A39,[1]Classification!$E$1:$E$65536,0),1) -> N1 np
A40: BLONDEEL Firmin | B40: DEPLECHIN Roland | C40: G | D40: 2 | E40: 1 | F40: 177 | G40: 123 | H40: 43470 | I40: T4 5Q Qualif N1 Cucq CD62 - Cucq | J40: Qualifications | K40: 2018-2019 | P40: 0 | R40: 0 | AD40: 0 | AE40: =INDEX([1]Classification!$AG$1:$AG$65536,MATCH(A40,[1]Classification!$E$1:$E$65536,0),1) -> N1 np
A41: BLONDEEL Firmin | B41: FLAHAUT GHISLAIN | C41: G | D41: 2 | E41: 0 | F41: 120 | G41: 46 | H41: 43470 | I41: T4 5Q Qualif N1 Cucq CD62 - Cucq | J41: Qualifications | K41: 2018-2019 | P41: 0 | R41: 0 | AD41: 0 | AE41: =INDEX([1]Classification!$AG$1:$AG$65536,MATCH(A41,[1]Classification!$E$1:$E$65536,0),1) -> N1 np
A42: BLONDEEL Firmin | B42: FONTAINE Christian | C42: P | D42: 1 | E42: 2 | F42: 164 | G42: 164 | H42: 43470 | I42: T4 5Q Qualif N1 Cucq CD62 - Cucq | J42: Finale | K42: 2018-2019 | P42: 0 | R42: 0 | AD42: 0 | AE42: =INDEX([1]Classification!$AG$1:$AG$65536,MATCH(A42,[1]Classification!$E$1:$E$65536,0),1) -> N1 np
A43: BLONDEEL Firmin | B43: DEPLECHIN Robert | C43: G | D43: 3 | E43: 2 | F43: 291 | G43: 218 | H43: 43520 | I43: Finale N1 CD62 Divion - Divion | J43: Poule unique | K43: 2018-2019 | P43: 0 | R43: 0 | AD43: 0 | AE43: =INDEX([1]Classification!$AG$1:$AG$65536,MATCH(A43,[1]Classification!$E$1:$E$65536,0),1) -> N1 np
A44: BLONDEEL Firmin | B44: LAKBAL Johnny | C44: G | D44: 3 | E44: 0 | F44: 180 | G44: 109 | H44: 43520 | I44: Finale N1 CD62 Divion - Divion | J44: Poule unique | K44: 2018-2019 | P44: 0 | R44: 0 | AD44: 0 | AE44: =INDEX([1]Classification!$AG$1:$AG$65536,MATCH(A44,[1]Classification!$E$1:$E$65536,0),1) -> N1 np
A45: BLONDEEL Firmin | B45: TRIPLET Gilbert | C45: G | D45: 3 | E45: 0 | F45: 180 | G45: 112 | H45: 43520 | I45: Finale N1 CD62 Divion - Divion | J45: Poule unique | K45: 2018-2019 | P45: 0 | R45: 0 | AD45: 0 | AE45: =INDEX([1]Classification!$AG$1:$AG$65536,MATCH(A45,[1]Classification!$E$1:$E$65536,0),1) -> N1 np
A46: BLONDEEL Firmin | B46: BONNEAU Benoit | C46: P | D46: 0 | E46: 3 | F46: 136 | G46: 180 | H46: 43541 | I46: Finale LIGUE 5 quilles N1 - ANNOEULLIN | J46: Poule unique | K46: 2018-2019 | P46: 0 | R46: 0 | AD46: 0 | AE46: =INDEX([1]Classification!$AG$1:$AG$65536,MATCH(A46,[1]Classification!$E$1:$E$65536,0),1) -> N1 np
A47: BLONDEEL Firmin | B47: DUPONT Fabrice | C47: G | D47: 3 | E47: 1 | F47: 202 | G47: 182 | H47: 43541 | I47: Finale LIGUE 5 quilles N1 - ANNOEULLIN | J47: Poule unique | K47: 2018-2019 | P47: 0 | R47: 0 | AD47: 0 | AE47: =INDEX([1]Classification!$AG$1:$AG$65536,MATCH(A47,[1]Classification!$E$1:$E$65536,0),1) -> N1 np
A48: BLONDEEL Firmin | B48: MAILLE Bernard | C48: P | D48: 1 | E48: 3 | F48: 188 | G48: 230 | H48: 43541 | I48: Finale LIGUE 5 quilles N1 - ANNOEULLIN | J48: Poule unique | K48: 2018-2019 | P48: 0 | R48: 0 | AD48: 0 | AE48: =INDEX([1]Classification!$AG$1:$AG$65536,MATCH(A48,[1]Classification!$E$1:$E$65536,0),1) -> N1 np
A49: BLONDEEL Firmin | B49: VASSEUR Cedric | C49: P | D49: 1 | E49: 3 | F49: 199 | G49: 235 | H49: 43541 | I49: Finale LIGUE 5 quilles N1 - ANNOEULLIN | J49: Poule unique | K49: 2018-2019 | P49: 0 | R49: 0 | AD49: 0 | AE49: =INDEX([1]Classification!$AG$1:$AG$65536,MATCH(A49,[1]Classification!$E$1:$E$65536,0),1) -> N1 np
A50: BLONDEEL Firmin | B50: CARTIERE André | C50: G | D50: 2 | E50: 0 | F50: 120 | G50: 66 | H50: 43849 | I50: T1 Qualifications CD62 N1 - CUCQ | J50: Qualifications | K50: 2019-2020 | P50: 0 | R50: 0 | AD50: 0 | AE50: =INDEX([1]Classification!$AG$1:$AG$65536,MATCH(A50,[1]Classification!$E$1:$E$65536,0),1) -> N1 np
A51: BLONDEEL Firmin | B51: DEPLECHIN Roland | C51: G | D51: 2 | E51: 1 | F51: 145 | G51: 125 | H51: 43849 | I51: T1 Qualifications CD62 N1 - CUCQ | J51: Finale | K51: 2019-2020 | P51: 0 | R51: 0 | AD51: 0 | AE51: =INDEX([1]Classification!$AG$1:$AG$65536,MATCH(A51,[1]Classification!$E$1:$E$65536,0),1) -> N1 np
A52: BLONDEEL Firmin | B52: FONTAINE Christian | C52: G | D52: 2 | E52: 0 | F52: 120 | G52: 93 | H52: 43849 | I52: T1 Qualifications CD62 N1 - CUCQ | J52: 1/2 Finale | K52: 2019-2020 | P52: 0 | R52: 0 | AD52: 0 | AE52: =INDEX([1]Classification!$AG$1:$AG$65536,MATCH(A52,[1]Classification!$E$1:$E$65536,0),1) -> N1 np
A53: BLONDEEL Firmin | B53: RAMET Jacques | C53: G | D53: 2 | E53: 0 | F53: 120 | G53: 55 | H53: 43849 | I53: T1 Qualifications CD62 N1 - CUCQ | J53: Qualifications | K53: 2019-2020 | P53: 0 | R53: 0 | AD53: 0 | AE53: =INDEX([1]Classification!$AG$1:$AG$65536,MATCH(A53,[1]Classification!$E$1:$E$65536,0),1) -> N1 np
A54: BLONDEEL Firmin | B54: CARTIERE André | C54: G | D54: 2 | E54: 0 | F54: 120 | G54: 73 | H54: 43870 | I54: T2 Qualifications CD62 N1 - WIMILLE | J54: Qualifications | K54: 2019-2020 | P54: 0 | R54: 0 | AD54: 0 | AE54: =INDEX([1]Classification!$AG$1:$AG$65536,MATCH(A54,[1]Classification!$E$1:$E$65536,0),1) -> N1 np
A55: BLONDEEL Firmin | B55: MONTADOR Ludovic | C55: P | D55: 1 | E55: 2 | F55: 137 | G55: 140 | H55: 43870 | I55: T2 Qualifications CD62 N1 - WIMILLE | J55: Qualifications | K55: 2019-2020 | P55: 0 | R55: 0 | AD55: 0 | AE55: =INDEX([1]Classification!$AG$1:$AG$65536,MATCH(A55,[1]Classification!$E$1:$E$65536,0),1) -> N1 np
A56: BLONDEEL Firmin | B56: MONTADOR Ludovic | C56: G | D56: 2 | E56: 1 | F56: 168 | G56: 172 | H56: 43870 | I56: T2 Qualifications CD62 N1 - WIMILLE | J56: 1/2 Finale | K56: 2019-2020 | P56: 0 | R56: 0 | AD56: 0 | AE56: =INDEX([1]Classification!$AG$1:$AG$65536,MATCH(A56,[1]Classification!$E$1:$E$65536,0),1) -> N1 np
A57: BLONDEEL Firmin | B57: TRIPLET Gilbert | C57: P | D57: 1 | E57: 2 | F57: 144 | G57: 177 | H57: 43870 | I57: T2 Qualifications CD62 N1 - WIMILLE | J57: Finale | K57: 2019-2020 | P57: 0 | R57: 0 | AD57: 0 | AE57: =INDEX([1]Classification!$AG$1:$AG$65536,MATCH(A57,[1]Classification!$E$1:$E$65536,0),1) -> N1 np
A58: BLONDEEL Firmin | B58: FONTAINE Christian | C58: G | D58: 2 | E58: 1 | F58: 157 | G58: 154 | H58: 43898 | I58: T3 Qualifications CD62 N1 - DIVION | J58: Qualifications | K58: 2019-2020 | P58: 0 | R58: 0 | AD58: 0 | AE58: =INDEX([1]Classification!$AG$1:$AG$65536,MATCH(A58,[1]Classification!$E$1:$E$65536,0),1) -> N1 np
A59: BLONDEEL Firmin | B59: MONTADOR Christophe | C59: G | D59: 2 | E59: 1 | F59: 157 | G59: 171 | H59: 43898 | I59: T3 Qualifications CD62 N1 - DIVION | J59: Qualifications | K59: 2019-2020 | P59: 0 | R59: 0 | AD59: 0 | AE59: =INDEX([1]Classification!$AG$1:$AG$65536,MATCH(A59,[1]Classification!$E$1:$E$65536,0),1) -> N1 np
A60: BLONDEEL Firmin | B60: MONTADOR Ludovic | C60: P | D60: 0 | E60: 2 | F60: 77 | G60: 120 | H60: 43898 | I60: T3 Qualifications CD62 N1 - DIVION | J60: 1/2 Finale | K60: 2019-2020 | P60: 0 | R60: 0 | AD60: 0 | AE60: =INDEX([1]Classification!$AG$1:$AG$65536,MATCH(A60,[1]Classification!$E$1:$E$65536,0),1) -> N1 np
A61: Fin des données | P61: =IF($K61=P$1,COUNTIF($C61,"G"),0) -> 0 | R61: =IF($K61=R$1,COUNTIF($C61,"G"),0) -> 0 | AD61: 0 | AE61: =INDEX([1]Classification!$AG$1:$AG$65536,MATCH(A61,[1]Classification!$E$1:$E$65536,0),1) -> 
AD62: 0 | AE62: =INDEX([1]Classification!$AG$1:$AG$65536,MATCH(A62,[1]Classification!$E$1:$E$65536,0),1) -> 
AD63: 0 | AE63: =INDEX([1]Classification!$AG$1:$AG$65536,MATCH(A63,[1]Classification!$E$1:$E$65536,0),1) -> 
AD64: 0 | AE64: =INDEX([1]Classification!$AG$1:$AG$65536,MATCH(A64,[1]Classification!$E$1:$E$65536,0),1) -> 
AD65: 0 | AE65: =INDEX([1]Classification!$AG$1:$AG$65536,MATCH(A65,[1]Classification!$E$1:$E$65536,0),1) -> 
AD66: 0 | AE66: =INDEX([1]Classification!$AG$1:$AG$65536,MATCH(A66,[1]Classification!$E$1:$E$65536,0),1) -> 
AD67: 0 | AE67: =INDEX([1]Classification!$AG$1:$AG$65536,MATCH(A67,[1]Classification!$E$1:$E$65536,0),1) -> 
AD68: 0 | AE68: =INDEX([1]Classification!$AG$1:$AG$65536,MATCH(A68,[1]Classification!$E$1:$E$65536,0),1) -> 
AD69: 0 | AE69: =INDEX([1]Classification!$AG$1:$AG$65536,MATCH(A69,[1]Classification!$E$1:$E$65536,0),1) -> 
AD70: 0 | AE70: =INDEX([1]Classification!$AG$1:$AG$65536,MATCH(A70,[1]Classification!$E$1:$E$65536,0),1) -> 
AD71: 0 | AE71: =INDEX([1]Classification!$AG$1:$AG$65536,MATCH(A71,[1]Classification!$E$1:$E$65536,0),1) -> 
AD72: 0 | AE72: =INDEX([1]Classification!$AG$1:$AG$65536,MATCH(A72,[1]Classification!$E$1:$E$65536,0),1) -> 
AD73: 0 | AE73: =INDEX([1]Classification!$AG$1:$AG$65536,MATCH(A73,[1]Classification!$E$1:$E$65536,0),1) -> 
AD74: 0 | AE74: =INDEX([1]Classification!$AG$1:$AG$65536,MATCH(A74,[1]Classification!$E$1:$E$65536,0),1) -> 
AD75: 0 | AE75: =INDEX([1]Classification!$AG$1:$AG$65536,MATCH(A75,[1]Classification!$E$1:$E$65536,0),1) -> 
AD76: 0 | AE76: =INDEX([1]Classification!$AG$1:$AG$65536,MATCH(A76,[1]Classification!$E$1:$E$65536,0),1) -> 
AD77: 0 | AE77: =INDEX([1]Classification!$AG$1:$AG$65536,MATCH(A77,[1]Classification!$E$1:$E$65536,0),1) -> 
AD78: =Q78+P78 -> 0 | AE78: =INDEX([1]Classification!$AG$1:$AG$65536,MATCH(A78,[1]Classification!$E$1:$E$65536,0),1) -> 
AD79: 0 | AE79: =INDEX([1]Classification!$AG$1:$AG$65536,MATCH(A79,[1]Classification!$E$1:$E$65536,0),1) -> 
AD80: 0 | AE80: =INDEX([1]Classification!$AG$1:$AG$65536,MATCH(A80,[1]Classification!$E$1:$E$65536,0),1) -> 
AD81: 0 | AE81: =INDEX([1]Classification!$AG$1:$AG$65536,MATCH(A81,[1]Classification!$E$1:$E$65536,0),1) -> 
AD82: 0 | AE82: =INDEX([1]Classification!$AG$1:$AG$65536,MATCH(A82,[1]Classification!$E$1:$E$65536,0),1) -> 
AD83: 0 | AE83: =INDEX([1]Classification!$AG$1:$AG$65536,MATCH(A83,[1]Classification!$E$1:$E$65536,0),1) -> 
AD84: 0 | AE84: =INDEX([1]Classification!$AG$1:$AG$65536,MATCH(A84,[1]Classification!$E$1:$E$65536,0),1) -> 
AD85: 0 | AE85: =INDEX([1]Classification!$AG$1:$AG$65536,MATCH(A85,[1]Classification!$E$1:$E$65536,0),1) -> 
AD86: 0 | AE86: =INDEX([1]Classification!$AG$1:$AG$65536,MATCH(A86,[1]Classification!$E$1:$E$65536,0),1) -> 
AD87: 0 | AE87: =INDEX([1]Classification!$AG$1:$AG$65536,MATCH(A87,[1]Classification!$E$1:$E$65536,0),1) -> 
AD88: 0 | AE88: =INDEX([1]Classification!$AG$1:$AG$65536,MATCH(A88,[1]Classification!$E$1:$E$65536,0),1) -> 
AD89: 0 | AE89: =INDEX([1]Classification!$AG$1:$AG$65536,MATCH(A89,[1]Classification!$E$1:$E$65536,0),1) -> 
AD90: 0 | AE90: =INDEX([1]Classification!$AG$1:$AG$65536,MATCH(A90,[1]Classification!$E$1:$E$65536,0),1) -> 
AD91: 0 | AE91: =INDEX([1]Classification!$AG$1:$AG$65536,MATCH(A91,[1]Classification!$E$1:$E$65536,0),1) -> 
AD92: 0 | AE92: =INDEX([1]Classification!$AG$1:$AG$65536,MATCH(A92,[1]Classification!$E$1:$E$65536,0),1) -> 
AD93: 0 | AE93: =INDEX([1]Classification!$AG$1:$AG$65536,MATCH(A93,[1]Classification!$E$1:$E$65536,0),1) -> 
AD94: 0 | AE94: =INDEX([1]Classification!$AG$1:$AG$65536,MATCH(A94,[1]Classification!$E$1:$E$65536,0),1) -> 
AD95: 0 | AE95: =INDEX([1]Classification!$AG$1:$AG$65536,MATCH(A95,[1]Classification!$E$1:$E$65536,0),1) -> 
AD96: 0 | AE96: =INDEX([1]Classification!$AG$1:$AG$65536,MATCH(A96,[1]Classification!$E$1:$E$65536,0),1) -> 
AD97: 0 | AE97: =INDEX([1]Classification!$AG$1:$AG$65536,MATCH(A97,[1]Classification!$E$1:$E$65536,0),1) -> 
AD98: 0 | AE98: =INDEX([1]Classification!$AG$1:$AG$65536,MATCH(A98,[1]Classification!$E$1:$E$65536,0),1) -> 
AD99: 0 | AE99: =INDEX([1]Classification!$AG$1:$AG$65536,MATCH(A99,[1]Classification!$E$1:$E$65536,0),1) -> 
AD100: 0 | AE100: =INDEX([1]Classification!$AG$1:$AG$65536,MATCH(A100,[1]Classification!$E$1:$E$65536,0),1) -> 
AD101: 0 | AE101: =INDEX([1]Classification!$AG$1:$AG$65536,MATCH(A101,[1]Classification!$E$1:$E$65536,0),1) -> 
AD102: 0 | AE102: =INDEX([1]Classification!$AG$1:$AG$65536,MATCH(A102,[1]Classification!$E$1:$E$65536,0),1) -> 
AD103: 0 | AE103: =INDEX([1]Classification!$AG$1:$AG$65536,MATCH(A103,[1]Classification!$E$1:$E$65536,0),1) -> 
AD104: 0 | AE104: =INDEX([1]Classification!$AG$1:$AG$65536,MATCH(A104,[1]Classification!$E$1:$E$65536,0),1) -> 
AD105: 0 | AE105: =INDEX([1]Classification!$AG$1:$AG$65536,MATCH(A105,[1]Classification!$E$1:$E$65536,0),1) -> 
AD106: 0 | AE106: =INDEX([1]Classification!$AG$1:$AG$65536,MATCH(A106,[1]Classification!$E$1:$E$65536,0),1) -> 
AD107: 0 | AE107: =INDEX([1]Classification!$AG$1:$AG$65536,MATCH(A107,[1]Classification!$E$1:$E$65536,0),1) -> 
AD108: 0 | AE108: =INDEX([1]Classification!$AG$1:$AG$65536,MATCH(A108,[1]Classification!$E$1:$E$65536,0),1) -> 
AD109: 0 | AE109: =INDEX([1]Classification!$AG$1:$AG$65536,MATCH(A109,[1]Classification!$E$1:$E$65536,0),1) -> 
AD110: 0 | AE110: =INDEX([1]Classification!$AG$1:$AG$65536,MATCH(A110,[1]Classification!$E$1:$E$65536,0),1) -> 
AD111: 0 | AE111: =INDEX([1]Classification!$AG$1:$AG$65536,MATCH(A111,[1]Classification!$E$1:$E$65536,0),1) -> 
AD112: 0 | AE112: =INDEX([1]Classification!$AG$1:$AG$65536,MATCH(A112,[1]Classification!$E$1:$E$65536,0),1) -> 
AD113: 0 | AE113: =INDEX([1]Classification!$AG$1:$AG$65536,MATCH(A113,[1]Classification!$E$1:$E$65536,0),1) -> 
AD114: 0 | AE114: =INDEX([1]Classification!$AG$1:$AG$65536,MATCH(A114,[1]Classification!$E$1:$E$65536,0),1) -> 
AD115: 0 | AE115: =INDEX([1]Classification!$AG$1:$AG$65536,MATCH(A115,[1]Classification!$E$1:$E$65536,0),1) -> 
AD116: 0 | AE116: =INDEX([1]Classification!$AG$1:$AG$65536,MATCH(A116,[1]Classification!$E$1:$E$65536,0),1) -> 
AD117: 0 | AE117: =INDEX([1]Classification!$AG$1:$AG$65536,MATCH(A117,[1]Classification!$E$1:$E$65536,0),1) -> 
AD118: 0 | AE118: =INDEX([1]Classification!$AG$1:$AG$65536,MATCH(A118,[1]Classification!$E$1:$E$65536,0),1) -> 
AD119: 0 | AE119: =INDEX([1]Classification!$AG$1:$AG$65536,MATCH(A119,[1]Classification!$E$1:$E$65536,0),1) -> 
AD120: 0 | AE120: =INDEX([1]Classification!$AG$1:$AG$65536,MATCH(A120,[1]Classification!$E$1:$E$65536,0),1) -> 
AD121: 0 | AE121: =INDEX([1]Classification!$AG$1:$AG$65536,MATCH(A121,[1]Classification!$E$1:$E$65536,0),1) -> 
AD122: 0 | AE122: =INDEX([1]Classification!$AG$1:$AG$65536,MATCH(A122,[1]Classification!$E$1:$E$65536,0),1) -> 
AD123: 0 | AE123: =INDEX([1]Classification!$AG$1:$AG$65536,MATCH(A123,[1]Classification!$E$1:$E$65536,0),1) -> 
AD124: 0 | AE124: =INDEX([1]Classification!$AG$1:$AG$65536,MATCH(A124,[1]Classification!$E$1:$E$65536,0),1) -> 
AD125: 0 | AE125: =INDEX([1]Classification!$AG$1:$AG$65536,MATCH(A125,[1]Classification!$E$1:$E$65536,0),1) -> 
AD126: 0 | AE126: =INDEX([1]Classification!$AG$1:$AG$65536,MATCH(A126,[1]Classification!$E$1:$E$65536,0),1) -> 
AD127: 0 | AE127: =INDEX([1]Classification!$AG$1:$AG$65536,MATCH(A127,[1]Classification!$E$1:$E$65536,0),1) -> 
AD128: 0 | AE128: =INDEX([1]Classification!$AG$1:$AG$65536,MATCH(A128,[1]Classification!$E$1:$E$65536,0),1) -> 
AD129: 0 | AE129: =INDEX([1]Classification!$AG$1:$AG$65536,MATCH(A129,[1]Classification!$E$1:$E$65536,0),1) -> 
AD130: 0 | AE130: =INDEX([1]Classification!$AG$1:$AG$65536,MATCH(A130,[1]Classification!$E$1:$E$65536,0),1) -> 
AD131: 0 | AE131: =INDEX([1]Classification!$AG$1:$AG$65536,MATCH(A131,[1]Classification!$E$1:$E$65536,0),1) -> 
A132: VERHAGHE Dominique | AD132: 0 | AE132: =INDEX([1]Classification!$AG$1:$AG$65536,MATCH(A132,[1]Classification!$E$1:$E$65536,0),1) -> N1
A133: WALLART Jean-Charles | AD133: 0 | AE133: =INDEX([1]Classification!$AG$1:$AG$65536,MATCH(A133,[1]Classification!$E$1:$E$65536,0),1) -> N1
AD134: 0 | AE134: =INDEX([1]Classification!$AG$1:$AG$65536,MATCH(A134,[1]Classification!$E$1:$E$65536,0),1) -> 

Sheet BONNEAU Benoît
A1: BONNEAU Benoît | P1: =SaisonDeb -> 2021-2022 | R1: =SaisonFin -> 2022-2023 | T1: Toutes saisons
P2: Nombre | Q2: %age | R2: Nombre | S2: %age | T2: Nombre | U2: %age
N3: Matchs | O3: Gagnés | P3: =SUM(P$15:P$275) -> 0 | Q3: =IF(P$3+P$4>0,P3/(P$3+P$4),"") ->  | R3: =SUM(R$15:R$275) -> 0 | S3: =IF(R$3+R$4>0,R3/(R$3+R$4),"") ->  | T3: =COUNTIF($C$15:$C$275,"G") -> 99 | U3: =IF(T$3+T$4>0,T3/(T$3+T$4),"") -> 0.6073619632
O4: Perdus | P4: =COUNTIF($K$15:$M$275,SaisonDeb)-P3 -> 0 | Q4: =IF(P$3+P$4>0,P4/(P$3+P$4),"") ->  | R4: =COUNTIF($K$15:$K$275,SaisonFin)-R3 -> 0 | S4: =IF(R$3+R$4>0,R4/(R$3+R$4),"") ->  | T4: =COUNTIF($C$15:$C$275,"P") -> 64 | U4: =IF(T$3+T$4>0,T4/(T$3+T$4),"") -> 0.3926380368
O5: Total / Moy. | P5: =SUM(P3:P4) -> 0 | Q5: =IF(SUMIF($K$15:$K$275,SaisonDeb,$G$15:$G$275)>0,SUMIF($K$15:$K$275,SaisonDeb,$F$15:$F$275)/SUMIF($K$15:$K$275,SaisonDeb,$G$15:$G$275),"") ->  | R5: =SUM(R3:R4) -> 0 | S5: =IF(SUMIF($K$15:$K$275,SaisonFin,$G$15:$G$275)>0,SUMIF($K$15:$K$275,SaisonFin,$F$15:$F$275)/SUMIF($K$15:$K$275,SaisonFin,$G$15:$G$275),"") ->  | T5: =SUM(T3:T4) -> 163 | U5: =IF(SUM($G$15:$G$275)>0,SUM($F$15:$F$275)/SUM($G$15:$G$275),"") -> 1.056955623 | V5: =IF(SUMIF($K$15:$K$179,SaisonDeb,$G$15:$G$179)+SUMIF($K$15:$K$179,SaisonFin,$G$15:$G$179)>0,(SUMIF($K$15:$K$179,SaisonDeb,$F$15:$F$179)+SUMIF($K$15:$K$179,SaisonFin,$F$15:$F$179))/(SUMIF($K$15:$K$179,SaisonDeb,$G$15:$G$179)+SUMIF($K$15:$K$179,SaisonFin,$G$15:$G$179)),"") -> 
N6: Sets | O6: Gagnés | P6: =SUMIF($K$15:$K$275,SaisonDeb,$D$15:$D$275) -> 0 | Q6: =IF(P$6+P$7>0,P6/(P$6+P$7),"") ->  | R6: =SUMIF($K$15:$K$275,SaisonFin,$D$15:$D$275) -> 0 | S6: =IF(R$6+R$7>0,R6/(R$6+R$7),"") ->  | T6: =SUM($D$15:$D$275) -> 250 | U6: =IF(T$6+T$7>0,T6/(T$6+T$7),"") -> 0.5494505495
O7: Perdus | P7: =SUMIF($K$15:$K$275,SaisonDeb,$E$15:$E$275) -> 0 | Q7: =IF(P$6+P$7>0,P7/(P$6+P$7),"") ->  | R7: =SUMIF($K$15:$K$275,SaisonFin,$E$15:$E$275) -> 0 | S7: =IF(R$6+R$7>0,R7/(R$6+R$7),"") ->  | T7: =SUM($E$15:$E$275) -> 205 | U7: =IF(T$6+T$7>0,T7/(T$6+T$7),"") -> 0.4505494505
A8: Récapitulatif joueurs | O8: Total | P8: =SUM(P6:P7) -> 0 | R8: =SUM(R6:R7) -> 0 | T8: =SUM(T6:T7) -> 455
A15: Joueur | B15: Adversaire | C15: G/P | D15: Sets gagnés | E15: Sets perdus | F15: pts marqués | G15: pts subis | H15: Date | I15: Compétition | J15: Phase | K15: Saison
A16: BONNEAU Benoît | B16: PAULY Martial | C16: G | D16: 2 | E16: 1 | F16: 147 | G16: 147 | H16: 2015-10-09 | I16: National T1 ROUEN | J16: Préqualifs | K16: =IF(H16<>"",IF(MONTH(H16)>MoisRef,YEAR(H16)&"-"&YEAR(H16)+1,YEAR(H16)-1&"-"&YEAR(H16)),"") -> 2015-2016 | P16: =IF($K16=P$1,COUNTIF($C16,"G"),0) -> 0 | R16: =IF($K16=R$1,COUNTIF($C16,"G"),0) -> 0
A17: BONNEAU Benoît | B17: ROUBY Guillaume | C17: P | D17: 0 | E17: 2 | F17: 73 | G17: 120 | H17: 2015-10-09 | I17: National T1 ROUEN | J17: Préqualifs | K17: 2015-2016 | P17: 0 | R17: 0
A18: BONNEAU Benoît | B18: RIMBOT Nicolas | C18: P | D18: 1 | E18: 2 | F18: 91 | G18: 171 | H18: 2015-10-09 | I18: National T1 ROUEN | J18: Préqualifs | K18: 2015-2016 | P18: 0 | R18: 0
A19: BONNEAU Benoît | B19: LORGE Thierry | C19: P | D19: 1 | E19: 2 | F19: 147 | G19: 163 | H19: 2015-11-13 | I19: National T2 DOUARNENEZ | J19: Préqualifs | K19: 2015-2016 | P19: 0 | R19: 0
A20: BONNEAU Benoît | B20: BONGIOVANNI Giovanni | C20: P | D20: 1 | E20: 2 | F20: 134 | G20: 172 | H20: 2015-11-13 | I20: National T2 DOUARNENEZ | J20: Préqualifs | K20: 2015-2016 | P20: 0 | R20: 0
A21: BONNEAU Benoît | B21: ROUBY Guillaume | C21: P | D21: 0 | E21: 2 | F21: 74 | G21: 120 | H21: 2015-11-13 | I21: National T2 DOUARNENEZ | J21: Préqualifs | K21: 2015-2016 | P21: 0 | R21: 0
A22: BONNEAU Benoît | B22: DEMILLY Jean-Sébastien | C22: P | D22: 0 | E22: 2 | F22: 97 | G22: 120 | H22: 2015-12-11 | I22: National T3 FACHES THUMESNIL - RONCHIN | J22: Préqualifs | K22: 2015-2016 | P22: 0 | R22: 0
A23: BONNEAU Benoît | B23: LEBOEUF Sylvain | C23: G | D23: 2 | E23: 0 | F23: 120 | G23: 93 | H23: 2015-12-11 | I23: National T3 FACHES THUMESNIL - RONCHIN | J23: Préqualifs | K23: 2015-2016 | P23: 0 | R23: 0
A24: BONNEAU Benoît | B24: MAILLE Bernard | C24: P | D24: 0 | E24: 2 | F24: 43 | G24: 120 | H24: 2015-12-11 | I24: National T3 FACHES THUMESNIL - RONCHIN | J24: Préqualifs | K24: 2015-2016 | P24: 0 | R24: 0
A25: BONNEAU Benoît | B25: RIMBOT Nicolas | C25: P | D25: 1 | E25: 3 | F25: 204 | G25: 200 | H25: 2015-12-12 | I25: National T3 FACHES THUMESNIL - RONCHIN | J25: Qualifs promotion | K25: 2015-2016 | P25: 0 | R25: 0
A26: BONNEAU Benoît | B26: WEBER Thierry | C26: G | D26: 3 | E26: 2 | F26: 261 | G26: 276 | H26: 2015-12-12 | I26: National T3 FACHES THUMESNIL - RONCHIN | J26: Qualifs promotion | K26: 2015-2016 | P26: 0 | R26: 0
A27: BONNEAU Benoît | B27: WALLART Jean-Charles | C27: P | D27: 1 | E27: 3 | F27: 146 | G27: 231 | H27: 2015-12-12 | I27: National T3 FACHES THUMESNIL - RONCHIN | J27: Qualifs promotion | K27: 2015-2016 | P27: 0 | R27: 0
A28: BONNEAU Benoît | B28: LHEUREUX François | C28: P | D28: 1 | E28: 2 | F28: 151 | G28: 166 | H28: 2016-02-05 | I28: National T4 SCHILTIGHEIM | J28: Préqualifs | K28: 2015-2016 | P28: 0 | R28: 0
A29: BONNEAU Benoît | B29: RIGAULT Jean-Lou | C29: P | D29: 0 | E29: 2 | F29: 92 | G29: 120 | H29: 2016-02-05 | I29: National T4 SCHILTIGHEIM | J29: Préqualifs | K29: 2015-2016 | P29: 0 | R29: 0
A30: BONNEAU Benoît | B30: MORMICHE Michel | C30: P | D30: 1 | E30: 2 | F30: 133 | G30: 155 | H30: 2016-02-05 | I30: National T4 SCHILTIGHEIM | J30: Préqualifs | K30: 2015-2016 | P30: 0 | R30: 0
A31: BONNEAU Benoît | B31: LHEUREUX François | C31: P | D31: 2 | E31: 3 | F31: 256 | G31: 259 | H31: 2016-02-06 | I31: National T4 SCHILTIGHEIM | J31: Qualifs promotion | K31: 2015-2016 | P31: 0 | R31: 0
A32: BONNEAU Benoît | B32: WALLART Jean-Charles | C32: P | D32: 1 | E32: 3 | F32: 194 | G32: 230 | H32: 2016-02-06 | I32: National T4 SCHILTIGHEIM | J32: Qualifs promotion | K32: 2015-2016 | P32: 0 | R32: 0
A33: BONNEAU Benoît | B33: SAINT-GEORGES Claude | C33: P | D33: 1 | E33: 2 | F33: 163 | G33: 169 | H33: 2016-03-04 | I33: National T5 GRAVELINES | J33: Préqualifs | K33: 2015-2016 | P33: 0 | R33: 0
A34: BONNEAU Benoît | B34: BLONDEEL Firmin | C34: G | D34: 2 | E34: 0 | F34: 120 | G34: 79 | H34: 2016-03-04 | I34: National T5 GRAVELINES | J34: Préqualifs | K34: 2015-2016 | P34: 0 | R34: 0
A35: BONNEAU Benoît | B35: BOUVIER Philippe | C35: P | D35: 1 | E35: 2 | F35: 137 | G35: 175 | H35: 2016-03-04 | I35: National T5 GRAVELINES | J35: Préqualifs | K35: 2015-2016 | P35: 0 | R35: 0
A36: BONNEAU Benoît | B36: BAYON Pascal | C36: G | D36: 3 | E36: 2 | F36: 252 | G36: 260 | H36: 2016-03-05 | I36: National T5 GRAVELINES | J36: Qualifs promotion | K36: 2015-2016 | P36: 0 | R36: 0
A37: BONNEAU Benoît | B37: TREAL Jean | C37: G | D37: 3 | E37: 2 | F37: 258 | G37: 255 | H37: 2016-03-05 | I37: National T5 GRAVELINES | J37: Qualifs promotion | K37: 2015-2016 | P37: 0 | R37: 0
A38: BONNEAU Benoît | B38: GUERIN Xavier | C38: P | D38: 1 | E38: 3 | F38: 160 | G38: 202 | H38: 2016-03-06 | I38: National T5 GRAVELINES | J38: 1/8 finale promotion | K38: 2015-2016 | P38: 0 | R38: 0
A39: BONNEAU Benoît | B39: COTTEN Jean-Pierre | C39: P | D39: 1 | E39: 2 | F39: 169 | G39: 172 | H39: 2016-09-30 | I39: National T1 SAINT RAPHAEL | J39: Préqualifs | K39: 2016-2017 | P39: 0 | R39: 0
A40: BONNEAU Benoît | B40: SACRE Jean-Yves | C40: G | D40: 2 | E40: 1 | F40: 177 | G40: 151 | H40: 2016-09-30 | I40: National T1 SAINT RAPHAEL | J40: Préqualifs | K40: 2016-2017 | P40: 0 | R40: 0
A41: BONNEAU Benoît | B41: AUBERT ROUECHE Eric | C41: P | D41: 0 | E41: 2 | F41: 86 | G41: 120 | H41: 2016-09-30 | I41: National T1 SAINT RAPHAEL | J41: Préqualifs | K41: 2016-2017 | P41: 0 | R41: 0
A42: BONNEAU Benoît | B42: WALLART Jean-Charles | C42: G | D42: 3 | E42: 2 | F42: 238 | G42: 280 | H42: 2016-10-01 | I42: National T1 SAINT RAPHAEL | J42: Qualifs N1 | K42: 2016-2017 | P42: 0 | R42: 0
A43: BONNEAU Benoît | B43: COTTEN Jean-Pierre | C43: G | D43: 3 | E43: 2 | F43: 228 | G43: 253 | H43: 2016-10-01 | I43: National T1 SAINT RAPHAEL | J43: Qualifs N1 | K43: 2016-2017 | P43: 0 | R43: 0
A44: BONNEAU Benoît | B44: GODARD Alain | C44: G | D44: 3 | E44: 1 | F44: 237 | G44: 132 | H44: 2016-10-02 | I44: National T1 SAINT RAPHAEL | J44: 1/8 finale N1 | K44: 2016-2017 | P44: 0 | R44: 0
A45: BONNEAU Benoît | B45: HERREBRECHT Thierry | C45: P | D45: 1 | E45: 3 | F45: 181 | G45: 236 | H45: 2016-10-02 | I45: National T1 SAINT RAPHAEL | J45: 1/4 finale N1 | K45: 2016-2017 | P45: 0 | R45: 0
A46: BONNEAU Benoît | B46: TREAL Jean | C46: G | D46: 2 | E46: 1 | F46: 177 | G46: 167 | H46: 2016-11-04 | I46: National T2 GRAVELINES | J46: Préqualifs | K46: 2016-2017 | P46: 0 | R46: 0
A47: BONNEAU Benoît | B47: MAILLE Bernard | C47: G | D47: 2 | E47: 0 | F47: 120 | G47: 100 | H47: 2016-11-04 | I47: National T2 GRAVELINES | J47: Préqualifs | K47: 2016-2017 | P47: 0 | R47: 0
A48: BONNEAU Benoît | B48: CARRE Siegfried | C48: G | D48: 2 | E48: 0 | F48: 120 | G48: 52 | H48: 2016-11-04 | I48: National T2 GRAVELINES | J48: Préqualifs | K48: =IF(H48<>"",IF(MONTH(H48)>MoisRef,YEAR(H48)&"-"&YEAR(H48)+1,YEAR(H48)-1&"-"&YEAR(H48)),"") -> 2016-2017 | P48: 0 | R48: 0
A49: BONNEAU Benoît | B49: POULEYN André | C49: G | D49: 3 | E49: 0 | F49: 180 | G49: 110 | H49: 2016-11-05 | I49: National T2 GRAVELINES | J49: Qualifs N1 | K49: 2016-2017 | P49: 0 | R49: 0
A50: BONNEAU Benoît | B50: SACRE Jean-Yves | C50: G | D50: 3 | E50: 2 | F50: 261 | G50: 246 | H50: 2016-11-05 | I50: National T2 GRAVELINES | J50: Qualifs N1 | K50: 2016-2017 | P50: 0 | R50: 0
A51: BONNEAU Benoît | B51: LHERMITTE Sylvain | C51: P | D51: 0 | E51: 3 | F51: 124 | G51: 180 | H51: 2016-11-06 | I51: National T2 GRAVELINES | J51: 1/8 finale N1 | K51: 2016-2017 | P51: 0 | R51: 0
A52: BONNEAU Benoît | B52: LACROIX Sabine | C52: G | D52: 2 | E52: 0 | F52: 120 | G52: 68 | H52: 2016-12-09 | I52: National T3 CHATILLON | J52: Préqualifs | K52: 2016-2017 | P52: 0 | R52: 0
A53: BONNEAU Benoît | B53: COSTE Philippe | C53: G | D53: 2 | E53: 1 | F53: 179 | G53: 164 | H53: 2016-12-09 | I53: National T3 CHATILLON | J53: Préqualifs | K53: 2016-2017 | P53: 0 | R53: 0
A54: BONNEAU Benoît | B54: ROUBY Guillaume | C54: P | D54: 0 | E54: 2 | F54: 84 | G54: 120 | H54: 2016-12-09 | I54: National T3 CHATILLON | J54: Préqualifs | K54: 2016-2017 | P54: 0 | R54: 0
A55: BONNEAU Benoît | B55: AZARA Salvatore | C55: P | D55: 1 | E55: 3 | F55: 190 | G55: 209 | H55: 2016-12-10 | I55: National T3 CHATILLON | J55: Qualifs N1 | K55: 2016-2017 | P55: 0 | R55: 0
A56: BONNEAU Benoît | B56: ALEXANDRE Michel | C56: G | D56: 3 | E56: 1 | F56: 214 | G56: 216 | H56: 2016-12-10 | I56: National T3 CHATILLON | J56: Qualifs N1 | K56: 2016-2017 | P56: 0 | R56: 0
A57: BONNEAU Benoît | B57: GEETS Patrice | C57: P | D57: 1 | E57: 3 | F57: 194 | G57: 228 | H57: 2016-12-10 | I57: National T3 CHATILLON | J57: Qualifs N1 | K57: 2016-2017 | P57: 0 | R57: 0
A58: BONNEAU Benoît | B58: PICOT Sylvain | C58: G | D58: 2 | E58: 0 | F58: 120 | G58: 77 | H58: 2017-02-03 | I58: National T4 SCHILTIGHEIM | J58: Préqualifs | K58: 2016-2017 | P58: 0 | R58: 0
A59: BONNEAU Benoît | B59: REBELO Joaquim | C59: P | D59: 0 | E59: 2 | F59: 77 | G59: 120 | H59: 2017-02-03 | I59: National T4 SCHILTIGHEIM | J59: Préqualifs | K59: 2016-2017 | P59: 0 | R59: 0
A60: BONNEAU Benoît | B60: CASTRO Pedro | C60: P | D60: 0 | E60: 2 | F60: 101 | G60: 120 | H60: 2017-02-03 | I60: National T4 SCHILTIGHEIM | J60: Préqualifs | K60: 2016-2017 | P60: 0 | R60: 0
A61: BONNEAU Benoît | B61: COSTE Philippe | C61: G | D61: 3 | E61: 1 | F61: 210 | G61: 195 | H61: 2017-02-04 | I61: National T4 SCHILTIGHEIM | J61: Qualifs N1 | K61: 2016-2017 | P61: 0 | R61: 0
A62: BONNEAU Benoît | B62: SACRE Jean-Yves | C62: P | D62: 0 | E62: 3 | F62: 141 | G62: 180 | H62: 2017-02-04 | I62: National T4 SCHILTIGHEIM | J62: Qualifs N1 | K62: 2016-2017 | P62: 0 | R62: 0
A63: BONNEAU Benoît | B63: ZILLIG Pierre | C63: G | D63: 3 | E63: 0 | F63: 180 | G63: 75 | H63: 2017-02-04 | I63: National T4 SCHILTIGHEIM | J63: Qualifs N1 | K63: 2016-2017 | P63: 0 | R63: 0
A64: BONNEAU Benoît | B64: PAU Mariano | C64: P | D64: 1 | E64: 3 | F64: 187 | G64: 217 | H64: 2017-02-05 | I64: National T4 SCHILTIGHEIM | J64: 1/8 finale N1 | K64: 2016-2017 | P64: 0 | R64: 0
A65: BONNEAU Benoît | B65: MARTIN Denis | C65: G | D65: 2 | E65: 0 | F65: 120 | G65: 40 | H65: 2017-03-03 | I65: National T5 CAUDAN | J65: Préqualifs | K65: 2016-2017 | P65: 0 | R65: 0
A66: BONNEAU Benoît | B66: SACRE Jean-Yves | C66: P | D66: 1 | E66: 2 | F66: 127 | G66: 171 | H66: 2017-03-03 | I66: National T5 CAUDAN | J66: Préqualifs | K66: 2016-2017 | P66: 0 | R66: 0
A67: BONNEAU Benoît | B67: EVENOU Marie-Antoinette | C67: G | D67: 2 | E67: 0 | F67: 120 | G67: 64 | H67: 2017-03-03 | I67: National T5 CAUDAN | J67: Préqualifs | K67: 2016-2017 | P67: 0 | R67: 0
A68: BONNEAU Benoît | B68: MARTIN Denis | C68: G | D68: 3 | E68: 0 | F68: 180 | G68: 90 | H68: 2017-03-04 | I68: National T5 CAUDAN | J68: Qualifs N1 | K68: 2016-2017 | P68: 0 | R68: 0
A69: BONNEAU Benoît | B69: DAVOINE Bruno | C69: P | D69: 0 | E69: 3 | F69: 132 | G69: 180 | H69: 2017-03-04 | I69: National T5 CAUDAN | J69: Qualifs N1 | K69: 2016-2017 | P69: 0 | R69: 0
A70: BONNEAU Benoît | B70: GULDNER Aurélien | C70: G | D70: 3 | E70: 2 | F70: 254 | G70: 254 | H70: 2017-03-04 | I70: National T5 CAUDAN | J70: Qualifs N1 | K70: 2016-2017 | P70: 0 | R70: 0
A71: BONNEAU Benoît | B71: DAVOINE Bruno | C71: P | D71: 0 | E71: 3 | F71: 100 | G71: 180 | H71: 2017-03-05 | I71: National T5 CAUDAN | J71: 1/8 finale N1 | K71: 2016-2017 | P71: 0 | R71: 0
A72: BONNEAU Benoît | B72: ADRIANI Emmanuel | C72: G | D72: 3 | E72: 2 | F72: 266 | G72: 253 | H72: 2017-04-22 | I72: CF N1 - MACON | J72: Qualifs | K72: 2016-2017 | P72: 0 | R72: 0
A73: BONNEAU Benoît | B73: VIERA MAIA Arlindo | C73: P | D73: 1 | E73: 3 | F73: 125 | G73: 217 | H73: 2017-04-22 | I73: CF N1 - MACON | J73: Qualifs | K73: 2016-2017 | P73: 0 | R73: 0
A74: BONNEAU Benoît | B74: SORTAIS Claude | C74: P | D74: 1 | E74: 3 | F74: 167 | G74: 206 | H74: 2017-04-22 | I74: CF N1 - MACON | J74: Qualifs | K74: 2016-2017 | P74: 0 | R74: 0
A75: BONNEAU Benoît | B75: LORGE Thierry | C75: P | D75: 0 | E75: 1 | F75: 76 | G75: 100 | H75: 2016-10-22 | I75: 5Q CD60 N1 - T 1 -CREPY | J75: Tour 1 | K75: 2016-2017 | P75: 0 | R75: 0
A76: BONNEAU Benoît | B76: LAMARQUE Yves | C76: G | D76: 1 | E76: 0 | F76: 100 | G76: 53 | H76: 2016-10-22 | I76: 5Q CD60 N1 - T 1 -CREPY | J76: Tour 2 | K76: 2016-2017 | P76: 0 | R76: 0
A77: BONNEAU Benoît | B77: DUCHATEAU Jean-Pierre | C77: G | D77: 1 | E77: 0 | F77: 100 | G77: 92 | H77: 2016-10-22 | I77: 5Q CD60 N1 - T 1 -CREPY | J77: Tour 3 | K77: 2016-2017 | P77: 0 | R77: 0
A78: BONNEAU Benoît | B78: DESCLAIR Guy | C78: G | D78: 1 | E78: 0 | F78: 100 | G78: 34 | H78: 2016-10-22 | I78: 5Q CD60 N1 - T 1 -CREPY | J78: Tour 4 | K78: 2016-2017 | P78: 0 | R78: 0
A79: BONNEAU Benoît | B79: STEINMANN Sébastien | C79: G | D79: 1 | E79: 0 | F79: 100 | G79: 81 | H79: 2017-02-25 | I79: 5Q CD60 N1 - T 2 - SENLIS | J79: Tour 1 | K79: 2016-2017 | P79: 0 | R79: 0
A80: BONNEAU Benoît | B80: LORGE Thierry | C80: G | D80: 1 | E80: 0 | F80: 100 | G80: 79 | H80: 2017-02-25 | I80: 5Q CD60 N1 - T 2 - SENLIS | J80: Tour 2 | K80: =IF(H80<>"",IF(MONTH(H80)>MoisRef,YEAR(H80)&"-"&YEAR(H80)+1,YEAR(H80)-1&"-"&YEAR(H80)),"") -> 2016-2017 | P80: =IF($K80=P$1,COUNTIF($C80,"G"),0) -> 0 | R80: =IF($K80=R$1,COUNTIF($C80,"G"),0) -> 0
A81: BONNEAU Benoît | B81: MAUGER Jean-Paul | C81: G | D81: 1 | E81: 0 | F81: 100 | G81: 92 | H81: 2017-02-25 | I81: 5Q CD60 N1 - T 2 - SENLIS | J81: Tour 3 | K81: 2016-2017 | P81: 0 | R81: 0
A82: BONNEAU Benoît | B82: MARTIN Denis | C82: G | D82: 1 | E82: 0 | F82: 100 | G82: 53 | H82: 2017-02-25 | I82: 5Q CD60 N1 - T 2 - SENLIS | J82: Tour 4 | K82: 2016-2017 | P82: 0 | R82: 0
A83: BONNEAU Benoît | B83: PRUDHOMME Laurent | C83: G | D83: 3 | E83: 0 | F83: 180 | G83: 54 | H83: 2017-03-18 | I83: 5Q CD60 N1 - Finale N1 | J83: Poule unique | K83: 2016-2017 | P83: 0 | R83: 0
A84: BONNEAU Benoît | B84: LORGE Thierry | C84: P | D84: 0 | E84: 3 | F84: 107 | G84: 180 | H84: 2017-03-18 | I84: 5Q CD60 N1 - Finale N1 | J84: Poule unique | K84: 2016-2017 | P84: 0 | R84: 0
A85: BONNEAU Benoît | B85: SAUVE Olivier | C85: G | D85: 3 | E85: 0 | F85: 180 | G85: 114 | H85: 2017-03-18 | I85: 5Q CD60 N1 - Finale N1 | J85: Poule unique | K85: 2016-2017 | P85: 0 | R85: 0
A86: BONNEAU Benoît | B86: VASSEUR Francis | C86: G | D86: 1 | E86: 0 | F86: 100 | G86: 38 | H86: 2016-11-26 | I86: 5Q CD60 N1 - T 2 - SENLIS | J86: Tour 1 | K86: 2016-2017 | P86: 0 | R86: 0
A87: BONNEAU Benoît | B87: CHARLES Dominique | C87: G | D87: 1 | E87: 0 | F87: 100 | G87: 83 | H87: 2016-11-26 | I87: 5Q CD60 N1 - T 2 - SENLIS | J87: Tour 2 | K87: 2016-2017 | P87: 0 | R87: 0
A88: BONNEAU Benoît | B88: VAROQUEAUX Julien | C88: G | D88: 1 | E88: 0 | F88: 100 | G88: 66 | H88: 2016-11-26 | I88: 5Q CD60 N1 - T 2 - SENLIS | J88: Tour 3 | K88: 2016-2017 | P88: 0 | R88: 0
A89: BONNEAU Benoît | B89: MAUGER Jean-Paul | C89: G | D89: 1 | E89: 0 | F89: 100 | G89: 41 | H89: 2016-11-26 | I89: 5Q CD60 N1 - T 2 - SENLIS | J89: Tour 4 | K89: 2016-2017 | P89: 0 | R89: 0
A90: BONNEAU Benoît | B90: LACROIX Sabine | C90: G | D90: 2 | E90: 0 | F90: 120 | G90: 56 | H90: 2017-09-22 | I90: National T1 ANNOEULLIN | J90: Préqualifs | K90: 2017-2018 | P90: 0 | R90: 0
A91: BONNEAU Benoît | B91: SORTAIS Claude | C91: G | D91: 2 | E91: 1 | F91: 177 | G91: 128 | H91: 2017-09-22 | I91: National T1 ANNOEULLIN | J91: Préqualifs | K91: 2017-2018 | P91: 0 | R91: 0
A92: BONNEAU Benoît | B92: AIRAULT Jean-Michel | C92: G | D92: 2 | E92: 1 | F92: 139 | G92: 154 | H92: 2017-09-22 | I92: National T1 ANNOEULLIN | J92: Préqualifs | K92: 2017-2018 | P92: 0 | R92: 0
A93: BONNEAU Benoît | B93: DI LEO Francois | C93: G | D93: 3 | E93: 0 | F93: 180 | G93: 108 | H93: 2017-09-23 | I93: National T1 ANNOEULLIN | J93: Qualifs N1 | K93: 2017-2018 | P93: 0 | R93: 0
A94: BONNEAU Benoît | B94: GONTHIER Arnaud | C94: G | D94: 3 | E94: 2 | F94: 248 | G94: 248 | H94: 2017-09-23 | I94: National T1 ANNOEULLIN | J94: Qualifs N1 | K94: 2017-2018 | P94: 0 | R94: 0
A95: BONNEAU Benoît | B95: BONGIOVANNI Giovanni | C95: P | D95: 0 | E95: 3 | F95: 144 | G95: 180 | H95: 2017-09-24 | I95: National T1 ANNOEULLIN | J95: 1/8 finale N1 | K95: 2017-2018 | P95: 0 | R95: 0
A96: BONNEAU Benoît | B96: JACQ Laurent | C96: P | D96: 1 | E96: 2 | F96: 127 | G96: 162 | H96: 2017-12-08 | I96: National T2 GRAVELINES | J96: Préqualifs | K96: 2017-2018 | P96: 0 | R96: 0
A97: BONNEAU Benoît | B97: ROUBY Guillaume | C97: P | D97: 0 | E97: 2 | F97: 107 | G97: 120 | H97: 2017-12-08 | I97: National T2 GRAVELINES | J97: Préqualifs | K97: 2017-2018 | P97: 0 | R97: 0
A98: BONNEAU Benoît | B98: LACROIX Sabine | C98: G | D98: 2 | E98: 0 | F98: 120 | G98: 46 | H98: 2017-12-08 | I98: National T2 GRAVELINES | J98: Préqualifs | K98: 2017-2018 | P98: 0 | R98: 0
A99: BONNEAU Benoît | B99: MARCHISSEAU Stéphane | C99: P | D99: 0 | E99: 3 | F99: 92 | G99: 180 | H99: 2017-12-09 | I99: National T2 GRAVELINES | J99: Qualifs N1 | K99: 2017-2018 | P99: 0 | R99: 0
A100: BONNEAU Benoît | B100: DEROLEZ Jean-Pierre | C100: P | D100: 0 | E100: 3 | F100: 132 | G100: 180 | H100: 2017-12-09 | I100: National T2 GRAVELINES | J100: Qualifs N1 | K100: 2017-2018 | P100: 0 | R100: 0
A101: BONNEAU Benoît | B101: BARBE Philippe | C101: G | D101: 3 | E101: 2 | F101: 262 | G101: 252 | H101: 2018-01-27 | I101: National T3 ROUEN | J101: Qualifs N1 | K101: 2017-2018 | P101: 0 | R101: 0
A102: BONNEAU Benoît | B102: DAVOINE Bruno | C102: P | D102: 0 | E102: 2 | F102: 88 | G102: 120 | H102: 2018-01-26 | I102: National T3 ROUEN | J102: Préqualifs | K102: 2017-2018 | P102: 0 | R102: 0
A103: BONNEAU Benoît | B103: DESCLAIR Guy | C103: G | D103: 2 | E103: 0 | F103: 120 | G103: 70 | H103: 2018-01-26 | I103: National T3 ROUEN | J103: Préqualifs | K103: 2017-2018 | P103: 0 | R103: 0
A104: BONNEAU Benoît | B104: GUERIN Xavier | C104: P | D104: 1 | E104: 3 | F104: 153 | G104: 231 | H104: 2018-01-28 | I104: National T3 ROUEN | J104: 1/8 finale N1 | K104: 2017-2018 | P104: 0 | R104: 0
A105: BONNEAU Benoît | B105: LANUSSE Christophe | C105: P | D105: 2 | E105: 3 | F105: 252 | G105: 235 | H105: 2018-01-27 | I105: National T3 ROUEN | J105: Qualifs N1 | K105: 2017-2018 | P105: 0 | R105: 0
A106: BONNEAU Benoît | B106: MAILLE Bernard | C106: G | D106: 3 | E106: 2 | F106: 263 | G106: 232 | H106: 2018-01-27 | I106: National T3 ROUEN | J106: Qualifs N1 | K106: 2017-2018 | P106: 0 | R106: 0
A107: BONNEAU Benoît | B107: NAHIRNYJ Nicolas | C107: G | D107: 2 | E107: 0 | F107: 120 | G107: 66 | H107: 2018-01-26 | I107: National T3 ROUEN | J107: Préqualifs | K107: 2017-2018 | P107: 0 | R107: 0
A108: BONNEAU Benoît | B108: BOUZEMANE Kamel | C108: P | D108: 1 | E108: 2 | F108: 147 | G108: 178 | H108: 2018-03-02 | I108: National T4 LAXOU | J108: Préqualifs | K108: 2017-2018 | P108: 0 | R108: 0
A109: BONNEAU Benoît | B109: BAYON Pascal | C109: G | D109: 2 | E109: 1 | F109: 167 | G109: 141 | H109: 2018-03-02 | I109: National T4 LAXOU | J109: Préqualifs | K109: 2017-2018 | P109: 0 | R109: 0
A110: BONNEAU Benoît | B110: STORNAIUOLO Francesco | C110: G | D110: 2 | E110: 1 | F110: 173 | G110: 163 | H110: 2018-03-02 | I110: National T4 LAXOU | J110: Préqualifs | K110: 2017-2018 | P110: 0 | R110: 0
A111: BONNEAU Benoît | B111: BARBE Philippe | C111: G | D111: 3 | E111: 0 | F111: 180 | G111: 87 | H111: 2018-03-03 | I111: National T4 LAXOU | J111: Qualifs N1 | K111: 2017-2018 | P111: 0 | R111: 0
A112: BONNEAU Benoît | B112: HERVELIN Gabriel | C112: P | D112: 1 | E112: 3 | F112: 155 | G112: 222 | H112: 2018-03-03 | I112: National T4 LAXOU | J112: Qualifs N1 | K112: 2017-2018 | P112: 0 | R112: 0
A113: BONNEAU Benoît | B113: COSTA FREITAS Domingos Torcato | C113: P | D113: 2 | E113: 3 | F113: 266 | G113: 271 | H113: 2018-03-03 | I113: National T4 LAXOU | J113: Qualifs N1 | K113: 2017-2018 | P113: 0 | R113: 0
A114: BONNEAU Benoît | B114: GANGLOFF Jean-Luc | C114: P | D114: 0 | E114: 2 | F114: 89 | G114: 120 | H114: 2018-03-30 | I114: National T5 ST RAPHAEL | J114: Préqualifs | K114: 2017-2018 | P114: 0 | R114: 0
A115: BONNEAU Benoît | B115: SORTAIS Claude | C115: G | D115: 2 | E115: 1 | F115: 139 | G115: 145 | H115: 2018-03-30 | I115: National T5 ST RAPHAEL | J115: Préqualifs | K115: 2017-2018 | P115: 0 | R115: 0
A116: BONNEAU Benoît | B116: FERHAT Achour | C116: G | D116: 2 | E116: 0 | F116: 120 | G116: 86 | H116: 2018-03-30 | I116: National T5 ST RAPHAEL | J116: Préqualifs | K116: 2017-2018 | P116: 0 | R116: 0
A117: BONNEAU Benoît | B117: ALEXANDRE Michel | C117: G | D117: 3 | E117: 1 | F117: 231 | G117: 166 | H117: 2018-03-31 | I117: National T5 ST RAPHAEL | J117: Qualifs N1 | K117: 2017-2018 | P117: 0 | R117: 0
A118: BONNEAU Benoît | B118: LEMATRE Alexis | C118: P | D118: 1 | E118: 3 | F118: 168 | G118: 233 | H118: 2018-03-31 | I118: National T5 ST RAPHAEL | J118: Qualifs N1 | K118: 2017-2018 | P118: 0 | R118: 0
A119: BONNEAU Benoît | B119: MAILLE Bernard | C119: G | D119: 3 | E119: 0 | F119: 180 | G119: 122 | H119: 2018-03-31 | I119: National T5 ST RAPHAEL | J119: Qualifs N1 | K119: 2017-2018 | P119: 0 | R119: 0
A120: BONNEAU Benoît | B120: ROUBY Guillaume | C120: P | D120: 1 | E120: 3 | F120: 212 | G120: 232 | H120: 2018-04-01 | I120: National T5 ST RAPHAEL | J120: 1/8 finale N1 | K120: 2017-2018 | P120: 0 | R120: 0
A121: BONNEAU Benoît | B121: LORGE Thierry | C121: P | D121: 0 | E121: 2 | F121: 108 | G121: 120 | H121: 2017-09-30 | I121: T 1 OISE - CREPY | J121: Finale | K121: =IF(H121<>"",IF(MONTH(H121)>MoisRef,YEAR(H121)&"-"&YEAR(H121)+1,YEAR(H121)-1&"-"&YEAR(H121)),"") -> 2017-2018 | P121: 0 | R121: 0
A122: BONNEAU Benoît | B122: PONS DE GUIGUES Philippe | C122: G | D122: 2 | E122: 1 | F122: 165 | G122: 118 | H122: 2017-09-30 | I122: T 1 OISE - CREPY | J122: Qualifications | K122: 2017-2018 | P122: 0 | R122: 0
A123: BONNEAU Benoît | B123: PRUDHOMME Laurent | C123: G | D123: 2 | E123: 0 | F123: 120 | G123: 91 | H123: 2017-09-30 | I123: T 1 OISE - CREPY | J123: Qualifications | K123: 2017-2018 | P123: 0 | R123: 0
A124: BONNEAU Benoît | B124: STEINMANN Sébastien | C124: G | D124: 2 | E124: 1 | F124: 171 | G124: 128 | H124: 2017-09-30 | I124: T 1 OISE - CREPY | J124: 1/2 Finale | K124: 2017-2018 | P124: 0 | R124: 0
A125: BONNEAU Benoît | B125: VAROQUEAUX Julien | C125: G | D125: 2 | E125: 0 | F125: 120 | G125: 65 | H125: 2017-09-30 | I125: T 1 OISE - CREPY | J125: 1/4 Finale | K125: 2017-2018 | P125: 0 | R125: 0
A126: BONNEAU Benoît | B126: CHARLES Dominique | C126: G | D126: 2 | E126: 1 | F126: 157 | G126: 140 | H126: 2017-10-21 | I126: T 2 OISE - SENLIS | J126: 1/2 Finale | K126: 2017-2018 | P126: 0 | R126: 0
A127: BONNEAU Benoît | B127: NAHIRNYJ Nicolas | C127: G | D127: 2 | E127: 1 | F127: 148 | G127: 139 | H127: 2017-10-21 | I127: T 2 OISE - SENLIS | J127: Qualifications | K127: 2017-2018 | P127: 0 | R127: 0
A128: BONNEAU Benoît | B128: NAHIRNYJ Nicolas | C128: G | D128: 2 | E128: 0 | F128: 120 | G128: 31 | H128: 2017-10-21 | I128: T 2 OISE - SENLIS | J128: 1/4 Finale | K128: 2017-2018 | P128: 0 | R128: 0
A129: BONNEAU Benoît | B129: PONS DE GUIGUES Philippe | C129: G | D129: 2 | E129: 1 | F129: 179 | G129: 124 | H129: 2017-10-21 | I129: T 2 OISE - SENLIS | J129: Qualifications | K129: 2017-2018 | P129: 0 | R129: 0
A130: BONNEAU Benoît | B130: VAROQUEAUX Julien | C130: G | D130: 2 | E130: 0 | F130: 120 | G130: 90 | H130: 2017-10-21 | I130: T 2 OISE - SENLIS | J130: Finale | K130: 2017-2018 | P130: 0 | R130: 0
A131: BONNEAU Benoît | B131: BARBE Philippe | C131: P | D131: 1 | E131: 2 | F131: 151 | G131: 174 | H131: 2017-11-25 | I131: T 3 OISE - MERU | J131: Qualifications | K131: 2017-2018 | P131: 0 | R131: 0
A132: BONNEAU Benoît | B132: LORGE Thierry | C132: G | D132: 2 | E132: 0 | F132: 120 | G132: 64 | H132: 2017-11-25 | I132: T 3 OISE - MERU | J132: Finale | K132: 2017-2018 | P132: 0 | R132: 0
A133: BONNEAU Benoît | B133: MAUGER Jean-Paul | C133: G | D133: 2 | E133: 0 | F133: 120 | G133: 50 | H133: 2017-11-25 | I133: T 3 OISE - MERU | J133: Qualifications | K133: 2017-2018 | P133: 0 | R133: 0
A134: BONNEAU Benoît | B134: NAHIRNYJ Nicolas | C134: G | D134: 2 | E134: 1 | F134: 178 | G134: 140 | H134: 2017-11-25 | I134: T 3 OISE - MERU | J134: 1/2 Finale | K134: 2017-2018 | P134: 0 | R134: 0
A135: BONNEAU Benoît | B135: STEINMANN Sébastien | C135: G | D135: 2 | E135: 1 | F135: 159 | G135: 159 | H135: 2017-11-25 | I135: T 3 OISE - MERU | J135: 1/4 Finale | K135: 2017-2018 | P135: 0 | R135: 0
A136: BONNEAU Benoît | B136: BARBE Philippe | C136: G | D136: 2 | E136: 0 | F136: 120 | G136: 78 | H136: 2018-01-06 | I136: T 4 OISE - VILLERS | J136: Qualifications | K136: 2017-2018 | P136: 0 | R136: 0
A137: BONNEAU Benoît | B137: CHARLES Dominique | C137: G | D137: 2 | E137: 0 | F137: 120 | G137: 95 | H137: 2018-01-06 | I137: T 4 OISE - VILLERS | J137: Qualifications | K137: 2017-2018 | P137: 0 | R137: 0
A138: BONNEAU Benoît | B138: LORGE Thierry | C138: P | D138: 1 | E138: 2 | F138: 145 | G138: 128 | H138: 2018-01-06 | I138: T 4 OISE - VILLERS | J138: 1/2 Finale | K138: 2017-2018 | P138: 0 | R138: 0
A139: BONNEAU Benoît | B139: NAHIRNYJ Nicolas | C139: G | D139: 2 | E139: 0 | F139: 120 | G139: 81 | H139: 2018-01-06 | I139: T 4 OISE - VILLERS | J139: Qualifications | K139: 2017-2018 | P139: 0 | R139: 0
A140: BONNEAU Benoît | B140: ALEXANDRE Michel | C140: G | D140: 3 | E140: 1 | F140: 200 | G140: 185 | H140: 2018-02-17 | I140: FINALE OISE - SENLIS | J140: Poule unique | K140: 2017-2018 | P140: 0 | R140: 0
A141: BONNEAU Benoît | B141: CHARLES Dominique | C141: G | D141: 3 | E141: 0 | F141: 180 | G141: 120 | H141: 2018-02-17 | I141: FINALE OISE - SENLIS | J141: Poule unique | K141: 2017-2018 | P141: 0 | R141: 0
A142: BONNEAU Benoît | B142: LORGE Thierry | C142: P | D142: 1 | E142: 3 | F142: 182 | G142: 215 | H142: 2018-02-17 | I142: FINALE OISE - SENLIS | J142: Poule unique | K142: 2017-2018 | P142: 0 | R142: 0
A143: BONNEAU Benoît | B143: LORGE Thierry | C143: G | D143: 2 | E143: 0 | F143: 120 | G143: 88 | H143: 2018-09-29 | I143: 5 Q - T 1 OISE - 2018-2019 - N 1 - TOURNOI PRINCIPAL - CREPY | J143: Finale | K143: 2018-2019 | P143: 0 | R143: 0
A144: BONNEAU Benoît | B144: MARTIN Denis | C144: P | D144: 1 | E144: 2 | F144: 125 | G144: 169 | H144: 2018-09-29 | I144: 5 Q - T 1 OISE - 2018-2019 - N 1 - TOURNOI PRINCIPAL - CREPY | J144: Qualifications | K144: 2018-2019 | P144: =IF($K144=P$1,COUNTIF($C144,"G"),0) -> 0 | R144: =IF($K144=R$1,COUNTIF($C144,"G"),0) -> 0
A145: BONNEAU Benoît | B145: MAUGER Jean-Paul | C145: G | D145: 2 | E145: 0 | F145: 120 | G145: 55 | H145: 2018-09-29 | I145: 5 Q - T 1 OISE - 2018-2019 - N 1 - TOURNOI PRINCIPAL - CREPY | J145: Qualifications | K145: 2018-2019 | P145: 0 | R145: 0
A146: BONNEAU Benoît | B146: VAROQUEAUX Julien | C146: G | D146: 2 | E146: 1 | F146: 146 | G146: 154 | H146: 2018-09-29 | I146: 5 Q - T 1 OISE - 2018-2019 - N 1 - TOURNOI PRINCIPAL - CREPY | J146: 1/2 Finale | K146: 2018-2019 | P146: 0 | R146: 0
A147: BONNEAU Benoît | B147: BARBE Philippe | C147: P | D147: 0 | E147: 2 | F147: 98 | G147: 120 | H147: 2018-10-27 | I147: 5 Q - T 2 OISE - 2018-2019 - N 1 - TOURNOI PRINCIPAL - VILLERS | J147: Qualifications | K147: 2018-2019 | P147: 0 | R147: 0
A148: BONNEAU Benoît | B148: MAUGER Jean-Paul | C148: G | D148: 2 | E148: 0 | F148: 120 | G148: 91 | H148: 2018-10-27 | I148: 5 Q - T 2 OISE - 2018-2019 - N 1 - TOURNOI PRINCIPAL - VILLERS | J148: Qualifications | K148: 2018-2019 | P148: 0 | R148: 0
A149: BONNEAU Benoît | B149: NAHIRNYJ Nicolas | C149: P | D149: 0 | E149: 2 | F149: 74 | G149: 120 | H149: 2018-11-24 | I149: 5 Q - T 3 OISE - 2018-2019 - N 1 - TOURNOI PRINCIPAL - MERU | J149: Qualifications | K149: 2018-2019 | P149: 0 | R149: 0
A150: BONNEAU Benoît | B150: PROUT Vincent | C150: G | D150: 2 | E150: 0 | F150: 120 | G150: 94 | H150: 2018-11-24 | I150: 5 Q - T 3 OISE - 2018-2019 - N 1 - TOURNOI PRINCIPAL - MERU | J150: Qualifications | K150: 2018-2019 | P150: 0 | R150: 0
A151: BONNEAU Benoît | B151: BARBE Philippe | C151: G | D151: 2 | E151: 1 | F151: 141 | G151: 128 | H151: 2019-01-19 | I151: 5 Q - T 4 OISE - 2018-2019 - N 1 - TOURNOI PRINCIPAL - CREVECOEUR | J151: Qualifications | K151: 2018-2019 | P151: 0 | R151: 0
A152: BONNEAU Benoît | B152: BARBE Philippe | C152: G | D152: 2 | E152: 0 | F152: 120 | G152: 95 | H152: 2019-01-19 | I152: 5 Q - T 4 OISE - 2018-2019 - N 1 - TOURNOI PRINCIPAL - CREVECOEUR | J152: Qualifications | K152: 2018-2019 | P152: 0 | R152: 0
A153: BONNEAU Benoît | B153: FAURE Stéphane | C153: G | D153: 2 | E153: 0 | F153: 120 | G153: 86 | H153: 2019-01-19 | I153: 5 Q - T 4 OISE - 2018-2019 - N 1 - TOURNOI PRINCIPAL - CREVECOEUR | J153: 1/2 Finale | K153: 2018-2019 | P153: 0 | R153: 0
A154: BONNEAU Benoît | B154: NAHIRNYJ Nicolas | C154: G | D154: 2 | E154: 1 | F154: 174 | G154: 133 | H154: 2019-01-19 | I154: 5 Q - T 4 OISE - 2018-2019 - N 1 - TOURNOI PRINCIPAL - CREVECOEUR | J154: Finale | K154: 2018-2019 | P154: 0 | R154: 0
A155: BONNEAU Benoît | B155: FAURE Stéphane | C155: G | D155: 3 | E155: 1 | F155: 232 | G155: 191 | H155: 2019-02-23 | I155: FINALE OISE 2018-2019 - N 1 - SENLIS | J155: Qualifications | K155: 2018-2019 | P155: 0 | R155: 0
A156: BONNEAU Benoît | B156: LORGE Thierry | C156: G | D156: 3 | E156: 0 | F156: 180 | G156: 93 | H156: 2019-02-23 | I156: FINALE OISE 2018-2019 - N 1 - SENLIS | J156: Qualifications | K156: 2018-2019 | P156: 0 | R156: 0
A157: BONNEAU Benoît | B157: NAHIRNYJ Nicolas | C157: G | D157: 3 | E157: 2 | F157: 275 | G157: 243 | H157: 2019-02-23 | I157: FINALE OISE 2018-2019 - N 1 - SENLIS | J157: Qualifications | K157: 2018-2019 | P157: 0 | R157: 0
A158: BONNEAU Benoît | B158: BLONDEEL Firmin | C158: G | D158: 3 | E158: 0 | F158: 180 | G158: 136 | H158: 2019-03-17 | I158: Finale LIGUE 5 quilles N1 - ANNOEULLIN | J158: Poule unique | K158: 2018-2019 | P158: 0 | R158: 0
A159: BONNEAU Benoît | B159: DUPONT Fabrice | C159: P | D159: 1 | E159: 3 | F159: 195 | G159: 221 | H159: 2019-03-17 | I159: Finale LIGUE 5 quilles N1 - ANNOEULLIN | J159: Poule unique | K159: 2018-2019 | P159: 0 | R159: 0
A160: BONNEAU Benoît | B160: MAILLE Bernard | C160: G | D160: 3 | E160: 1 | F160: 215 | G160: 152 | H160: 2019-03-17 | I160: Finale LIGUE 5 quilles N1 - ANNOEULLIN | J160: Poule unique | K160: 2018-2019 | P160: 0 | R160: 0
A161: BONNEAU Benoît | B161: VASSEUR Cedric | C161: P | D161: 0 | E161: 3 | F161: 91 | G161: 180 | H161: 2019-03-17 | I161: Finale LIGUE 5 quilles N1 - ANNOEULLIN | J161: Poule unique | K161: 2018-2019 | P161: 0 | R161: 0
A162: BONNEAU Benoît | B162: BARBE Philippe | C162: G | D162: 2 | E162: 1 | F162: 153 | G162: 134 | H162: 2019-10-19 | I162: CD60 N1 - T1 - Tour Principal - BEAUVAIS | J162: Qualifications | K162: 2019-2020 | P162: 0 | R162: 0
A163: BONNEAU Benoît | B163: CHARLES Dominique | C163: G | D163: 2 | E163: 1 | F163: 178 | G163: 143 | H163: 2019-10-19 | I163: CD60 N1 - T1 - Tour Principal - BEAUVAIS | J163: Qualifications | K163: 2019-2020 | P163: 0 | R163: 0
A164: BONNEAU Benoît | B164: FAURE Stéphane | C164: P | D164: 1 | E164: 2 | F164: 134 | G164: 135 | H164: 2019-10-19 | I164: CD60 N1 - T1 - Tour Principal - BEAUVAIS | J164: 1/2 Finale | K164: 2019-2020 | P164: 0 | R164: 0
A165: BONNEAU Benoît | B165: MARTIN Denis | C165: G | D165: 1 | E165: 0 | F165: 100 | G165: 48 | H165: 2020-01-11 | I165: CD60 N1 - T3 - Tour Principal - CREPY | J165: Qualifications | K165: 2019-2020 | P165: 0 | R165: 0
A166: BONNEAU Benoît | B166: VANDEPUTTE Laurent | C166: P | D166: 0 | E166: 1 | F166: 56 | G166: 100 | H166: 2020-01-11 | I166: CD60 N1 - T3 - Tour Principal - CREPY | J166: Qualifications | K166: 2019-2020 | P166: 0 | R166: 0
A167: BONNEAU Benoît | B167: VAROQUEAUX Julien | C167: P | D167: 0 | E167: 1 | F167: 90 | G167: 100 | H167: 2020-01-11 | I167: CD60 N1 - T3 - Tour Principal - CREPY | J167: 1/4 Finale | K167: 2019-2020 | P167: 0 | R167: 0
A168: BONNEAU Benoît | B168: BILLIARD ALAIN | C168: G | D168: 1 | E168: 0 | F168: 100 | G168: 64 | H168: 2019-10-04 | I168: TN1 ANNOEULLIN | J168: Préqualifications | K168: 2019-2020 | P168: 0 | R168: 0
A169: BONNEAU Benoît | B169: GODARD ALAIN | C169: P | D169: 0 | E169: 1 | F169: 67 | G169: 100 | H169: 2019-10-04 | I169: TN1 ANNOEULLIN | J169: Préqualifications | K169: 2019-2020 | P169: 0 | R169: 0
A170: BONNEAU Benoît | B170: ALEXANDRE MICHEL | C170: P | D170: 0 | E170: 1 | F170: 66 | G170: 100 | H170: 2019-10-04 | I170: TN1 ANNOEULLIN | J170: Préqualifications | K170: 2019-2020 | P170: 0 | R170: 0
A171: BONNEAU Benoît | B171: LORGE THIERRY | C171: G | D171: 1 | E171: 0 | F171: 100 | G171: 69 | H171: 2019-10-05 | I171: TN1 ANNOEULLIN | J171: 1/16è Tournoi de classement | K171: 2019-2020 | P171: 0 | R171: 0
A172: BONNEAU Benoît | B172: SACRE JEAN YVES | C172: G | D172: 1 | E172: 0 | F172: 100 | G172: 97 | H172: 2019-10-05 | I172: TN1 ANNOEULLIN | J172: 1/8è Tournoi de classement | K172: 2019-2020 | P172: 0 | R172: 0
A173: BONNEAU Benoît | B173: DELATTRE HERVE | C173: P | D173: 0 | E173: 1 | F173: 73 | G173: 100 | H173: 2019-10-05 | I173: TN1 ANNOEULLIN | J173: 1/4 F Tournoi de classement | K173: 2019-2020 | P173: 0 | R173: 0
A174: BONNEAU Benoît | B174: LORGE Thierry | C174: G | D174: 2 | E174: 1 | F174: 160 | G174: 103 | H174: 2019-11-23 | I174: CD60 N1 - T2 - Tour Principal - MERU | J174: 1/2 Finale | K174: 2019-2020 | P174: 0 | R174: 0
A175: BONNEAU Benoît | B175: MARTIN Denis | C175: G | D175: 2 | E175: 0 | F175: 120 | G175: 63 | H175: 2019-11-23 | I175: CD60 N1 - T2 - Tour Principal - MERU | J175: 1/4 Finale | K175: 2019-2020 | P175: 0 | R175: 0
A176: BONNEAU Benoît | B176: VANDEPUTTE Laurent | C176: G | D176: 2 | E176: 1 | F176: 178 | G176: 143 | H176: 2019-11-23 | I176: CD60 N1 - T2 - Tour Principal - MERU | J176: Qualifications | K176: 2019-2020 | P176: 0 | R176: 0
A177: BONNEAU Benoît | B177: VANDEPUTTE Laurent | C177: G | D177: 2 | E177: 0 | F177: 120 | G177: 59 | H177: 2019-11-23 | I177: CD60 N1 - T2 - Tour Principal - MERU | J177: Qualifications | K177: 2019-2020 | P177: 0 | R177: 0
A178: BONNEAU Benoît | B178: VAROQUEAUX Julien | C178: G | D178: 2 | E178: 1 | F178: 135 | G178: 155 | H178: 2019-11-23 | I178: CD60 N1 - T2 - Tour Principal - MERU | J178: Finale | K178: 2019-2020 | P178: 0 | R178: 0
A179: Fin des données | P179: =IF($K179=P$1,COUNTIF($C179,"G"),0) -> 0 | R179: =IF($K179=R$1,COUNTIF($C179,"G"),0) -> 0

Sheet BOUBET Jean
A1: BOUBET Jean | P1: =SaisonDeb -> 2021-2022 | R1: =SaisonFin -> 2022-2023 | T1: Toutes saisons
A2: LE TOUQUET | P2: Nombre | Q2: %age | R2: Nombre | S2: %age | T2: Nombre | U2: %age
A3: 121412-S | N3: Matchs | O3: Gagnés | P3: =SUM(P$15:P$122) -> 0 | Q3: =IF(P$3+P$4>0,P3/(P$3+P$4),"") ->  | R3: =SUM(R$15:R$122) -> 0 | S3: =IF(R$3+R$4>0,R3/(R$3+R$4),"") ->  | T3: =COUNTIF($C$15:$C$122,"G") -> 4 | U3: =IF(T$3+T$4>0,T3/(T$3+T$4),"") -> 0.4
O4: Perdus | P4: =COUNTIF($K$15:$M$122,SaisonDeb)-P3 -> 0 | Q4: =IF(P$3+P$4>0,P4/(P$3+P$4),"") ->  | R4: =COUNTIF($K$15:$K$122,SaisonFin)-R3 -> 0 | S4: =IF(R$3+R$4>0,R4/(R$3+R$4),"") ->  | T4: =COUNTIF($C$15:$C$122,"P") -> 6 | U4: =IF(T$3+T$4>0,T4/(T$3+T$4),"") -> 0.6
O5: Total / Moy. | P5: =SUM(P3:P4) -> 0 | Q5: =IF(SUMIF($K$15:$K$122,SaisonDeb,$G$15:$G$122)>0,SUMIF($K$15:$K$122,SaisonDeb,$F$15:$F$122)/SUMIF($K$15:$K$122,SaisonDeb,$G$15:$G$122),"") ->  | R5: =SUM(R3:R4) -> 0 | S5: =IF(SUMIF($K$15:$K$122,SaisonFin,$G$15:$G$122)>0,SUMIF($K$15:$K$122,SaisonFin,$F$15:$F$122)/SUMIF($K$15:$K$122,SaisonFin,$G$15:$G$122),"") ->  | T5: =SUM(T3:T4) -> 10 | U5: =IF(SUM($G$15:$G$122)>0,SUM($F$15:$F$122)/SUM($G$15:$G$122),"") -> 0.9042056075 | V5: =IF(SUMIF($K$15:$K$26,SaisonDeb,$G$15:$G$26)+SUMIF($K$15:$K$26,SaisonFin,$G$15:$G$26)>0,(SUMIF($K$15:$K$26,SaisonDeb,$F$15:$F$26)+SUMIF($K$15:$K$26,SaisonFin,$F$15:$F$26))/(SUMIF($K$15:$K$26,SaisonDeb,$G$15:$G$26)+SUMIF($K$15:$K$26,SaisonFin,$G$15:$G$26)),"") -> 
N6: Sets | O6: Gagnés | P6: =SUMIF($K$15:$K$122,SaisonDeb,$D$15:$D$122) -> 0 | Q6: =IF(P$6+P$7>0,P6/(P$6+P$7),"") ->  | R6: =SUMIF($K$15:$K$122,SaisonFin,$D$15:$D$122) -> 0 | S6: =IF(R$6+R$7>0,R6/(R$6+R$7),"") ->  | T6: =SUM($D$15:$D$122) -> 11 | U6: =IF(T$6+T$7>0,T6/(T$6+T$7),"") -> 0.44
O7: Perdus | P7: =SUMIF($K$15:$K$122,SaisonDeb,$E$15:$E$122) -> 0 | Q7: =IF(P$6+P$7>0,P7/(P$6+P$7),"") ->  | R7: =SUMIF($K$15:$K$122,SaisonFin,$E$15:$E$122) -> 0 | S7: =IF(R$6+R$7>0,R7/(R$6+R$7),"") ->  | T7: =SUM($E$15:$E$122) -> 14 | U7: =IF(T$6+T$7>0,T7/(T$6+T$7),"") -> 0.56
A8: Récapitulatif joueurs | O8: Total | P8: =SUM(P6:P7) -> 0 | R8: =SUM(R6:R7) -> 0 | T8: =SUM(T6:T7) -> 25
A15: Joueur | B15: Adversaire | C15: G/P | D15: Sets gagnés | E15: Sets perdus | F15: pts marqués | G15: pts subis | H15: Date | I15: Compétition | J15: Phase | K15: Saison
A16: BOUBET Jean | B16: CARTIERE André | C16: P | D16: 1 | E16: 2 | F16: 126 | G16: 160 | H16: 2017-03-17 | I16: T3 5 QUILLES N1 CD62 - CUCQ | J16: Qualifications | K16: =IF(H16<>"",IF(MONTH(H16)>MoisRef,YEAR(H16)&"-"&YEAR(H16)+1,YEAR(H16)-1&"-"&YEAR(H16)),"") -> 2016-2017 | P16: =IF($K16=P$1,COUNTIF($C16,"G"),0) -> 0 | R16: =IF($K16=R$1,COUNTIF($C16,"G"),0) -> 0
A17: BOUBET Jean | B17: TRIPLET Gilbert | C17: P | D17: 0 | E17: 2 | F17: 74 | G17: 120 | H17: 2017-03-17 | I17: T3 5 QUILLES N1 CD62 - CUCQ | J17: Qualifications | K17: 2016-2017 | P17: 0 | R17: 0
A18: BOUBET Jean | B18: DEPLECHIN Robert | C18: P | D18: 1 | E18: 2 | F18: 123 | G18: 142 | H18: 2018-01-06 | I18: T1 5 QUILLES N1 CD62 - | J18: Qualifications | K18: 2017-2018 | P18: 0 | R18: 0
A19: BOUBET Jean | B19: DEPLECHIN Robert | C19: G | D19: 2 | E19: 1 | F19: 165 | G19: 120 | H19: 2018-01-06 | I19: T1 5 QUILLES N1 CD62 - | J19: 1/2 Finale | K19: 2017-2018 | P19: 0 | R19: 0
A20: BOUBET Jean | B20: RAMET Jacques | C20: G | D20: 2 | E20: 1 | F20: 165 | G20: 148 | H20: 2018-01-06 | I20: T1 5 QUILLES N1 CD62 - | J20: Qualifications | K20: 2017-2018 | P20: 0 | R20: 0
A21: BOUBET Jean | B21: SAINT-GEORGES Claude | C21: P | D21: 1 | E21: 2 | F21: 114 | G21: 167 | H21: 2018-01-06 | I21: T1 5 QUILLES N1 CD62 - | J21: Finale | K21: 2017-2018 | P21: 0 | R21: 0
A22: BOUBET Jean | B22: DEPLECHIN Robert | C22: P | D22: 0 | E22: 2 | F22: 98 | G22: 120 | H22: 2018-02-24 | I22: T2 5 QUILLES N1 CD62 - CALAIS | J22: Qualifications | K22: 2017-2018 | P22: 0 | R22: 0
A23: BOUBET Jean | B23: DEPLECHIN Robert | C23: G | D23: 2 | E23: 0 | F23: 120 | G23: 99 | H23: 2018-02-24 | I23: T2 5 QUILLES N1 CD62 - CALAIS | J23: Qualifications | K23: 2017-2018 | P23: 0 | R23: 0
A24: BOUBET Jean | B24: DEPLECHIN Robert | C24: G | D24: 2 | E24: 0 | F24: 120 | G24: 88 | H24: 2018-02-24 | I24: T2 5 QUILLES N1 CD62 - CALAIS | J24: 1/2 Finale | K24: 2017-2018 | P24: 0 | R24: 0
A25: BOUBET Jean | B25: SAINT-GEORGES Claude | C25: P | D25: 0 | E25: 2 | F25: 56 | G25: 120 | H25: 2018-02-24 | I25: T2 5 QUILLES N1 CD62 - CALAIS | J25: Finale | K25: 2017-2018 | P25: 0 | R25: 0
A26: Fin des données | P26: =IF($K26=P$1,COUNTIF($C26,"G"),0) -> 0 | R26: =IF($K26=R$1,COUNTIF($C26,"G"),0) -> 0

Sheet BOURGOGNE Claude
A1: BOURGOGNE Claude | P1: =SaisonDeb -> 2021-2022 | R1: =SaisonFin -> 2022-2023 | T1: Toutes saisons
P2: Nombre | Q2: %age | R2: Nombre | S2: %age | T2: Nombre | U2: %age
N3: Matchs | O3: Gagnés | P3: =SUM(P$15:P$139) -> 0 | Q3: =IF(P$3+P$4>0,P3/(P$3+P$4),"") ->  | R3: =SUM(R$15:R$139) -> 0 | S3: =IF(R$3+R$4>0,R3/(R$3+R$4),"") ->  | T3: =COUNTIF($C$15:$C$139,"G") -> 10 | U3: =IF(T$3+T$4>0,T3/(T$3+T$4),"") -> 0.3703703704
O4: Perdus | P4: =COUNTIF($K$15:$M$139,SaisonDeb)-P3 -> 0 | Q4: =IF(P$3+P$4>0,P4/(P$3+P$4),"") ->  | R4: =COUNTIF($K$15:$K$139,SaisonFin)-R3 -> 0 | S4: =IF(R$3+R$4>0,R4/(R$3+R$4),"") ->  | T4: =COUNTIF($C$15:$C$139,"P") -> 17 | U4: =IF(T$3+T$4>0,T4/(T$3+T$4),"") -> 0.6296296296
O5: Total / Moy. | P5: =SUM(P3:P4) -> 0 | Q5: =IF(SUMIF($K$15:$K$139,SaisonDeb,$G$15:$G$139)>0,SUMIF($K$15:$K$139,SaisonDeb,$F$15:$F$139)/SUMIF($K$15:$K$139,SaisonDeb,$G$15:$G$139),"") ->  | R5: =SUM(R3:R4) -> 0 | S5: =IF(SUMIF($K$15:$K$139,SaisonFin,$G$15:$G$139)>0,SUMIF($K$15:$K$139,SaisonFin,$F$15:$F$139)/SUMIF($K$15:$K$139,SaisonFin,$G$15:$G$139),"") ->  | T5: =SUM(T3:T4) -> 27 | U5: =IF(SUM($G$15:$G$139)>0,SUM($F$15:$F$139)/SUM($G$15:$G$139),"") -> 0.9148264984 | V5: =IF(SUMIF($K$15:$K$43,SaisonDeb,$G$15:$G$43)+SUMIF($K$15:$K$43,SaisonFin,$G$15:$G$43)>0,(SUMIF($K$15:$K$43,SaisonDeb,$F$15:$F$43)+SUMIF($K$15:$K$43,SaisonFin,$F$15:$F$43))/(SUMIF($K$15:$K$43,SaisonDeb,$G$15:$G$43)+SUMIF($K$15:$K$43,SaisonFin,$G$15:$G$43)),"") -> 
N6: Sets | O6: Gagnés | P6: =SUMIF($K$15:$K$139,SaisonDeb,$D$15:$D$139) -> 0 | Q6: =IF(P$6+P$7>0,P6/(P$6+P$7),"") ->  | R6: =SUMIF($K$15:$K$139,SaisonFin,$D$15:$D$139) -> 0 | S6: =IF(R$6+R$7>0,R6/(R$6+R$7),"") ->  | T6: =SUM($D$15:$D$139) -> 15 | U6: =IF(T$6+T$7>0,T6/(T$6+T$7),"") -> 0.3658536585
O7: Perdus | P7: =SUMIF($K$15:$K$139,SaisonDeb,$E$15:$E$139) -> 0 | Q7: =IF(P$6+P$7>0,P7/(P$6+P$7),"") ->  | R7: =SUMIF($K$15:$K$139,SaisonFin,$E$15:$E$139) -> 0 | S7: =IF(R$6+R$7>0,R7/(R$6+R$7),"") ->  | T7: =SUM($E$15:$E$139) -> 26 | U7: =IF(T$6+T$7>0,T7/(T$6+T$7),"") -> 0.6341463415
A8: Récapitulatif joueurs | O8: Total | P8: =SUM(P6:P7) -> 0 | R8: =SUM(R6:R7) -> 0 | T8: =SUM(T6:T7) -> 41
A15: Joueur | B15: Adversaire | C15: G/P | D15: Sets gagnés | E15: Sets perdus | F15: pts marqués | G15: pts subis | H15: Date | I15: Compétition | J15: Phase | K15: Saison
A16: BOURGOGNE Claude | B16: DIOT Alain | C16: G | D16: 1 | E16: 0 | F16: 100 | G16: 86 | H16: 2016-10-22 | I16: 5Q CD60 N1 - T 1 -CREPY | J16: Tour 1 | K16: =IF(H16<>"",IF(MONTH(H16)>MoisRef,YEAR(H16)&"-"&YEAR(H16)+1,YEAR(H16)-1&"-"&YEAR(H16)),"") -> 2016-2017 | P16: =IF($K16=P$1,COUNTIF($C16,"G"),0) -> 0 | R16: =IF($K16=R$1,COUNTIF($C16,"G"),0) -> 0
A17: BOURGOGNE Claude | B17: PRUDHOMME Laurent | C17: P | D17: 0 | E17: 1 | F17: 75 | G17: 100 | H17: 2016-10-22 | I17: 5Q CD60 N1 - T 1 -CREPY | J17: Tour 2 | K17: 2016-2017 | P17: 0 | R17: 0
A18: BOURGOGNE Claude | B18: BARBE Philippe | C18: P | D18: 0 | E18: 1 | F18: 93 | G18: 100 | H18: 2016-10-22 | I18: 5Q CD60 N1 - T 1 -CREPY | J18: Tour 3 | K18: 2016-2017 | P18: 0 | R18: 0
A19: BOURGOGNE Claude | B19: TALEC Pierre | C19: G | D19: 1 | E19: 0 | F19: 100 | G19: 40 | H19: 2016-10-22 | I19: 5Q CD60 N1 - T 1 -CREPY | J19: Tour 4 | K19: 2016-2017 | P19: 0 | R19: 0
A20: BOURGOGNE Claude | B20: VAROQUEAUX Julien | C20: P | D20: 0 | E20: 1 | F20: 99 | G20: 100 | H20: 2016-11-26 | I20: 5Q CD60 N1 - T 2 - SENLIS | J20: Tour 2 | K20: 2016-2017 | P20: 0 | R20: 0
A21: BOURGOGNE Claude | B21: HERMANT Jacques | C21: P | D21: 0 | E21: 1 | F21: 98 | G21: 100 | H21: 2016-11-26 | I21: 5Q CD60 N1 - T 2 - SENLIS | J21: Tour 3 | K21: 2016-2017 | P21: 0 | R21: 0
A22: BOURGOGNE Claude | B22: TALEC Pierre | C22: G | D22: 1 | E22: 0 | F22: 100 | G22: 56 | H22: 2016-11-26 | I22: 5Q CD60 N1 - T 2 - SENLIS | J22: Tour 4 | K22: 2016-2017 | P22: 0 | R22: 0
A23: BOURGOGNE Claude | B23: HERMANT Jacques | C23: G | D23: 1 | E23: 0 | F23: 100 | G23: 88 | H23: 2017-02-25 | I23: 5Q CD60 N1 - T 2 - SENLIS | J23: Tour 1 | K23: 2016-2017 | P23: 0 | R23: 0
A24: BOURGOGNE Claude | B24: LAMARQUE Yves | C24: G | D24: 1 | E24: 0 | F24: 100 | G24: 95 | H24: 2017-02-25 | I24: 5Q CD60 N1 - T 2 - SENLIS | J24: Tour 2 | K24: 2016-2017 | P24: 0 | R24: 0
A25: BOURGOGNE Claude | B25: VAROQUEAUX Julien | C25: G | D25: 1 | E25: 0 | F25: 100 | G25: 99 | H25: 2017-02-25 | I25: 5Q CD60 N1 - T 2 - SENLIS | J25: Tour 3 | K25: 2016-2017 | P25: 0 | R25: 0
A26: BOURGOGNE Claude | B26: LALOT Gérard | C26: P | D26: 0 | E26: 1 | F26: 82 | G26: 100 | H26: 2017-02-25 | I26: 5Q CD60 N1 - T 2 - SENLIS | J26: Tour 4 | K26: 2016-2017 | P26: 0 | R26: 0
A27: BOURGOGNE Claude | B27: LANDRIN Christian | C27: G | D27: 1 | E27: 0 | F27: 100 | G27: =F26 -> 82 | H27: 2017-01-21 | I27: 5Q CD60 N1 - T 3 - MERU | J27: Tour 1 | K27: 2016-2017 | P27: 0 | R27: 0
A28: BOURGOGNE Claude | B28: OLIVEIRA José | C28: P | D28: 0 | E28: 1 | F28: 74 | G28: 100 | H28: 2017-01-21 | I28: 5Q CD60 N1 - T 3 - MERU | J28: Tour 2 | K28: 2016-2017 | P28: 0 | R28: 0
A29: BOURGOGNE Claude | B29: BARBE Philippe | C29: P | D29: 0 | E29: 1 | F29: 85 | G29: 100 | H29: 2017-01-21 | I29: 5Q CD60 N1 - T 3 - MERU | J29: Tour 3 | K29: 2016-2017 | P29: 0 | R29: 0
A30: BOURGOGNE Claude | B30: STEINMANN Sébastien | C30: P | D30: 0 | E30: 1 | F30: 93 | G30: 100 | H30: 2017-01-21 | I30: 5Q CD60 N1 - T 3 - MERU | J30: Tour 4 | K30: 2016-2017 | P30: 0 | R30: 0
A31: BOURGOGNE Claude | B31: BARBE Philippe | C31: P | D31: 0 | E31: 1 | F31: 19 | G31: 100 | H31: 2017-09-30 | I31: T 1 OISE - Consolante - CREPY | J31: Qualifications | K31: 2017-2018 | P31: 0 | R31: 0
A32: BOURGOGNE Claude | B32: MAUGER Jean-Paul | C32: P | D32: 0 | E32: 1 | F32: 97 | G32: 100 | H32: 2017-09-30 | I32: T 1 OISE - Consolante - CREPY | J32: Qualifications | K32: 2017-2018 | P32: 0 | R32: 0
A33: BOURGOGNE Claude | B33: LORGE Thierry | C33: P | D33: 1 | E33: 2 | F33: 141 | G33: 174 | H33: 2017-09-30 | I33: T 1 OISE - CREPY | J33: Qualifications | K33: 2017-2018 | P33: 0 | R33: 0
A34: BOURGOGNE Claude | B34: NAHIRNYJ Nicolas | C34: P | D34: 1 | E34: 2 | F34: 138 | G34: 163 | H34: 2017-09-30 | I34: T 1 OISE - CREPY | J34: Qualifications | K34: 2017-2018 | P34: 0 | R34: 0
A35: BOURGOGNE Claude | B35: FAURE Stéphane | C35: G | D35: 2 | E35: 0 | F35: 120 | G35: 69 | H35: 2018-09-29 | I35: 5 Q - T 1 OISE - 2018-2019 - N 1 - TOURNOI PRINCIPAL - CREPY | J35: Qualifications | K35: 2018-2019 | P35: 0 | R35: 0
A36: BOURGOGNE Claude | B36: LORGE Thierry | C36: P | D36: 0 | E36: 2 | F36: 105 | G36: 120 | H36: 2018-09-29 | I36: 5 Q - T 1 OISE - 2018-2019 - N 1 - TOURNOI PRINCIPAL - CREPY | J36: Qualifications | K36: 2018-2019 | P36: 0 | R36: 0
A37: BOURGOGNE Claude | B37: COSTA FREITAS Domingos | C37: P | D37: 0 | E37: 2 | F37: 70 | G37: 120 | H37: 43406 | I37: TN2 - ST MAUR - PRE QUALIFICATIONS | J37: Qualifications | K37: 2018-2019 | P37: 0 | R37: 0
A38: BOURGOGNE Claude | B38: LACROIX Sabine | C38: G | D38: 2 | E38: 1 | F38: 175 | G38: 138 | H38: 43406 | I38: TN2 - ST MAUR - PRE QUALIFICATIONS | J38: Qualifications | K38: 2018-2019 | P38: 0 | R38: 0
A39: BOURGOGNE Claude | B39: SORTAIS Claude | C39: P | D39: 0 | E39: 2 | F39: 58 | G39: 120 | H39: 43406 | I39: TN2 - ST MAUR - PRE QUALIFICATIONS | J39: Qualifications | K39: 2018-2019 | P39: 0 | R39: 0
A40: BOURGOGNE Claude | B40: GODARD ALAIN | C40: G | D40: 2 | E40: 1 | F40: 171 | G40: 163 | H40: 43497 | I40: National T4 ST QUENTIN | J40: Préqualifs | K40: 2018-2019 | P40: 0 | R40: 0
A41: BOURGOGNE Claude | B41: POTHIER CHRISTOPHE | C41: P | D41: 0 | E41: 2 | F41: 75 | G41: 120 | H41: 43497 | I41: National T4 ST QUENTIN | J41: Préqualifs | K41: 2018-2019 | P41: 0 | R41: 0
A42: BOURGOGNE Claude | B42: GEETS PATRICE | C42: P | D42: 0 | E42: 2 | F42: 42 | G42: 120 | H42: 43497 | I42: National T4 ST QUENTIN | J42: Préqualifs | K42: 2018-2019 | P42: 0 | R42: 0
A43: Fin des données | P43: =IF($K43=P$1,COUNTIF($C43,"G"),0) -> 0 | R43: =IF($K43=R$1,COUNTIF($C43,"G"),0) -> 0

Sheet BOUTEILLER Francis
A1: BOUTEILLER Francis | P1: =SaisonDeb -> 2021-2022 | R1: =SaisonFin -> 2022-2023 | T1: Toutes saisons
P2: Nombre | Q2: %age | R2: Nombre | S2: %age | T2: Nombre | U2: %age
N3: Matchs | O3: Gagnés | P3: =SUM(P$15:P$117) -> 0 | Q3: =IF(P$3+P$4>0,P3/(P$3+P$4),"") ->  | R3: =SUM(R$15:R$117) -> 0 | S3: =IF(R$3+R$4>0,R3/(R$3+R$4),"") ->  | T3: =COUNTIF($C$15:$C$117,"G") -> 4 | U3: =IF(T$3+T$4>0,T3/(T$3+T$4),"") -> 0.8
O4: Perdus | P4: =COUNTIF($K$15:$M$117,SaisonDeb)-P3 -> 0 | Q4: =IF(P$3+P$4>0,P4/(P$3+P$4),"") ->  | R4: =COUNTIF($K$15:$K$117,SaisonFin)-R3 -> 0 | S4: =IF(R$3+R$4>0,R4/(R$3+R$4),"") ->  | T4: =COUNTIF($C$15:$C$117,"P") -> 1 | U4: =IF(T$3+T$4>0,T4/(T$3+T$4),"") -> 0.2
O5: Total / Moy. | P5: =SUM(P3:P4) -> 0 | Q5: =IF(SUMIF($K$15:$K$117,SaisonDeb,$G$15:$G$117)>0,SUMIF($K$15:$K$117,SaisonDeb,$F$15:$F$117)/SUMIF($K$15:$K$117,SaisonDeb,$G$15:$G$117),"") ->  | R5: =SUM(R3:R4) -> 0 | S5: =IF(SUMIF($K$15:$K$117,SaisonFin,$G$15:$G$117)>0,SUMIF($K$15:$K$117,SaisonFin,$F$15:$F$117)/SUMIF($K$15:$K$117,SaisonFin,$G$15:$G$117),"") ->  | T5: =SUM(T3:T4) -> 5 | U5: =IF(SUM($G$15:$G$117)>0,SUM($F$15:$F$117)/SUM($G$15:$G$117),"") -> 1.151898734 | V5: =IF(SUMIF($K$15:$K$21,SaisonDeb,$G$15:$G$21)+SUMIF($K$15:$K$21,SaisonFin,$G$15:$G$21)>0,(SUMIF($K$15:$K$21,SaisonDeb,$F$15:$F$21)+SUMIF($K$15:$K$21,SaisonFin,$F$15:$F$21))/(SUMIF($K$15:$K$21,SaisonDeb,$G$15:$G$21)+SUMIF($K$15:$K$21,SaisonFin,$G$15:$G$21)),"") -> 
N6: Sets | O6: Gagnés | P6: =SUMIF($K$15:$K$117,SaisonDeb,$D$15:$D$117) -> 0 | Q6: =IF(P$6+P$7>0,P6/(P$6+P$7),"") ->  | R6: =SUMIF($K$15:$K$117,SaisonFin,$D$15:$D$117) -> 0 | S6: =IF(R$6+R$7>0,R6/(R$6+R$7),"") ->  | T6: =SUM($D$15:$D$117) -> 9 | U6: =IF(T$6+T$7>0,T6/(T$6+T$7),"") -> 0.6923076923
O7: Perdus | P7: =SUMIF($K$15:$K$117,SaisonDeb,$E$15:$E$117) -> 0 | Q7: =IF(P$6+P$7>0,P7/(P$6+P$7),"") ->  | R7: =SUMIF($K$15:$K$117,SaisonFin,$E$15:$E$117) -> 0 | S7: =IF(R$6+R$7>0,R7/(R$6+R$7),"") ->  | T7: =SUM($E$15:$E$117) -> 4 | U7: =IF(T$6+T$7>0,T7/(T$6+T$7),"") -> 0.3076923077
A8: Récapitulatif joueurs | O8: Total | P8: =SUM(P6:P7) -> 0 | R8: =SUM(R6:R7) -> 0 | T8: =SUM(T6:T7) -> 13
A15: Joueur | B15: Adversaire | C15: G/P | D15: Sets gagnés | E15: Sets perdus | F15: pts marqués | G15: pts subis | H15: Date | I15: Compétition | J15: Phase | K15: Saison
A16: BOUTEILLER Francis | B16: CHARLES Dominique | C16: G | D16: 2 | E16: 1 | F16: 131 | G16: 140 | H16: 2017-11-25 | I16: T 3 OISE - MERU | J16: Qualifications | K16: =IF(H16<>"",IF(MONTH(H16)>MoisRef,YEAR(H16)&"-"&YEAR(H16)+1,YEAR(H16)-1&"-"&YEAR(H16)),"") -> 2017-2018 | P16: =IF($K16=P$1,COUNTIF($C16,"G"),0) -> 0 | R16: =IF($K16=R$1,COUNTIF($C16,"G"),0) -> 0
A17: BOUTEILLER Francis | B17: CHARLES Dominique | C17: G | D17: 2 | E17: 0 | F17: 120 | G17: 38 | H17: 2017-11-25 | I17: T 3 OISE - MERU | J17: 1/4 Finale | K17: 2017-2018 | P17: 0 | R17: 0
A18: BOUTEILLER Francis | B18: HERTOUX Didier | C18: G | D18: 2 | E18: 0 | F18: 120 | G18: 54 | H18: 2017-11-25 | I18: T 3 OISE - MERU | J18: Qualifications | K18: 2017-2018 | P18: 0 | R18: 0
A19: BOUTEILLER Francis | B19: LORGE Thierry | C19: P | D19: 1 | E19: 2 | F19: 118 | G19: 160 | H19: 2017-11-25 | I19: T 3 OISE - MERU | J19: 1/2 Finale | K19: 2017-2018 | P19: 0 | R19: 0
A20: BOUTEILLER Francis | B20: VAROQUEAUX Julien | C20: G | D20: 2 | E20: 1 | F20: 148 | G20: 161 | H20: 2017-11-25 | I20: T 3 OISE - MERU | J20: Qualifications | K20: 2017-2018 | P20: 0 | R20: 0
A21: Fin des données | P21: 0 | R21: 0

Sheet BOZON ROBERT
A1: BOZON ROBERT | P1: =SaisonDeb -> 2021-2022 | R1: =SaisonFin -> 2022-2023 | T1: Toutes saisons
P2: Nombre | Q2: %age | R2: Nombre | S2: %age | T2: Nombre | U2: %age
N3: Matchs | O3: Gagnés | P3: =SUM(P$15:P$129) -> 3 | Q3: =IF(P$3+P$4>0,P3/(P$3+P$4),"") -> 0.5 | R3: =SUM(R$15:R$129) -> 4 | S3: =IF(R$3+R$4>0,R3/(R$3+R$4),"") -> 0.3636363636 | T3: =COUNTIF($C$15:$C$129,"G") -> 7 | U3: =IF(T$3+T$4>0,T3/(T$3+T$4),"") -> 0.4117647059
O4: Perdus | P4: =COUNTIF($K$15:$M$129,SaisonDeb)-P3 -> 3 | Q4: =IF(P$3+P$4>0,P4/(P$3+P$4),"") -> 0.5 | R4: =COUNTIF($K$15:$K$129,SaisonFin)-R3 -> 7 | S4: =IF(R$3+R$4>0,R4/(R$3+R$4),"") -> 0.6363636364 | T4: =COUNTIF($C$15:$C$129,"P") -> 10 | U4: =IF(T$3+T$4>0,T4/(T$3+T$4),"") -> 0.5882352941
O5: Total / Moy. | P5: =SUM(P3:P4) -> 6 | Q5: =IF(SUMIF($K$15:$K$129,SaisonDeb,$G$15:$G$129)>0,SUMIF($K$15:$K$129,SaisonDeb,$F$15:$F$129)/SUMIF($K$15:$K$129,SaisonDeb,$G$15:$G$129),"") -> 0.8683651805 | R5: =SUM(R3:R4) -> 11 | S5: =IF(SUMIF($K$15:$K$129,SaisonFin,$G$15:$G$129)>0,SUMIF($K$15:$K$129,SaisonFin,$F$15:$F$129)/SUMIF($K$15:$K$129,SaisonFin,$G$15:$G$129),"") -> 0.7707160097 | T5: =SUM(T3:T4) -> 17 | U5: =IF(SUM($G$15:$G$129)>0,SUM($F$15:$F$129)/SUM($G$15:$G$129),"") -> 0.7975495916 | V5: =IF(SUMIF($K$15:$K$33,SaisonDeb,$G$15:$G$33)+SUMIF($K$15:$K$33,SaisonFin,$G$15:$G$33)>0,(SUMIF($K$15:$K$33,SaisonDeb,$F$15:$F$33)+SUMIF($K$15:$K$33,SaisonFin,$F$15:$F$33))/(SUMIF($K$15:$K$33,SaisonDeb,$G$15:$G$33)+SUMIF($K$15:$K$33,SaisonFin,$G$15:$G$33)),"") -> 0.7975495916
N6: Sets | O6: Gagnés | P6: =SUMIF($K$15:$K$129,SaisonDeb,$D$15:$D$129) -> 3 | Q6: =IF(P$6+P$7>0,P6/(P$6+P$7),"") -> 0.5 | R6: =SUMIF($K$15:$K$129,SaisonFin,$D$15:$D$129) -> 4 | S6: =IF(R$6+R$7>0,R6/(R$6+R$7),"") -> 0.3636363636 | T6: =SUM($D$15:$D$129) -> 7 | U6: =IF(T$6+T$7>0,T6/(T$6+T$7),"") -> 0.4117647059
O7: Perdus | P7: =SUMIF($K$15:$K$129,SaisonDeb,$E$15:$E$129) -> 3 | Q7: =IF(P$6+P$7>0,P7/(P$6+P$7),"") -> 0.5 | R7: =SUMIF($K$15:$K$129,SaisonFin,$E$15:$E$129) -> 7 | S7: =IF(R$6+R$7>0,R7/(R$6+R$7),"") -> 0.6363636364 | T7: =SUM($E$15:$E$129) -> 10 | U7: =IF(T$6+T$7>0,T7/(T$6+T$7),"") -> 0.5882352941
A8: Récapitulatif joueurs | O8: Total | P8: =SUM(P6:P7) -> 6 | R8: =SUM(R6:R7) -> 11 | T8: =SUM(T6:T7) -> 17
A15: Joueur | B15: Adversaire | C15: G/P | D15: Sets gagnés | E15: Sets perdus | F15: pts marqués | G15: pts subis | H15: Date | I15: Compétition | J15: Phase | K15: Saison
A16: BOZON ROBERT | B16: WALLART JEAN CHARLES | C16: P | D16: 0 | E16: 1 | F16: 55 | G16: 100 | H16: 2021-10-08 | I16: TN1 ST MAUR DES FOSSES | J16: Préqualifications | K16: =IF(H16<>"",IF(MONTH(H16)>MoisRef,YEAR(H16)&"-"&YEAR(H16)+1,YEAR(H16)-1&"-"&YEAR(H16)),"") -> 2021-2022 | P16: =IF($K16=P$1,COUNTIF($C16,"G"),0) -> 0 | R16: =IF($K16=R$1,COUNTIF($C16,"G"),0) -> 0
A17: BOZON ROBERT | B17: COSTE PHILIPPE | C17: P | D17: 0 | E17: 1 | F17: 38 | G17: 100 | H17: 2021-10-08 | I17: TN1 ST MAUR DES FOSSES | J17: Préqualifications | K17: 2021-2022 | P17: 0 | R17: 0
A18: BOZON ROBERT | B18: BARBE PHILIPPE | C18: G | D18: 1 | E18: 0 | F18: 100 | G18: 53 | H18: 2021-10-08 | I18: TN1 ST MAUR DES FOSSES | J18: Préqualifications | K18: 2021-2022 | P18: 1 | R18: 0
A19: BOZON ROBERT | B19: ROUBY JEAN CHRISTOPHE | C19: G | D19: 1 | E19: 0 | F19: 100 | G19: 54 | H19: 2021-10-09 | I19: TN1 ST MAUR DES FOSSES | J19: 1/8è Tournoi de classement | K19: 2021-2022 | P19: 1 | R19: 0
A20: BOZON ROBERT | B20: DUPAS STEPHANE | C20: G | D20: 1 | E20: 0 | F20: 100 | G20: 64 | H20: 2021-10-09 | I20: TN1 ST MAUR DES FOSSES | J20: 1/4 F Tournoi de classement | K20: 2021-2022 | P20: 1 | R20: 0
A21: BOZON ROBERT | B21: BONNEAU BENOIT | C21: P | D21: 0 | E21: 1 | F21: 16 | G21: 100 | H21: 2021-10-10 | I21: TN1 ST MAUR DES FOSSES | J21: 1/2 F Tournoi de classement | K21: 2021-2022 | P21: 0 | R21: 0
A22: BOZON Robert | B22: NAHIRNYJ Nicolas | C22: P | D22: 0 | E22: 1 | F22: 42 | G22: 120 | H22: 2022-10-29 | I22: T 1 OISE - Qualifications N 1 - Tour Principal - MERU | J22: Qualifications | K22: 2022-2023 | P22: 0 | R22: 0
A23: BOZON Robert | B23: RITACCO Antonio | C23: G | D23: 1 | E23: 0 | F23: 120 | G23: 84 | H23: 2022-10-29 | I23: T 1 OISE - Qualifications N 1 - Tour Principal - MERU | J23: Qualifications | K23: 2022-2023 | P23: 0 | R23: 1
A24: BOZON Robert | B24: FAURE Stéphane | C24: P | D24: 0 | E24: 1 | F24: 119 | G24: 120 | H24: 2022-12-03 | I24: T 2 OISE - Qualifications N 1 - Tour Principal - SENLIS | J24: Qualifications | K24: 2022-2023 | P24: 0 | R24: 0
A25: BOZON Robert | B25: FELLINE Riccardo | C25: P | D25: 0 | E25: 1 | F25: 75 | G25: 120 | H25: 2022-12-03 | I25: T 2 OISE - Qualifications N 1 - Tour Principal - SENLIS | J25: 1/2 Finale | K25: 2022-2023 | P25: 0 | R25: 0
A26: BOZON Robert | B26: LALOT Gérard | C26: G | D26: 1 | E26: 0 | F26: 120 | G26: 113 | H26: 2022-12-03 | I26: T 2 OISE - Qualifications N 1 - Tour Principal - SENLIS | J26: 1/4 Finale | K26: 2022-2023 | P26: 0 | R26: 1
A27: BOZON Robert | B27: VAROQUEAUX Julien | C27: G | D27: 1 | E27: 0 | F27: 120 | G27: 118 | H27: 2022-12-03 | I27: T 2 OISE - Qualifications N 1 - Tour Principal - SENLIS | J27: Qualifications | K27: 2022-2023 | P27: 0 | R27: 1
A28: BOZON Robert | B28: OLIVEIRA José | C28: P | D28: 0 | E28: 1 | F28: 32 | G28: 120 | H28: 2023-02-18 | I28: T 3 OISE - Qualifications N 1 - Tour Principal - BEAUVAIS | J28: Qualifications | K28: 2022-2023 | P28: 0 | R28: 0
A29: BOZON Robert | B29: OLIVEIRA José | C29: P | D29: 0 | E29: 1 | F29: 60 | G29: 120 | H29: 2023-02-18 | I29: T 3 OISE - Qualifications N 1 - Tour Principal - BEAUVAIS | J29: Qualifications | K29: 2022-2023 | P29: 0 | R29: 0
A30: BOZON Robert | B30: FELLINE Riccardo | C30: P | D30: 0 | E30: 1 | F30: 63 | G30: 120 | H30: 2023-03-18 | I30: T 4 OISE - Qualifications N 1 - Tour Principal - CREPY | J30: 1/4 Finale | K30: 2022-2023 | P30: 0 | R30: 0
A31: BOZON Robert | B31: LORGE Thierry | C31: P | D31: 0 | E31: 1 | F31: 87 | G31: 120 | H31: 2023-03-18 | I31: T 4 OISE - Qualifications N 1 - Tour Principal - CREPY | J31: Qualifications | K31: 2022-2023 | P31: 0 | R31: 0
A32: BOZON Robert | B32: MICHEL Bernard | C32: G | D32: 1 | E32: 0 | F32: 120 | G32: 88 | H32: 2023-03-18 | I32: T 4 OISE - Qualifications N 1 - Tour Principal - CREPY | J32: Qualifications | K32: 2022-2023 | P32: 0 | R32: 1
A33: Fin des données | P33: =IF($K33=P$1,COUNTIF($C33,"G"),0) -> 0 | R33: =IF($K33=R$1,COUNTIF($C33,"G"),0) -> 0

Sheet BROUTIER Bertrand
A1: BROUTIER Bertrand | P1: =SaisonDeb -> 2021-2022 | R1: =SaisonFin -> 2022-2023 | T1: Toutes saisons
P2: Nombre | Q2: %age | R2: Nombre | S2: %age | T2: Nombre | U2: %age
N3: Matchs | O3: Gagnés | P3: =SUM(P$15:P$114) -> 0 | Q3: =IF(P$3+P$4>0,P3/(P$3+P$4),"") ->  | R3: =SUM(R$15:R$114) -> 0 | S3: =IF(R$3+R$4>0,R3/(R$3+R$4),"") ->  | T3: =COUNTIF($C$15:$C$114,"G") -> 1 | U3: =IF(T$3+T$4>0,T3/(T$3+T$4),"") -> 0.5
O4: Perdus | P4: =COUNTIF($K$15:$M$114,SaisonDeb)-P3 -> 0 | Q4: =IF(P$3+P$4>0,P4/(P$3+P$4),"") ->  | R4: =COUNTIF($K$15:$K$114,SaisonFin)-R3 -> 0 | S4: =IF(R$3+R$4>0,R4/(R$3+R$4),"") ->  | T4: =COUNTIF($C$15:$C$114,"P") -> 1 | U4: =IF(T$3+T$4>0,T4/(T$3+T$4),"") -> 0.5
O5: Total / Moy. | P5: =SUM(P3:P4) -> 0 | Q5: =IF(SUMIF($K$15:$K$114,SaisonDeb,$G$15:$G$114)>0,SUMIF($K$15:$K$114,SaisonDeb,$F$15:$F$114)/SUMIF($K$15:$K$114,SaisonDeb,$G$15:$G$114),"") ->  | R5: =SUM(R3:R4) -> 0 | S5: =IF(SUMIF($K$15:$K$114,SaisonFin,$G$15:$G$114)>0,SUMIF($K$15:$K$114,SaisonFin,$F$15:$F$114)/SUMIF($K$15:$K$114,SaisonFin,$G$15:$G$114),"") ->  | T5: =SUM(T3:T4) -> 2 | U5: =IF(SUM($G$15:$G$114)>0,SUM($F$15:$F$114)/SUM($G$15:$G$114),"") -> 0.9646302251 | V5: =IF(SUMIF($K$15:$K$18,SaisonDeb,$G$15:$G$18)+SUMIF($K$15:$K$18,SaisonFin,$G$15:$G$18)>0,(SUMIF($K$15:$K$18,SaisonDeb,$F$15:$F$18)+SUMIF($K$15:$K$18,SaisonFin,$F$15:$F$18))/(SUMIF($K$15:$K$18,SaisonDeb,$G$15:$G$18)+SUMIF($K$15:$K$18,SaisonFin,$G$15:$G$18)),"") -> 
N6: Sets | O6: Gagnés | P6: =SUMIF($K$15:$K$114,SaisonDeb,$D$15:$D$114) -> 0 | Q6: =IF(P$6+P$7>0,P6/(P$6+P$7),"") ->  | R6: =SUMIF($K$15:$K$114,SaisonFin,$D$15:$D$114) -> 0 | S6: =IF(R$6+R$7>0,R6/(R$6+R$7),"") ->  | T6: =SUM($D$15:$D$114) -> 3 | U6: =IF(T$6+T$7>0,T6/(T$6+T$7),"") -> 0.5
O7: Perdus | P7: =SUMIF($K$15:$K$114,SaisonDeb,$E$15:$E$114) -> 0 | Q7: =IF(P$6+P$7>0,P7/(P$6+P$7),"") ->  | R7: =SUMIF($K$15:$K$114,SaisonFin,$E$15:$E$114) -> 0 | S7: =IF(R$6+R$7>0,R7/(R$6+R$7),"") ->  | T7: =SUM($E$15:$E$114) -> 3 | U7: =IF(T$6+T$7>0,T7/(T$6+T$7),"") -> 0.5
A8: Récapitulatif joueurs | O8: Total | P8: =SUM(P6:P7) -> 0 | R8: =SUM(R6:R7) -> 0 | T8: =SUM(T6:T7) -> 6
A15: Joueur | B15: Adversaire | C15: G/P | D15: Sets gagnés | E15: Sets perdus | F15: pts marqués | G15: pts subis | H15: Date | I15: Compétition | J15: Phase | K15: Saison
A16: BROUTIER Bertrand | B16: CAPLIEZ Bernard | C16: P | D16: 1 | E16: 2 | F16: 148 | G16: 162 | H16: 2018-11-04 | I16: T1 5 QUILLES N1 CD62 - CUCQ | J16: Qualifications | K16: =IF(H16<>"",IF(MONTH(H16)>MoisRef,YEAR(H16)&"-"&YEAR(H16)+1,YEAR(H16)-1&"-"&YEAR(H16)),"") -> 2018-2019 | P16: =IF($K16=P$1,COUNTIF($C16,"G"),0) -> 0 | R16: =IF($K16=R$1,COUNTIF($C16,"G"),0) -> 0
A17: BROUTIER Bertrand | B17: LAKBAL Johnny | C17: G | D17: 2 | E17: 1 | F17: 152 | G17: 149 | H17: 2018-11-04 | I17: T1 5 QUILLES N1 CD62 - CUCQ | J17: Qualifications | K17: =IF(H17<>"",IF(MONTH(H17)>MoisRef,YEAR(H17)&"-"&YEAR(H17)+1,YEAR(H17)-1&"-"&YEAR(H17)),"") -> 2018-2019 | P17: =IF($K17=P$1,COUNTIF($C17,"G"),0) -> 0 | R17: =IF($K17=R$1,COUNTIF($C17,"G"),0) -> 0
A18: Fin des données | K18: =IF(H18<>"",IF(MONTH(H18)>MoisRef,YEAR(H18)&"-"&YEAR(H18)+1,YEAR(H18)-1&"-"&YEAR(H18)),"") ->  | P18: =IF($K18=P$1,COUNTIF($C18,"G"),0) -> 0 | R18: =IF($K18=R$1,COUNTIF($C18,"G"),0) -> 0

Sheet BUTTI Bertrand
A1: BUTTI Bertrand | P1: =SaisonDeb -> 2021-2022 | R1: =SaisonFin -> 2022-2023 | T1: Toutes saisons
P2: Nombre | Q2: %age | R2: Nombre | S2: %age | T2: Nombre | U2: %age
N3: Matchs | O3: Gagnés | P3: =SUM(P$15:P$135) -> 0 | Q3: =IF(P$3+P$4>0,P3/(P$3+P$4),"") -> 0 | R3: =SUM(R$15:R$135) -> 4 | S3: =IF(R$3+R$4>0,R3/(R$3+R$4),"") -> 0.25 | T3: =COUNTIF($C$15:$C$135,"G") -> 4 | U3: =IF(T$3+T$4>0,T3/(T$3+T$4),"") -> 0.1739130435
O4: Perdus | P4: =COUNTIF($K$15:$M$135,SaisonDeb)-P3 -> 4 | Q4: =IF(P$3+P$4>0,P4/(P$3+P$4),"") -> 1 | R4: =COUNTIF($K$15:$K$135,SaisonFin)-R3 -> 12 | S4: =IF(R$3+R$4>0,R4/(R$3+R$4),"") -> 0.75 | T4: =COUNTIF($C$15:$C$135,"P") -> 19 | U4: =IF(T$3+T$4>0,T4/(T$3+T$4),"") -> 0.8260869565
O5: Total / Moy. | P5: =SUM(P3:P4) -> 4 | Q5: =IF(SUMIF($K$15:$K$135,SaisonDeb,$G$15:$G$135)>0,SUMIF($K$15:$K$135,SaisonDeb,$F$15:$F$135)/SUMIF($K$15:$K$135,SaisonDeb,$G$15:$G$135),"") -> 0.7036553525 | R5: =SUM(R3:R4) -> 16 | S5: =IF(SUMIF($K$15:$K$135,SaisonFin,$G$15:$G$135)>0,SUMIF($K$15:$K$135,SaisonFin,$F$15:$F$135)/SUMIF($K$15:$K$135,SaisonFin,$G$15:$G$135),"") -> 0.7884206045 | T5: =SUM(T3:T4) -> 23 | U5: =IF(SUM($G$15:$G$135)>0,SUM($F$15:$F$135)/SUM($G$15:$G$135),"") -> 0.758991787 | V5: =IF(SUMIF($K$15:$K$39,SaisonDeb,$G$15:$G$39)+SUMIF($K$15:$K$39,SaisonFin,$G$15:$G$39)>0,(SUMIF($K$15:$K$39,SaisonDeb,$F$15:$F$39)+SUMIF($K$15:$K$39,SaisonFin,$F$15:$F$39))/(SUMIF($K$15:$K$39,SaisonDeb,$G$15:$G$39)+SUMIF($K$15:$K$39,SaisonFin,$G$15:$G$39)),"") -> 0.767576244
N6: Sets | O6: Gagnés | P6: =SUMIF($K$15:$K$135,SaisonDeb,$D$15:$D$135) -> 1 | Q6: =IF(P$6+P$7>0,P6/(P$6+P$7),"") -> 0.07692307692 | R6: =SUMIF($K$15:$K$135,SaisonFin,$D$15:$D$135) -> 14 | S6: =IF(R$6+R$7>0,R6/(R$6+R$7),"") -> 0.35 | T6: =SUM($D$15:$D$135) -> 16 | U6: =IF(T$6+T$7>0,T6/(T$6+T$7),"") -> 0.2666666667
O7: Perdus | P7: =SUMIF($K$15:$K$135,SaisonDeb,$E$15:$E$135) -> 12 | Q7: =IF(P$6+P$7>0,P7/(P$6+P$7),"") -> 0.9230769231 | R7: =SUMIF($K$15:$K$135,SaisonFin,$E$15:$E$135) -> 26 | S7: =IF(R$6+R$7>0,R7/(R$6+R$7),"") -> 0.65 | T7: =SUM($E$15:$E$135) -> 44 | U7: =IF(T$6+T$7>0,T7/(T$6+T$7),"") -> 0.7333333333
A8: Récapitulatif joueurs | O8: Total | P8: =SUM(P6:P7) -> 13 | R8: =SUM(R6:R7) -> 40 | T8: =SUM(T6:T7) -> 60
A15: Joueur | B15: Adversaire | C15: G/P | D15: Sets gagnés | E15: Sets perdus | F15: pts marqués | G15: pts subis | H15: Date | I15: Compétition | J15: Phase | K15: Saison
A16: BUTTI Bertrand | B16: ROUBY GUILLAUME | C16: P | D16: 0 | E16: 2 | F16: 54 | G16: 120 | H16: 43497 | I16: National T4 ST QUENTIN | J16: Préqualifs | K16: =IF(H16<>"",IF(MONTH(H16)>MoisRef,YEAR(H16)&"-"&YEAR(H16)+1,YEAR(H16)-1&"-"&YEAR(H16)),"") -> 2018-2019 | P16: =IF($K16=P$1,COUNTIF($C16,"G"),0) -> 0 | R16: =IF($K16=R$1,COUNTIF($C16,"G"),0) -> 0
A17: BUTTI Bertrand | B17: PAPIN JEAN CHRISTOPHE | C17: P | D17: 0 | E17: 2 | F17: 89 | G17: 120 | H17: 43497 | I17: National T4 ST QUENTIN | J17: Préqualifs | K17: 2018-2019 | P17: 0 | R17: 0
A18: BUTTI Bertrand | B18: HERVELIN GABRIEL | C18: P | D18: 1 | E18: 2 | F18: 146 | G18: 176 | H18: 43497 | I18: National T4 ST QUENTIN | J18: Préqualifs | K18: 2018-2019 | P18: 0 | R18: 0
A19: BUTTI Bertrand | B19: VASSEUR Cédric | C19: P | D19: 0 | E19: 3 | F19: 113 | G19: 180 | H19: 2021-11-27 | I19: T2 CD02 N1 - Billard Club de Soissons | J19: Qualifications | K19: 2021-2022 | P19: 0 | R19: 0
A20: BUTTI Bertrand | B20: VASSEUR Gérald | C20: P | D20: 1 | E20: 3 | F20: 178 | G20: 226 | H20: 2021-11-27 | I20: T2 CD02 N1 - Billard Club de Soissons | J20: Qualifications | K20: 2021-2022 | P20: 0 | R20: 0
A21: BUTTI Bertrand | B21: VASSEUR Gérald | C21: P | D21: 0 | E21: 3 | F21: 128 | G21: 180 | H21: 2021-10-16 | I21: T1 CD02 N1 - Billard Club Saint-Quentin | J21: Qualifications | K21: 2021-2022 | P21: 0 | R21: 0
A22: BUTTI Bertrand | B22: VASSEUR Gérald | C22: P | D22: 0 | E22: 3 | F22: 120 | G22: 180 | H22: 2021-10-16 | I22: T1 CD02 N1 - Billard Club Saint-Quentin | J22: Qualifications | K22: 2021-2022 | P22: 0 | R22: 0
A23: BUTTI Bertrand | B23: VASSEUR Cédric | C23: P | D23: 1 | E23: 3 | F23: 174 | G23: 232 | H23: 2022-12-03 | I23: T1 CD02 N1 - SAINT QUENTIN | J23: Qualifications | K23: 2022-2023 | P23: 0 | R23: 0
A24: BUTTI Bertrand | B24: VASSEUR Gérald | C24: P | D24: 2 | E24: 3 | F24: 235 | G24: 269 | H24: 2022-12-03 | I24: T1 CD02 N1 - SAINT QUENTIN | J24: Qualifications | K24: 2022-2023 | P24: 0 | R24: 0
A25: BUTTI Bertrand | B25: PAPIN JEAN CHRISTOPHE | C25: P | D25: 0 | E25: 1 | F25: 28 | G25: 100 | H25: 2023-01-20 | I25: TN3 SAINT QUENTIN | J25: Préqualifications | K25: 2022-2023 | P25: 0 | R25: 0
A26: BUTTI Bertrand | B26: GANGLOFF JEAN LUC | C26: P | D26: 0 | E26: 1 | F26: 72 | G26: 100 | H26: 2023-01-20 | I26: TN3 SAINT QUENTIN | J26: Préqualifications | K26: 2022-2023 | P26: 0 | R26: 0
A27: BUTTI Bertrand | B27: BONVILLE ALEXANDRE | C27: G | D27: 1 | E27: 0 | F27: 100 | G27: 60 | H27: 2023-01-20 | I27: TN3 SAINT QUENTIN | J27: Préqualifications | K27: 2022-2023 | P27: 0 | R27: 1
A28: BUTTI Bertrand | B28: DURAND Jérémy | C28: G | D28: 2 | E28: 0 | F28: 120 | G28: 87 | H28: 2023-01-28 | I28: T2 CD02 N1 - SAINT QUENTIN | J28: Qualifications | K28: 2022-2023 | P28: 0 | R28: 1
A29: BUTTI Bertrand | B29: SIMON Philippe | C29: G | D29: 2 | E29: 1 | F29: 178 | G29: 150 | H29: 2023-01-28 | I29: T2 CD02 N1 - SAINT QUENTIN | J29: Qualifications | K29: 2022-2023 | P29: 0 | R29: 1
A30: BUTTI Bertrand | B30: DURAND Jérémy | C30: P | D30: 0 | E30: 2 | F30: 72 | G30: 120 | H30: 2023-03-25 | I30: T3 CD02 N1 - SAINT QUENTIN | J30: Qualifications | K30: 2022-2023 | P30: 0 | R30: 0
A31: BUTTI Bertrand | B31: SIMON Philippe | C31: P | D31: 1 | E31: 2 | F31: 135 | G31: 163 | H31: 2023-03-25 | I31: T3 CD02 N1 - SAINT QUENTIN | J31: Qualifications | K31: 2022-2023 | P31: 0 | R31: 0
A32: BUTTI Bertrand | B32: DURAND Jérémy | C32: P | D32: 1 | E32: 3 | F32: 151 | G32: 232 | H32: 2023-04-22 | I32: FINALE CD02 N1 - SAINT QUENTIN | J32: Qualifications | K32: 2022-2023 | P32: 0 | R32: 0
A33: BUTTI Bertrand | B33: SIMON Philippe | C33: G | D33: 3 | E33: 1 | F33: 212 | G33: 148 | H33: 2023-04-22 | I33: FINALE CD02 N1 - SAINT QUENTIN | J33: Qualifications | K33: 2022-2023 | P33: 0 | R33: 1
A34: BUTTI Bertrand | B34: VASSEUR Cédric | C34: P | D34: 1 | E34: 3 | F34: 123 | G34: 208 | H34: 2023-04-22 | I34: FINALE CD02 N1 - SAINT QUENTIN | J34: Qualifications | K34: 2022-2023 | P34: 0 | R34: 0
A35: BUTTI Bertrand | B35: VASSEUR Gérald | C35: P | D35: 0 | E35: 3 | F35: 108 | G35: 180 | H35: 2023-04-22 | I35: FINALE CD02 N1 - SAINT QUENTIN | J35: Qualifications | K35: 2022-2023 | P35: 0 | R35: 0
A36: BUTTI Bertrand | B36: BAYON PASCAL | C36: P | D36: 0 | E36: 1 | F36: 31 | G36: 100 | H36: 2023-05-31 | I36: TN5 ROUEN | J36: Préqualifications | K36: 2022-2023 | P36: 0 | R36: 0
A37: BUTTI Bertrand | B37: LANUSSE CHRISTOPHE | C37: P | D37: 0 | E37: 1 | F37: 48 | G37: 100 | H37: 2023-05-31 | I37: TN5 ROUEN | J37: Préqualifications | K37: 2022-2023 | P37: 0 | R37: 0
A38: BUTTI Bertrand | B38: BAUDRY ALAIN | C38: P | D38: 0 | E38: 1 | F38: 65 | G38: 100 | H38: 2023-05-31 | I38: TN5 ROUEN | J38: Préqualifications | K38: 2022-2023 | P38: 0 | R38: 0
A39: Fin des données | P39: 0 | R39: 0

Sheet BUTTI Emilie
A1: BUTTI Emilie | P1: =SaisonDeb -> 2021-2022 | R1: =SaisonFin -> 2022-2023 | T1: Toutes saisons
P2: Nombre | Q2: %age | R2: Nombre | S2: %age | T2: Nombre | U2: %age
N3: Matchs | O3: Gagnés | P3: =SUM(P$15:P$122) -> 0 | Q3: =IF(P$3+P$4>0,P3/(P$3+P$4),"") ->  | R3: =SUM(R$15:R$122) -> 0 | S3: =IF(R$3+R$4>0,R3/(R$3+R$4),"") -> 0 | T3: =COUNTIF($C$15:$C$122,"G") -> 0 | U3: =IF(T$3+T$4>0,T3/(T$3+T$4),"") -> 0
O4: Perdus | P4: =COUNTIF($K$15:$M$122,SaisonDeb)-P3 -> 0 | Q4: =IF(P$3+P$4>0,P4/(P$3+P$4),"") ->  | R4: =COUNTIF($K$15:$K$122,SaisonFin)-R3 -> 10 | S4: =IF(R$3+R$4>0,R4/(R$3+R$4),"") -> 1 | T4: =COUNTIF($C$15:$C$122,"P") -> 10 | U4: =IF(T$3+T$4>0,T4/(T$3+T$4),"") -> 1
O5: Total / Moy. | P5: =SUM(P3:P4) -> 0 | Q5: =IF(SUMIF($K$15:$K$122,SaisonDeb,$G$15:$G$122)>0,SUMIF($K$15:$K$122,SaisonDeb,$F$15:$F$122)/SUMIF($K$15:$K$122,SaisonDeb,$G$15:$G$122),"") ->  | R5: =SUM(R3:R4) -> 10 | S5: =IF(SUMIF($K$15:$K$122,SaisonFin,$G$15:$G$122)>0,SUMIF($K$15:$K$122,SaisonFin,$F$15:$F$122)/SUMIF($K$15:$K$122,SaisonFin,$G$15:$G$122),"") -> 0.5724489796 | T5: =SUM(T3:T4) -> 10 | U5: =IF(SUM($G$15:$G$122)>0,SUM($F$15:$F$122)/SUM($G$15:$G$122),"") -> 0.5724489796 | V5: =IF(SUMIF($K$15:$K$26,SaisonDeb,$G$15:$G$26)+SUMIF($K$15:$K$26,SaisonFin,$G$15:$G$26)>0,(SUMIF($K$15:$K$26,SaisonDeb,$F$15:$F$26)+SUMIF($K$15:$K$26,SaisonFin,$F$15:$F$26))/(SUMIF($K$15:$K$26,SaisonDeb,$G$15:$G$26)+SUMIF($K$15:$K$26,SaisonFin,$G$15:$G$26)),"") -> 0.5724489796
N6: Sets | O6: Gagnés | P6: =SUMIF($K$15:$K$122,SaisonDeb,$D$15:$D$122) -> 0 | Q6: =IF(P$6+P$7>0,P6/(P$6+P$7),"") ->  | R6: =SUMIF($K$15:$K$122,SaisonFin,$D$15:$D$122) -> 0 | S6: =IF(R$6+R$7>0,R6/(R$6+R$7),"") -> 0 | T6: =SUM($D$15:$D$122) -> 0 | U6: =IF(T$6+T$7>0,T6/(T$6+T$7),"") -> 0
O7: Perdus | P7: =SUMIF($K$15:$K$122,SaisonDeb,$E$15:$E$122) -> 0 | Q7: =IF(P$6+P$7>0,P7/(P$6+P$7),"") ->  | R7: =SUMIF($K$15:$K$122,SaisonFin,$E$15:$E$122) -> 10 | S7: =IF(R$6+R$7>0,R7/(R$6+R$7),"") -> 1 | T7: =SUM($E$15:$E$122) -> 10 | U7: =IF(T$6+T$7>0,T7/(T$6+T$7),"") -> 1
A8: Récapitulatif joueurs | O8: Total | P8: =SUM(P6:P7) -> 0 | R8: =SUM(R6:R7) -> 10 | T8: =SUM(T6:T7) -> 10
A15: Joueur | B15: Adversaire | C15: G/P | D15: Sets gagnés | E15: Sets perdus | F15: pts marqués | G15: pts subis | H15: Date | I15: Compétition | J15: Phase | K15: Saison
A16: BUTTI Emilie | B16: FELLINE RICCARDO | C16: P | D16: 0 | E16: 1 | F16: 27 | G16: 100 | H16: 2023-01-20 | I16: TN3 SAINT QUENTIN | J16: Préqualifications | K16: =IF(H16<>"",IF(MONTH(H16)>MoisRef,YEAR(H16)&"-"&YEAR(H16)+1,YEAR(H16)-1&"-"&YEAR(H16)),"") -> 2022-2023 | P16: =IF($K16=P$1,COUNTIF($C16,"G"),0) -> 0 | R16: =IF($K16=R$1,COUNTIF($C16,"G"),0) -> 0
A17: BUTTI Emilie | B17: GEETS PATRICE | C17: P | D17: 0 | E17: 1 | F17: 42 | G17: 100 | H17: 2023-01-20 | I17: TN3 SAINT QUENTIN | J17: Préqualifications | K17: 2022-2023 | P17: 0 | R17: 0
A18: BUTTI Emilie | B18: DELORME CHRISTOPHE | C18: P | D18: 0 | E18: 1 | F18: 43 | G18: 100 | H18: 2023-01-20 | I18: TN3 SAINT QUENTIN | J18: Préqualifications | K18: 2022-2023 | P18: 0 | R18: 0
A19: BUTTI Emilie | B19: FRANCOIS BERNARD | C19: P | D19: 0 | E19: 1 | F19: 79 | G19: 80 | H19: 2023-01-21 | I19: TN3 SAINT QUENTIN | J19: 1/4 F Tournoi de classement | K19: 2022-2023 | P19: 0 | R19: 0
A20: BUTTI Emilie | B20: WALLART JEAN CHARLES | C20: P | D20: 0 | E20: 1 | F20: 73 | G20: 100 | H20: 2023-02-24 | I20: TN4 LAXOU | J20: Préqualifications | K20: 2022-2023 | P20: 0 | R20: 0
A21: BUTTI Emilie | B21: LEBOEUF SYLVAIN | C21: P | D21: 0 | E21: 1 | F21: 96 | G21: 100 | H21: 2023-02-24 | I21: TN4 LAXOU | J21: Préqualifications | K21: 2022-2023 | P21: 0 | R21: 0
A22: BUTTI Emilie | B22: DELORME RONAN | C22: P | D22: 0 | E22: 1 | F22: 69 | G22: 100 | H22: 2023-02-24 | I22: TN4 LAXOU | J22: Préqualifications | K22: 2022-2023 | P22: 0 | R22: 0
A23: BUTTI Emilie | B23: FONTAINE YANN | C23: P | D23: 0 | E23: 1 | F23: 38 | G23: 100 | H23: 2023-05-31 | I23: TN5 ROUEN | J23: Préqualifications | K23: 2022-2023 | P23: 0 | R23: 0
A24: BUTTI Emilie | B24: LEBOEUF SYLVAIN | C24: P | D24: 0 | E24: 1 | F24: 77 | G24: 100 | H24: 2023-05-31 | I24: TN5 ROUEN | J24: Préqualifications | K24: 2022-2023 | P24: 0 | R24: 0
A25: BUTTI Emilie | B25: DELORME RONAN | C25: P | D25: 0 | E25: 1 | F25: 17 | G25: 100 | H25: 2023-05-31 | I25: TN5 ROUEN | J25: Préqualifications | K25: 2022-2023 | P25: 0 | R25: 0
A26: Fin des données | P26: =IF($K26=P$1,COUNTIF($C26,"G"),0) -> 0 | R26: =IF($K26=R$1,COUNTIF($C26,"G"),0) -> 0

Sheet CABUZEL Denis
A1: CABUZEL Denis | P1: =SaisonDeb -> 2021-2022 | R1: =SaisonFin -> 2022-2023 | T1: Toutes saisons
P2: Nombre | Q2: %age | R2: Nombre | S2: %age | T2: Nombre | U2: %age
N3: Matchs | O3: Gagnés | P3: =SUM(P$15:P$124) -> 0 | Q3: =IF(P$3+P$4>0,P3/(P$3+P$4),"") ->  | R3: =SUM(R$15:R$124) -> 0 | S3: =IF(R$3+R$4>0,R3/(R$3+R$4),"") ->  | T3: =COUNTIF($C$15:$C$124,"G") -> 2 | U3: =IF(T$3+T$4>0,T3/(T$3+T$4),"") -> 0.1666666667
O4: Perdus | P4: =COUNTIF($K$15:$M$124,SaisonDeb)-P3 -> 0 | Q4: =IF(P$3+P$4>0,P4/(P$3+P$4),"") ->  | R4: =COUNTIF($K$15:$K$124,SaisonFin)-R3 -> 0 | S4: =IF(R$3+R$4>0,R4/(R$3+R$4),"") ->  | T4: =COUNTIF($C$15:$C$124,"P") -> 10 | U4: =IF(T$3+T$4>0,T4/(T$3+T$4),"") -> 0.8333333333
O5: Total / Moy. | P5: =SUM(P3:P4) -> 0 | Q5: =IF(SUMIF($K$15:$K$124,SaisonDeb,$G$15:$G$124)>0,SUMIF($K$15:$K$124,SaisonDeb,$F$15:$F$124)/SUMIF($K$15:$K$124,SaisonDeb,$G$15:$G$124),"") ->  | R5: =SUM(R3:R4) -> 0 | S5: =IF(SUMIF($K$15:$K$124,SaisonFin,$G$15:$G$124)>0,SUMIF($K$15:$K$124,SaisonFin,$F$15:$F$124)/SUMIF($K$15:$K$124,SaisonFin,$G$15:$G$124),"") ->  | T5: =SUM(T3:T4) -> 12 | U5: =IF(SUM($G$15:$G$124)>0,SUM($F$15:$F$124)/SUM($G$15:$G$124),"") -> 0.6532818533 | V5: =IF(SUMIF($K$15:$K$28,SaisonDeb,$G$15:$G$28)+SUMIF($K$15:$K$28,SaisonFin,$G$15:$G$28)>0,(SUMIF($K$15:$K$28,SaisonDeb,$F$15:$F$28)+SUMIF($K$15:$K$28,SaisonFin,$F$15:$F$28))/(SUMIF($K$15:$K$28,SaisonDeb,$G$15:$G$28)+SUMIF($K$15:$K$28,SaisonFin,$G$15:$G$28)),"") -> 
N6: Sets | O6: Gagnés | P6: =SUMIF($K$15:$K$124,SaisonDeb,$D$15:$D$124) -> 0 | Q6: =IF(P$6+P$7>0,P6/(P$6+P$7),"") ->  | R6: =SUMIF($K$15:$K$124,SaisonFin,$D$15:$D$124) -> 0 | S6: =IF(R$6+R$7>0,R6/(R$6+R$7),"") ->  | T6: =SUM($D$15:$D$124) -> 4 | U6: =IF(T$6+T$7>0,T6/(T$6+T$7),"") -> 0.2105263158
O7: Perdus | P7: =SUMIF($K$15:$K$124,SaisonDeb,$E$15:$E$124) -> 0 | Q7: =IF(P$6+P$7>0,P7/(P$6+P$7),"") ->  | R7: =SUMIF($K$15:$K$124,SaisonFin,$E$15:$E$124) -> 0 | S7: =IF(R$6+R$7>0,R7/(R$6+R$7),"") ->  | T7: =SUM($E$15:$E$124) -> 15 | U7: =IF(T$6+T$7>0,T7/(T$6+T$7),"") -> 0.7894736842
A8: Récapitulatif joueurs | O8: Total | P8: =SUM(P6:P7) -> 0 | R8: =SUM(R6:R7) -> 0 | T8: =SUM(T6:T7) -> 19
A15: Joueur | B15: Adversaire | C15: G/P | D15: Sets gagnés | E15: Sets perdus | F15: pts marqués | G15: pts subis | H15: Date | I15: Compétition | J15: Phase | K15: Saison
A16: CABUZEL Denis | B16: DELATTRE Hervé | C16: P | D16: 0 | E16: 2 | F16: 45 | G16: 120 | H16: 2017-11-25 | I16: T1 5Quilles N1 CD80 - ABBEVILLE | J16: Qualifications | K16: =IF(H16<>"",IF(MONTH(H16)>MoisRef,YEAR(H16)&"-"&YEAR(H16)+1,YEAR(H16)-1&"-"&YEAR(H16)),"") -> 2017-2018 | P16: =IF($K16=P$1,COUNTIF($C16,"G"),0) -> 0 | R16: =IF($K16=R$1,COUNTIF($C16,"G"),0) -> 0
A17: CABUZEL Denis | B17: DUROYON Didier | C17: P | D17: 0 | E17: 2 | F17: 78 | G17: 120 | H17: 2017-11-25 | I17: T1 5Quilles N1 CD80 - ABBEVILLE | J17: Qualifications | K17: 2017-2018 | P17: 0 | R17: 0
A18: CABUZEL Denis | B18: BATTEUX Daniel | C18: P | D18: 0 | E18: 1 | F18: 63 | G18: 100 | H18: 2017-11-25 | I18: CONSOLANTE T1 5Quilles N1 CD80 - ABBEVILLE | J18: Qualifications | K18: 2017-2018 | P18: 0 | R18: 0
A19: CABUZEL Denis | B19: DELATTRE Hervé | C19: P | D19: 0 | E19: 1 | F19: 66 | G19: 100 | H19: 2017-11-25 | I19: CONSOLANTE T1 5Quilles N1 CD80 - ABBEVILLE | J19: Qualifications | K19: 2017-2018 | P19: 0 | R19: 0
A20: CABUZEL Denis | B20: LHOEST Patrick | C20: P | D20: 0 | E20: 1 | F20: 88 | G20: 100 | H20: 2017-11-25 | I20: CONSOLANTE T1 5Quilles N1 CD80 - ABBEVILLE | J20: Qualifications | K20: 2017-2018 | P20: 0 | R20: 0
A21: CABUZEL Denis | B21: BATTEUX Daniel | C21: G | D21: 2 | E21: 0 | F21: 120 | G21: 107 | H21: 2018-01-06 | I21: T2 5Quilles N1 CD80 - MOREUIL | J21: Qualifications | K21: 2017-2018 | P21: 0 | R21: 0
A22: CABUZEL Denis | B22: DUROYON Didier | C22: P | D22: 0 | E22: 2 | F22: 34 | G22: 120 | H22: 2018-01-06 | I22: T2 5Quilles N1 CD80 - MOREUIL | J22: Qualifications | K22: 2017-2018 | P22: 0 | R22: 0
A23: CABUZEL Denis | B23: DUROYON Didier | C23: P | D23: 0 | E23: 1 | F23: 46 | G23: 80 | H23: 2018-02-17 | I23: T3 5Quilles N1 CD80 - CONSOLANTE - MOREUIL | J23: Qualifications | K23: 2017-2018 | P23: 0 | R23: 0
A24: CABUZEL Denis | B24: DUROYON Didier | C24: P | D24: 0 | E24: 1 | F24: 46 | G24: 80 | H24: 2018-02-17 | I24: T3 5Quilles N1 CD80 - CONSOLANTE - MOREUIL | J24: Qualifications | K24: 2017-2018 | P24: 0 | R24: 0
A25: CABUZEL Denis | B25: DUROYON Didier | C25: P | D25: 0 | E25: 1 | F25: 46 | G25: 80 | H25: 2018-02-17 | I25: T3 5Quilles N1 CD80 - CONSOLANTE - MOREUIL | J25: 1/2 Finale | K25: 2017-2018 | P25: 0 | R25: 0
A26: CABUZEL Denis | B26: DUROYON Didier | C26: G | D26: 2 | E26: 1 | F26: 169 | G26: 168 | H26: 2018-02-17 | I26: T3 5Quilles N1 CD80 - MOREUIL | J26: Qualifications | K26: 2017-2018 | P26: 0 | R26: 0
A27: CABUZEL Denis | B27: GUERIN Régis | C27: P | D27: 0 | E27: 2 | F27: 45 | G27: 120 | H27: 2018-02-17 | I27: T3 5Quilles N1 CD80 - MOREUIL | J27: Qualifications | K27: 2017-2018 | P27: 0 | R27: 0
A28: Fin des données | P28: =IF($K28=P$1,COUNTIF($C28,"G"),0) -> 0 | R28: =IF($K28=R$1,COUNTIF($C28,"G"),0) -> 0

Sheet CAPLIEZ Bernard
A1: CAPLIEZ Bernard | P1: =SaisonDeb -> 2021-2022 | R1: =SaisonFin -> 2022-2023 | T1: Toutes saisons
P2: Nombre | Q2: %age | R2: Nombre | S2: %age | T2: Nombre | U2: %age
N3: Matchs | O3: Gagnés | P3: =SUM(P$15:P$137) -> 2 | Q3: =IF(P$3+P$4>0,P3/(P$3+P$4),"") -> 0.2857142857 | R3: =SUM(R$15:R$137) -> 2 | S3: =IF(R$3+R$4>0,R3/(R$3+R$4),"") -> 0.2857142857 | T3: =COUNTIF($C$15:$C$137,"G") -> 8 | U3: =IF(T$3+T$4>0,T3/(T$3+T$4),"") -> 0.32
O4: Perdus | P4: =COUNTIF($K$15:$M$137,SaisonDeb)-P3 -> 5 | Q4: =IF(P$3+P$4>0,P4/(P$3+P$4),"") -> 0.7142857143 | R4: =COUNTIF($K$15:$K$137,SaisonFin)-R3 -> 5 | S4: =IF(R$3+R$4>0,R4/(R$3+R$4),"") -> 0.7142857143 | T4: =COUNTIF($C$15:$C$137,"P") -> 17 | U4: =IF(T$3+T$4>0,T4/(T$3+T$4),"") -> 0.68
O5: Total / Moy. | P5: =SUM(P3:P4) -> 7 | Q5: =IF(SUMIF($K$15:$K$137,SaisonDeb,$G$15:$G$137)>0,SUMIF($K$15:$K$137,SaisonDeb,$F$15:$F$137)/SUMIF($K$15:$K$137,SaisonDeb,$G$15:$G$137),"") -> 0.7789725209 | R5: =SUM(R3:R4) -> 7 | S5: =IF(SUMIF($K$15:$K$137,SaisonFin,$G$15:$G$137)>0,SUMIF($K$15:$K$137,SaisonFin,$F$15:$F$137)/SUMIF($K$15:$K$137,SaisonFin,$G$15:$G$137),"") -> 0.8447488584 | T5: =SUM(T3:T4) -> 25 | U5: =IF(SUM($G$15:$G$137)>0,SUM($F$15:$F$137)/SUM($G$15:$G$137),"") -> 0.8561151079 | V5: =IF(SUMIF($K$15:$K$41,SaisonDeb,$G$15:$G$41)+SUMIF($K$15:$K$41,SaisonFin,$G$15:$G$41)>0,(SUMIF($K$15:$K$41,SaisonDeb,$F$15:$F$41)+SUMIF($K$15:$K$41,SaisonFin,$F$15:$F$41))/(SUMIF($K$15:$K$41,SaisonDeb,$G$15:$G$41)+SUMIF($K$15:$K$41,SaisonFin,$G$15:$G$41)),"") -> 0.8126094571
N6: Sets | O6: Gagnés | P6: =SUMIF($K$15:$K$137,SaisonDeb,$D$15:$D$137) -> 4 | Q6: =IF(P$6+P$7>0,P6/(P$6+P$7),"") -> 0.2666666667 | R6: =SUMIF($K$15:$K$137,SaisonFin,$D$15:$D$137) -> 5 | S6: =IF(R$6+R$7>0,R6/(R$6+R$7),"") -> 0.2941176471 | T6: =SUM($D$15:$D$137) -> 19 | U6: =IF(T$6+T$7>0,T6/(T$6+T$7),"") -> 0.3166666667
O7: Perdus | P7: =SUMIF($K$15:$K$137,SaisonDeb,$E$15:$E$137) -> 11 | Q7: =IF(P$6+P$7>0,P7/(P$6+P$7),"") -> 0.7333333333 | R7: =SUMIF($K$15:$K$137,SaisonFin,$E$15:$E$137) -> 12 | S7: =IF(R$6+R$7>0,R7/(R$6+R$7),"") -> 0.7058823529 | T7: =SUM($E$15:$E$137) -> 41 | U7: =IF(T$6+T$7>0,T7/(T$6+T$7),"") -> 0.6833333333
A8: Récapitulatif joueurs | O8: Total | P8: =SUM(P6:P7) -> 15 | R8: =SUM(R6:R7) -> 17 | T8: =SUM(T6:T7) -> 60
A15: Joueur | B15: Adversaire | C15: G/P | D15: Sets gagnés | E15: Sets perdus | F15: pts marqués | G15: pts subis | H15: Date | I15: Compétition | J15: Phase | K15: Saison
A16: CAPLIEZ Bernard | B16: BROUTIER Bertrand | C16: G | D16: 2 | E16: 1 | F16: 162 | G16: 148 | H16: 2018-11-04 | I16: T1 5 QUILLES N1 CD62 - CUCQ | J16: Qualifications | K16: =IF(H16<>"",IF(MONTH(H16)>MoisRef,YEAR(H16)&"-"&YEAR(H16)+1,YEAR(H16)-1&"-"&YEAR(H16)),"") -> 2018-2019 | P16: =IF($K16=P$1,COUNTIF($C16,"G"),0) -> 0 | R16: =IF($K16=R$1,COUNTIF($C16,"G"),0) -> 0
A17: CAPLIEZ Bernard | B17: LAKBAL Johnny | C17: P | D17: 0 | E17: 2 | F17: 96 | G17: 120 | H17: 2018-11-04 | I17: T1 5 QUILLES N1 CD62 - CUCQ | J17: Qualifications | K17: 2018-2019 | P17: 0 | R17: 0
A18: CAPLIEZ Bernard | B18: DEPLECHIN Robert | C18: P | D18: 0 | E18: 2 | F18: 109 | G18: 120 | H18: 2018-11-24 | I18: T2 5 QUILLES N1 CD62 - DIVION | J18: Qualifications | K18: 2018-2019 | P18: 0 | R18: 0
A19: CAPLIEZ Bernard | B19: TRIPLET Gilbert | C19: G | D19: 2 | E19: 1 | F19: 169 | G19: 164 | H19: 2018-11-24 | I19: T2 5 QUILLES N1 CD62 - DIVION | J19: Qualifications | K19: 2018-2019 | P19: 0 | R19: 0
A20: CAPLIEZ Bernard | B20: CARTIERE André | C20: P | D20: 1 | E20: 2 | F20: 132 | G20: 168 | H20: 2018-12-09 | I20: T3 5Q Qualif N1 Wimille CD62 - Wimille | J20: Qualifications | K20: 2018-2019 | P20: 0 | R20: 0
A21: CAPLIEZ Bernard | B21: CARTIERE André | C21: G | D21: 2 | E21: 1 | F21: 176 | G21: 122 | H21: 2018-12-09 | I21: T3 5Q Qualif N1 Wimille CD62 - Wimille | J21: Qualifications | K21: 2018-2019 | P21: 0 | R21: 0
A22: CAPLIEZ Bernard | B22: DEPLECHIN Robert | C22: P | D22: 0 | E22: 2 | F22: 59 | G22: 120 | H22: 2018-12-09 | I22: T3 5Q Qualif N1 Wimille CD62 - Wimille | J22: 1/2 Finale | K22: 2018-2019 | P22: 0 | R22: 0
A23: CAPLIEZ Bernard | B23: CARTIERE André | C23: P | D23: 0 | E23: 2 | F23: 86 | G23: 120 | H23: 2019-01-05 | I23: T4 5Q Qualif N1 Cucq CD62 - Cucq | J23: Qualifications | K23: 2018-2019 | P23: 0 | R23: 0
A24: CAPLIEZ Bernard | B24: CARTIERE André | C24: G | D24: 2 | E24: 1 | F24: 170 | G24: 137 | H24: 2019-01-05 | I24: T4 5Q Qualif N1 Cucq CD62 - Cucq | J24: Qualifications | K24: 2018-2019 | P24: 0 | R24: 0
A25: CAPLIEZ Bernard | B25: FERMAUT Jean Marie | C25: P | D25: 0 | E25: 2 | F25: 59 | G25: 120 | H25: 2020-01-19 | I25: T1 Qualifications CD62 N1 - CUCQ | J25: Qualifications | K25: 2019-2020 | P25: 0 | R25: 0
A26: CAPLIEZ Bernard | B26: TIZON Alain | C26: P | D26: 1 | E26: 2 | F26: 127 | G26: 145 | H26: 2020-01-19 | I26: T1 Qualifications CD62 N1 - CUCQ | J26: Qualifications | K26: 2019-2020 | P26: 0 | R26: 0
A27: CAPLIEZ Bernard | B27: FONTAINE Christian | C27: P | D27: 0 | E27: 2 | F27: 48 | G27: 120 | H27: 2021-10-30 | I27: T1 CD62 5Q N1 - LE TOUQUET | J27: 1/4 Finale | K27: 2021-2022 | P27: 0 | R27: 0
A28: CAPLIEZ Bernard | B28: MONTADOR Ludovic | C28: P | D28: 0 | E28: 2 | F28: 95 | G28: 120 | H28: 2021-10-30 | I28: T1 CD62 5Q N1 - LE TOUQUET | J28: Qualifications | K28: 2021-2022 | P28: 0 | R28: 0
A29: CAPLIEZ Bernard | B29: TRIPLET Eddie | C29: G | D29: 2 | E29: 0 | F29: 120 | G29: 99 | H29: 2021-10-30 | I29: T1 CD62 5Q N1 - LE TOUQUET | J29: Qualifications | K29: 2021-2022 | P29: 1 | R29: 0
A30: CAPLIEZ Bernard | B30: MONTADOR Ludovic | C30: P | D30: 0 | E30: 2 | F30: 66 | G30: 120 | H30: 2021-12-11 | I30: T3 CD62 5Q N1 - DIVION | J30: Qualifications | K30: 2021-2022 | P30: 0 | R30: 0
A31: CAPLIEZ Bernard | B31: MONTADOR Ludovic | C31: P | D31: 0 | E31: 2 | F31: 75 | G31: 120 | H31: 2021-12-11 | I31: T3 CD62 5Q N1 - DIVION | J31: Qualifications | K31: 2021-2022 | P31: 0 | R31: 0
A32: CAPLIEZ Bernard | B32: GAMBIER Francis | C32: G | D32: 2 | E32: 1 | F32: 160 | G32: 138 | H32: 2021-11-21 | I32: T2 CD62 5Q N1 - CUCQ | J32: Qualifications | K32: 2021-2022 | P32: 1 | R32: 0
A33: CAPLIEZ Bernard | B33: LEBLANC Jean-noël | C33: P | D33: 0 | E33: 2 | F33: 88 | G33: 120 | H33: 2021-11-21 | I33: T2 CD62 5Q N1 - CUCQ | J33: Qualifications | K33: 2021-2022 | P33: 0 | R33: 0
A34: CAPLIEZ Bernard | B34: TRIPLET Gilbert | C34: P | D34: 0 | E34: 2 | F34: 89 | G34: 120 | H34: 2022-10-01 | I34: T1CD62 5Q N1 - CUCQ | J34: Qualifications | K34: 2022-2023 | P34: 0 | R34: 0
A35: CAPLIEZ Bernard | B35: TRIPLET Gilbert | C35: G | D35: 2 | E35: 1 | F35: 156 | G35: 123 | H35: 2022-10-01 | I35: T1CD62 5Q N1 - CUCQ | J35: Qualifications | K35: 2022-2023 | P35: 0 | R35: 1
A36: CAPLIEZ Bernard | B36: FERMAUT Jean-Marie | C36: P | D36: 0 | E36: 2 | F36: 69 | G36: 120 | H36: 2023-02-05 | I36: T2CD62 5Q N1 - DIVION | J36: Qualifications | K36: 2022-2023 | P36: 0 | R36: 0
A37: CAPLIEZ Bernard | B37: FERMAUT Jean-Marie | C37: P | D37: 0 | E37: 2 | F37: 91 | G37: 120 | H37: 2023-02-05 | I37: T2CD62 5Q N1 - DIVION | J37: Qualifications | K37: 2022-2023 | P37: 0 | R37: 0
A38: CAPLIEZ Bernard | B38: CARTIERE André | C38: G | D38: 2 | E38: 1 | F38: 128 | G38: 131 | H38: 2023-02-26 | I38: T3CD62 5Q N1 - LE TOUQUET | J38: Qualifications | K38: 2022-2023 | P38: 0 | R38: 1
A39: CAPLIEZ Bernard | B39: CARTIERE André | C39: P | D39: 1 | E39: 2 | F39: 147 | G39: 142 | H39: 2023-02-26 | I39: T3CD62 5Q N1 - LE TOUQUET | J39: Qualifications | K39: 2022-2023 | P39: 0 | R39: 0
A40: CAPLIEZ Bernard | B40: TRIPLET Gilbert | C40: P | D40: 0 | E40: 2 | F40: 60 | G40: 120 | H40: 2023-02-26 | I40: T3CD62 5Q N1 - LE TOUQUET | J40: 1/2 Finale | K40: 2022-2023 | P40: 0 | R40: 0
A41: Fin des données | P41: =IF($K41=P$1,COUNTIF($C41,"G"),0) -> 0 | R41: =IF($K41=R$1,COUNTIF($C41,"G"),0) -> 0

Sheet CARTIERE André
A1: CARTIERE André | P1: =SaisonDeb -> 2021-2022 | R1: =SaisonFin -> 2022-2023 | T1: Toutes saisons
A2: CUCQ | P2: Nombre | Q2: %age | R2: Nombre | S2: %age | T2: Nombre | U2: %age
A3: 117749-V | N3: Matchs | O3: Gagnés | P3: =SUM(P$15:P$151) -> 0 | Q3: =IF(P$3+P$4>0,P3/(P$3+P$4),"") -> 0 | R3: =SUM(R$15:R$151) -> 3 | S3: =IF(R$3+R$4>0,R3/(R$3+R$4),"") -> 0.4285714286 | T3: =COUNTIF($C$15:$C$151,"G") -> 9 | U3: =IF(T$3+T$4>0,T3/(T$3+T$4),"") -> 0.2307692308
O4: Perdus | P4: =COUNTIF($K$15:$M$151,SaisonDeb)-P3 -> 8 | Q4: =IF(P$3+P$4>0,P4/(P$3+P$4),"") -> 1 | R4: =COUNTIF($K$15:$K$151,SaisonFin)-R3 -> 4 | S4: =IF(R$3+R$4>0,R4/(R$3+R$4),"") -> 0.5714285714 | T4: =COUNTIF($C$15:$C$151,"P") -> 30 | U4: =IF(T$3+T$4>0,T4/(T$3+T$4),"") -> 0.7692307692
O5: Total / Moy. | P5: =SUM(P3:P4) -> 8 | Q5: =IF(SUMIF($K$15:$K$151,SaisonDeb,$G$15:$G$151)>0,SUMIF($K$15:$K$151,SaisonDeb,$F$15:$F$151)/SUMIF($K$15:$K$151,SaisonDeb,$G$15:$G$151),"") -> 0.6743027888 | R5: =SUM(R3:R4) -> 7 | S5: =IF(SUMIF($K$15:$K$151,SaisonFin,$G$15:$G$151)>0,SUMIF($K$15:$K$151,SaisonFin,$F$15:$F$151)/SUMIF($K$15:$K$151,SaisonFin,$G$15:$G$151),"") -> 0.8667439166 | T5: =SUM(T3:T4) -> 39 | U5: =IF(SUM($G$15:$G$151)>0,SUM($F$15:$F$151)/SUM($G$15:$G$151),"") -> 0.7973989027 | V5: =IF(SUMIF($K$15:$K$55,SaisonDeb,$G$15:$G$55)+SUMIF($K$15:$K$55,SaisonFin,$G$15:$G$55)>0,(SUMIF($K$15:$K$55,SaisonDeb,$F$15:$F$55)+SUMIF($K$15:$K$55,SaisonFin,$F$15:$F$55))/(SUMIF($K$15:$K$55,SaisonDeb,$G$15:$G$55)+SUMIF($K$15:$K$55,SaisonFin,$G$15:$G$55)),"") -> 0.7632565613
N6: Sets | O6: Gagnés | P6: =SUMIF($K$15:$K$151,SaisonDeb,$D$15:$D$151) -> 1 | Q6: =IF(P$6+P$7>0,P6/(P$6+P$7),"") -> 0.05882352941 | R6: =SUMIF($K$15:$K$151,SaisonFin,$D$15:$D$151) -> 7 | S6: =IF(R$6+R$7>0,R6/(R$6+R$7),"") -> 0.4117647059 | T6: =SUM($D$15:$D$151) -> 27 | U6: =IF(T$6+T$7>0,T6/(T$6+T$7),"") -> 0.2934782609
O7: Perdus | P7: =SUMIF($K$15:$K$151,SaisonDeb,$E$15:$E$151) -> 16 | Q7: =IF(P$6+P$7>0,P7/(P$6+P$7),"") -> 0.9411764706 | R7: =SUMIF($K$15:$K$151,SaisonFin,$E$15:$E$151) -> 10 | S7: =IF(R$6+R$7>0,R7/(R$6+R$7),"") -> 0.5882352941 | T7: =SUM($E$15:$E$151) -> 65 | U7: =IF(T$6+T$7>0,T7/(T$6+T$7),"") -> 0.7065217391
A8: Récapitulatif joueurs | O8: Total | P8: =SUM(P6:P7) -> 17 | R8: =SUM(R6:R7) -> 17 | T8: =SUM(T6:T7) -> 92
A15: Joueur | B15: Adversaire | C15: G/P | D15: Sets gagnés | E15: Sets perdus | F15: pts marqués | G15: pts subis | H15: Date | I15: Compétition | J15: Phase | K15: Saison
A16: CARTIERE André | B16: MARTEL Bruno | C16: G | D16: 2 | E16: 0 | F16: 120 | G16: 91 | H16: 2010-02-20 | I16: N1 Ligue T4 DOUAI | J16: Poules | K16: =IF(H16<>"",IF(MONTH(H16)>MoisRef,YEAR(H16)&"-"&YEAR(H16)+1,YEAR(H16)-1&"-"&YEAR(H16)),"") -> 2009-2010 | P16: =IF($K16=P$1,COUNTIF($C16,"G"),0) -> 0 | R16: =IF($K16=R$1,COUNTIF($C16,"G"),0) -> 0
A17: CARTIERE André | B17: LORTHIOIR Jean-Luc | C17: P | D17: 0 | E17: 2 | F17: 104 | G17: 120 | H17: 2010-02-20 | I17: N1 Ligue T4 DOUAI | J17: Poules Consolante | K17: 2009-2010 | P17: 0 | R17: 0
A18: CARTIERE André | B18: HORNAIN Denis | C18: P | D18: 0 | E18: 2 | F18: 92 | G18: 120 | H18: 2010-02-20 | I18: N1 Ligue T4 DOUAI | J18: 1/8 Finale | K18: 2009-2010 | P18: 0 | R18: 0
A19: CARTIERE André | B19: GEETS Patrice | C19: P | D19: 0 | E19: 2 | F19: 54 | G19: 120 | H19: 2010-02-20 | I19: N1 Ligue T4 DOUAI | J19: Poules | K19: 2009-2010 | P19: 0 | R19: 0
A20: CARTIERE André | B20: CARPENTIER Yohanne | C20: P | D20: 1 | E20: 2 | F20: 134 | G20: 177 | H20: 2010-02-20 | I20: N1 Ligue T4 DOUAI | J20: Poules Consolante | K20: 2009-2010 | P20: 0 | R20: 0
A21: CARTIERE André | B21: BOUBET Jean | C21: G | D21: 2 | E21: 1 | F21: 160 | G21: 126 | H21: 2017-03-17 | I21: T3 5 QUILLES N1 CD62 - CUCQ | J21: Qualifications | K21: 2016-2017 | P21: 0 | R21: 0
A22: CARTIERE André | B22: TRIPLET Gilbert | C22: P | D22: 0 | E22: 2 | F22: 74 | G22: 120 | H22: 2017-03-17 | I22: T3 5 QUILLES N1 CD62 - CUCQ | J22: Qualifications | K22: 2016-2017 | P22: 0 | R22: 0
A23: CARTIERE André | B23: DEPLECHIN Robert | C23: P | D23: 0 | E23: 2 | F23: 44 | G23: 120 | H23: 2018-03-30 | I23: T4 5 QUILLES N1 CD62 - CUCQ | J23: Qualifications | K23: 2017-2018 | P23: 0 | R23: 0
A24: CARTIERE André | B24: RAMET Jacques | C24: P | D24: 1 | E24: 2 | F24: 150 | G24: 135 | H24: 2018-03-30 | I24: T4 5 QUILLES N1 CD62 - CUCQ | J24: Qualifications | K24: 2017-2018 | P24: 0 | R24: 0
A25: CARTIERE André | B25: BLONDEEL Firmin | C25: P | D25: 0 | E25: 2 | F25: 29 | G25: 120 | H25: 2018-11-04 | I25: T1 5 QUILLES N1 CD62 - CUCQ | J25: Qualifications | K25: 2018-2019 | P25: 0 | R25: 0
A26: CARTIERE André | B26: RAMET Jacques | C26: G | D26: 2 | E26: 0 | F26: 120 | G26: 62 | H26: 2018-11-04 | I26: T1 5 QUILLES N1 CD62 - CUCQ | J26: Qualifications | K26: 2018-2019 | P26: 0 | R26: 0
A27: CARTIERE André | B27: FONTAINE Christian | C27: P | D27: 0 | E27: 2 | F27: 38 | G27: 120 | H27: 2018-11-24 | I27: T2 5 QUILLES N1 CD62 - DIVION | J27: Qualifications | K27: 2018-2019 | P27: 0 | R27: 0
A28: CARTIERE André | B28: FONTAINE Christian | C28: P | D28: 1 | E28: 2 | F28: 115 | G28: 160 | H28: 2018-11-24 | I28: T2 5 QUILLES N1 CD62 - DIVION | J28: Qualifications | K28: 2018-2019 | P28: 0 | R28: 0
A29: CARTIERE André | B29: CAPLIEZ Bernard | C29: G | D29: 2 | E29: 1 | F29: 168 | G29: 132 | H29: 2018-12-09 | I29: T3 5Q Qualif N1 Wimille CD62 - Wimille | J29: Qualifications | K29: 2018-2019 | P29: 0 | R29: 0
A30: CARTIERE André | B30: CAPLIEZ Bernard | C30: P | D30: 1 | E30: 2 | F30: 122 | G30: 176 | H30: 2018-12-09 | I30: T3 5Q Qualif N1 Wimille CD62 - Wimille | J30: Qualifications | K30: 2018-2019 | P30: 0 | R30: 0
A31: CARTIERE André | B31: BLONDEEL Firmin | C31: P | D31: 1 | E31: 2 | F31: 115 | G31: 143 | H31: 2019-01-05 | I31: T4 5Q Qualif N1 Cucq CD62 - Cucq | J31: 1/2 Finale | K31: 2018-2019 | P31: 0 | R31: 0
A32: CARTIERE André | B32: CAPLIEZ Bernard | C32: G | D32: 2 | E32: 0 | F32: 120 | G32: 86 | H32: 2019-01-05 | I32: T4 5Q Qualif N1 Cucq CD62 - Cucq | J32: Qualifications | K32: 2018-2019 | P32: 0 | R32: 0
A33: CARTIERE André | B33: CAPLIEZ Bernard | C33: P | D33: 1 | E33: 2 | F33: 137 | G33: 170 | H33: 2019-01-05 | I33: T4 5Q Qualif N1 Cucq CD62 - Cucq | J33: Qualifications | K33: 2018-2019 | P33: 0 | R33: 0
A34: CARTIERE André | B34: BLONDEEL Firmin | C34: P | D34: 0 | E34: 2 | F34: 66 | G34: 120 | H34: 2020-01-19 | I34: T1 Qualifications CD62 N1 - CUCQ | J34: Qualifications | K34: 2019-2020 | P34: 0 | R34: 0
A35: CARTIERE André | B35: RAMET Jacques | C35: G | D35: 2 | E35: 1 | F35: 154 | G35: 127 | H35: 2020-01-19 | I35: T1 Qualifications CD62 N1 - CUCQ | J35: Qualifications | K35: 2019-2020 | P35: 0 | R35: 0
A36: CARTIERE André | B36: BLONDEEL Firmin | C36: P | D36: 0 | E36: 2 | F36: 73 | G36: 120 | H36: 2020-02-09 | I36: T2 Qualifications CD62 N1 - WIMILLE | J36: Qualifications | K36: 2019-2020 | P36: 0 | R36: 0
A37: CARTIERE André | B37: MONTADOR Ludovic | C37: P | D37: 0 | E37: 2 | F37: 77 | G37: 120 | H37: 2020-02-09 | I37: T2 Qualifications CD62 N1 - WIMILLE | J37: Qualifications | K37: 2019-2020 | P37: 0 | R37: 0
A38: CARTIERE André | B38: DEPLECHIN Roland | C38: P | D38: 0 | E38: 2 | F38: 71 | G38: 120 | H38: 2020-03-08 | I38: T3 Qualifications CD62 N1 - DIVION | J38: Qualifications | K38: 2019-2020 | P38: 0 | R38: 0
A39: CARTIERE André | B39: DEPLECHIN Roland | C39: P | D39: 1 | E39: 2 | F39: 162 | G39: 149 | H39: 2020-03-08 | I39: T3 Qualifications CD62 N1 - DIVION | J39: Qualifications | K39: 2019-2020 | P39: 0 | R39: 0
A40: CARTIERE André | B40: LEBLANC Jean-noël | C40: P | D40: 0 | E40: 2 | F40: 78 | G40: 120 | H40: 2021-10-30 | I40: T1 CD62 5Q N1 - LE TOUQUET | J40: Qualifications | K40: 2021-2022 | P40: 0 | R40: 0
A41: CARTIERE André | B41: MONTADOR Christophe | C41: P | D41: 0 | E41: 2 | F41: 72 | G41: 120 | H41: 2021-10-30 | I41: T1 CD62 5Q N1 - LE TOUQUET | J41: Qualifications | K41: 2021-2022 | P41: 0 | R41: 0
A42: CARTIERE André | B42: FONTAINE Christian | C42: P | D42: 0 | E42: 2 | F42: 56 | G42: 120 | H42: 2021-12-11 | I42: T3 CD62 5Q N1 - DIVION | J42: Qualifications | K42: 2021-2022 | P42: 0 | R42: 0
A43: CARTIERE André | B43: TILLIETTE Michel | C43: P | D43: 1 | E43: 2 | F43: 146 | G43: 164 | H43: 2021-12-11 | I43: T3 CD62 5Q N1 - DIVION | J43: Qualifications | K43: 2021-2022 | P43: 0 | R43: 0
A44: CARTIERE André | B44: LEBLANC Jean-noël | C44: P | D44: 0 | E44: 2 | F44: 76 | G44: 120 | H44: 2022-01-23 | I44: T4 CD62 5Q N1 - LE TOUQUET | J44: Qualifications | K44: 2021-2022 | P44: 0 | R44: 0
A45: CARTIERE André | B45: TRIPLET Eddie | C45: P | D45: 0 | E45: 2 | F45: 106 | G45: 120 | H45: 2022-01-23 | I45: T4 CD62 5Q N1 - LE TOUQUET | J45: Qualifications | K45: 2021-2022 | P45: 0 | R45: 0
A46: CARTIERE André | B46: DEPLECHIN Roland | C46: P | D46: 0 | E46: 2 | F46: 69 | G46: 120 | H46: 2021-11-21 | I46: T2 CD62 5Q N1 - CUCQ | J46: Qualifications | K46: 2021-2022 | P46: 0 | R46: 0
A47: CARTIERE André | B47: FERMAUT Jean-Marie | C47: P | D47: 0 | E47: 2 | F47: 74 | G47: 120 | H47: 2021-11-21 | I47: T2 CD62 5Q N1 - CUCQ | J47: Qualifications | K47: 2021-2022 | P47: 0 | R47: 0
A48: CARTIERE André | B48: FERMAUT Jean-Marie | C48: P | D48: 0 | E48: 2 | F48: 41 | G48: 120 | H48: 2022-10-01 | I48: T1CD62 5Q N1 - CUCQ | J48: Qualifications | K48: 2022-2023 | P48: 0 | R48: 0
A49: CARTIERE André | B49: LEBECQ Jean-Pierre | C49: G | D49: 2 | E49: 1 | F49: 171 | G49: 159 | H49: 2022-10-01 | I49: T1CD62 5Q N1 - CUCQ | J49: Qualifications | K49: 2022-2023 | P49: 0 | R49: 1
A50: CARTIERE André | B50: FERMAUT Jean-Marie | C50: P | D50: 0 | E50: 2 | F50: 67 | G50: 120 | H50: 2023-02-05 | I50: T2CD62 5Q N1 - DIVION | J50: 1/2 Finale | K50: 2022-2023 | P50: 0 | R50: 0
A51: CARTIERE André | B51: TILLIETTE Michel | C51: P | D51: 0 | E51: 2 | F51: 76 | G51: 120 | H51: 2023-02-05 | I51: T2CD62 5Q N1 - DIVION | J51: Qualifications | K51: 2022-2023 | P51: 0 | R51: 0
A52: CARTIERE André | B52: TRIPLET Gilbert | C52: G | D52: 2 | E52: 0 | F52: 120 | G52: 69 | H52: 2023-02-05 | I52: T2CD62 5Q N1 - DIVION | J52: Qualifications | K52: 2022-2023 | P52: 0 | R52: 1
A53: CARTIERE André | B53: CAPLIEZ Bernard | C53: P | D53: 1 | E53: 2 | F53: 131 | G53: 128 | H53: 2023-02-26 | I53: T3CD62 5Q N1 - LE TOUQUET | J53: Qualifications | K53: 2022-2023 | P53: 0 | R53: 0
A54: CARTIERE André | B54: CAPLIEZ Bernard | C54: G | D54: 2 | E54: 1 | F54: 142 | G54: 147 | H54: 2023-02-26 | I54: T3CD62 5Q N1 - LE TOUQUET | J54: Qualifications | K54: 2022-2023 | P54: 0 | R54: 1
A55: Fin des données | P55: 0 | R55: 0

Sheet CHARLES Dominique
A1: CHARLES Dominique | P1: =SaisonDeb -> 2021-2022 | R1: =SaisonFin -> 2022-2023 | T1: Toutes saisons
P2: Nombre | Q2: %age | R2: Nombre | S2: %age | T2: Nombre | U2: %age
N3: Matchs | O3: Gagnés | P3: =SUM(P$15:P$276) -> 4 | Q3: =IF(P$3+P$4>0,P3/(P$3+P$4),"") -> 0.1818181818 | R3: =SUM(R$15:R$276) -> 9 | S3: =IF(R$3+R$4>0,R3/(R$3+R$4),"") -> 0.28125 | T3: =COUNTIF($C$15:$C$276,"G") -> 48 | U3: =IF(T$3+T$4>0,T3/(T$3+T$4),"") -> 0.2926829268
O4: Perdus | P4: =COUNTIF($K$15:$M$276,SaisonDeb)-P3 -> 18 | Q4: =IF(P$3+P$4>0,P4/(P$3+P$4),"") -> 0.8181818182 | R4: =COUNTIF($K$15:$K$276,SaisonFin)-R3 -> 23 | S4: =IF(R$3+R$4>0,R4/(R$3+R$4),"") -> 0.71875 | T4: =COUNTIF($C$15:$C$276,"P") -> 116 | U4: =IF(T$3+T$4>0,T4/(T$3+T$4),"") -> 0.7073170732
O5: Total / Moy. | P5: =SUM(P3:P4) -> 22 | Q5: =IF(SUMIF($K$15:$K$276,SaisonDeb,$G$15:$G$276)>0,SUMIF($K$15:$K$276,SaisonDeb,$F$15:$F$276)/SUMIF($K$15:$K$276,SaisonDeb,$G$15:$G$276),"") -> 0.8835289005 | R5: =SUM(R3:R4) -> 32 | S5: =IF(SUMIF($K$15:$K$276,SaisonFin,$G$15:$G$276)>0,SUMIF($K$15:$K$276,SaisonFin,$F$15:$F$276)/SUMIF($K$15:$K$276,SaisonFin,$G$15:$G$276),"") -> 0.8416714042 | T5: =SUM(T3:T4) -> 164 | U5: =IF(SUM($G$15:$G$276)>0,SUM($F$15:$F$276)/SUM($G$15:$G$276),"") -> 0.8574468833 | V5: =IF(SUMIF($K$15:$K$180,SaisonDeb,$G$15:$G$180)+SUMIF($K$15:$K$180,SaisonFin,$G$15:$G$180)>0,(SUMIF($K$15:$K$180,SaisonDeb,$F$15:$F$180)+SUMIF($K$15:$K$180,SaisonFin,$F$15:$F$180))/(SUMIF($K$15:$K$180,SaisonDeb,$G$15:$G$180)+SUMIF($K$15:$K$180,SaisonFin,$G$15:$G$180)),"") -> 0.8582230624
N6: Sets | O6: Gagnés | P6: =SUMIF($K$15:$K$276,SaisonDeb,$D$15:$D$276) -> 4 | Q6: =IF(P$6+P$7>0,P6/(P$6+P$7),"") -> 0.1818181818 | R6: =SUMIF($K$15:$K$276,SaisonFin,$D$15:$D$276) -> 11 | S6: =IF(R$6+R$7>0,R6/(R$6+R$7),"") -> 0.2894736842 | T6: =SUM($D$15:$D$276) -> 98 | U6: =IF(T$6+T$7>0,T6/(T$6+T$7),"") -> 0.3234323432
O7: Perdus | P7: =SUMIF($K$15:$K$276,SaisonDeb,$E$15:$E$276) -> 18 | Q7: =IF(P$6+P$7>0,P7/(P$6+P$7),"") -> 0.8181818182 | R7: =SUMIF($K$15:$K$276,SaisonFin,$E$15:$E$276) -> 27 | S7: =IF(R$6+R$7>0,R7/(R$6+R$7),"") -> 0.7105263158 | T7: =SUM($E$15:$E$276) -> 205 | U7: =IF(T$6+T$7>0,T7/(T$6+T$7),"") -> 0.6765676568
A8: Récapitulatif joueurs | O8: Total | P8: =SUM(P6:P7) -> 22 | R8: =SUM(R6:R7) -> 38 | T8: =SUM(T6:T7) -> 303
A15: Joueur | B15: Adversaire | C15: G/P | D15: Sets gagnés | E15: Sets perdus | F15: pts marqués | G15: pts subis | H15: Date | I15: Compétition | J15: Phase | K15: Saison
A16: CHARLES Dominique | B16: SORTAIS Claude | C16: P | D16: 0 | E16: 2 | F16: 51 | G16: 120 | H16: 2015-12-11 | I16: National T3 FACHES THUMESNIL - RONCHIN | J16: Préqualifs | K16: =IF(H16<>"",IF(MONTH(H16)>MoisRef,YEAR(H16)&"-"&YEAR(H16)+1,YEAR(H16)-1&"-"&YEAR(H16)),"") -> 2015-2016 | P16: =IF($K16=P$1,COUNTIF($C16,"G"),0) -> 0 | R16: =IF($K16=R$1,COUNTIF($C16,"G"),0) -> 0
A17: CHARLES Dominique | B17: CAUX Frédéric | C17: G | D17: 2 | E17: 0 | F17: 120 | G17: 53 | H17: 2015-12-11 | I17: National T3 FACHES THUMESNIL - RONCHIN | J17: Préqualifs | K17: 2015-2016 | P17: 0 | R17: 0
A18: CHARLES Dominique | B18: MORMICHE Michel | C18: P | D18: 0 | E18: 2 | F18: 97 | G18: 120 | H18: 2015-12-11 | I18: National T3 FACHES THUMESNIL - RONCHIN | J18: Préqualifs | K18: 2015-2016 | P18: 0 | R18: 0
A19: CHARLES Dominique | B19: TREAL David | C19: P | D19: 0 | E19: 3 | F19: 104 | G19: 180 | H19: 2015-12-12 | I19: National T3 FACHES THUMESNIL - RONCHIN | J19: Qualifs promotion | K19: 2015-2016 | P19: 0 | R19: 0
A20: CHARLES Dominique | B20: DEROLEZ Jean-Pierre | C20: P | D20: 2 | E20: 3 | F20: 226 | G20: 251 | H20: 2015-12-12 | I20: National T3 FACHES THUMESNIL - RONCHIN | J20: Qualifs promotion | K20: 2015-2016 | P20: 0 | R20: 0
A21: CHARLES Dominique | B21: MICHELOTTI Francesco | C21: P | D21: 0 | E21: 2 | F21: 87 | G21: 120 | H21: 2016-02-05 | I21: National T4 SCHILTIGHEIM | J21: Préqualifs | K21: 2015-2016 | P21: 0 | R21: 0
A22: CHARLES Dominique | B22: LACROIX Sabine | C22: G | D22: 2 | E22: 0 | F22: 120 | G22: 98 | H22: 2016-02-05 | I22: National T4 SCHILTIGHEIM | J22: Préqualifs | K22: 2015-2016 | P22: 0 | R22: 0
A23: CHARLES Dominique | B23: GANGLOFF Jean-Luc | C23: P | D23: 0 | E23: 2 | F23: 86 | G23: 120 | H23: 2016-02-05 | I23: National T4 SCHILTIGHEIM | J23: Préqualifs | K23: 2015-2016 | P23: 0 | R23: 0
A24: CHARLES Dominique | B24: ZACCAGNINI Antoine | C24: P | D24: 0 | E24: 3 | F24: 89 | G24: 180 | H24: 2016-02-06 | I24: National T4 SCHILTIGHEIM | J24: Qualifs promotion | K24: 2015-2016 | P24: 0 | R24: 0
A25: CHARLES Dominique | B25: LEGRAND Guy | C25: P | D25: 0 | E25: 3 | F25: 156 | G25: 180 | H25: 2016-02-06 | I25: National T4 SCHILTIGHEIM | J25: Qualifs promotion | K25: 2015-2016 | P25: 0 | R25: 0
A26: CHARLES Dominique | B26: TREAL David | C26: G | D26: 2 | E26: 0 | F26: 120 | G26: 107 | H26: 2016-03-04 | I26: National T5 GRAVELINES | J26: Préqualifs | K26: 2015-2016 | P26: 0 | R26: 0
A27: CHARLES Dominique | B27: JUBLOT Denis | C27: P | D27: 0 | E27: 2 | F27: 75 | G27: 120 | H27: 2016-03-04 | I27: National T5 GRAVELINES | J27: Préqualifs | K27: 2015-2016 | P27: 0 | R27: 0
A28: CHARLES Dominique | B28: WALLART Jean-Charles | C28: P | D28: 0 | E28: 2 | F28: 94 | G28: 120 | H28: 2016-03-04 | I28: National T5 GRAVELINES | J28: Préqualifs | K28: 2015-2016 | P28: 0 | R28: 0
A29: CHARLES Dominique | B29: TREAL David | C29: P | D29: 0 | E29: 3 | F29: 115 | G29: 180 | H29: 2016-03-05 | I29: National T5 GRAVELINES | J29: Qualifs promotion | K29: 2015-2016 | P29: 0 | R29: 0
A30: CHARLES Dominique | B30: SAINT-GEORGES Claude | C30: P | D30: 0 | E30: 3 | F30: 95 | G30: 180 | H30: 2016-03-05 | I30: National T5 GRAVELINES | J30: Qualifs promotion | K30: 2015-2016 | P30: 0 | R30: 0
A31: CHARLES Dominique | B31: LHERMITTE Sylvain | C31: G | D31: 2 | E31: 0 | F31: 120 | G31: 98 | H31: 2016-09-30 | I31: National T1 SAINT RAPHAEL | J31: Préqualifs | K31: 2016-2017 | P31: 0 | R31: 0
A32: CHARLES Dominique | B32: GODARD Alain | C32: G | D32: 2 | E32: 1 | F32: 175 | G32: 165 | H32: 2016-09-30 | I32: National T1 SAINT RAPHAEL | J32: Préqualifs | K32: 2016-2017 | P32: 0 | R32: 0
A33: CHARLES Dominique | B33: MAILLAT Emmanuel | C33: P | D33: 0 | E33: 2 | F33: 57 | G33: 120 | H33: 2016-09-30 | I33: National T1 SAINT RAPHAEL | J33: Préqualifs | K33: 2016-2017 | P33: 0 | R33: 0
A34: CHARLES Dominique | B34: COTTEN Jean-Pierre | C34: P | D34: 0 | E34: 3 | F34: 73 | G34: 180 | H34: 2016-10-01 | I34: National T1 SAINT RAPHAEL | J34: Qualifs N1 | K34: 2016-2017 | P34: 0 | R34: 0
A35: CHARLES Dominique | B35: WALLART Jean-Charles | C35: P | D35: 0 | E35: 3 | F35: 118 | G35: 180 | H35: 2016-10-01 | I35: National T1 SAINT RAPHAEL | J35: Qualifs N1 | K35: 2016-2017 | P35: 0 | R35: 0
A36: CHARLES Dominique | B36: CLYNCKE Jean-Jacques | C36: P | D36: 0 | E36: 2 | F36: 109 | G36: 120 | H36: 2016-11-04 | I36: National T2 GRAVELINES | J36: Préqualifs | K36: 2016-2017 | P36: 0 | R36: 0
A37: CHARLES Dominique | B37: 0 | C37: G | D37: 2 | E37: 0 | F37: 120 | G37: 118 | H37: 2016-11-04 | I37: National T2 GRAVELINES | J37: Préqualifs | K37: 2016-2017 | P37: 0 | R37: 0
A38: CHARLES Dominique | B38: HERREBRECHT Thierry | C38: P | D38: 0 | E38: 2 | F38: 51 | G38: 120 | H38: 2016-11-04 | I38: National T2 GRAVELINES | J38: Préqualifs | K38: 2016-2017 | P38: 0 | R38: 0
A39: CHARLES Dominique | B39: REBELO Joaquim | C39: P | D39: 0 | E39: 3 | F39: 112 | G39: 180 | H39: 2016-11-05 | I39: National T2 GRAVELINES | J39: Qualifs N1 | K39: 2016-2017 | P39: 0 | R39: 0
A40: CHARLES Dominique | B40: SAINT-GEORGES Claude | C40: P | D40: 0 | E40: 3 | F40: 99 | G40: 180 | H40: 2016-11-05 | I40: National T2 GRAVELINES | J40: Qualifs N1 | K40: 2016-2017 | P40: 0 | R40: 0
A41: CHARLES Dominique | B41: BARBE Philippe | C41: G | D41: 2 | E41: 1 | F41: 160 | G41: 120 | H41: 2016-12-09 | I41: National T3 CHATILLON | J41: Préqualifs | K41: 2016-2017 | P41: 0 | R41: 0
A42: CHARLES Dominique | B42: FELLAH Bachir | C42: G | D42: 2 | E42: 0 | F42: 120 | G42: 87 | H42: 2016-12-09 | I42: National T3 CHATILLON | J42: Préqualifs | K42: 2016-2017 | P42: 0 | R42: 0
A43: CHARLES Dominique | B43: LEGRAND Guy | C43: P | D43: 0 | E43: 2 | F43: 55 | G43: 120 | H43: 2016-12-09 | I43: National T3 CHATILLON | J43: Préqualifs | K43: 2016-2017 | P43: 0 | R43: 0
A44: CHARLES Dominique | B44: NAHIRNYJ Nicolas | C44: P | D44: 2 | E44: 3 | F44: 260 | G44: 264 | H44: 2016-12-10 | I44: National T3 CHATILLON | J44: Qualifs N1 | K44: 2016-2017 | P44: 0 | R44: 0
A45: CHARLES Dominique | B45: IQUI Jean-Franck | C45: P | D45: 1 | E45: 3 | F45: 155 | G45: 234 | H45: 2016-12-10 | I45: National T3 CHATILLON | J45: Qualifs N1 | K45: 2016-2017 | P45: 0 | R45: 0
A46: CHARLES Dominique | B46: BAYON Pascal | C46: P | D46: 0 | E46: 2 | F46: 104 | G46: 120 | H46: 2017-02-03 | I46: National T4 SCHILTIGHEIM | J46: Préqualifs | K46: 2016-2017 | P46: 0 | R46: 0
A47: CHARLES Dominique | B47: DESCLAIR Guy | C47: G | D47: 2 | E47: 1 | F47: 167 | G47: 150 | H47: 2017-02-03 | I47: National T4 SCHILTIGHEIM | J47: Préqualifs | K47: 2016-2017 | P47: 0 | R47: 0
A48: CHARLES Dominique | B48: MICHELOTTI Francesco | C48: P | D48: 0 | E48: 2 | F48: 47 | G48: 120 | H48: 2017-02-03 | I48: National T4 SCHILTIGHEIM | J48: Préqualifs | K48: =IF(H48<>"",IF(MONTH(H48)>MoisRef,YEAR(H48)&"-"&YEAR(H48)+1,YEAR(H48)-1&"-"&YEAR(H48)),"") -> 2016-2017 | P48: 0 | R48: 0
A49: CHARLES Dominique | B49: SACRE Jean-Yves | C49: P | D49: 2 | E49: 3 | F49: 218 | G49: 265 | H49: 2017-02-04 | I49: National T4 SCHILTIGHEIM | J49: Qualifs N1 | K49: 2016-2017 | P49: 0 | R49: 0
A50: CHARLES Dominique | B50: COSTE Philippe | C50: P | D50: 2 | E50: 3 | F50: 271 | G50: 281 | H50: 2017-02-04 | I50: National T4 SCHILTIGHEIM | J50: Qualifs N1 | K50: 2016-2017 | P50: 0 | R50: 0
A51: CHARLES Dominique | B51: FALISCHIA Hendrik | C51: G | D51: 2 | E51: 0 | F51: 120 | G51: 74 | H51: 2017-03-03 | I51: National T5 CAUDAN | J51: Préqualifs | K51: 2016-2017 | P51: 0 | R51: 0
A52: CHARLES Dominique | B52: REBELO Joaquim | C52: P | D52: 0 | E52: 2 | F52: 78 | G52: 120 | H52: 2017-03-03 | I52: National T5 CAUDAN | J52: Préqualifs | K52: 2016-2017 | P52: 0 | R52: 0
A53: CHARLES Dominique | B53: KERCRET Geneviève | C53: G | D53: 2 | E53: 1 | F53: 148 | G53: 140 | H53: 2017-03-03 | I53: National T5 CAUDAN | J53: Préqualifs | K53: 2016-2017 | P53: 0 | R53: 0
A54: CHARLES Dominique | B54: NAHIRNYJ Nicolas | C54: P | D54: 1 | E54: 3 | F54: 177 | G54: 231 | H54: 2017-03-04 | I54: National T5 CAUDAN | J54: Qualifs N1 | K54: 2016-2017 | P54: 0 | R54: 0
A55: CHARLES Dominique | B55: GULDNER Aurélien | C55: P | D55: 2 | E55: 3 | F55: 249 | G55: 277 | H55: 2017-03-04 | I55: National T5 CAUDAN | J55: Qualifs N1 | K55: 2016-2017 | P55: 0 | R55: 0
A56: CHARLES Dominique | B56: LAMARQUE Yves | C56: G | D56: 1 | E56: 0 | F56: 100 | G56: 49 | H56: 2016-10-22 | I56: 5Q CD60 N1 - T 1 -CREPY | J56: Tour 1 | K56: 2016-2017 | P56: 0 | R56: 0
A57: CHARLES Dominique | B57: LORGE Thierry | C57: P | D57: 0 | E57: 1 | F57: 47 | G57: 100 | H57: 2016-10-22 | I57: 5Q CD60 N1 - T 1 -CREPY | J57: Tour 2 | K57: 2016-2017 | P57: 0 | R57: 0
A58: CHARLES Dominique | B58: DIOT Alain | C58: P | D58: 0 | E58: 1 | F58: 63 | G58: 100 | H58: 2016-10-22 | I58: 5Q CD60 N1 - T 1 -CREPY | J58: Tour 3 | K58: 2016-2017 | P58: 0 | R58: 0
A59: CHARLES Dominique | B59: BARBE Philippe | C59: P | D59: 0 | E59: 1 | F59: 87 | G59: 100 | H59: 2016-10-22 | I59: 5Q CD60 N1 - T 1 -CREPY | J59: Tour 4 | K59: 2016-2017 | P59: 0 | R59: 0
A60: CHARLES Dominique | B60: HERMANT Jacques | C60: G | D60: 1 | E60: 0 | F60: 100 | G60: 66 | H60: 2016-11-26 | I60: 5Q CD60 N1 - T 2 - SENLIS | J60: Tour 1 | K60: 2016-2017 | P60: 0 | R60: 0
A61: CHARLES Dominique | B61: BONNEAU Benoît | C61: P | D61: 0 | E61: 1 | F61: 83 | G61: 100 | H61: 2016-11-26 | I61: 5Q CD60 N1 - T 2 - SENLIS | J61: Tour 2 | K61: 2016-2017 | P61: 0 | R61: 0
A62: CHARLES Dominique | B62: DIOT Alain | C62: P | D62: 0 | E62: 1 | F62: 96 | G62: 100 | H62: 2016-11-26 | I62: 5Q CD60 N1 - T 2 - SENLIS | J62: Tour 3 | K62: 2016-2017 | P62: 0 | R62: 0
A63: CHARLES Dominique | B63: LANDRIN Christian | C63: P | D63: 0 | E63: 1 | F63: 92 | G63: 100 | H63: 2016-11-26 | I63: 5Q CD60 N1 - T 2 - SENLIS | J63: Tour 4 | K63: 2016-2017 | P63: 0 | R63: 0
A64: CHARLES Dominique | B64: BARBE Philippe | C64: G | D64: 1 | E64: 0 | F64: 100 | G64: 92 | H64: 2017-02-25 | I64: 5Q CD60 N1 - T 2 - SENLIS | J64: Tour 1 | K64: 2016-2017 | P64: 0 | R64: 0
A65: CHARLES Dominique | B65: LALOT Gérard | C65: P | D65: 0 | E65: 1 | F65: 92 | G65: 100 | H65: 2017-02-25 | I65: 5Q CD60 N1 - T 2 - SENLIS | J65: Tour 2 | K65: 2016-2017 | P65: 0 | R65: 0
A66: CHARLES Dominique | B66: LAMARQUE Yves | C66: G | D66: 1 | E66: 0 | F66: 100 | G66: 31 | H66: 2017-02-25 | I66: 5Q CD60 N1 - T 2 - SENLIS | J66: Tour 3 | K66: 2016-2017 | P66: 0 | R66: 0
A67: CHARLES Dominique | B67: HERMANT Jacques | C67: G | D67: 1 | E67: 0 | F67: 100 | G67: 93 | H67: 2017-02-25 | I67: 5Q CD60 N1 - T 2 - SENLIS | J67: Tour 4 | K67: 2016-2017 | P67: 0 | R67: 0
A68: CHARLES Dominique | B68: LALOT Gérard | C68: P | D68: 0 | E68: 1 | F68: 93 | G68: 100 | H68: 2017-01-21 | I68: 5Q CD60 N1 - T 3 - MERU | J68: Tour 1 | K68: 2016-2017 | P68: 0 | R68: 0
A69: CHARLES Dominique | B69: BOUIGES Armelle | C69: G | D69: 1 | E69: 0 | F69: 100 | G69: =F68 -> 93 | H69: 2017-01-21 | I69: 5Q CD60 N1 - T 3 - MERU | J69: Tour 2 | K69: 2016-2017 | P69: 0 | R69: 0
A70: CHARLES Dominique | B70: MURIOT Jean-Pierre | C70: G | D70: 1 | E70: 0 | F70: 100 | G70: 78 | H70: 2017-01-21 | I70: 5Q CD60 N1 - T 3 - MERU | J70: Tour 3 | K70: 2016-2017 | P70: 0 | R70: 0
A71: CHARLES Dominique | B71: BARBE Philippe | C71: G | D71: 1 | E71: 0 | F71: 100 | G71: 68 | H71: 2017-01-21 | I71: 5Q CD60 N1 - T 3 - MERU | J71: Tour 4 | K71: 2016-2017 | P71: 0 | R71: 0
A72: CHARLES Dominique | B72: BARBE Philippe | C72: P | D72: 0 | E72: 2 | F72: 111 | G72: 120 | H72: 2017-09-22 | I72: National T1 ANNOEULLIN | J72: Préqualifs | K72: 2017-2018 | P72: 0 | R72: 0
A73: CHARLES Dominique | B73: ADRIANI Emmanuel | C73: P | D73: 1 | E73: 2 | F73: 134 | G73: 148 | H73: 2017-09-22 | I73: National T1 ANNOEULLIN | J73: Préqualifs | K73: 2017-2018 | P73: 0 | R73: 0
A74: CHARLES Dominique | B74: DAVOINE Bruno | C74: P | D74: 1 | E74: 2 | F74: 115 | G74: 171 | H74: 2017-09-22 | I74: National T1 ANNOEULLIN | J74: Préqualifs | K74: 2017-2018 | P74: 0 | R74: 0
A75: CHARLES Dominique | B75: LEMATRE Alexis | C75: P | D75: 0 | E75: 2 | F75: 78 | G75: 120 | H75: 2017-12-08 | I75: National T2 GRAVELINES | J75: Préqualifs | K75: 2017-2018 | P75: 0 | R75: 0
A76: CHARLES Dominique | B76: SAUVAGE Dominique | C76: G | D76: 2 | E76: 1 | F76: 156 | G76: 157 | H76: 2017-12-08 | I76: National T2 GRAVELINES | J76: Préqualifs | K76: 2017-2018 | P76: 0 | R76: 0
A77: CHARLES Dominique | B77: TREAL David | C77: P | D77: 0 | E77: 2 | F77: 40 | G77: 120 | H77: 2017-12-08 | I77: National T2 GRAVELINES | J77: Préqualifs | K77: 2017-2018 | P77: 0 | R77: 0
A78: CHARLES Dominique | B78: DELSOL Philippe | C78: P | D78: 1 | E78: 2 | F78: 88 | G78: 168 | H78: 2018-01-26 | I78: National T3 ROUEN | J78: Préqualifs | K78: 2017-2018 | P78: 0 | R78: 0
A79: CHARLES Dominique | B79: JUBLOT Denis | C79: P | D79: 1 | E79: 2 | F79: 107 | G79: 173 | H79: 2018-01-26 | I79: National T3 ROUEN | J79: Préqualifs | K79: 2017-2018 | P79: 0 | R79: 0
A80: CHARLES Dominique | B80: SORTAIS Claude | C80: P | D80: 0 | E80: 2 | F80: 97 | G80: 120 | H80: 2018-01-26 | I80: National T3 ROUEN | J80: Préqualifs | K80: 2017-2018 | P80: =IF($K80=P$1,COUNTIF($C80,"G"),0) -> 0 | R80: =IF($K80=R$1,COUNTIF($C80,"G"),0) -> 0
A81: CHARLES Dominique | B81: BARBE Philippe | C81: G | D81: 2 | E81: 0 | F81: 120 | G81: 53 | H81: 2017-09-30 | I81: T 1 OISE - CREPY | J81: Qualifications | K81: 2017-2018 | P81: =IF($K81=P$1,COUNTIF($C81,"G"),0) -> 0 | R81: =IF($K81=R$1,COUNTIF($C81,"G"),0) -> 0
A82: CHARLES Dominique | B82: STEINMANN Sébastien | C82: P | D82: 0 | E82: 2 | F82: 86 | G82: 120 | H82: 2017-09-30 | I82: T 1 OISE - CREPY | J82: Qualifications | K82: 2017-2018 | P82: 0 | R82: 0
A83: CHARLES Dominique | B83: STEINMANN Sébastien | C83: P | D83: 0 | E83: 2 | F83: 77 | G83: 120 | H83: 2017-09-30 | I83: T 1 OISE - CREPY | J83: 1/4 Finale | K83: 2017-2018 | P83: 0 | R83: 0
A84: CHARLES Dominique | B84: BONNEAU Benoît | C84: P | D84: 1 | E84: 2 | F84: 140 | G84: 157 | H84: 2017-10-21 | I84: T 2 OISE - SENLIS | J84: 1/2 Finale | K84: 2017-2018 | P84: 0 | R84: 0
A85: CHARLES Dominique | B85: LORGE Thierry | C85: P | D85: 0 | E85: 2 | F85: 78 | G85: 120 | H85: 2017-10-21 | I85: T 2 OISE - SENLIS | J85: Qualifications | K85: 2017-2018 | P85: 0 | R85: 0
A86: CHARLES Dominique | B86: MAUGER Jean-Paul | C86: G | D86: 2 | E86: 1 | F86: 166 | G86: 107 | H86: 2017-10-21 | I86: T 2 OISE - SENLIS | J86: 1/4 Finale | K86: 2017-2018 | P86: 0 | R86: 0
A87: CHARLES Dominique | B87: VAROQUEAUX Julien | C87: G | D87: 2 | E87: 0 | F87: 120 | G87: 110 | H87: 2017-10-21 | I87: T 2 OISE - SENLIS | J87: Qualifications | K87: 2017-2018 | P87: 0 | R87: 0
A88: CHARLES Dominique | B88: BOUTEILLER Francis | C88: P | D88: 1 | E88: 2 | F88: 140 | G88: 131 | H88: 2017-11-25 | I88: T 3 OISE - MERU | J88: Qualifications | K88: 2017-2018 | P88: 0 | R88: 0
A89: CHARLES Dominique | B89: BOUTEILLER Francis | C89: P | D89: 0 | E89: 2 | F89: 38 | G89: 120 | H89: 2017-11-25 | I89: T 3 OISE - MERU | J89: 1/4 Finale | K89: 2017-2018 | P89: 0 | R89: 0
A90: CHARLES Dominique | B90: HERTOUX Didier | C90: G | D90: 2 | E90: 0 | F90: 120 | G90: 75 | H90: 2017-11-25 | I90: T 3 OISE - MERU | J90: Qualifications | K90: 2017-2018 | P90: 0 | R90: 0
A91: CHARLES Dominique | B91: VAROQUEAUX Julien | C91: G | D91: 2 | E91: 0 | F91: 120 | G91: 107 | H91: 2017-11-25 | I91: T 3 OISE - MERU | J91: Qualifications | K91: 2017-2018 | P91: 0 | R91: 0
A92: CHARLES Dominique | B92: ALEXANDRE Michel | C92: P | D92: 1 | E92: 2 | F92: 139 | G92: 156 | H92: 2018-01-06 | I92: T 4 OISE - VILLERS | J92: 1/2 Finale | K92: 2017-2018 | P92: 0 | R92: 0
A93: CHARLES Dominique | B93: BARBE Philippe | C93: G | D93: 2 | E93: 0 | F93: 120 | G93: 33.1 | H93: 2018-01-06 | I93: T 4 OISE - VILLERS | J93: Qualifications | K93: 2017-2018 | P93: 0 | R93: 0
A94: CHARLES Dominique | B94: BONNEAU Benoît | C94: P | D94: 0 | E94: 2 | F94: 95 | G94: 120 | H94: 2018-01-06 | I94: T 4 OISE - VILLERS | J94: Qualifications | K94: 2017-2018 | P94: 0 | R94: 0
A95: CHARLES Dominique | B95: NAHIRNYJ Nicolas | C95: G | D95: 2 | E95: 0 | F95: 120 | G95: 71 | H95: 2018-01-06 | I95: T 4 OISE - VILLERS | J95: Qualifications | K95: 2017-2018 | P95: 0 | R95: 0
A96: CHARLES Dominique | B96: ALEXANDRE Michel | C96: G | D96: 3 | E96: 0 | F96: 180 | G96: 99 | H96: 2018-02-17 | I96: FINALE OISE - SENLIS | J96: Poule unique | K96: 2017-2018 | P96: 0 | R96: 0
A97: CHARLES Dominique | B97: BONNEAU Benoît | C97: P | D97: 0 | E97: 3 | F97: 120 | G97: 180 | H97: 2018-02-17 | I97: FINALE OISE - SENLIS | J97: Poule unique | K97: 2017-2018 | P97: 0 | R97: 0
A98: CHARLES Dominique | B98: LORGE Thierry | C98: P | D98: 1 | E98: 3 | F98: 200 | G98: 228 | H98: 2018-02-17 | I98: FINALE OISE - SENLIS | J98: Poule unique | K98: 2017-2018 | P98: 0 | R98: 0
A99: CHARLES Dominique | B99: GUERIN Régis | C99: P | D99: 1 | E99: 2 | F99: 149 | G99: 168 | H99: 2018-03-02 | I99: National T4 LAXOU | J99: Préqualifs | K99: 2017-2018 | P99: 0 | R99: 0
A100: CHARLES Dominique | B100: OBERTI Alain | C100: G | D100: 2 | E100: 1 | F100: 155 | G100: 136 | H100: 2018-03-02 | I100: National T4 LAXOU | J100: Préqualifs | K100: 2017-2018 | P100: 0 | R100: 0
A101: CHARLES Dominique | B101: DAVOINE Bruno | C101: P | D101: 0 | E101: 2 | F101: 58 | G101: 120 | H101: 2018-03-02 | I101: National T4 LAXOU | J101: Préqualifs | K101: 2017-2018 | P101: 0 | R101: 0
A102: CHARLES Dominique | B102: PROUT Vincent | C102: P | D102: 0 | E102: 2 | F102: 84 | G102: 120 | H102: 2018-10-27 | I102: 5 Q - T 2 OISE - 2018-2019 - N 1 - TOURNOI PRINCIPAL - VILLERS | J102: Qualifications | K102: 2018-2019 | P102: 0 | R102: 0
A103: CHARLES Dominique | B103: VAROQUEAUX Julien | C103: G | D103: 2 | E103: 1 | F103: 141 | G103: 157 | H103: 2018-10-27 | I103: 5 Q - T 2 OISE - 2018-2019 - N 1 - TOURNOI PRINCIPAL - VILLERS | J103: Qualifications | K103: 2018-2019 | P103: 0 | R103: 0
A104: CHARLES Dominique | B104: BARBE Philippe | C104: G | D104: 2 | E104: 1 | F104: 171 | G104: 134 | H104: 2018-11-24 | I104: 5 Q - T 3 OISE - 2018-2019 - N 1 - TOURNOI PRINCIPAL - MERU | J104: Qualifications | K104: 2018-2019 | P104: 0 | R104: 0
A105: CHARLES Dominique | B105: FAURE Stéphane | C105: P | D105: 0 | E105: 2 | F105: 55 | G105: 120 | H105: 2018-11-24 | I105: 5 Q - T 3 OISE - 2018-2019 - N 1 - TOURNOI PRINCIPAL - MERU | J105: Qualifications | K105: 2018-2019 | P105: 0 | R105: 0
A106: CHARLES Dominique | B106: LORGE Thierry | C106: P | D106: 1 | E106: 2 | F106: 104 | G106: 150 | H106: 2019-01-19 | I106: 5 Q - T 4 OISE - 2018-2019 - N 1 - TOURNOI PRINCIPAL - CREVECOEUR | J106: Qualifications | K106: 2018-2019 | P106: 0 | R106: 0
A107: CHARLES Dominique | B107: NAHIRNYJ Nicolas | C107: P | D107: 0 | E107: 2 | F107: 110 | G107: 120 | H107: 2019-01-19 | I107: 5 Q - T 4 OISE - 2018-2019 - N 1 - TOURNOI PRINCIPAL - CREVECOEUR | J107: Qualifications | K107: 2018-2019 | P107: 0 | R107: 0
A108: CHARLES Dominique | B108: BARBE Philippe | C108: P | D108: 0 | E108: 2 | F108: 78 | G108: 120 | H108: 2019-10-19 | I108: CD60 N1 - T1 - Tour Principal - BEAUVAIS | J108: Qualifications | K108: 2019-2020 | P108: 0 | R108: 0
A109: CHARLES Dominique | B109: BONNEAU Benoît | C109: P | D109: 1 | E109: 2 | F109: 143 | G109: 178 | H109: 2019-10-19 | I109: CD60 N1 - T1 - Tour Principal - BEAUVAIS | J109: Qualifications | K109: 2019-2020 | P109: 0 | R109: 0
A110: CHARLES Dominique | B110: BARBE Philippe | C110: G | D110: 1 | E110: 0 | F110: 100 | G110: 67 | H110: 2020-01-11 | I110: CD60 N1 - T3 - Tour Principal - CREPY | J110: Qualifications | K110: 2019-2020 | P110: 0 | R110: 0
A111: CHARLES Dominique | B111: FAURE Stéphane | C111: P | D111: 0 | E111: 1 | F111: 74 | G111: 100 | H111: 2020-01-11 | I111: CD60 N1 - T3 - Tour Principal - CREPY | J111: Qualifications | K111: 2019-2020 | P111: 0 | R111: 0
A112: CHARLES Dominique | B112: LORGE Thierry | C112: P | D112: 0 | E112: 1 | F112: 33 | G112: 100 | H112: 2020-01-11 | I112: CD60 N1 - T3 - Tour Principal - CREPY | J112: 1/4 Finale | K112: 2019-2020 | P112: 0 | R112: 0
A113: CHARLES Dominique | B113: BAYON PASCAL | C113: P | D113: 0 | E113: 1 | F113: 93 | G113: 100 | H113: 2020-01-31 | I113: TN3 SCHILTIGHEIM | J113: Préqualifications | K113: 2019-2020 | P113: 0 | R113: 0
A114: CHARLES Dominique | B114: PICOT COURNEE SYLVAIN | C114: P | D114: 0 | E114: 1 | F114: 88 | G114: 100 | H114: 2020-01-31 | I114: TN3 SCHILTIGHEIM | J114: Préqualifications | K114: 2019-2020 | P114: 0 | R114: 0
A115: CHARLES Dominique | B115: SORTAIS CLAUDE | C115: P | D115: 0 | E115: 1 | F115: 67 | G115: 100 | H115: 2020-01-31 | I115: TN3 SCHILTIGHEIM | J115: Préqualifications | K115: 2019-2020 | P115: 0 | R115: 0
A116: CHARLES Dominique | B116: BAUDRY ALAIN | C116: G | D116: 1 | E116: 0 | F116: 100 | G116: 88 | H116: 2020-02-01 | I116: TN3 SCHILTIGHEIM | J116: 1/8è Tournoi de classement | K116: 2019-2020 | P116: 0 | R116: 0
A117: CHARLES Dominique | B117: BARBE PHILIPPE | C117: P | D117: 0 | E117: 1 | F117: 62 | G117: 100 | H117: 2020-02-01 | I117: TN3 SCHILTIGHEIM | J117: 1/4 F Tournoi de classement | K117: 2019-2020 | P117: 0 | R117: 0
A118: CHARLES Dominique | B118: WALLART JEAN CHARLES | C118: P | D118: 0 | E118: 1 | F118: 92 | G118: 100 | H118: 2019-10-04 | I118: TN1 ANNOEULLIN | J118: Préqualifications | K118: 2019-2020 | P118: 0 | R118: 0
A119: CHARLES Dominique | B119: BAYON PASCAL | C119: P | D119: 0 | E119: 1 | F119: 64 | G119: 100 | H119: 2019-10-04 | I119: TN1 ANNOEULLIN | J119: Préqualifications | K119: 2019-2020 | P119: 0 | R119: 0
A120: CHARLES Dominique | B120: LORTHIOIR JEAN LUC | C120: P | D120: 0 | E120: 1 | F120: 56 | G120: 100 | H120: 2019-10-04 | I120: TN1 ANNOEULLIN | J120: Préqualifications | K120: 2019-2020 | P120: 0 | R120: 0
A121: CHARLES Dominique | B121: RUBLINE SAMUEL | C121: G | D121: 1 | E121: 0 | F121: 100 | G121: 68 | H121: 2019-10-05 | I121: TN1 ANNOEULLIN | J121: 1/16è Tournoi de classement | K121: 2019-2020 | P121: 0 | R121: 0
A122: CHARLES Dominique | B122: LANUSSE CHRISTOPHE | C122: P | D122: 0 | E122: 1 | F122: 53 | G122: 100 | H122: 2019-10-05 | I122: TN1 ANNOEULLIN | J122: 1/8è Tournoi de classement | K122: 2019-2020 | P122: 0 | R122: 0
A123: CHARLES Dominique | B123: LORGE Thierry | C123: P | D123: 0 | E123: 2 | F123: 68 | G123: 120 | H123: 2019-11-23 | I123: CD60 N1 - T2 - Tour Principal - MERU | J123: 1/4 Finale | K123: 2019-2020 | P123: 0 | R123: 0
A124: CHARLES Dominique | B124: NAHIRNYJ Nicolas | C124: P | D124: 0 | E124: 2 | F124: 72 | G124: 120 | H124: 2019-11-23 | I124: CD60 N1 - T2 - Tour Principal - MERU | J124: Qualifications | K124: 2019-2020 | P124: 0 | R124: 0
A125: CHARLES Dominique | B125: SAUVE Olivier | C125: G | D125: 2 | E125: 1 | F125: 163 | G125: 151 | H125: 2019-11-23 | I125: CD60 N1 - T2 - Tour Principal - MERU | J125: Qualifications | K125: 2019-2020 | P125: 0 | R125: 0
A126: CHARLES Dominique | B126: LALOT Gérard | C126: G | D126: 1 | E126: 0 | F126: 120 | G126: 82 | H126: 2021-12-18 | I126: T 2 OISE - Qualifications N 1 - Tour Principal - CREPY | J126: Qualifications | K126: 2021-2022 | P126: 1 | R126: 0
A127: CHARLES Dominique | B127: VANDEPUTTE Laurent | C127: G | D127: 1 | E127: 0 | F127: 120 | G127: 107 | H127: 2021-12-18 | I127: T 2 OISE - Qualifications N 1 - Tour Principal - CREPY | J127: 1/4 Finale | K127: 2021-2022 | P127: 1 | R127: 0
A128: CHARLES Dominique | B128: VAROQUEAUX Julien | C128: P | D128: 0 | E128: 1 | F128: 101 | G128: 120 | H128: 2021-12-18 | I128: T 2 OISE - Qualifications N 1 - Tour Principal - CREPY | J128: Qualifications | K128: 2021-2022 | P128: 0 | R128: 0
A129: CHARLES Dominique | B129: VAROQUEAUX Julien | C129: P | D129: 0 | E129: 1 | F129: 116 | G129: 120 | H129: 2021-12-18 | I129: T 2 OISE - Qualifications N 1 - Tour Principal - CREPY | J129: 1/2 Finale | K129: 2021-2022 | P129: 0 | R129: 0
A130: CHARLES Dominique | B130: SAUVE Olivier | C130: P | D130: 0 | E130: 1 | F130: 119 | G130: 120 | H130: 2021-12-29 | I130: T 3 OISE - Qualifications N 1 - Tour Principal - SENLIS | J130: Qualifications | K130: 2021-2022 | P130: 0 | R130: 0
A131: CHARLES Dominique | B131: VANDEPUTTE Laurent | C131: P | D131: 0 | E131: 1 | F131: 104 | G131: 120 | H131: 2021-12-29 | I131: T 3 OISE - Qualifications N 1 - Tour Principal - SENLIS | J131: Qualifications | K131: 2021-2022 | P131: 0 | R131: 0
A132: CHARLES DOMINIQUE | B132: GUERIN REGIS | C132: P | D132: 0 | E132: 1 | F132: 89 | G132: 100 | H132: 2021-10-08 | I132: TN1 ST MAUR DES FOSSES | J132: Préqualifications | K132: 2021-2022 | P132: 0 | R132: 0
A133: CHARLES DOMINIQUE | B133: GODARD ALAIN | C133: P | D133: 0 | E133: 1 | F133: 98 | G133: 100 | H133: 2021-10-08 | I133: TN1 ST MAUR DES FOSSES | J133: Préqualifications | K133: 2021-2022 | P133: 0 | R133: 0
A134: CHARLES DOMINIQUE | B134: LECLAIRE MICHEL | C134: P | D134: 0 | E134: 1 | F134: 97 | G134: 100 | H134: 2021-10-08 | I134: TN1 ST MAUR DES FOSSES | J134: Préqualifications | K134: 2021-2022 | P134: 0 | R134: 0
A135: CHARLES DOMINIQUE | B135: ALAZARD PHILIPPE | C135: P | D135: 0 | E135: 1 | F135: 76 | G135: 100 | H135: 2021-10-09 | I135: TN1 ST MAUR DES FOSSES | J135: 1/8è Tournoi de classement | K135: 2021-2022 | P135: 0 | R135: 0
A136: CHARLES DOMINIQUE | B136: SORTAIS CLAUDE | C136: P | D136: 0 | E136: 1 | F136: 88 | G136: 100 | H136: 2021-11-05 | I136: TN2 GRAVELINES | J136: Préqualifications | K136: 2021-2022 | P136: 0 | R136: 0
A137: CHARLES DOMINIQUE | B137: KERKHOF HERVE | C137: G | D137: 1 | E137: 0 | F137: 100 | G137: 73 | H137: 2021-11-05 | I137: TN2 GRAVELINES | J137: Préqualifications | K137: 2021-2022 | P137: 1 | R137: 0
A138: CHARLES DOMINIQUE | B138: SAINT GEORGES CLAUDE | C138: G | D138: 1 | E138: 0 | F138: 100 | G138: 99 | H138: 2021-11-05 | I138: TN2 GRAVELINES | J138: Préqualifications | K138: 2021-2022 | P138: 1 | R138: 0
A139: CHARLES DOMINIQUE | B139: LEBOEUF SYLVAIN | C139: P | D139: 0 | E139: 1 | F139: 101 | G139: 120 | H139: 2021-11-06 | I139: TN2 GRAVELINES | J139: Qualifications National | K139: 2021-2022 | P139: 0 | R139: 0
A140: CHARLES DOMINIQUE | B140: POULEYN ANDRE | C140: P | D140: 0 | E140: 1 | F140: 97 | G140: 120 | H140: 2021-11-06 | I140: TN2 GRAVELINES | J140: Qualifications National | K140: 2021-2022 | P140: 0 | R140: 0
A141: CHARLES DOMINIQUE | B141: BONGIOVANNI GIOVANNI | C141: P | D141: 0 | E141: 1 | F141: 80 | G141: 120 | H141: 2021-11-06 | I141: TN2 GRAVELINES | J141: Qualifications National | K141: 2021-2022 | P141: 0 | R141: 0
A142: CHARLES DOMINIQUE | B142: LEBOEUF SYLVAIN | C142: P | D142: 0 | E142: 1 | F142: 66 | G142: 100 | H142: 2022-02-25 | I142: TN4 LAXOU | J142: Préqualifications | K142: 2021-2022 | P142: 0 | R142: 0
A143: CHARLES DOMINIQUE | B143: BONVILLE ALEXANDRE | C143: P | D143: 0 | E143: 1 | F143: 55 | G143: 100 | H143: 2022-02-25 | I143: TN4 LAXOU | J143: Préqualifications | K143: 2021-2022 | P143: 0 | R143: 0
A144: CHARLES DOMINIQUE | B144: HERVELIN GABRIEL | C144: P | D144: 0 | E144: 1 | F144: 78 | G144: 100 | H144: 2022-02-25 | I144: TN4 LAXOU | J144: Préqualifications | K144: 2021-2022 | P144: 0 | R144: 0
A145: CHARLES DOMINIQUE | B145: MARTIN DENIS | C145: P | D145: 0 | E145: 1 | F145: 91 | G145: 100 | H145: 2022-04-01 | I145: TN5 ROUEN | J145: Préqualifications | K145: 2021-2022 | P145: =IF($K145=P$1,COUNTIF($C145,"G"),0) -> 0 | R145: =IF($K145=R$1,COUNTIF($C145,"G"),0) -> 0
A146: CHARLES DOMINIQUE | B146: FOURRE CEDRIC | C146: P | D146: 0 | E146: 1 | F146: 97 | G146: 100 | H146: 2022-04-01 | I146: TN5 ROUEN | J146: Préqualifications | K146: 2021-2022 | P146: =IF($K146=P$1,COUNTIF($C146,"G"),0) -> 0 | R146: =IF($K146=R$1,COUNTIF($C146,"G"),0) -> 0
A147: CHARLES DOMINIQUE | B147: MICHELOTTI FRANCESCO | C147: P | D147: 0 | E147: 1 | F147: 40 | G147: 100 | H147: 2022-04-01 | I147: TN5 ROUEN | J147: Préqualifications | K147: 2021-2022 | P147: =IF($K147=P$1,COUNTIF($C147,"G"),0) -> 0 | R147: =IF($K147=R$1,COUNTIF($C147,"G"),0) -> 0
A148: CHARLES Dominique | B148: FAURE Stéphane | C148: G | D148: 1 | E148: 0 | F148: 120 | G148: 93 | H148: 2022-10-29 | I148: T 1 OISE - Qualifications N 1 - Tour Principal - MERU | J148: Qualifications | K148: 2022-2023 | P148: =IF($K148=P$1,COUNTIF($C148,"G"),0) -> 0 | R148: =IF($K148=R$1,COUNTIF($C148,"G"),0) -> 1
A149: CHARLES Dominique | B149: FELLINE Riccardo | C149: P | D149: 0 | E149: 1 | F149: 82 | G149: 120 | H149: 2022-10-29 | I149: T 1 OISE - Qualifications N 1 - Tour Principal - MERU | J149: 1/4 Finale | K149: 2022-2023 | P149: 0 | R149: 0
A150: CHARLES Dominique | B150: LALOT Gérard | C150: G | D150: 1 | E150: 0 | F150: 120 | G150: 66 | H150: 2022-10-29 | I150: T 1 OISE - Qualifications N 1 - Tour Principal - MERU | J150: Qualifications | K150: 2022-2023 | P150: 0 | R150: 1
A151: CHARLES Dominique | B151: FELLINE Riccardo | C151: P | D151: 0 | E151: 1 | F151: 57 | G151: 120 | H151: 2022-12-03 | I151: T 2 OISE - Qualifications N 1 - Tour Principal - SENLIS | J151: 1/4 Finale | K151: 2022-2023 | P151: 0 | R151: 0
A152: CHARLES Dominique | B152: NAHIRNYJ Nicolas | C152: P | D152: 0 | E152: 1 | F152: 111 | G152: 120 | H152: 2022-12-03 | I152: T 2 OISE - Qualifications N 1 - Tour Principal - SENLIS | J152: Qualifications | K152: 2022-2023 | P152: 0 | R152: 0
A153: CHARLES Dominique | B153: NAHIRNYJ Nicolas | C153: P | D153: 0 | E153: 1 | F153: 92 | G153: 120 | H153: 2022-12-03 | I153: T 2 OISE - Qualifications N 1 - Tour Principal - SENLIS | J153: Qualifications | K153: 2022-2023 | P153: 0 | R153: 0
A154: CHARLES Dominique | B154: FELLINE Riccardo | C154: P | D154: 0 | E154: 1 | F154: 95 | G154: 120 | H154: 2023-02-18 | I154: T 3 OISE - Qualifications N 1 - Tour Principal - BEAUVAIS | J154: Qualifications | K154: 2022-2023 | P154: 0 | R154: 0
A155: CHARLES Dominique | B155: FELLINE Riccardo | C155: P | D155: 0 | E155: 1 | F155: 93 | G155: 120 | H155: 2023-02-18 | I155: T 3 OISE - Qualifications N 1 - Tour Principal - BEAUVAIS | J155: 1/4 Finale | K155: 2022-2023 | P155: 0 | R155: 0
A156: CHARLES Dominique | B156: VANDEPUTTE Laurent | C156: G | D156: 1 | E156: 0 | F156: 120 | G156: 75 | H156: 2023-02-18 | I156: T 3 OISE - Qualifications N 1 - Tour Principal - BEAUVAIS | J156: Qualifications | K156: 2022-2023 | P156: 0 | R156: 1
A157: CHARLES Dominique | B157: FAURE Stéphane | C157: P | D157: 0 | E157: 1 | F157: 85 | G157: 120 | H157: 2023-03-18 | I157: T 4 OISE - Qualifications N 1 - Tour Principal - CREPY | J157: Finale | K157: 2022-2023 | P157: 0 | R157: 0
A158: CHARLES Dominique | B158: LALOT Gérard | C158: G | D158: 1 | E158: 0 | F158: 120 | G158: 114 | H158: 2023-03-18 | I158: T 4 OISE - Qualifications N 1 - Tour Principal - CREPY | J158: 1/2 Finale | K158: 2022-2023 | P158: 0 | R158: 1
A159: CHARLES Dominique | B159: OLIVEIRA José | C159: P | D159: 0 | E159: 1 | F159: 79 | G159: 120 | H159: 2023-03-18 | I159: T 4 OISE - Qualifications N 1 - Tour Principal - CREPY | J159: Qualifications | K159: 2022-2023 | P159: 0 | R159: 0
A160: CHARLES Dominique | B160: OLIVEIRA José | C160: P | D160: 0 | E160: 1 | F160: 65 | G160: 120 | H160: 2023-03-18 | I160: T 4 OISE - Qualifications N 1 - Tour Principal - CREPY | J160: Qualifications | K160: 2022-2023 | P160: 0 | R160: 0
A161: CHARLES Dominique | B161: OLIVEIRA José | C161: G | D161: 1 | E161: 0 | F161: 120 | G161: 110 | H161: 2023-03-18 | I161: T 4 OISE - Qualifications N 1 - Tour Principal - CREPY | J161: 1/4 Finale | K161: 2022-2023 | P161: 0 | R161: 1
A162: CHARLES Dominique | B162: FELLINE Riccardo | C162: P | D162: 1 | E162: 3 | F162: 191 | G162: 238 | H162: 2023-04-15 | I162: FINALE OISE - N 1 - BEAUVAIS | J162: Qualifications | K162: 2022-2023 | P162: 0 | R162: 0
A163: CHARLES Dominique | B163: SOYEZ Reynald | C163: P | D163: 1 | E163: 3 | F163: 183 | G163: 216 | H163: 2023-04-15 | I163: FINALE OISE - N 1 - BEAUVAIS | J163: Qualifications | K163: 2022-2023 | P163: 0 | R163: 0
A164: CHARLES Dominique | B164: GANGLOFF JEAN LUC | C164: P | D164: 0 | E164: 1 | F164: 24 | G164: 100 | H164: 2022-10-07 | I164: TN1 ROMANS SUR ISERE | J164: Préqualifications | K164: 2022-2023 | P164: 0 | R164: 0
A165: CHARLES Dominique | B165: DUBUISSON PHILIPPE | C165: G | D165: 1 | E165: 0 | F165: 100 | G165: 48 | H165: 2022-10-07 | I165: TN1 ROMANS SUR ISERE | J165: Préqualifications | K165: 2022-2023 | P165: 0 | R165: 1
A166: CHARLES Dominique | B166: FERON PATRICK | C166: G | D166: 1 | E166: 0 | F166: 100 | G166: 73 | H166: 2022-10-07 | I166: TN1 ROMANS SUR ISERE | J166: Préqualifications | K166: 2022-2023 | P166: 0 | R166: 1
A167: CHARLES Dominique | B167: STEINMANN SEBASTIEN | C167: P | D167: 0 | E167: 1 | F167: 118 | G167: 120 | H167: 2022-10-08 | I167: TN1 ROMANS SUR ISERE | J167: Qualifications National | K167: 2022-2023 | P167: 0 | R167: 0
A168: CHARLES Dominique | B168: GANGLOFF JEAN LUC | C168: P | D168: 0 | E168: 1 | F168: 107 | G168: 120 | H168: 2022-10-08 | I168: TN1 ROMANS SUR ISERE | J168: Qualifications National | K168: 2022-2023 | P168: 0 | R168: 0
A169: CHARLES Dominique | B169: DUBUISSON PHILIPPE | C169: P | D169: 0 | E169: 1 | F169: 95 | G169: 120 | H169: 2022-10-08 | I169: TN1 ROMANS SUR ISERE | J169: Qualifications National | K169: 2022-2023 | P169: 0 | R169: 0
A170: CHARLES Dominique | B170: BONNEAU BENOIT | C170: P | D170: 0 | E170: 1 | F170: 61 | G170: 100 | H170: 2022-11-18 | I170: TN2 ANNOEULLIN | J170: Préqualifications | K170: 2022-2023 | P170: 0 | R170: 0
A171: CHARLES Dominique | B171: EVENOU MARIE ANTOINETTE | C171: G | D171: 1 | E171: 0 | F171: 100 | G171: 84 | H171: 2022-11-18 | I171: TN2 ANNOEULLIN | J171: Préqualifications | K171: 2022-2023 | P171: 0 | R171: 1
A172: CHARLES Dominique | B172: BAYON PASCAL | C172: P | D172: 0 | E172: 1 | F172: 67 | G172: 100 | H172: 2022-11-18 | I172: TN2 ANNOEULLIN | J172: Préqualifications | K172: 2022-2023 | P172: 0 | R172: 0
A173: CHARLES Dominique | B173: NAHIRNYJ NICOLAS | C173: P | D173: 0 | E173: 1 | F173: 78 | G173: 80 | H173: 2022-11-19 | I173: TN2 ANNOEULLIN | J173: 1/8è Tournoi de classement | K173: 2022-2023 | P173: 0 | R173: 0
A174: CHARLES Dominique | B174: GOUTALOY SYLVAIN | C174: P | D174: 0 | E174: 1 | F174: 71 | G174: 100 | H174: 2023-01-20 | I174: TN3 SAINT QUENTIN | J174: Préqualifications | K174: 2022-2023 | P174: 0 | R174: 0
A175: CHARLES Dominique | B175: DELORME GAUTHIER | C175: G | D175: 1 | E175: 0 | F175: 100 | G175: 81 | H175: 2023-01-20 | I175: TN3 SAINT QUENTIN | J175: Préqualifications | K175: 2022-2023 | P175: 0 | R175: 1
A176: CHARLES Dominique | B176: MICHELOTTI FRANCESCO | C176: P | D176: 0 | E176: 1 | F176: 7 | G176: 100 | H176: 2023-01-20 | I176: TN3 SAINT QUENTIN | J176: Préqualifications | K176: 2022-2023 | P176: 0 | R176: 0
A177: CHARLES Dominique | B177: PICOT COURNEE SYLVAIN | C177: P | D177: 0 | E177: 1 | F177: 35 | G177: 100 | H177: 2023-05-31 | I177: TN5 ROUEN | J177: Préqualifications | K177: 2022-2023 | P177: 0 | R177: 0
A178: CHARLES Dominique | B178: JACQ LAURENT | C178: P | D178: 0 | E178: 1 | F178: 68 | G178: 100 | H178: 2023-05-31 | I178: TN5 ROUEN | J178: Préqualifications | K178: 2022-2023 | P178: 0 | R178: 0
A179: CHARLES Dominique | B179: DEMILLY JEAN SEBASTIEN | C179: P | D179: 0 | E179: 1 | F179: 97 | G179: 100 | H179: 2023-05-31 | I179: TN5 ROUEN | J179: Préqualifications | K179: 2022-2023 | P179: 0 | R179: 0
A180: Fin des données | P180: =IF($K180=P$1,COUNTIF($C180,"G"),0) -> 0 | R180: =IF($K180=R$1,COUNTIF($C180,"G"),0) -> 0

Sheet CLYNCKE Jean-Jacques
A1: CLYNCKE Jean-Jacques | P1: =SaisonDeb -> 2021-2022 | R1: =SaisonFin -> 2022-2023 | T1: Toutes saisons
A2: FACHES-THUMESNIL | P2: Nombre | Q2: %age | R2: Nombre | S2: %age | T2: Nombre | U2: %age
A3: 017038-I | N3: Matchs | O3: Gagnés | P3: =SUM(P$15:P$519) -> 4 | Q3: =IF(P$3+P$4>0,P3/(P$3+P$4),"") -> 0.2857142857 | R3: =SUM(R$15:R$519) -> 5 | S3: =IF(R$3+R$4>0,R3/(R$3+R$4),"") -> 0.3571428571 | T3: =COUNTIF($C$15:$C$519,"G") -> 159 | U3: =IF(T$3+T$4>0,T3/(T$3+T$4),"") -> 0.3906633907
A4: 06 20 30 89 94 | O4: Perdus | P4: =COUNTIF($K$15:$M$519,SaisonDeb)-P3 -> 10 | Q4: =IF(P$3+P$4>0,P4/(P$3+P$4),"") -> 0.7142857143 | R4: =COUNTIF($K$15:$K$519,SaisonFin)-R3 -> 9 | S4: =IF(R$3+R$4>0,R4/(R$3+R$4),"") -> 0.6428571429 | T4: =COUNTIF($C$15:$C$519,"P") -> 248 | U4: =IF(T$3+T$4>0,T4/(T$3+T$4),"") -> 0.6093366093
O5: Total / Moy. | P5: =SUM(P3:P4) -> 14 | Q5: =IF(SUMIF($K$15:$K$519,SaisonDeb,$G$15:$G$519)>0,SUMIF($K$15:$K$519,SaisonDeb,$F$15:$F$519)/SUMIF($K$15:$K$519,SaisonDeb,$G$15:$G$519),"") -> 0.8794326241 | R5: =SUM(R3:R4) -> 14 | S5: =IF(SUMIF($K$15:$K$519,SaisonFin,$G$15:$G$519)>0,SUMIF($K$15:$K$519,SaisonFin,$F$15:$F$519)/SUMIF($K$15:$K$519,SaisonFin,$G$15:$G$519),"") -> 0.8973977695 | T5: =SUM(T3:T4) -> 407 | U5: =IF(SUM($G$15:$G$519)>0,SUM($F$15:$F$519)/SUM($G$15:$G$519),"") -> 0.9097855778 | V5: =IF(SUMIF($K$15:$K$423,SaisonDeb,$G$15:$G$423)+SUMIF($K$15:$K$423,SaisonFin,$G$15:$G$423)>0,(SUMIF($K$15:$K$423,SaisonDeb,$F$15:$F$423)+SUMIF($K$15:$K$423,SaisonFin,$F$15:$F$423))/(SUMIF($K$15:$K$423,SaisonDeb,$G$15:$G$423)+SUMIF($K$15:$K$423,SaisonFin,$G$15:$G$423)),"") -> 0.8882032668
N6: Sets | O6: Gagnés | P6: =SUMIF($K$15:$K$519,SaisonDeb,$D$15:$D$519) -> 4 | Q6: =IF(P$6+P$7>0,P6/(P$6+P$7),"") -> 0.25 | R6: =SUMIF($K$15:$K$519,SaisonFin,$D$15:$D$519) -> 5 | S6: =IF(R$6+R$7>0,R6/(R$6+R$7),"") -> 0.3571428571 | T6: =SUM($D$15:$D$519) -> 431 | U6: =IF(T$6+T$7>0,T6/(T$6+T$7),"") -> 0.4164251208
O7: Perdus | P7: =SUMIF($K$15:$K$519,SaisonDeb,$E$15:$E$519) -> 12 | Q7: =IF(P$6+P$7>0,P7/(P$6+P$7),"") -> 0.75 | R7: =SUMIF($K$15:$K$519,SaisonFin,$E$15:$E$519) -> 9 | S7: =IF(R$6+R$7>0,R7/(R$6+R$7),"") -> 0.6428571429 | T7: =SUM($E$15:$E$519) -> 604 | U7: =IF(T$6+T$7>0,T7/(T$6+T$7),"") -> 0.5835748792
A8: Récapitulatif joueurs | O8: Total | P8: =SUM(P6:P7) -> 16 | R8: =SUM(R6:R7) -> 14 | T8: =SUM(T6:T7) -> 1035
A15: Joueur | B15: Adversaire | C15: G/P | D15: Sets gagnés | E15: Sets perdus | F15: pts marqués | G15: pts subis | H15: Date | I15: Compétition | J15: Phase | K15: Saison
A16: CLYNCKE Jean-Jacques | B16: ZILLIG Pierre | C16: P | D16: 1 | E16: 3 | F16: 195 | G16: 232 | H16: 2010-01-30 | I16: National T3 ORLEANS | J16: Qualifs promotion | K16: =IF(H16<>"",IF(MONTH(H16)>MoisRef,YEAR(H16)&"-"&YEAR(H16)+1,YEAR(H16)-1&"-"&YEAR(H16)),"") -> 2009-2010 | P16: =IF($K16=P$1,COUNTIF($C16,"G"),0) -> 0 | R16: =IF($K16=R$1,COUNTIF($C16,"G"),0) -> 0
A17: CLYNCKE Jean-Jacques | B17: ZILLIG Pierre | C17: P | D17: 1 | E17: 3 | F17: 195 | G17: 232 | H17: 2010-01-30 | I17: National T3 ORLEANS | J17: Qualifs promotion | K17: 2009-2010 | P17: 0 | R17: 0
A18: CLYNCKE Jean-Jacques | B18: ZACCAGNINI Antoine | C18: P | D18: 0 | E18: 2 | F18: 86 | G18: 120 | H18: 2009-02-06 | I18: National T4 LAXOU | J18: Préqualifs | K18: 2008-2009 | P18: 0 | R18: 0
A19: CLYNCKE Jean-Jacques | B19: ZACCAGNINI Antoine | C19: P | D19: 0 | E19: 2 | F19: 72 | G19: 120 | H19: 2010-04-23 | I19: National T6 ANDERNOS | J19: Préqualifs | K19: 2009-2010 | P19: 0 | R19: 0
A20: CLYNCKE Jean-Jacques | B20: ZACCAGNINI Antoine | C20: P | D20: 1 | E20: 2 | F20: 122 | G20: 161 | H20: 2010-12-03 | I20: National T3 FACHES THUMESNIL - RONCHIN | J20: Préqualifs | K20: 2010-2011 | P20: 0 | R20: 0
A21: CLYNCKE Jean-Jacques | B21: WESTEEL Bruno | C21: P | D21: 0 | E21: 2 | F21: 72 | G21: 120 | H21: 2010-11-13 | I21: N1 Ligue T2 FACHES THUMESNIL | J21: Poules Consolante | K21: 2010-2011 | P21: 0 | R21: 0
A22: CLYNCKE Jean-Jacques | B22: WEBER Thierry | C22: P | D22: 1 | E22: 2 | F22: 157 | G22: 163 | H22: 2008-12-12 | I22: National T3 ANNOEULLIN | J22: Préqualifs | K22: 2008-2009 | P22: 0 | R22: 0
A23: CLYNCKE Jean-Jacques | B23: WEBER Thierry | C23: G | D23: 3 | E23: 1 | F23: 234 | G23: 145 | H23: 2010-12-04 | I23: National T3 FACHES THUMESNIL - RONCHIN | J23: Qualifs promotion | K23: 2010-2011 | P23: 0 | R23: 0
A24: CLYNCKE Jean-Jacques | B24: WALLART Jean-Charles | C24: G | D24: 2 | E24: 1 | F24: 167 | G24: 138 | H24: 2010-02-20 | I24: N1 Ligue T4 DOUAI | J24: Poules | K24: 2009-2010 | P24: 0 | R24: 0
A25: CLYNCKE Jean-Jacques | B25: WALLART Jean-Charles | C25: P | D25: 2 | E25: 3 | F25: 233 | G25: 277 | H25: 2008-10-11 | I25: National T1 MAISONS ALFORT | J25: Qualifs promotion | K25: 2008-2009 | P25: 0 | R25: 0
A26: CLYNCKE Jean-Jacques | B26: WALLART Jean-Charles | C26: P | D26: 2 | E26: 3 | F26: 244 | G26: 248 | H26: 2008-11-15 | I26: National T2 SCHILTIGHEIM | J26: Qualifs promotion | K26: 2008-2009 | P26: 0 | R26: 0
